Workbook

Sheet Data_Sheet
A2: Jyothi Engineering College, Cheruthuruthy
A4: Department of Computer Science Engineering
A6: Total No of Students : | C6: 92 | D6: Date : | E6: 26/10/2019
D7: Semester | E7: S3
A8: Sub Code : | B8: Subject Name : | C8: Academic Year : | E8: 2019-20 | F8: CO1 | G8: S1 | H8: CE | I8: Department of Civil Engineering
A9: CS203 | B9: Switching Theory and Logic Design | C9: Total Marks(Int) : | E9: 50 | F9: CO2 | G9: S2 | H9: CS | I9: Department of Computer Science Engineering
A10: Branch | B10: Name of Faculty : | C10: Total Marks(Ext) : | E10: 100 | F10: CO3 | G10: S3 | H10: EC | I10: Department of Electrical & Electronics Engineering
A11: CS | B11: Namitha T N | C11: Target Grade Point : | E11: 5 | F11: CO4 | G11: S4 | H11: EE | I11: Department of Electronics & Communication Engineering
F12: CO5 | G12: S5 | H12: ME | I12: Department of Mechanical Engineering
F13: CO6 | G13: S6 | H13: MR | I13: Department of Mechatronics Engineering
G14: S7
A15: ="CO Analysis - Internal Marks " &" " &TEXT(E6,"dd-mm-yy") -> CO Analysis - Internal Marks 26-10-19 | G15: S8 | L15: =LEFT("CO Analysis - Internal Marks : ",LEN("CO Analysis - Internal Marks : ")-3) &" " &E8 -> CO Analysis - Internal Marks 2019-20
A17: =E7&" "&A11&" "&A9&" "&B9 &" " &E8 -> S3 CS CS203 Switching Theory and Logic Design 2019-20
A20: Register No. | B20: Name of Student | C20: University (External) Grade | D20: ="University (External) Grade Point" -> University (External) Grade Point | E20: ="Total Internal Marks (" & E9& ")" -> Total Internal Marks (50)
O21: CONCATENATE(TRANSPOSE(A29:A34)&",")
A24: Column1 | B24: Column2 | C24: Column3 | D24: Column4 | E24: Column32
A25: JEC18CS001 | B25: ABHISHEK KRISHNAN MENON E | C25: F | D25: =IF(C25="O",10,IF(C25="A+",9,IF(C25="A",8.5,IF(C25="B+",8,IF(C25="B",7,IF(C25="C",6,IF(C25="P",5,0))))))) -> 0 | E25: 23
A26: JEC18CS002 | B26: ABHISHEK SAJEEVAN | C26: F | D26: 0 | E26: 23
A27: JEC18CS003 | B27: ABHITH SHAJI | C27: F | D27: 0 | E27: 23
A28: JEC18CS004 | B28: ABIN SANTHOSH ALAPATT | C28: F | D28: 0 | E28: 32
A29: JEC18CS005 | B29: ADARSH KUMAR M A | C29: C | D29: 6 | E29: 33
A30: JEC18CS006 | B30: ADHITHYA KRISHNA S | C30: P | D30: 5 | E30: 29
A31: JEC18CS007 | B31: ADITHYA HARIDAS | C31: B | D31: 7 | E31: 36
A32: JEC18CS008 | B32: AJMAL BASHEER | C32: F | D32: 0 | E32: 24
A33: JEC18CS009 | B33: AKASH.V | C33: F | D33: 0 | E33: 23
A34: JEC18CS010 | B34: AKHIL AZEEZ UPPILAMKUNNATH | C34: B | D34: 7 | E34: 33
A35: JEC18CS011 | B35: AKHIL KRISHNA UK | C35: F | D35: 0 | E35: 27
A36: JEC18CS012 | B36: ALAN GEORGE | C36: P | D36: 5 | E36: 29
A37: JEC18CS013 | B37: ALEN VARGHESE | C37: B | D37: 7 | E37: 34
A38: JEC18CS014 | B38: AMAL SEBASTIAN | C38: A | D38: 8.5 | E38: 47
A39: JEC18CS015 | B39: AMAL SONY | C39: F | D39: 0 | E39: 23
A40: JEC18CS016 | B40: ANAGHA WILSON | C40: C | D40: 6 | E40: 26
A41: JEC18CS017 | B41: ANETTE ANTO | C41: F | D41: 0 | E41: 23
A42: JEC18CS018 | B42: ANIT MARY THOMAS | C42: B | D42: 7 | E42: 37
A43: JEC18CS020 | B43: ANN THERESA SHAJI | C43: A+ | D43: 9 | E43: 48
A44: JEC18CS021 | B44: ANTONY ROY | C44: F | D44: 0 | E44: 23
A45: JEC18CS022 | B45: ANUGRAHA C | C45: B | D45: 7 | E45: 36
A46: JEC18CS023 | B46: APARNA.V | C46: C | D46: 6 | E46: 37
A47: JEC18CS024 | B47: ARAVIND S KUMAR | C47: F | D47: 0 | E47: 31
A48: JEC18CS025 | B48: ARJUN VINOD | C48: F | D48: 0 | E48: 24
A49: JEC18CS026 | B49: ARUN VG | C49: F | D49: 0 | E49: 25
A50: JEC18CS027 | B50: ASHRUL K | C50: B | D50: 7 | E50: 36
A51: JEC18CS028 | B51: ATHIL PAULY | C51: F | D51: 0 | E51: 23
A52: JEC18CS029 | B52: ATHIRA K P | C52: B | D52: 7 | E52: 42
A53: JEC18CS030 | B53: AWIN ANTO | C53: F | D53: 0 | E53: 27
A54: JEC18CS031 | B54: CHARLES JOHNSON | C54: C | D54: 6 | E54: 29
A55: JEC18CS032 | B55: CHITTILAPPILLY JOVIA JOHNSON | C55: B | D55: 7 | E55: 41
A56: JEC18CS033 | B56: CIYA BABU | C56: F | D56: 0 | E56: 23
A57: JEC18CS034 | B57: DAVID SALUS | C57: C | D57: =IF(C57="O",10,IF(C57="A+",9,IF(C57="A",8.5,IF(C57="B+",8,IF(C57="B",7,IF(C57="C",6,IF(C57="P",5,0))))))) -> 6 | E57: 30
A58: JEC18CS035 | B58: DELICIA REJI | C58: B | D58: 7 | E58: 41
A59: JEC18CS036 | B59: DELMA SHAJAN | C59: B+ | D59: 8 | E59: 37
A60: JEC18CS037 | B60: DILBER SHA AP | C60: F | D60: 0 | E60: 29
A61: JEC18CS038 | B61: EDWIN T JOY | C61: C | D61: 6 | E61: 37
A62: JEC18CS039 | B62: EDWIN WILSON | C62: F | D62: 0 | E62: 24
A63: JEC18CS040 | B63: EMMANUEL SHIBU | C63: C | D63: 6 | E63: 32
A64: JEC18CS041 | B64: GAYATHRI DINESH | C64: C | D64: 6 | E64: 28
A65: JEC18CS042 | B65: GOKUL DAS M | C65: C | D65: 6 | E65: 32
A66: JEC18CS043 | B66: G RAMGOPAL | C66: A | D66: 8.5 | E66: 48
A67: JEC18CS044 | B67: HARIES DAVIS | C67: C | D67: 6 | E67: 29
A68: JEC18CS045 | B68: HARISANKER P | C68: B | D68: 7 | E68: 34
A69: JEC18CS046 | B69: HARSHA.K.S. | C69: B | D69: 7 | E69: 39
A70: JEC18CS047 | B70: HELNA THOMAS | C70: B+ | D70: 8 | E70: 42
A71: JEC18CS048 | B71: HRIDI KRISHNA.H | C71: F | D71: 0 | E71: 28
A72: JEC18CS049 | B72: INDRAJIT R | C72: P | D72: 5 | E72: 23
A73: JEC18CS050 | B73: JESWIN JOJY | C73: C | D73: 6 | E73: 42
A74: JEC18CS051 | B74: JIBIN A BABU | C74: C | D74: 6 | E74: 29
A75: JEC18CS052 | B75: JISSY JOY | C75: A | D75: 8.5 | E75: 45
A76: JEC18CS053 | B76: JOEL JAMES KARIKKANDATHIL | C76: F | D76: 0 | E76: 26
A77: JEC18CS054 | B77: JOSE REJI KARIMADATHI | C77: F | D77: 0 | E77: 23
A78: JEC18CS055 | B78: JUMANA HASIN | C78: B | D78: 7 | E78: 40
A79: JEC18CS056 | B79: KAILASHNATH | C79: C | D79: 6 | E79: 28
A80: JEC18CS057 | B80: K AJISHKUMAR | C80: C | D80: 6 | E80: 28
A81: JEC18CS058 | B81: KEERTHANA K S | C81: C | D81: 6 | E81: 23
A82: JEC18CS059 | B82: KEVIN VARGHESE | C82: B+ | D82: 8 | E82: 43
A83: JEC18CS060 | B83: LAKSHMI SADANANDAN | C83: F | D83: 0 | E83: 25
A84: JEC18CS061 | B84: LEYA PALLAN | C84: P | D84: 5 | E84: 26
A85: JEC18CS062 | B85: MARVEL BABU | C85: F | D85: 0 | E85: 23
A86: JEC18CS063 | B86: MEDWIN PAUL | C86: F | D86: 0 | E86: 23
D87: 0
D88: 0
A89: JEC18CS066 | B89: MUHAMMED INSHADH | C89: F | D89: =IF(C89="O",10,IF(C89="A+",9,IF(C89="A",8.5,IF(C89="B+",8,IF(C89="B",7,IF(C89="C",6,IF(C89="P",5,0))))))) -> 0 | E89: 23
A90: JEC18CS067 | B90: NAIR MIDHUN RAMACHANDRAN | C90: C | D90: 6 | E90: 28
A91: JEC18CS068 | B91: NAVEENA ANTONY | C91: B | D91: 7 | E91: 30
A92: JEC18CS069 | B92: NITIN MADHU | C92: B | D92: 7 | E92: 37
A93: JEC18CS070 | B93: PRATHIUSH ARUN | C93: P | D93: 5 | E93: 29
A94: JEC18CS071 | B94: RACHEL CECER | C94: B+ | D94: 8 | E94: 42
A95: JEC18CS072 | B95: RAHUL RAJU | C95: F | D95: 0 | E95: 24
A96: JEC18CS073 | B96: RAHUL T RAVI | C96: F | D96: 0 | E96: 28
A97: JEC18CS074 | B97: RAPHEAL K MOYALAN | C97: P | D97: 5 | E97: 23
A98: JEC18CS075 | B98: RISHIKESH. V | C98: B+ | D98: 8 | E98: 34
A99: JEC18CS076 | B99: ROCKSON T. AUGUSTINE | C99: B | D99: 7 | E99: 32
A100: JEC18CS077 | B100: SARATH C P | C100: B | D100: 7 | E100: 38
A101: JEC18CS078 | B101: SARATH SASI | C101: A | D101: 8.5 | E101: 40
A102: JEC18CS079 | B102: SHAFNA | C102: A+ | D102: 9 | E102: 49
A103: JEC18CS080 | B103: SHELMY SHABU | C103: B | D103: 7 | E103: 45
A104: JEC18CS081 | B104: SHIZA SHIHAB PUVAMPARAMBIL | C104: B | D104: 7 | E104: 37
A105: JEC18CS082 | B105: SIJO GEORGE | C105: C | D105: 6 | E105: 33
A106: JEC18CS083 | B106: SOURAV K | C106: F | D106: 0 | E106: 23
D107: 0
A108: JEC18CS085 | B108: SREEHARI | C108: P | D108: 5 | E108: 23
A109: JEC18CS086 | B109: SREEKANTH P | C109: F | D109: 0 | E109: 23
A110: JEC18CS087 | B110: SREELEKSHMI H KUMAR | C110: B | D110: 7 | E110: 34
A111: JEC18CS088 | B111: SUFAIL BADUSHA.T | C111: C | D111: 6 | E111: 32
A112: JEC18CS089 | B112: TIYA THOMAS | C112: B+ | D112: 8 | E112: 45
A113: JEC18CS090 | B113: TOMSUN PAVOO P | C113: F | D113: 0 | E113: 31
A114: JEC18CS091 | B114: ULLAS. S | C114: P | D114: 5 | E114: 23
A115: JEC18CS092 | B115: VAISHNAV M | C115: P | D115: 5 | E115: 23
A116: JEC18CS093 | B116: VANI PRAKASHAN CHOYYAN | C116: A+ | D116: 9 | E116: 49
C117: =ROUND(100*D117/COUNTA(C25:INDIRECT("C"&A137)),2) -> 66.29 | D117: =COUNTIF(D25:INDIRECT(D137),">="&E11) -> 59 | E117: =IF(C117>=K133,3,IF(C117>=K132,2,IF(C117>=K131,1,0))) -> 1
A118: CO's | B118: Definition of CO's
A119: CO1 | B119: CO1 Statement
A120: CO2 | B120: CO2 Statement
A121: CO3 | B121: CO3 Statement
A122: CO4 | B122: CO4 Statement
A123: CO5 | B123: CO5 Statement
A124: CO6 | B124: CO6 Statement
A126: Internal Analysis | C126: Weightage | E126: 30 | K126: Target % | L126: %Students
A127: ="Attainment Level 1: "&$L$127&"% students scoring more than "&$K$127&"% of the Total Marks" -> Attainment Level 1: 60% students scoring more than 60% of the Total Marks | K127: 60 | L127: 60
A128: ="Attainment Level 2: "&$L$128&"% students scoring more than "&$K$127&"% of the Total Marks" -> Attainment Level 2: 70% students scoring more than 60% of the Total Marks | L128: 70
A129: ="Attainment Level 3: "&$L$129&"% students scoring more than "&$K$127&"% of the Total Marks" -> Attainment Level 3: 80% students scoring more than 60% of the Total Marks | L129: 80
A130: External Analysis | C130: Weightage | E130: 70 | K130: %Students
A131: ="Attainment Level 1: "&K131&"% students scoring more than the Target Grade Point" -> Attainment Level 1: 60% students scoring more than the Target Grade Point | K131: 60
A132: ="Attainment Level 2: "&K132&"% students scoring more than the Target Grade Point" -> Attainment Level 2: 70% students scoring more than the Target Grade Point | K132: 70
A133: ="Attainment Level 3: "&K133&"% students scoring more than the Target Grade Point" -> Attainment Level 3: 80% students scoring more than the Target Grade Point | K133: 80
B135: =B10 -> Name of Faculty : | C135: =B11 -> Namitha T N
B136: Dated Signature :
A137: =ROW(A118)-2 -> 116 | C137: ="$C$"&A137 -> $C$116 | D137: ="$D$"&A137 -> $D$116
B141: Last Row Count | C141: =ROW(A118)-2 -> 116 | D141: ="D"&$C$141 -> D116

Sheet Internal_Analysis
A3: =Data_Sheet!A2 -> Jyothi Engineering College, Cheruthuruthy
A5: =Data_Sheet!A4 -> Department of Computer Science Engineering
A7: =Data_Sheet!A15 -> CO Analysis - Internal Marks 26-10-19
A9: =Data_Sheet!A17 -> S3 CS CS203 Switching Theory and Logic Design 2019-20
A22: ='T1'!A18 -> Register No. | B22: ='T1'!B18 -> Name of Student | C22: ='T1'!P18 -> Total Marks (50) | D22: Category
A24: Column1 | B24: Column2 | C24: Column3 | D24: Column4
A25: =Data_Sheet!A25 -> JEC18CS001 | B25: =Data_Sheet!B25 -> ABHISHEK KRISHNAN MENON E | C25: =Data_Sheet!E25 -> 23 | D25: =IF(C25="A","ABSENT",IF(C25>=Data_Sheet!$E$9*$E$124/100,"EXCELLENT",IF(C25>=Data_Sheet!$E$9*$E$123/100,"GOOD",IF(C25>=Data_Sheet!$E$9*$E$122/100,"AVERAGE","POOR")))) -> AVERAGE
A26: =Data_Sheet!A26 -> JEC18CS002 | B26: =Data_Sheet!B26 -> ABHISHEK SAJEEVAN | C26: =Data_Sheet!E26 -> 23 | D26: =IF(C26="A","ABSENT",IF(C26>=Data_Sheet!$E$9*$E$124/100,"EXCELLENT",IF(C26>=Data_Sheet!$E$9*$E$123/100,"GOOD",IF(C26>=Data_Sheet!$E$9*$E$122/100,"AVERAGE","POOR")))) -> AVERAGE
A27: =Data_Sheet!A27 -> JEC18CS003 | B27: =Data_Sheet!B27 -> ABHITH SHAJI | C27: =Data_Sheet!E27 -> 23 | D27: =IF(C27="A","ABSENT",IF(C27>=Data_Sheet!$E$9*$E$124/100,"EXCELLENT",IF(C27>=Data_Sheet!$E$9*$E$123/100,"GOOD",IF(C27>=Data_Sheet!$E$9*$E$122/100,"AVERAGE","POOR")))) -> AVERAGE
A28: =Data_Sheet!A28 -> JEC18CS004 | B28: =Data_Sheet!B28 -> ABIN SANTHOSH ALAPATT | C28: =Data_Sheet!E28 -> 32 | D28: =IF(C28="A","ABSENT",IF(C28>=Data_Sheet!$E$9*$E$124/100,"EXCELLENT",IF(C28>=Data_Sheet!$E$9*$E$123/100,"GOOD",IF(C28>=Data_Sheet!$E$9*$E$122/100,"AVERAGE","POOR")))) -> GOOD
A29: =Data_Sheet!A29 -> JEC18CS005 | B29: =Data_Sheet!B29 -> ADARSH KUMAR M A | C29: =Data_Sheet!E29 -> 33 | D29: =IF(C29="A","ABSENT",IF(C29>=Data_Sheet!$E$9*$E$124/100,"EXCELLENT",IF(C29>=Data_Sheet!$E$9*$E$123/100,"GOOD",IF(C29>=Data_Sheet!$E$9*$E$122/100,"AVERAGE","POOR")))) -> GOOD
A30: =Data_Sheet!A30 -> JEC18CS006 | B30: =Data_Sheet!B30 -> ADHITHYA KRISHNA S | C30: =Data_Sheet!E30 -> 29 | D30: =IF(C30="A","ABSENT",IF(C30>=Data_Sheet!$E$9*$E$124/100,"EXCELLENT",IF(C30>=Data_Sheet!$E$9*$E$123/100,"GOOD",IF(C30>=Data_Sheet!$E$9*$E$122/100,"AVERAGE","POOR")))) -> AVERAGE
A31: =Data_Sheet!A31 -> JEC18CS007 | B31: =Data_Sheet!B31 -> ADITHYA HARIDAS | C31: =Data_Sheet!E31 -> 36 | D31: =IF(C31="A","ABSENT",IF(C31>=Data_Sheet!$E$9*$E$124/100,"EXCELLENT",IF(C31>=Data_Sheet!$E$9*$E$123/100,"GOOD",IF(C31>=Data_Sheet!$E$9*$E$122/100,"AVERAGE","POOR")))) -> GOOD
A32: =Data_Sheet!A32 -> JEC18CS008 | B32: =Data_Sheet!B32 -> AJMAL BASHEER | C32: =Data_Sheet!E32 -> 24 | D32: =IF(C32="A","ABSENT",IF(C32>=Data_Sheet!$E$9*$E$124/100,"EXCELLENT",IF(C32>=Data_Sheet!$E$9*$E$123/100,"GOOD",IF(C32>=Data_Sheet!$E$9*$E$122/100,"AVERAGE","POOR")))) -> AVERAGE
A33: =Data_Sheet!A33 -> JEC18CS009 | B33: =Data_Sheet!B33 -> AKASH.V | C33: =Data_Sheet!E33 -> 23 | D33: =IF(C33="A","ABSENT",IF(C33>=Data_Sheet!$E$9*$E$124/100,"EXCELLENT",IF(C33>=Data_Sheet!$E$9*$E$123/100,"GOOD",IF(C33>=Data_Sheet!$E$9*$E$122/100,"AVERAGE","POOR")))) -> AVERAGE
A34: =Data_Sheet!A34 -> JEC18CS010 | B34: =Data_Sheet!B34 -> AKHIL AZEEZ UPPILAMKUNNATH | C34: =Data_Sheet!E34 -> 33 | D34: =IF(C34="A","ABSENT",IF(C34>=Data_Sheet!$E$9*$E$124/100,"EXCELLENT",IF(C34>=Data_Sheet!$E$9*$E$123/100,"GOOD",IF(C34>=Data_Sheet!$E$9*$E$122/100,"AVERAGE","POOR")))) -> GOOD
A35: =Data_Sheet!A35 -> JEC18CS011 | B35: =Data_Sheet!B35 -> AKHIL KRISHNA UK | C35: =Data_Sheet!E35 -> 27 | D35: =IF(C35="A","ABSENT",IF(C35>=Data_Sheet!$E$9*$E$124/100,"EXCELLENT",IF(C35>=Data_Sheet!$E$9*$E$123/100,"GOOD",IF(C35>=Data_Sheet!$E$9*$E$122/100,"AVERAGE","POOR")))) -> AVERAGE
A36: =Data_Sheet!A36 -> JEC18CS012 | B36: =Data_Sheet!B36 -> ALAN GEORGE | C36: =Data_Sheet!E36 -> 29 | D36: =IF(C36="A","ABSENT",IF(C36>=Data_Sheet!$E$9*$E$124/100,"EXCELLENT",IF(C36>=Data_Sheet!$E$9*$E$123/100,"GOOD",IF(C36>=Data_Sheet!$E$9*$E$122/100,"AVERAGE","POOR")))) -> AVERAGE
A37: =Data_Sheet!A37 -> JEC18CS013 | B37: =Data_Sheet!B37 -> ALEN VARGHESE | C37: =Data_Sheet!E37 -> 34 | D37: =IF(C37="A","ABSENT",IF(C37>=Data_Sheet!$E$9*$E$124/100,"EXCELLENT",IF(C37>=Data_Sheet!$E$9*$E$123/100,"GOOD",IF(C37>=Data_Sheet!$E$9*$E$122/100,"AVERAGE","POOR")))) -> GOOD
A38: =Data_Sheet!A38 -> JEC18CS014 | B38: =Data_Sheet!B38 -> AMAL SEBASTIAN | C38: =Data_Sheet!E38 -> 47 | D38: =IF(C38="A","ABSENT",IF(C38>=Data_Sheet!$E$9*$E$124/100,"EXCELLENT",IF(C38>=Data_Sheet!$E$9*$E$123/100,"GOOD",IF(C38>=Data_Sheet!$E$9*$E$122/100,"AVERAGE","POOR")))) -> EXCELLENT
A39: =Data_Sheet!A39 -> JEC18CS015 | B39: =Data_Sheet!B39 -> AMAL SONY | C39: =Data_Sheet!E39 -> 23 | D39: =IF(C39="A","ABSENT",IF(C39>=Data_Sheet!$E$9*$E$124/100,"EXCELLENT",IF(C39>=Data_Sheet!$E$9*$E$123/100,"GOOD",IF(C39>=Data_Sheet!$E$9*$E$122/100,"AVERAGE","POOR")))) -> AVERAGE
A40: =Data_Sheet!A40 -> JEC18CS016 | B40: =Data_Sheet!B40 -> ANAGHA WILSON | C40: =Data_Sheet!E40 -> 26 | D40: =IF(C40="A","ABSENT",IF(C40>=Data_Sheet!$E$9*$E$124/100,"EXCELLENT",IF(C40>=Data_Sheet!$E$9*$E$123/100,"GOOD",IF(C40>=Data_Sheet!$E$9*$E$122/100,"AVERAGE","POOR")))) -> AVERAGE
A41: =Data_Sheet!A41 -> JEC18CS017 | B41: =Data_Sheet!B41 -> ANETTE ANTO | C41: =Data_Sheet!E41 -> 23 | D41: =IF(C41="A","ABSENT",IF(C41>=Data_Sheet!$E$9*$E$124/100,"EXCELLENT",IF(C41>=Data_Sheet!$E$9*$E$123/100,"GOOD",IF(C41>=Data_Sheet!$E$9*$E$122/100,"AVERAGE","POOR")))) -> AVERAGE
A42: =Data_Sheet!A42 -> JEC18CS018 | B42: =Data_Sheet!B42 -> ANIT MARY THOMAS | C42: =Data_Sheet!E42 -> 37 | D42: =IF(C42="A","ABSENT",IF(C42>=Data_Sheet!$E$9*$E$124/100,"EXCELLENT",IF(C42>=Data_Sheet!$E$9*$E$123/100,"GOOD",IF(C42>=Data_Sheet!$E$9*$E$122/100,"AVERAGE","POOR")))) -> GOOD
A43: =Data_Sheet!A43 -> JEC18CS020 | B43: =Data_Sheet!B43 -> ANN THERESA SHAJI | C43: =Data_Sheet!E43 -> 48 | D43: =IF(C43="A","ABSENT",IF(C43>=Data_Sheet!$E$9*$E$124/100,"EXCELLENT",IF(C43>=Data_Sheet!$E$9*$E$123/100,"GOOD",IF(C43>=Data_Sheet!$E$9*$E$122/100,"AVERAGE","POOR")))) -> EXCELLENT
A44: =Data_Sheet!A44 -> JEC18CS021 | B44: =Data_Sheet!B44 -> ANTONY ROY | C44: =Data_Sheet!E44 -> 23 | D44: =IF(C44="A","ABSENT",IF(C44>=Data_Sheet!$E$9*$E$124/100,"EXCELLENT",IF(C44>=Data_Sheet!$E$9*$E$123/100,"GOOD",IF(C44>=Data_Sheet!$E$9*$E$122/100,"AVERAGE","POOR")))) -> AVERAGE
A45: =Data_Sheet!A45 -> JEC18CS022 | B45: =Data_Sheet!B45 -> ANUGRAHA C | C45: =Data_Sheet!E45 -> 36 | D45: =IF(C45="A","ABSENT",IF(C45>=Data_Sheet!$E$9*$E$124/100,"EXCELLENT",IF(C45>=Data_Sheet!$E$9*$E$123/100,"GOOD",IF(C45>=Data_Sheet!$E$9*$E$122/100,"AVERAGE","POOR")))) -> GOOD
A46: =Data_Sheet!A46 -> JEC18CS023 | B46: =Data_Sheet!B46 -> APARNA.V | C46: =Data_Sheet!E46 -> 37 | D46: =IF(C46="A","ABSENT",IF(C46>=Data_Sheet!$E$9*$E$124/100,"EXCELLENT",IF(C46>=Data_Sheet!$E$9*$E$123/100,"GOOD",IF(C46>=Data_Sheet!$E$9*$E$122/100,"AVERAGE","POOR")))) -> GOOD
A47: =Data_Sheet!A47 -> JEC18CS024 | B47: =Data_Sheet!B47 -> ARAVIND S KUMAR | C47: =Data_Sheet!E47 -> 31 | D47: =IF(C47="A","ABSENT",IF(C47>=Data_Sheet!$E$9*$E$124/100,"EXCELLENT",IF(C47>=Data_Sheet!$E$9*$E$123/100,"GOOD",IF(C47>=Data_Sheet!$E$9*$E$122/100,"AVERAGE","POOR")))) -> GOOD
A48: =Data_Sheet!A48 -> JEC18CS025 | B48: =Data_Sheet!B48 -> ARJUN VINOD | C48: =Data_Sheet!E48 -> 24 | D48: =IF(C48="A","ABSENT",IF(C48>=Data_Sheet!$E$9*$E$124/100,"EXCELLENT",IF(C48>=Data_Sheet!$E$9*$E$123/100,"GOOD",IF(C48>=Data_Sheet!$E$9*$E$122/100,"AVERAGE","POOR")))) -> AVERAGE
A49: =Data_Sheet!A49 -> JEC18CS026 | B49: =Data_Sheet!B49 -> ARUN VG | C49: =Data_Sheet!E49 -> 25 | D49: =IF(C49="A","ABSENT",IF(C49>=Data_Sheet!$E$9*$E$124/100,"EXCELLENT",IF(C49>=Data_Sheet!$E$9*$E$123/100,"GOOD",IF(C49>=Data_Sheet!$E$9*$E$122/100,"AVERAGE","POOR")))) -> AVERAGE
A50: =Data_Sheet!A50 -> JEC18CS027 | B50: =Data_Sheet!B50 -> ASHRUL K | C50: =Data_Sheet!E50 -> 36 | D50: =IF(C50="A","ABSENT",IF(C50>=Data_Sheet!$E$9*$E$124/100,"EXCELLENT",IF(C50>=Data_Sheet!$E$9*$E$123/100,"GOOD",IF(C50>=Data_Sheet!$E$9*$E$122/100,"AVERAGE","POOR")))) -> GOOD
A51: =Data_Sheet!A51 -> JEC18CS028 | B51: =Data_Sheet!B51 -> ATHIL PAULY | C51: =Data_Sheet!E51 -> 23 | D51: =IF(C51="A","ABSENT",IF(C51>=Data_Sheet!$E$9*$E$124/100,"EXCELLENT",IF(C51>=Data_Sheet!$E$9*$E$123/100,"GOOD",IF(C51>=Data_Sheet!$E$9*$E$122/100,"AVERAGE","POOR")))) -> AVERAGE
A52: =Data_Sheet!A52 -> JEC18CS029 | B52: =Data_Sheet!B52 -> ATHIRA K P | C52: =Data_Sheet!E52 -> 42 | D52: =IF(C52="A","ABSENT",IF(C52>=Data_Sheet!$E$9*$E$124/100,"EXCELLENT",IF(C52>=Data_Sheet!$E$9*$E$123/100,"GOOD",IF(C52>=Data_Sheet!$E$9*$E$122/100,"AVERAGE","POOR")))) -> EXCELLENT
A53: =Data_Sheet!A53 -> JEC18CS030 | B53: =Data_Sheet!B53 -> AWIN ANTO | C53: =Data_Sheet!E53 -> 27 | D53: =IF(C53="A","ABSENT",IF(C53>=Data_Sheet!$E$9*$E$124/100,"EXCELLENT",IF(C53>=Data_Sheet!$E$9*$E$123/100,"GOOD",IF(C53>=Data_Sheet!$E$9*$E$122/100,"AVERAGE","POOR")))) -> AVERAGE
A54: =Data_Sheet!A54 -> JEC18CS031 | B54: =Data_Sheet!B54 -> CHARLES JOHNSON | C54: =Data_Sheet!E54 -> 29 | D54: =IF(C54="A","ABSENT",IF(C54>=Data_Sheet!$E$9*$E$124/100,"EXCELLENT",IF(C54>=Data_Sheet!$E$9*$E$123/100,"GOOD",IF(C54>=Data_Sheet!$E$9*$E$122/100,"AVERAGE","POOR")))) -> AVERAGE
A55: =Data_Sheet!A55 -> JEC18CS032 | B55: =Data_Sheet!B55 -> CHITTILAPPILLY JOVIA JOHNSON | C55: =Data_Sheet!E55 -> 41 | D55: =IF(C55="A","ABSENT",IF(C55>=Data_Sheet!$E$9*$E$124/100,"EXCELLENT",IF(C55>=Data_Sheet!$E$9*$E$123/100,"GOOD",IF(C55>=Data_Sheet!$E$9*$E$122/100,"AVERAGE","POOR")))) -> EXCELLENT
A56: =Data_Sheet!A56 -> JEC18CS033 | B56: =Data_Sheet!B56 -> CIYA BABU | C56: =Data_Sheet!E56 -> 23 | D56: =IF(C56="A","ABSENT",IF(C56>=Data_Sheet!$E$9*$E$124/100,"EXCELLENT",IF(C56>=Data_Sheet!$E$9*$E$123/100,"GOOD",IF(C56>=Data_Sheet!$E$9*$E$122/100,"AVERAGE","POOR")))) -> AVERAGE
A57: =Data_Sheet!A57 -> JEC18CS034 | B57: =Data_Sheet!B57 -> DAVID SALUS | C57: =Data_Sheet!E57 -> 30 | D57: =IF(C57="A","ABSENT",IF(C57>=Data_Sheet!$E$9*$E$124/100,"EXCELLENT",IF(C57>=Data_Sheet!$E$9*$E$123/100,"GOOD",IF(C57>=Data_Sheet!$E$9*$E$122/100,"AVERAGE","POOR")))) -> GOOD
A58: =Data_Sheet!A58 -> JEC18CS035 | B58: =Data_Sheet!B58 -> DELICIA REJI | C58: =Data_Sheet!E58 -> 41 | D58: =IF(C58="A","ABSENT",IF(C58>=Data_Sheet!$E$9*$E$124/100,"EXCELLENT",IF(C58>=Data_Sheet!$E$9*$E$123/100,"GOOD",IF(C58>=Data_Sheet!$E$9*$E$122/100,"AVERAGE","POOR")))) -> EXCELLENT
A59: =Data_Sheet!A59 -> JEC18CS036 | B59: =Data_Sheet!B59 -> DELMA SHAJAN | C59: =Data_Sheet!E59 -> 37 | D59: =IF(C59="A","ABSENT",IF(C59>=Data_Sheet!$E$9*$E$124/100,"EXCELLENT",IF(C59>=Data_Sheet!$E$9*$E$123/100,"GOOD",IF(C59>=Data_Sheet!$E$9*$E$122/100,"AVERAGE","POOR")))) -> GOOD
A60: =Data_Sheet!A60 -> JEC18CS037 | B60: =Data_Sheet!B60 -> DILBER SHA AP | C60: =Data_Sheet!E60 -> 29 | D60: =IF(C60="A","ABSENT",IF(C60>=Data_Sheet!$E$9*$E$124/100,"EXCELLENT",IF(C60>=Data_Sheet!$E$9*$E$123/100,"GOOD",IF(C60>=Data_Sheet!$E$9*$E$122/100,"AVERAGE","POOR")))) -> AVERAGE
A61: =Data_Sheet!A61 -> JEC18CS038 | B61: =Data_Sheet!B61 -> EDWIN T JOY | C61: =Data_Sheet!E61 -> 37 | D61: =IF(C61="A","ABSENT",IF(C61>=Data_Sheet!$E$9*$E$124/100,"EXCELLENT",IF(C61>=Data_Sheet!$E$9*$E$123/100,"GOOD",IF(C61>=Data_Sheet!$E$9*$E$122/100,"AVERAGE","POOR")))) -> GOOD
A62: =Data_Sheet!A62 -> JEC18CS039 | B62: =Data_Sheet!B62 -> EDWIN WILSON | C62: =Data_Sheet!E62 -> 24 | D62: =IF(C62="A","ABSENT",IF(C62>=Data_Sheet!$E$9*$E$124/100,"EXCELLENT",IF(C62>=Data_Sheet!$E$9*$E$123/100,"GOOD",IF(C62>=Data_Sheet!$E$9*$E$122/100,"AVERAGE","POOR")))) -> AVERAGE
A63: =Data_Sheet!A63 -> JEC18CS040 | B63: =Data_Sheet!B63 -> EMMANUEL SHIBU | C63: =Data_Sheet!E63 -> 32 | D63: =IF(C63="A","ABSENT",IF(C63>=Data_Sheet!$E$9*$E$124/100,"EXCELLENT",IF(C63>=Data_Sheet!$E$9*$E$123/100,"GOOD",IF(C63>=Data_Sheet!$E$9*$E$122/100,"AVERAGE","POOR")))) -> GOOD
A64: =Data_Sheet!A64 -> JEC18CS041 | B64: =Data_Sheet!B64 -> GAYATHRI DINESH | C64: =Data_Sheet!E64 -> 28 | D64: =IF(C64="A","ABSENT",IF(C64>=Data_Sheet!$E$9*$E$124/100,"EXCELLENT",IF(C64>=Data_Sheet!$E$9*$E$123/100,"GOOD",IF(C64>=Data_Sheet!$E$9*$E$122/100,"AVERAGE","POOR")))) -> AVERAGE
A65: =Data_Sheet!A65 -> JEC18CS042 | B65: =Data_Sheet!B65 -> GOKUL DAS M | C65: =Data_Sheet!E65 -> 32 | D65: =IF(C65="A","ABSENT",IF(C65>=Data_Sheet!$E$9*$E$124/100,"EXCELLENT",IF(C65>=Data_Sheet!$E$9*$E$123/100,"GOOD",IF(C65>=Data_Sheet!$E$9*$E$122/100,"AVERAGE","POOR")))) -> GOOD
A66: =Data_Sheet!A66 -> JEC18CS043 | B66: =Data_Sheet!B66 -> G RAMGOPAL | C66: =Data_Sheet!E66 -> 48 | D66: =IF(C66="A","ABSENT",IF(C66>=Data_Sheet!$E$9*$E$124/100,"EXCELLENT",IF(C66>=Data_Sheet!$E$9*$E$123/100,"GOOD",IF(C66>=Data_Sheet!$E$9*$E$122/100,"AVERAGE","POOR")))) -> EXCELLENT
A67: =Data_Sheet!A67 -> JEC18CS044 | B67: =Data_Sheet!B67 -> HARIES DAVIS | C67: =Data_Sheet!E67 -> 29 | D67: =IF(C67="A","ABSENT",IF(C67>=Data_Sheet!$E$9*$E$124/100,"EXCELLENT",IF(C67>=Data_Sheet!$E$9*$E$123/100,"GOOD",IF(C67>=Data_Sheet!$E$9*$E$122/100,"AVERAGE","POOR")))) -> AVERAGE
A68: =Data_Sheet!A68 -> JEC18CS045 | B68: =Data_Sheet!B68 -> HARISANKER P | C68: =Data_Sheet!E68 -> 34 | D68: =IF(C68="A","ABSENT",IF(C68>=Data_Sheet!$E$9*$E$124/100,"EXCELLENT",IF(C68>=Data_Sheet!$E$9*$E$123/100,"GOOD",IF(C68>=Data_Sheet!$E$9*$E$122/100,"AVERAGE","POOR")))) -> GOOD
A69: =Data_Sheet!A69 -> JEC18CS046 | B69: =Data_Sheet!B69 -> HARSHA.K.S. | C69: =Data_Sheet!E69 -> 39 | D69: =IF(C69="A","ABSENT",IF(C69>=Data_Sheet!$E$9*$E$124/100,"EXCELLENT",IF(C69>=Data_Sheet!$E$9*$E$123/100,"GOOD",IF(C69>=Data_Sheet!$E$9*$E$122/100,"AVERAGE","POOR")))) -> GOOD
A70: =Data_Sheet!A70 -> JEC18CS047 | B70: =Data_Sheet!B70 -> HELNA THOMAS | C70: =Data_Sheet!E70 -> 42 | D70: =IF(C70="A","ABSENT",IF(C70>=Data_Sheet!$E$9*$E$124/100,"EXCELLENT",IF(C70>=Data_Sheet!$E$9*$E$123/100,"GOOD",IF(C70>=Data_Sheet!$E$9*$E$122/100,"AVERAGE","POOR")))) -> EXCELLENT
A71: =Data_Sheet!A71 -> JEC18CS048 | B71: =Data_Sheet!B71 -> HRIDI KRISHNA.H | C71: =Data_Sheet!E71 -> 28 | D71: =IF(C71="A","ABSENT",IF(C71>=Data_Sheet!$E$9*$E$124/100,"EXCELLENT",IF(C71>=Data_Sheet!$E$9*$E$123/100,"GOOD",IF(C71>=Data_Sheet!$E$9*$E$122/100,"AVERAGE","POOR")))) -> AVERAGE
A72: =Data_Sheet!A72 -> JEC18CS049 | B72: =Data_Sheet!B72 -> INDRAJIT R | C72: =Data_Sheet!E72 -> 23 | D72: =IF(C72="A","ABSENT",IF(C72>=Data_Sheet!$E$9*$E$124/100,"EXCELLENT",IF(C72>=Data_Sheet!$E$9*$E$123/100,"GOOD",IF(C72>=Data_Sheet!$E$9*$E$122/100,"AVERAGE","POOR")))) -> AVERAGE
A73: =Data_Sheet!A73 -> JEC18CS050 | B73: =Data_Sheet!B73 -> JESWIN JOJY | C73: =Data_Sheet!E73 -> 42 | D73: =IF(C73="A","ABSENT",IF(C73>=Data_Sheet!$E$9*$E$124/100,"EXCELLENT",IF(C73>=Data_Sheet!$E$9*$E$123/100,"GOOD",IF(C73>=Data_Sheet!$E$9*$E$122/100,"AVERAGE","POOR")))) -> EXCELLENT
A74: =Data_Sheet!A74 -> JEC18CS051 | B74: =Data_Sheet!B74 -> JIBIN A BABU | C74: =Data_Sheet!E74 -> 29 | D74: =IF(C74="A","ABSENT",IF(C74>=Data_Sheet!$E$9*$E$124/100,"EXCELLENT",IF(C74>=Data_Sheet!$E$9*$E$123/100,"GOOD",IF(C74>=Data_Sheet!$E$9*$E$122/100,"AVERAGE","POOR")))) -> AVERAGE
A75: =Data_Sheet!A75 -> JEC18CS052 | B75: =Data_Sheet!B75 -> JISSY JOY | C75: =Data_Sheet!E75 -> 45 | D75: =IF(C75="A","ABSENT",IF(C75>=Data_Sheet!$E$9*$E$124/100,"EXCELLENT",IF(C75>=Data_Sheet!$E$9*$E$123/100,"GOOD",IF(C75>=Data_Sheet!$E$9*$E$122/100,"AVERAGE","POOR")))) -> EXCELLENT
A76: =Data_Sheet!A76 -> JEC18CS053 | B76: =Data_Sheet!B76 -> JOEL JAMES KARIKKANDATHIL | C76: =Data_Sheet!E76 -> 26 | D76: =IF(C76="A","ABSENT",IF(C76>=Data_Sheet!$E$9*$E$124/100,"EXCELLENT",IF(C76>=Data_Sheet!$E$9*$E$123/100,"GOOD",IF(C76>=Data_Sheet!$E$9*$E$122/100,"AVERAGE","POOR")))) -> AVERAGE
A77: =Data_Sheet!A77 -> JEC18CS054 | B77: =Data_Sheet!B77 -> JOSE REJI KARIMADATHI | C77: =Data_Sheet!E77 -> 23 | D77: =IF(C77="A","ABSENT",IF(C77>=Data_Sheet!$E$9*$E$124/100,"EXCELLENT",IF(C77>=Data_Sheet!$E$9*$E$123/100,"GOOD",IF(C77>=Data_Sheet!$E$9*$E$122/100,"AVERAGE","POOR")))) -> AVERAGE
A78: =Data_Sheet!A78 -> JEC18CS055 | B78: =Data_Sheet!B78 -> JUMANA HASIN | C78: =Data_Sheet!E78 -> 40 | D78: =IF(C78="A","ABSENT",IF(C78>=Data_Sheet!$E$9*$E$124/100,"EXCELLENT",IF(C78>=Data_Sheet!$E$9*$E$123/100,"GOOD",IF(C78>=Data_Sheet!$E$9*$E$122/100,"AVERAGE","POOR")))) -> EXCELLENT
A79: =Data_Sheet!A79 -> JEC18CS056 | B79: =Data_Sheet!B79 -> KAILASHNATH | C79: =Data_Sheet!E79 -> 28 | D79: =IF(C79="A","ABSENT",IF(C79>=Data_Sheet!$E$9*$E$124/100,"EXCELLENT",IF(C79>=Data_Sheet!$E$9*$E$123/100,"GOOD",IF(C79>=Data_Sheet!$E$9*$E$122/100,"AVERAGE","POOR")))) -> AVERAGE
A80: =Data_Sheet!A80 -> JEC18CS057 | B80: =Data_Sheet!B80 -> K AJISHKUMAR | C80: =Data_Sheet!E80 -> 28 | D80: =IF(C80="A","ABSENT",IF(C80>=Data_Sheet!$E$9*$E$124/100,"EXCELLENT",IF(C80>=Data_Sheet!$E$9*$E$123/100,"GOOD",IF(C80>=Data_Sheet!$E$9*$E$122/100,"AVERAGE","POOR")))) -> AVERAGE
A81: =Data_Sheet!A81 -> JEC18CS058 | B81: =Data_Sheet!B81 -> KEERTHANA K S | C81: =Data_Sheet!E81 -> 23 | D81: =IF(C81="A","ABSENT",IF(C81>=Data_Sheet!$E$9*$E$124/100,"EXCELLENT",IF(C81>=Data_Sheet!$E$9*$E$123/100,"GOOD",IF(C81>=Data_Sheet!$E$9*$E$122/100,"AVERAGE","POOR")))) -> AVERAGE
A82: =Data_Sheet!A82 -> JEC18CS059 | B82: =Data_Sheet!B82 -> KEVIN VARGHESE | C82: =Data_Sheet!E82 -> 43 | D82: =IF(C82="A","ABSENT",IF(C82>=Data_Sheet!$E$9*$E$124/100,"EXCELLENT",IF(C82>=Data_Sheet!$E$9*$E$123/100,"GOOD",IF(C82>=Data_Sheet!$E$9*$E$122/100,"AVERAGE","POOR")))) -> EXCELLENT
A83: =Data_Sheet!A83 -> JEC18CS060 | B83: =Data_Sheet!B83 -> LAKSHMI SADANANDAN | C83: =Data_Sheet!E83 -> 25 | D83: =IF(C83="A","ABSENT",IF(C83>=Data_Sheet!$E$9*$E$124/100,"EXCELLENT",IF(C83>=Data_Sheet!$E$9*$E$123/100,"GOOD",IF(C83>=Data_Sheet!$E$9*$E$122/100,"AVERAGE","POOR")))) -> AVERAGE
A84: =Data_Sheet!A84 -> JEC18CS061 | B84: =Data_Sheet!B84 -> LEYA PALLAN | C84: =Data_Sheet!E84 -> 26 | D84: =IF(C84="A","ABSENT",IF(C84>=Data_Sheet!$E$9*$E$124/100,"EXCELLENT",IF(C84>=Data_Sheet!$E$9*$E$123/100,"GOOD",IF(C84>=Data_Sheet!$E$9*$E$122/100,"AVERAGE","POOR")))) -> AVERAGE
A85: =Data_Sheet!A85 -> JEC18CS062 | B85: =Data_Sheet!B85 -> MARVEL BABU | C85: =Data_Sheet!E85 -> 23 | D85: =IF(C85="A","ABSENT",IF(C85>=Data_Sheet!$E$9*$E$124/100,"EXCELLENT",IF(C85>=Data_Sheet!$E$9*$E$123/100,"GOOD",IF(C85>=Data_Sheet!$E$9*$E$122/100,"AVERAGE","POOR")))) -> AVERAGE
A86: =Data_Sheet!A86 -> JEC18CS063 | B86: =Data_Sheet!B86 -> MEDWIN PAUL | C86: =Data_Sheet!E86 -> 23 | D86: =IF(C86="A","ABSENT",IF(C86>=Data_Sheet!$E$9*$E$124/100,"EXCELLENT",IF(C86>=Data_Sheet!$E$9*$E$123/100,"GOOD",IF(C86>=Data_Sheet!$E$9*$E$122/100,"AVERAGE","POOR")))) -> AVERAGE
A87: =Data_Sheet!A87 -> 0 | B87: =Data_Sheet!B87 -> 0 | C87: =Data_Sheet!E87 -> 0 | D87: =IF(C87="A","ABSENT",IF(C87>=Data_Sheet!$E$9*$E$124/100,"EXCELLENT",IF(C87>=Data_Sheet!$E$9*$E$123/100,"GOOD",IF(C87>=Data_Sheet!$E$9*$E$122/100,"AVERAGE","POOR")))) -> POOR
A88: =Data_Sheet!A88 -> 0 | B88: =Data_Sheet!B88 -> 0 | C88: =Data_Sheet!E88 -> 0 | D88: =IF(C88="A","ABSENT",IF(C88>=Data_Sheet!$E$9*$E$124/100,"EXCELLENT",IF(C88>=Data_Sheet!$E$9*$E$123/100,"GOOD",IF(C88>=Data_Sheet!$E$9*$E$122/100,"AVERAGE","POOR")))) -> POOR
A89: =Data_Sheet!A89 -> JEC18CS066 | B89: =Data_Sheet!B89 -> MUHAMMED INSHADH | C89: =Data_Sheet!E89 -> 23 | D89: =IF(C89="A","ABSENT",IF(C89>=Data_Sheet!$E$9*$E$124/100,"EXCELLENT",IF(C89>=Data_Sheet!$E$9*$E$123/100,"GOOD",IF(C89>=Data_Sheet!$E$9*$E$122/100,"AVERAGE","POOR")))) -> AVERAGE
A90: =Data_Sheet!A90 -> JEC18CS067 | B90: =Data_Sheet!B90 -> NAIR MIDHUN RAMACHANDRAN | C90: =Data_Sheet!E90 -> 28 | D90: =IF(C90="A","ABSENT",IF(C90>=Data_Sheet!$E$9*$E$124/100,"EXCELLENT",IF(C90>=Data_Sheet!$E$9*$E$123/100,"GOOD",IF(C90>=Data_Sheet!$E$9*$E$122/100,"AVERAGE","POOR")))) -> AVERAGE
A91: =Data_Sheet!A91 -> JEC18CS068 | B91: =Data_Sheet!B91 -> NAVEENA ANTONY | C91: =Data_Sheet!E91 -> 30 | D91: =IF(C91="A","ABSENT",IF(C91>=Data_Sheet!$E$9*$E$124/100,"EXCELLENT",IF(C91>=Data_Sheet!$E$9*$E$123/100,"GOOD",IF(C91>=Data_Sheet!$E$9*$E$122/100,"AVERAGE","POOR")))) -> GOOD
A92: =Data_Sheet!A92 -> JEC18CS069 | B92: =Data_Sheet!B92 -> NITIN MADHU | C92: =Data_Sheet!E92 -> 37 | D92: =IF(C92="A","ABSENT",IF(C92>=Data_Sheet!$E$9*$E$124/100,"EXCELLENT",IF(C92>=Data_Sheet!$E$9*$E$123/100,"GOOD",IF(C92>=Data_Sheet!$E$9*$E$122/100,"AVERAGE","POOR")))) -> GOOD
A93: =Data_Sheet!A93 -> JEC18CS070 | B93: =Data_Sheet!B93 -> PRATHIUSH ARUN | C93: =Data_Sheet!E93 -> 29 | D93: =IF(C93="A","ABSENT",IF(C93>=Data_Sheet!$E$9*$E$124/100,"EXCELLENT",IF(C93>=Data_Sheet!$E$9*$E$123/100,"GOOD",IF(C93>=Data_Sheet!$E$9*$E$122/100,"AVERAGE","POOR")))) -> AVERAGE
A94: =Data_Sheet!A94 -> JEC18CS071 | B94: =Data_Sheet!B94 -> RACHEL CECER | C94: =Data_Sheet!E94 -> 42 | D94: =IF(C94="A","ABSENT",IF(C94>=Data_Sheet!$E$9*$E$124/100,"EXCELLENT",IF(C94>=Data_Sheet!$E$9*$E$123/100,"GOOD",IF(C94>=Data_Sheet!$E$9*$E$122/100,"AVERAGE","POOR")))) -> EXCELLENT
A95: =Data_Sheet!A95 -> JEC18CS072 | B95: =Data_Sheet!B95 -> RAHUL RAJU | C95: =Data_Sheet!E95 -> 24 | D95: =IF(C95="A","ABSENT",IF(C95>=Data_Sheet!$E$9*$E$124/100,"EXCELLENT",IF(C95>=Data_Sheet!$E$9*$E$123/100,"GOOD",IF(C95>=Data_Sheet!$E$9*$E$122/100,"AVERAGE","POOR")))) -> AVERAGE
A96: =Data_Sheet!A96 -> JEC18CS073 | B96: =Data_Sheet!B96 -> RAHUL T RAVI | C96: =Data_Sheet!E96 -> 28 | D96: =IF(C96="A","ABSENT",IF(C96>=Data_Sheet!$E$9*$E$124/100,"EXCELLENT",IF(C96>=Data_Sheet!$E$9*$E$123/100,"GOOD",IF(C96>=Data_Sheet!$E$9*$E$122/100,"AVERAGE","POOR")))) -> AVERAGE
A97: =Data_Sheet!A97 -> JEC18CS074 | B97: =Data_Sheet!B97 -> RAPHEAL K MOYALAN | C97: =Data_Sheet!E97 -> 23 | D97: =IF(C97="A","ABSENT",IF(C97>=Data_Sheet!$E$9*$E$124/100,"EXCELLENT",IF(C97>=Data_Sheet!$E$9*$E$123/100,"GOOD",IF(C97>=Data_Sheet!$E$9*$E$122/100,"AVERAGE","POOR")))) -> AVERAGE
A98: =Data_Sheet!A98 -> JEC18CS075 | B98: =Data_Sheet!B98 -> RISHIKESH. V | C98: =Data_Sheet!E98 -> 34 | D98: =IF(C98="A","ABSENT",IF(C98>=Data_Sheet!$E$9*$E$124/100,"EXCELLENT",IF(C98>=Data_Sheet!$E$9*$E$123/100,"GOOD",IF(C98>=Data_Sheet!$E$9*$E$122/100,"AVERAGE","POOR")))) -> GOOD
A99: =Data_Sheet!A99 -> JEC18CS076 | B99: =Data_Sheet!B99 -> ROCKSON T. AUGUSTINE | C99: =Data_Sheet!E99 -> 32 | D99: =IF(C99="A","ABSENT",IF(C99>=Data_Sheet!$E$9*$E$124/100,"EXCELLENT",IF(C99>=Data_Sheet!$E$9*$E$123/100,"GOOD",IF(C99>=Data_Sheet!$E$9*$E$122/100,"AVERAGE","POOR")))) -> GOOD
A100: =Data_Sheet!A100 -> JEC18CS077 | B100: =Data_Sheet!B100 -> SARATH C P | C100: =Data_Sheet!E100 -> 38 | D100: =IF(C100="A","ABSENT",IF(C100>=Data_Sheet!$E$9*$E$124/100,"EXCELLENT",IF(C100>=Data_Sheet!$E$9*$E$123/100,"GOOD",IF(C100>=Data_Sheet!$E$9*$E$122/100,"AVERAGE","POOR")))) -> GOOD
A101: =Data_Sheet!A101 -> JEC18CS078 | B101: =Data_Sheet!B101 -> SARATH SASI | C101: =Data_Sheet!E101 -> 40 | D101: =IF(C101="A","ABSENT",IF(C101>=Data_Sheet!$E$9*$E$124/100,"EXCELLENT",IF(C101>=Data_Sheet!$E$9*$E$123/100,"GOOD",IF(C101>=Data_Sheet!$E$9*$E$122/100,"AVERAGE","POOR")))) -> EXCELLENT
A102: =Data_Sheet!A102 -> JEC18CS079 | B102: =Data_Sheet!B102 -> SHAFNA | C102: =Data_Sheet!E102 -> 49 | D102: =IF(C102="A","ABSENT",IF(C102>=Data_Sheet!$E$9*$E$124/100,"EXCELLENT",IF(C102>=Data_Sheet!$E$9*$E$123/100,"GOOD",IF(C102>=Data_Sheet!$E$9*$E$122/100,"AVERAGE","POOR")))) -> EXCELLENT
A103: =Data_Sheet!A103 -> JEC18CS080 | B103: =Data_Sheet!B103 -> SHELMY SHABU | C103: =Data_Sheet!E103 -> 45 | D103: =IF(C103="A","ABSENT",IF(C103>=Data_Sheet!$E$9*$E$124/100,"EXCELLENT",IF(C103>=Data_Sheet!$E$9*$E$123/100,"GOOD",IF(C103>=Data_Sheet!$E$9*$E$122/100,"AVERAGE","POOR")))) -> EXCELLENT
A104: =Data_Sheet!A104 -> JEC18CS081 | B104: =Data_Sheet!B104 -> SHIZA SHIHAB PUVAMPARAMBIL | C104: =Data_Sheet!E104 -> 37 | D104: =IF(C104="A","ABSENT",IF(C104>=Data_Sheet!$E$9*$E$124/100,"EXCELLENT",IF(C104>=Data_Sheet!$E$9*$E$123/100,"GOOD",IF(C104>=Data_Sheet!$E$9*$E$122/100,"AVERAGE","POOR")))) -> GOOD
A105: =Data_Sheet!A105 -> JEC18CS082 | B105: =Data_Sheet!B105 -> SIJO GEORGE | C105: =Data_Sheet!E105 -> 33 | D105: =IF(C105="A","ABSENT",IF(C105>=Data_Sheet!$E$9*$E$124/100,"EXCELLENT",IF(C105>=Data_Sheet!$E$9*$E$123/100,"GOOD",IF(C105>=Data_Sheet!$E$9*$E$122/100,"AVERAGE","POOR")))) -> GOOD
A106: =Data_Sheet!A106 -> JEC18CS083 | B106: =Data_Sheet!B106 -> SOURAV K | C106: =Data_Sheet!E106 -> 23 | D106: =IF(C106="A","ABSENT",IF(C106>=Data_Sheet!$E$9*$E$124/100,"EXCELLENT",IF(C106>=Data_Sheet!$E$9*$E$123/100,"GOOD",IF(C106>=Data_Sheet!$E$9*$E$122/100,"AVERAGE","POOR")))) -> AVERAGE
A107: =Data_Sheet!A107 -> 0 | B107: =Data_Sheet!B107 -> 0 | C107: =Data_Sheet!E107 -> 0 | D107: =IF(C107="A","ABSENT",IF(C107>=Data_Sheet!$E$9*$E$124/100,"EXCELLENT",IF(C107>=Data_Sheet!$E$9*$E$123/100,"GOOD",IF(C107>=Data_Sheet!$E$9*$E$122/100,"AVERAGE","POOR")))) -> POOR
A108: =Data_Sheet!A108 -> JEC18CS085 | B108: =Data_Sheet!B108 -> SREEHARI | C108: =Data_Sheet!E108 -> 23 | D108: =IF(C108="A","ABSENT",IF(C108>=Data_Sheet!$E$9*$E$124/100,"EXCELLENT",IF(C108>=Data_Sheet!$E$9*$E$123/100,"GOOD",IF(C108>=Data_Sheet!$E$9*$E$122/100,"AVERAGE","POOR")))) -> AVERAGE
A109: =Data_Sheet!A109 -> JEC18CS086 | B109: =Data_Sheet!B109 -> SREEKANTH P | C109: =Data_Sheet!E109 -> 23 | D109: =IF(C109="A","ABSENT",IF(C109>=Data_Sheet!$E$9*$E$124/100,"EXCELLENT",IF(C109>=Data_Sheet!$E$9*$E$123/100,"GOOD",IF(C109>=Data_Sheet!$E$9*$E$122/100,"AVERAGE","POOR")))) -> AVERAGE
A110: =Data_Sheet!A110 -> JEC18CS087 | B110: =Data_Sheet!B110 -> SREELEKSHMI H KUMAR | C110: =Data_Sheet!E110 -> 34 | D110: =IF(C110="A","ABSENT",IF(C110>=Data_Sheet!$E$9*$E$124/100,"EXCELLENT",IF(C110>=Data_Sheet!$E$9*$E$123/100,"GOOD",IF(C110>=Data_Sheet!$E$9*$E$122/100,"AVERAGE","POOR")))) -> GOOD
A111: =Data_Sheet!A111 -> JEC18CS088 | B111: =Data_Sheet!B111 -> SUFAIL BADUSHA.T | C111: =Data_Sheet!E111 -> 32 | D111: =IF(C111="A","ABSENT",IF(C111>=Data_Sheet!$E$9*$E$124/100,"EXCELLENT",IF(C111>=Data_Sheet!$E$9*$E$123/100,"GOOD",IF(C111>=Data_Sheet!$E$9*$E$122/100,"AVERAGE","POOR")))) -> GOOD
A112: =Data_Sheet!A112 -> JEC18CS089 | B112: =Data_Sheet!B112 -> TIYA THOMAS | C112: =Data_Sheet!E112 -> 45 | D112: =IF(C112="A","ABSENT",IF(C112>=Data_Sheet!$E$9*$E$124/100,"EXCELLENT",IF(C112>=Data_Sheet!$E$9*$E$123/100,"GOOD",IF(C112>=Data_Sheet!$E$9*$E$122/100,"AVERAGE","POOR")))) -> EXCELLENT
A113: =Data_Sheet!A113 -> JEC18CS090 | B113: =Data_Sheet!B113 -> TOMSUN PAVOO P | C113: =Data_Sheet!E113 -> 31 | D113: =IF(C113="A","ABSENT",IF(C113>=Data_Sheet!$E$9*$E$124/100,"EXCELLENT",IF(C113>=Data_Sheet!$E$9*$E$123/100,"GOOD",IF(C113>=Data_Sheet!$E$9*$E$122/100,"AVERAGE","POOR")))) -> GOOD
A114: =Data_Sheet!A114 -> JEC18CS091 | B114: =Data_Sheet!B114 -> ULLAS. S | C114: =Data_Sheet!E114 -> 23 | D114: =IF(C114="A","ABSENT",IF(C114>=Data_Sheet!$E$9*$E$124/100,"EXCELLENT",IF(C114>=Data_Sheet!$E$9*$E$123/100,"GOOD",IF(C114>=Data_Sheet!$E$9*$E$122/100,"AVERAGE","POOR")))) -> AVERAGE
A115: =Data_Sheet!A115 -> JEC18CS092 | B115: =Data_Sheet!B115 -> VAISHNAV M | C115: =Data_Sheet!E115 -> 23 | D115: =IF(C115="A","ABSENT",IF(C115>=Data_Sheet!$E$9*$E$124/100,"EXCELLENT",IF(C115>=Data_Sheet!$E$9*$E$123/100,"GOOD",IF(C115>=Data_Sheet!$E$9*$E$122/100,"AVERAGE","POOR")))) -> AVERAGE
A116: =Data_Sheet!A116 -> JEC18CS093 | B116: =Data_Sheet!B116 -> VANI PRAKASHAN CHOYYAN | C116: =Data_Sheet!E116 -> 49 | D116: =IF(C116="A","ABSENT",IF(C116>=Data_Sheet!$E$9*$E$124/100,"EXCELLENT",IF(C116>=Data_Sheet!$E$9*$E$123/100,"GOOD",IF(C116>=Data_Sheet!$E$9*$E$122/100,"AVERAGE","POOR")))) -> EXCELLENT
A118: Total Number of Students | C118: =Data_Sheet!$C$6 -> 92
A119: Number of Students Absent | C119: =IF(COUNTIF(C25:INDIRECT(C131),"=A"),COUNTIF(C25:INDIRECT(C131),"=A"),0) -> 0
A120: Total Number of Students attended | C120: =C118-C119 -> 92
A121: ="Number of Students with Marks less than "&E122&"%" -> Number of Students with Marks less than 45% | C121: =IF(COUNTIF(D25:INDIRECT(D131),"=POOR"),COUNTIF(D25:INDIRECT(D131),"=POOR"),0) -> 3 | D121: POOR | E121: Range
A122: ="Number of Students with Marks betweeen "&E122&"% to "&E123&"%" -> Number of Students with Marks betweeen 45% to 60% | C122: =IF(COUNTIF(D25:INDIRECT(D131),"=AVERAGE"),COUNTIF(D25:INDIRECT(D131),"=AVERAGE"),0) -> 45 | D122: AVERAGE | E122: 45
A123: ="Number of Students with Marks betweeen "&E123&"% to "&E124&"%" -> Number of Students with Marks betweeen 60% to 80% | C123: =IF(COUNTIF(D25:INDIRECT(D131),"=GOOD"),COUNTIF(D25:INDIRECT(D131),"=GOOD"),0) -> 27 | D123: GOOD | E123: 60
A124: ="Number of Students with Marks greater than "&E124&"%" -> Number of Students with Marks greater than 80% | C124: =IF(COUNTIF(D25:INDIRECT(D131),"=EXCELLENT"),COUNTIF(D25:INDIRECT(D131),"=EXCELLENT"),0) -> 17 | D124: EXCELLENT | E124: 80
A125: Class Average | C125: =ROUND(AVERAGE(C25:INDIRECT(C131)),2) -> 30.49
A126: Pass Percentage | C126: =ROUND(((C120-C121)/C120)*100,2) -> 96.74
B128: =Data_Sheet!B10 -> Name of Faculty : | C128: =Data_Sheet!B11 -> Namitha T N
B129: =Data_Sheet!B136 -> Dated Signature :
A131: =ROW(A118)-2 -> 116 | B131: Last Row Count | C131: ="$C$"&$A$131 -> $C$116 | D131: ="$D$"&$A$131 -> $D$116

Sheet T1
A3: Add questions one by one as needed.. | C3: Assessment Category | G3: Date : | Q3: CO1 | R3: First Internal Exam
C4: First Internal Exam | G4: 2018-02-12 | Q4: CO2 | R4: Second Internal Exam | U4: =TEXT(G4,"dd-mm-yy") -> 12-02-18
C5: Total Marks : | F5: 50 | Q5: CO3 | R5: Assessment Exam - 1
Q6: CO4 | R6: Assessment Exam - 2
A7: =Data_Sheet!A2 -> Jyothi Engineering College, Cheruthuruthy | Q7: CO5 | R7: Assignment - 1
Q8: CO6 | R8: Assignment - 2
A9: =Data_Sheet!A4 -> Department of Computer Science Engineering | R9: Retest
Q10: 1
A11: ="CO Analysis - Internal Marks : "&C4 &" " &TEXT(G4,"dd-mm-yy") -> CO Analysis - Internal Marks : First Internal Exam 12-02-18 | Q11: 2
Q12: 3
A13: =Internal_Analysis!A9 -> S3 CS CS203 Switching Theory and Logic Design 2019-20 | Q13: 4
Q14: 5
Q15: 6
A18: Register No. | B18: Name of Student | C18: Qn. No. | D18: 1 | E18: 2 | F18: 3 | G18: 4 | H18: 5 | I18: 6 | J18: 7 | K18: 8 | L18: 9 | M18: 10 | N18: 11 | O18: 12 | P18: ="Total Marks (" &F5 & ")" -> Total Marks (50) | S18: Calculated Total Marks (50)
C19: CO's | D19: CO1 | E19: CO1 | F19: CO1 | G19: CO2 | H19: CO2 | I19: CO1 | J19: CO1 | K19: CO1 | L19: CO1 | M19: CO1 | N19: CO1 | O19: CO1
C20: Blooms Taxonomy Lavel | D20: 1 | E20: 1 | F20: 1 | G20: 2 | H20: 1 | I20: 1 | J20: 1 | K20: 1 | L20: 1 | M20: 1 | N20: 1 | O20: 1
C21: Max. Marks | D21: 3 | E21: 3 | F21: 3 | G21: 3 | H21: 2 | I21: 3 | J21: 3 | K21: 3 | L21: 9 | M21: 9 | N21: 9 | O21: 9
C22: Difficulty Level in % | D22: 60 | E22: 60 | F22: 60 | G22: 60 | H22: 60 | I22: 60 | J22: 60 | K22: 60 | L22: 60 | M22: 60 | N22: 60 | O22: 60
A24: Column1 | B24: Column2 | C24: Column3 | D24: Column4 | E24: Column5 | F24: Column6 | G24: Column7 | H24: Column4 | I24: Column4 | J24: Column4 | K24: Column4 | L24: Column4 | M24: Column4 | N24: Column4 | O24: Column8 | P24: Column32
A25: =Data_Sheet!A25 -> JEC18CS001 | B25: =Data_Sheet!B25 -> ABHISHEK KRISHNAN MENON E | D25: 2 | E25: 2.5 | F25: 0 | G25: 1.5 | H25: 1 | I25: 1.5 | J25: 0 | K25: 0 | L25: 1.5 | M25: 5 | N25: 5 | P25: 20 | S25: =SUM(D25:O25) -> 20
A26: =Data_Sheet!A26 -> JEC18CS002 | B26: =Data_Sheet!B26 -> ABHISHEK SAJEEVAN | D26: 3 | E26: 2 | F26: 0 | G26: 3 | H26: 2 | P26: 10 | S26: =SUM(D26:O26) -> 10
A27: =Data_Sheet!A27 -> JEC18CS003 | B27: =Data_Sheet!B27 -> ABHITH SHAJI | D27: 3 | E27: 3 | F27: 3 | G27: 2 | H27: 2 | I27: 3 | J27: 0 | K27: 0 | L27: 1 | M27: 3 | N27: 1 | P27: 21 | S27: 21
A28: =Data_Sheet!A28 -> JEC18CS004 | B28: =Data_Sheet!B28 -> ABIN SANTHOSH ALAPATT | D28: 3 | E28: 3 | F28: 3 | G28: 2 | H28: 2 | I28: 3 | J28: 0 | K28: 0 | L28: 4 | M28: 4 | N28: 4 | P28: 28 | S28: 28
A29: =Data_Sheet!A29 -> JEC18CS005 | B29: =Data_Sheet!B29 -> ADARSH KUMAR M A | D29: 2 | E29: 2.5 | F29: 0 | G29: 1.5 | H29: 1 | I29: 1.5 | J29: 0 | K29: 1.5 | L29: 6 | M29: 9 | N29: 9 | P29: 34 | S29: 34
A30: =Data_Sheet!A30 -> JEC18CS006 | B30: =Data_Sheet!B30 -> ADHITHYA KRISHNA S | D30: 3 | E30: 2 | F30: 2 | G30: 1 | H30: 1 | I30: 2 | J30: 0 | K30: 3 | L30: 7 | M30: 4 | P30: 25 | S30: 25
A31: =Data_Sheet!A31 -> JEC18CS007 | B31: =Data_Sheet!B31 -> ADITHYA HARIDAS | D31: 2.5 | E31: 4.5 | F31: 4.5 | G31: 2 | H31: 0.5 | I31: 2 | J31: 1 | K31: 0 | L31: 7 | M31: 7 | N31: 7 | P31: 40 | S31: 38
A32: =Data_Sheet!A32 -> JEC18CS008 | B32: =Data_Sheet!B32 -> AJMAL BASHEER | D32: 3 | E32: 3 | F32: 3 | G32: 3 | H32: 3 | I32: 2 | P32: 17 | S32: 17
A33: =Data_Sheet!A33 -> JEC18CS009 | B33: =Data_Sheet!B33 -> AKASH.V | D33: 3 | E33: 3 | F33: 3 | G33: 3 | H33: 3 | I33: 3 | J33: 0 | K33: 1 | P33: 19 | S33: 19
A34: =Data_Sheet!A34 -> JEC18CS010 | B34: =Data_Sheet!B34 -> AKHIL AZEEZ UPPILAMKUNNATH | D34: 3 | E34: 3 | F34: 3 | G34: 3 | H34: 3 | I34: 3 | J34: 0 | K34: 0 | L34: 6 | P34: 24 | S34: 24
A35: =Data_Sheet!A35 -> JEC18CS011 | B35: =Data_Sheet!B35 -> AKHIL KRISHNA UK | D35: 3 | E35: 1 | F35: 3 | G35: 0 | H35: 1 | I35: 0 | J35: 3 | K35: 3 | L35: 7 | M35: 7 | N35: 7 | P35: 35 | S35: 35
A36: =Data_Sheet!A36 -> JEC18CS012 | B36: =Data_Sheet!B36 -> ALAN GEORGE | D36: 3 | E36: 1.5 | F36: 3 | G36: 0 | H36: 2 | I36: 1 | J36: 0.5 | K36: 0 | L36: 7 | M36: 7 | N36: 7 | P36: 32 | S36: 32
A37: =Data_Sheet!A37 -> JEC18CS013 | B37: =Data_Sheet!B37 -> ALEN VARGHESE | D37: 3 | E37: 1.5 | F37: 0 | G37: 0 | H37: 2.5 | I37: 0 | J37: 2 | K37: 3 | L37: 7 | M37: 7 | N37: 2 | P37: 28 | S37: 28
A38: =Data_Sheet!A38 -> JEC18CS014 | B38: =Data_Sheet!B38 -> AMAL SEBASTIAN | D38: 3 | E38: 3 | F38: 3 | G38: 3 | H38: 3 | I38: 3 | J38: 1 | K38: 2 | L38: 9 | M38: 9 | N38: 9 | P38: 48 | S38: 48
A39: =Data_Sheet!A39 -> JEC18CS015 | B39: =Data_Sheet!B39 -> AMAL SONY | D39: 3 | E39: 3 | F39: 3 | G39: 3 | H39: 3 | I39: 3 | P39: 18 | S39: 18
A40: =Data_Sheet!A40 -> JEC18CS016 | B40: =Data_Sheet!B40 -> ANAGHA WILSON | D40: 3 | E40: 1.5 | F40: 0 | G40: 0 | H40: 2 | I40: 2 | J40: 1.5 | P40: 10 | S40: 10
A41: =Data_Sheet!A41 -> JEC18CS017 | B41: =Data_Sheet!B41 -> ANETTE ANTO | E41: 1 | F41: 3 | G41: 3 | P41: 7 | S41: 7
A42: =Data_Sheet!A42 -> JEC18CS018 | B42: =Data_Sheet!B42 -> ANIT MARY THOMAS | D42: 3 | E42: 3 | F42: 3 | G42: 3 | H42: 3 | I42: 3 | J42: 0 | K42: 3 | L42: 7 | M42: 7 | P42: 35 | S42: 35
A43: =Data_Sheet!A43 -> JEC18CS020 | B43: =Data_Sheet!B43 -> ANN THERESA SHAJI | P43: A
A44: =Data_Sheet!A44 -> JEC18CS021 | B44: =Data_Sheet!B44 -> ANTONY ROY | D44: 3 | E44: 1.5 | F44: 0.5 | G44: 3 | H44: 1 | I44: 3 | J44: 0 | P44: 12 | S44: 12
A45: =Data_Sheet!A45 -> JEC18CS022 | B45: =Data_Sheet!B45 -> ANUGRAHA C | D45: 2.5 | E45: 2 | F45: 0.5 | G45: 0 | H45: 2 | I45: 0.5 | J45: 0 | K45: 0.5 | L45: 7 | M45: 7 | N45: 7 | P45: 29 | S45: 29
A46: =Data_Sheet!A46 -> JEC18CS023 | B46: =Data_Sheet!B46 -> APARNA.V | D46: 3 | E46: 3 | F46: 3 | G46: 3 | H46: 2.5 | I46: 2.5 | J46: 1 | K46: 2 | L46: 7 | M46: 5 | O46: 1 | P46: 33 | S46: 33
A47: =Data_Sheet!A47 -> JEC18CS024 | B47: =Data_Sheet!B47 -> ARAVIND S KUMAR | D47: 2 | E47: 1.5 | F47: 3 | G47: 3 | H47: 2 | I47: 2.5 | J47: 0 | K47: 2 | M47: 3 | P47: 19 | S47: 19
A48: =Data_Sheet!A48 -> JEC18CS025 | B48: =Data_Sheet!B48 -> ARJUN VINOD | D48: 2 | E48: 2 | F48: 0 | G48: 1 | H48: 0 | I48: 1 | J48: 1 | K48: 0 | L48: 7 | M48: 7 | N48: 7 | P48: 28 | S48: 28
A49: =Data_Sheet!A49 -> JEC18CS026 | B49: =Data_Sheet!B49 -> ARUN VG | D49: 3 | E49: 3 | F49: 3 | G49: 3 | H49: 3 | I49: 3 | J49: 0 | K49: 0 | P49: 18 | S49: 18
A50: =Data_Sheet!A50 -> JEC18CS027 | B50: =Data_Sheet!B50 -> ASHRUL K | D50: 3 | E50: 3 | F50: 3 | G50: 3 | H50: 3 | I50: 2 | J50: 3 | K50: 3 | L50: 7 | M50: 4 | P50: 34 | S50: 34
A51: =Data_Sheet!A51 -> JEC18CS028 | B51: =Data_Sheet!B51 -> ATHIL PAULY | D51: 2.5 | E51: 3 | F51: 3 | G51: 0 | H51: 1.5 | I51: 1 | J51: 2 | K51: 3 | N51: 4 | P51: 20 | S51: 20
A52: =Data_Sheet!A52 -> JEC18CS029 | B52: =Data_Sheet!B52 -> ATHIRA K P | D52: 3 | E52: 3 | F52: 3 | G52: 3 | H52: 3 | I52: 3 | J52: 2 | K52: 3 | L52: 9 | M52: 9 | N52: 3 | P52: 44 | S52: 44
A53: =Data_Sheet!A53 -> JEC18CS030 | B53: =Data_Sheet!B53 -> AWIN ANTO | D53: 3 | E53: 3 | F53: 0 | G53: 0 | H53: 0.5 | I53: 0 | J53: 0 | K53: 0 | L53: 7 | M53: 7 | N53: 6.5 | P53: 27 | S53: 27
A54: =Data_Sheet!A54 -> JEC18CS031 | B54: =Data_Sheet!B54 -> CHARLES JOHNSON | D54: 3 | E54: 3 | F54: 3 | G54: 3 | H54: 3 | I54: 3 | J54: 2 | K54: 3 | M54: 1 | P54: 24 | S54: 24
A55: =Data_Sheet!A55 -> JEC18CS032 | B55: =Data_Sheet!B55 -> CHITTILAPPILLY JOVIA JOHNSON | D55: 3 | E55: 3 | F55: 3 | G55: 3 | H55: 3 | I55: 0.5 | J55: 3 | K55: 0 | L55: 9 | M55: 9 | N55: 9 | P55: 46 | S55: 45.5
A56: =Data_Sheet!A56 -> JEC18CS033 | B56: =Data_Sheet!B56 -> CIYA BABU | D56: 1 | E56: 3 | F56: 3 | G56: 3 | H56: 2 | K56: 3 | P56: 15 | S56: 15
A57: =Data_Sheet!A57 -> JEC18CS034 | B57: =Data_Sheet!B57 -> DAVID SALUS | D57: 1 | E57: 3 | F57: 3 | G57: 3 | H57: 3 | I57: 3 | J57: 1 | K57: 3 | L57: 7 | M57: 7 | N57: 1 | P57: 35 | S57: 35
A58: =Data_Sheet!A58 -> JEC18CS035 | B58: =Data_Sheet!B58 -> DELICIA REJI | D58: 3 | E58: 1.5 | F58: 2 | G58: 3 | H58: 2 | I58: 2 | J58: 0 | K58: 2 | L58: 7 | M58: 8 | N58: 3.5 | P58: 34 | S58: 34
A59: =Data_Sheet!A59 -> JEC18CS036 | B59: =Data_Sheet!B59 -> DELMA SHAJAN | D59: 3 | E59: 3 | F59: 3 | G59: 3 | H59: 3 | I59: 3 | J59: 2 | K59: 3 | L59: 4 | M59: 4 | O59: 4 | P59: 35 | S59: 35
A60: =Data_Sheet!A60 -> JEC18CS037 | B60: =Data_Sheet!B60 -> DILBER SHA AP | D60: 3 | E60: 3 | F60: 3 | G60: 3 | H60: 3 | I60: 3 | J60: 2 | K60: 3 | P60: 23 | S60: 23
A61: =Data_Sheet!A61 -> JEC18CS038 | B61: =Data_Sheet!B61 -> EDWIN T JOY | D61: 3 | E61: 1.5 | F61: 3 | G61: 3 | H61: 3 | I61: 2 | J61: 2 | K61: 1.5 | L61: 8 | M61: 8 | N61: 8 | P61: 43 | S61: 43
A62: =Data_Sheet!A62 -> JEC18CS039 | B62: =Data_Sheet!B62 -> EDWIN WILSON | D62: 3 | E62: 3 | F62: 3 | G62: 3 | H62: 2 | I62: 3 | J62: 0 | K62: 0 | M62: 2 | P62: 19 | S62: 19
A63: =Data_Sheet!A63 -> JEC18CS040 | B63: =Data_Sheet!B63 -> EMMANUEL SHIBU | D63: 1 | E63: 3 | F63: 3 | G63: 3 | H63: 3 | I63: 3 | J63: 1 | K63: 3 | L63: 8 | N63: 8 | P63: 36 | S63: 36
A64: =Data_Sheet!A64 -> JEC18CS041 | B64: =Data_Sheet!B64 -> GAYATHRI DINESH | D64: 1 | E64: 1.5 | F64: 3 | G64: 3 | H64: 3 | I64: 1 | J64: 0.5 | K64: 0 | M64: 8 | P64: 21 | S64: 21
A65: =Data_Sheet!A65 -> JEC18CS042 | B65: =Data_Sheet!B65 -> GOKUL DAS M | D65: 3 | E65: 3 | F65: 3 | G65: 3 | H65: 3 | I65: 3 | J65: 2 | K65: 3 | P65: 23 | S65: 23
A66: =Data_Sheet!A66 -> JEC18CS043 | B66: =Data_Sheet!B66 -> G RAMGOPAL | D66: 3 | E66: 3 | F66: 3 | G66: 3 | H66: 3 | I66: 3 | J66: 2 | K66: 3 | L66: 9 | M66: 9 | N66: 8 | P66: 49 | S66: 49
A67: =Data_Sheet!A67 -> JEC18CS044 | B67: =Data_Sheet!B67 -> HARIES DAVIS | D67: 3 | E67: 1.5 | F67: 3 | G67: 3 | H67: 2 | I67: 2 | J67: 2 | K67: 1.5 | L67: 8 | M67: 8 | N67: 1 | P67: 35 | S67: 35
A68: =Data_Sheet!A68 -> JEC18CS045 | B68: =Data_Sheet!B68 -> HARISANKER P | D68: 1 | E68: 1.5 | F68: 3 | G68: 3 | H68: 3 | I68: 2 | J68: 0.5 | K68: 0 | L68: 7 | M68: 7 | P68: 29 | S68: 28
A69: =Data_Sheet!A69 -> JEC18CS046 | B69: =Data_Sheet!B69 -> HARSHA.K.S. | D69: 3 | E69: 2.5 | F69: 2 | G69: 0.5 | H69: 0.5 | I69: 3 | J69: 2 | K69: 2.5 | L69: 8 | M69: 8 | N69: 9 | P69: 41 | S69: 41
A70: =Data_Sheet!A70 -> JEC18CS047 | B70: =Data_Sheet!B70 -> HELNA THOMAS | D70: 3 | E70: 3 | F70: 3 | G70: 3 | H70: 3 | I70: 3 | J70: 2 | K70: 3 | L70: 8 | M70: 8 | N70: 5 | P70: 44 | S70: 44
A71: =Data_Sheet!A71 -> JEC18CS048 | B71: =Data_Sheet!B71 -> HRIDI KRISHNA.H | D71: 3 | E71: 3 | F71: 3 | G71: 3 | H71: 3 | I71: 3 | J71: 2 | K71: 3 | L71: 5 | N71: 4 | P71: 32 | S71: 32
A72: =Data_Sheet!A72 -> JEC18CS049 | B72: =Data_Sheet!B72 -> INDRAJIT R | D72: 0 | E72: 0 | F72: 3 | G72: 3 | H72: 0 | I72: 2 | J72: 0 | K72: 0 | M72: 7 | O72: 8 | P72: 23 | S72: 23
A73: =Data_Sheet!A73 -> JEC18CS050 | B73: =Data_Sheet!B73 -> JESWIN JOJY | D73: 3 | E73: 3 | F73: 3 | G73: 3 | H73: 3 | I73: 3 | J73: 2 | K73: 3 | L73: 9 | M73: 9 | O73: 7 | P73: 48 | S73: 48
A74: =Data_Sheet!A74 -> JEC18CS051 | B74: =Data_Sheet!B74 -> JIBIN A BABU | D74: 1 | E74: 1.5 | F74: 3 | G74: 3 | H74: 3 | I74: 2 | J74: 0.5 | K74: 0 | M74: 5 | O74: 8 | P74: 27 | S74: 27
A75: =Data_Sheet!A75 -> JEC18CS052 | B75: =Data_Sheet!B75 -> JISSY JOY | D75: 3 | E75: 2 | F75: 3 | G75: 3 | H75: 3 | I75: 3 | J75: 0 | K75: 2.5 | L75: 9 | N75: 9 | O75: 6.5 | P75: 44 | S75: 44
A76: =Data_Sheet!A76 -> JEC18CS053 | B76: =Data_Sheet!B76 -> JOEL JAMES KARIKKANDATHIL | D76: 3 | E76: 3 | F76: 3 | G76: 3 | H76: 3 | I76: 3 | J76: 2 | K76: 3 | N76: 5 | P76: 28 | S76: 28
A77: =Data_Sheet!A77 -> JEC18CS054 | B77: =Data_Sheet!B77 -> JOSE REJI KARIMADATHI | D77: 2 | E77: 1.5 | F77: 3 | G77: 3 | H77: 2 | I77: 2.5 | J77: 0 | K77: 2 | P77: 16 | S77: 16
A78: =Data_Sheet!A78 -> JEC18CS055 | B78: =Data_Sheet!B78 -> JUMANA HASIN | D78: 3 | E78: 3 | F78: 3 | G78: 3 | H78: 3 | I78: 3 | J78: 2 | K78: 3 | L78: 8 | N78: 8 | O78: 4 | P78: 43 | S78: 43
A79: =Data_Sheet!A79 -> JEC18CS056 | B79: =Data_Sheet!B79 -> KAILASHNATH | D79: 3 | E79: 3 | F79: 3 | G79: 3 | H79: 3 | I79: 3 | J79: 0 | K79: 3 | L79: 8 | N79: 3 | P79: 32 | S79: 32
A80: =Data_Sheet!A80 -> JEC18CS057 | B80: =Data_Sheet!B80 -> K AJISHKUMAR | D80: 3 | E80: 3 | F80: 3 | G80: 3 | H80: 3 | I80: 2 | J80: 3 | K80: 3 | N80: 6 | P80: 29 | S80: 29
A81: =Data_Sheet!A81 -> JEC18CS058 | B81: =Data_Sheet!B81 -> KEERTHANA K S | D81: 2.5 | E81: 3 | F81: 3 | G81: 0 | H81: 1.5 | I81: 1 | J81: 2 | K81: 1 | P81: 14 | S81: 14
A82: =Data_Sheet!A82 -> JEC18CS059 | B82: =Data_Sheet!B82 -> KEVIN VARGHESE | D82: 3 | E82: 3 | F82: 3 | G82: 3 | H82: 3 | I82: 3 | J82: 2 | K82: 3 | L82: 8 | M82: 8 | N82: 5 | P82: 44 | S82: 44
A83: =Data_Sheet!A83 -> JEC18CS060 | B83: =Data_Sheet!B83 -> LAKSHMI SADANANDAN | D83: 3 | E83: 3 | F83: 0 | G83: 0 | H83: 0.5 | I83: 0 | J83: 0 | K83: 0 | L83: 5 | M83: 5 | N83: 6.5 | P83: 23 | S83: 23
A84: =Data_Sheet!A84 -> JEC18CS061 | B84: =Data_Sheet!B84 -> LEYA PALLAN | P84: A
A85: =Data_Sheet!A85 -> JEC18CS062 | B85: =Data_Sheet!B85 -> MARVEL BABU | D85: 1.5 | E85: 1.5 | F85: 0 | G85: 1.5 | H85: 1 | I85: 0.5 | J85: 2 | K85: 0 | L85: 5 | M85: 5 | N85: 5 | P85: 23 | S85: 23
A86: =Data_Sheet!A86 -> JEC18CS063 | B86: =Data_Sheet!B86 -> MEDWIN PAUL | D86: 1 | E86: 3 | F86: 3 | G86: 3 | H86: 3 | I86: 3 | J86: 1 | K86: 3 | O86: 5 | P86: 25 | S86: 25
A87: =Data_Sheet!A87 -> 0 | B87: =Data_Sheet!B87 -> 0 | P87: A | S87: 0
A88: =Data_Sheet!A88 -> 0 | B88: =Data_Sheet!B88 -> 0 | P88: A | S88: 0
A89: =Data_Sheet!A89 -> JEC18CS066 | B89: =Data_Sheet!B89 -> MUHAMMED INSHADH | D89: 1.5 | E89: 1.5 | F89: 0 | G89: 1.5 | H89: 1 | I89: 0.5 | J89: 2 | K89: 1 | M89: 5 | N89: 5 | O89: 7 | P89: 26 | S89: 26
A90: =Data_Sheet!A90 -> JEC18CS067 | B90: =Data_Sheet!B90 -> NAIR MIDHUN RAMACHANDRAN | D90: 1 | E90: 3 | F90: 3 | G90: 3 | H90: 3 | I90: 2 | J90: 1 | K90: 3 | L90: 5 | M90: 2 | P90: 26 | S90: =SUM(D90:O90) -> 26
A91: =Data_Sheet!A91 -> JEC18CS068 | B91: =Data_Sheet!B91 -> NAVEENA ANTONY | D91: 3 | E91: 1.5 | F91: 3 | G91: 3 | H91: 3 | I91: 2 | J91: 2 | K91: 1.5 | M91: 2 | P91: 21 | S91: 21
A92: =Data_Sheet!A92 -> JEC18CS069 | B92: =Data_Sheet!B92 -> NITIN MADHU | D92: 3 | E92: 3 | F92: 3 | G92: 3 | H92: 2.5 | I92: 3 | J92: 0.5 | K92: 0 | L92: 9 | M92: 9 | N92: 9 | P92: 45 | S92: 45
A93: =Data_Sheet!A93 -> JEC18CS070 | B93: =Data_Sheet!B93 -> PRATHIUSH ARUN | D93: 1 | E93: 3 | F93: 3 | G93: 3 | H93: 3 | I93: 3 | J93: 1 | K93: 3 | L93: 5 | M93: 5 | N93: 5 | P93: 33 | S93: 35
A94: =Data_Sheet!A94 -> JEC18CS071 | B94: =Data_Sheet!B94 -> RACHEL CECER | D94: 1 | E94: 1.5 | F94: 3 | G94: 3 | H94: 3 | I94: 1 | J94: 2 | K94: 0.5 | L94: 8 | M94: 8 | N94: 8 | P94: 39 | S94: 39
A95: =Data_Sheet!A95 -> JEC18CS072 | B95: =Data_Sheet!B95 -> RAHUL RAJU | P95: A | S95: 0
A96: =Data_Sheet!A96 -> JEC18CS073 | B96: =Data_Sheet!B96 -> RAHUL T RAVI | D96: 1 | E96: 1 | F96: 1 | G96: 3 | H96: 3 | I96: 1 | J96: 2 | K96: 3 | L96: 8 | M96: 6 | O96: 5 | P96: 34 | S96: 34
A97: =Data_Sheet!A97 -> JEC18CS074 | B97: =Data_Sheet!B97 -> RAPHEAL K MOYALAN | D97: 3 | E97: 1.5 | F97: 3 | G97: 3 | H97: 2 | I97: 2 | J97: 2 | K97: 1.5 | N97: 1 | P97: 19 | S97: 19
A98: =Data_Sheet!A98 -> JEC18CS075 | B98: =Data_Sheet!B98 -> RISHIKESH. V | D98: 1 | E98: 1.5 | F98: 3 | G98: 3 | H98: 3 | I98: 2 | J98: 0.5 | K98: 0 | L98: 5 | M98: 8 | N98: 4 | P98: 31 | S98: 31
A99: =Data_Sheet!A99 -> JEC18CS076 | B99: =Data_Sheet!B99 -> ROCKSON T. AUGUSTINE | D99: 3 | E99: 2.5 | F99: 2 | G99: 0.5 | H99: 0.5 | I99: 3 | J99: 2 | K99: 2.5 | L99: 8 | M99: 8 | N99: 4 | P99: 36 | S99: 36
A100: =Data_Sheet!A100 -> JEC18CS077 | B100: =Data_Sheet!B100 -> SARATH C P | D100: 3 | E100: 3 | F100: 3 | G100: 3 | H100: 3 | I100: 3 | J100: 2 | K100: 3 | L100: 8 | M100: 7 | O100: 4 | P100: 42 | S100: 42
A101: =Data_Sheet!A101 -> JEC18CS078 | B101: =Data_Sheet!B101 -> SARATH SASI | D101: 3 | E101: 3 | F101: 3 | G101: 3 | H101: 3 | I101: 3 | J101: 2 | K101: 3 | L101: 8 | M101: 8 | O101: 6 | P101: 45 | S101: 45
A102: =Data_Sheet!A102 -> JEC18CS079 | B102: =Data_Sheet!B102 -> SHAFNA | D102: 3 | E102: 3 | F102: 3 | G102: 3 | H102: 3 | I102: 3 | J102: 2 | K102: 3 | L102: 9 | M102: 9 | N102: 9 | P102: 50 | S102: 50
A103: =Data_Sheet!A103 -> JEC18CS080 | B103: =Data_Sheet!B103 -> SHELMY SHABU | D103: 3 | E103: 3 | F103: 3 | G103: 3 | H103: 3 | I103: 2 | J103: 2 | K103: 0 | L103: 8 | M103: 8 | N103: 5 | P103: 40 | S103: 40
A104: =Data_Sheet!A104 -> JEC18CS081 | B104: =Data_Sheet!B104 -> SHIZA SHIHAB PUVAMPARAMBIL | D104: 3 | E104: 3 | F104: 3 | G104: 3 | H104: 3 | I104: 2 | J104: 3 | K104: 3 | L104: 8 | N104: 8 | O104: 8 | P104: 47 | S104: 47
A105: =Data_Sheet!A105 -> JEC18CS082 | B105: =Data_Sheet!B105 -> SIJO GEORGE | D105: 3 | E105: 2 | F105: 3 | G105: 3 | H105: 3 | I105: 3 | J105: 0 | K105: 2.5 | L105: 8 | M105: 3 | N105: 0.5 | P105: 31 | S105: 31
A106: =Data_Sheet!A106 -> JEC18CS083 | B106: =Data_Sheet!B106 -> SOURAV K | D106: 3 | E106: 3 | F106: 3 | G106: 3 | H106: 3 | I106: 3 | J106: 2 | K106: 3 | N106: 3 | P106: 26 | S106: 26
A107: =Data_Sheet!A107 -> 0 | B107: =Data_Sheet!B107 -> 0 | D107: 3 | E107: 1.5 | F107: 3 | G107: 3 | H107: 3 | I107: 2 | J107: 2 | K107: 1.5 | P107: A
A108: =Data_Sheet!A108 -> JEC18CS085 | B108: =Data_Sheet!B108 -> SREEHARI | D108: 3 | E108: 3 | F108: 3 | G108: 3 | H108: 2.5 | I108: 3 | J108: 0 | K108: 0 | L108: 5 | M108: 3.5 | N108: 1 | P108: 27 | S108: 27
A109: =Data_Sheet!A109 -> JEC18CS086 | B109: =Data_Sheet!B109 -> SREEKANTH P | D109: 1 | E109: 3 | F109: 3 | G109: 3 | H109: 3 | I109: 3 | J109: 0 | K109: 1 | P109: 17 | S109: 17
A110: =Data_Sheet!A110 -> JEC18CS087 | B110: =Data_Sheet!B110 -> SREELEKSHMI H KUMAR | D110: 1 | E110: 1.5 | F110: 3 | G110: 3 | H110: 3 | I110: 1 | J110: 0.5 | K110: 0 | L110: 8 | N110: 4 | P110: 25 | S110: 25
A111: =Data_Sheet!A111 -> JEC18CS088 | B111: =Data_Sheet!B111 -> SUFAIL BADUSHA.T | D111: 3 | E111: 3 | F111: 3 | G111: 3 | H111: 3 | I111: 3 | J111: 2 | K111: 3 | M111: 8 | P111: 31 | S111: 31
A112: =Data_Sheet!A112 -> JEC18CS089 | B112: =Data_Sheet!B112 -> TIYA THOMAS | D112: 3 | E112: 3 | F112: 3 | G112: 3 | H112: 3 | I112: 3 | J112: 2 | K112: 3 | L112: 9 | M112: 9 | O112: 8 | P112: 49 | S112: 49
A113: =Data_Sheet!A113 -> JEC18CS090 | B113: =Data_Sheet!B113 -> TOMSUN PAVOO P | D113: 3 | E113: 1.5 | F113: 3 | G113: 3 | H113: 2 | I113: 2 | J113: 2 | K113: 1.5 | N113: 6 | O113: 8 | P113: 32 | S113: 32
A114: =Data_Sheet!A114 -> JEC18CS091 | B114: =Data_Sheet!B114 -> ULLAS. S | D114: 1 | E114: 1.5 | F114: 3 | G114: 3 | H114: 3 | I114: 2 | J114: 0.5 | K114: 0 | L114: 8 | N114: 1 | P114: 23 | S114: 23
A115: =Data_Sheet!A115 -> JEC18CS092 | B115: =Data_Sheet!B115 -> VAISHNAV M | D115: 3 | E115: 2.5 | F115: 2 | G115: 0.5 | H115: 0.5 | I115: 3 | J115: 2 | K115: 2.5 | L115: 8 | M115: 7 | P115: 31 | S115: 31
A116: =Data_Sheet!A116 -> JEC18CS093 | B116: =Data_Sheet!B116 -> VANI PRAKASHAN CHOYYAN | D116: 3 | E116: 3 | F116: 3 | G116: 3 | H116: 2 | I116: 3 | J116: 3 | K116: 3 | L116: 8.5 | M116: 9 | N116: 9 | P116: 49.5 | S116: 49.5
A118: Total Marks scored for the Question | D118: =IF(D$22<>"",IF(SUM(D25:INDIRECT(D138))>=0,SUM(D25:INDIRECT(D138)),""),"") -> 215 | E118: =IF(E$22<>"",IF(SUM(E25:INDIRECT(E138))>=0,SUM(E25:INDIRECT(E138)),""),"") -> 212 | F118: =IF(F$22<>"",IF(SUM(F25:INDIRECT(F138))>=0,SUM(F25:INDIRECT(F138)),""),"") -> 220.5 | G118: =IF(G$22<>"",IF(SUM(G25:INDIRECT(G138))>=0,SUM(G25:INDIRECT(G138)),""),"") -> 213.5 | H118: =IF(H$22<>"",IF(SUM(H25:INDIRECT(H138))>=0,SUM(H25:INDIRECT(H138)),""),"") -> 203 | I118: =IF(I$22<>"",IF(SUM(I25:INDIRECT(I138))>=0,SUM(I25:INDIRECT(I138)),""),"") -> 188.5 | J118: =IF(J$22<>"",IF(SUM(J25:INDIRECT(J138))>=0,SUM(J25:INDIRECT(J138)),""),"") -> 102.5 | K118: =IF(K$22<>"",IF(SUM(K25:INDIRECT(K138))>=0,SUM(K25:INDIRECT(K138)),""),"") -> 143 | L118: =IF(L$22<>"",IF(SUM(L25:INDIRECT(L138))>=0,SUM(L25:INDIRECT(L138)),""),"") -> 397 | M118: =IF(M$22<>"",IF(SUM(M25:INDIRECT(M138))>=0,SUM(M25:INDIRECT(M138)),""),"") -> 361.5 | N118: =IF(N$22<>"",IF(SUM(N25:INDIRECT(N138))>=0,SUM(N25:INDIRECT(N138)),""),"") -> 265 | O118: =IF(O$22<>"",IF(SUM(O25:INDIRECT(O138))>=0,SUM(O25:INDIRECT(O138)),""),"") -> 89.5
A119: No. of Students who attended the Question | D119: =IF(D$22<>"",IF(COUNT(D25:INDIRECT(D138))>=0,COUNT(D25:INDIRECT(D138)),""),"") -> 86 | E119: =IF(E$22<>"",IF(COUNT(E25:INDIRECT(E138))>=0,COUNT(E25:INDIRECT(E138)),""),"") -> 87 | F119: =IF(F$22<>"",IF(COUNT(F25:INDIRECT(F138))>=0,COUNT(F25:INDIRECT(F138)),""),"") -> 87 | G119: =IF(G$22<>"",IF(COUNT(G25:INDIRECT(G138))>=0,COUNT(G25:INDIRECT(G138)),""),"") -> 87 | H119: =IF(H$22<>"",IF(COUNT(H25:INDIRECT(H138))>=0,COUNT(H25:INDIRECT(H138)),""),"") -> 86 | I119: =IF(I$22<>"",IF(COUNT(I25:INDIRECT(I138))>=0,COUNT(I25:INDIRECT(I138)),""),"") -> 84 | J119: =IF(J$22<>"",IF(COUNT(J25:INDIRECT(J138))>=0,COUNT(J25:INDIRECT(J138)),""),"") -> 82 | K119: =IF(K$22<>"",IF(COUNT(K25:INDIRECT(K138))>=0,COUNT(K25:INDIRECT(K138)),""),"") -> 81 | L119: =IF(L$22<>"",IF(COUNT(L25:INDIRECT(L138))>=0,COUNT(L25:INDIRECT(L138)),""),"") -> 56 | M119: =IF(M$22<>"",IF(COUNT(M25:INDIRECT(M138))>=0,COUNT(M25:INDIRECT(M138)),""),"") -> 56 | N119: =IF(N$22<>"",IF(COUNT(N25:INDIRECT(N138))>=0,COUNT(N25:INDIRECT(N138)),""),"") -> 49 | O119: =IF(O$22<>"",IF(COUNT(O25:INDIRECT(O138))>=0,COUNT(O25:INDIRECT(O138)),""),"") -> 15
A120: Difficulty Level marks of the Question | D120: =IF(D21*D22/100=0,"",D21*D22/100) -> 1.8 | E120: 1.8 | F120: 1.8 | G120: 1.8 | H120: =IF(H21*H22/100=0,"",H21*H22/100) -> 1.2 | I120: =IF(I21*I22/100=0,"",I21*I22/100) -> 1.8 | J120: =IF(J21*J22/100=0,"",J21*J22/100) -> 1.8 | K120: =IF(K21*K22/100=0,"",K21*K22/100) -> 1.8 | L120: =IF(L21*L22/100=0,"",L21*L22/100) -> 5.4 | M120: =IF(M21*M22/100=0,"",M21*M22/100) -> 5.4 | N120: =IF(N21*N22/100=0,"",N21*N22/100) -> 5.4 | O120: =IF(O21*O22/100=0,"",O21*O22/100) -> 5.4
A121: No. of Students who scored above the Difficulty Level | D121: =IF(COUNTIF(D25:INDIRECT(D138),">="&D120)=0,"",COUNTIF(D25:INDIRECT(D138),">="&D120)) -> 68 | E121: =IF(COUNTIF(E25:INDIRECT(E138),">="&E120)=0,"",COUNTIF(E25:INDIRECT(E138),">="&E120)) -> 61 | F121: =IF(COUNTIF(F25:INDIRECT(F138),">="&F120)=0,"",COUNTIF(F25:INDIRECT(F138),">="&F120)) -> 74 | G121: =IF(COUNTIF(G25:INDIRECT(G138),">="&G120)=0,"",COUNTIF(G25:INDIRECT(G138),">="&G120)) -> 69 | H121: =IF(COUNTIF(H25:INDIRECT(H138),">="&H120)=0,"",COUNTIF(H25:INDIRECT(H138),">="&H120)) -> 71 | I121: =IF(COUNTIF(I25:INDIRECT(I138),">="&I120)=0,"",COUNTIF(I25:INDIRECT(I138),">="&I120)) -> 66 | J121: =IF(COUNTIF(J25:INDIRECT(J138),">="&J120)=0,"",COUNTIF(J25:INDIRECT(J138),">="&J120)) -> 41 | K121: =IF(COUNTIF(K25:INDIRECT(K138),">="&K120)=0,"",COUNTIF(K25:INDIRECT(K138),">="&K120)) -> 45 | L121: =IF(COUNTIF(L25:INDIRECT(L138),">="&L120)=0,"",COUNTIF(L25:INDIRECT(L138),">="&L120)) -> 45 | M121: =IF(COUNTIF(M25:INDIRECT(M138),">="&M120)=0,"",COUNTIF(M25:INDIRECT(M138),">="&M120)) -> 37 | N121: =IF(COUNTIF(N25:INDIRECT(N138),">="&N120)=0,"",COUNTIF(N25:INDIRECT(N138),">="&N120)) -> 23 | O121: =IF(COUNTIF(O25:INDIRECT(O138),">="&O120)=0,"",COUNTIF(O25:INDIRECT(O138),">="&O120)) -> 9
A122: % of Students who scored above the Difficulty Level | D122: =IFERROR(ROUND(D121/D119*100,2),"") -> 79.07 | E122: 70.11 | F122: 85.06 | G122: 79.31 | H122: 82.56 | I122: 78.57 | J122: 50 | K122: 55.56 | L122: 80.36 | M122: 66.07 | N122: 46.94 | O122: 60
D123: =IF(D122="",0,IF(D122>=80,3,IF(D122>=70,2,IF(D122>=60,1,0)))) -> 2 | E123: 2 | F123: 3 | G123: 2 | H123: 3 | I123: 2 | J123: 0 | K123: 0 | L123: 3 | M123: 1 | N123: 0 | O123: 1 | P123: Marks | T123: T_Marks | U123: S_Marks | V123: Students | W123: Level | X123: Above | Y123: Above % | Z123: Attainment
B124: =IF(Data_Sheet!A119<>"","Total Attainment level for "&Data_Sheet!A119&" :","") -> Total Attainment level for CO1 : | C124: =IF(Data_Sheet!A119<>"",S124,"") -> 1.33 | D124: =IFERROR((IF(ISNUMBER(SEARCH("1", D$19)),D$21,"0")),"0")*D123 -> 6 | E124: 6 | F124: 9 | G124: 0 | H124: 0 | I124: 6 | J124: 0 | K124: 0 | L124: 27 | M124: 9 | N124: 0 | O124: 9 | P124: =P141 -> 54 | S124: =IF(P124=0,"",ROUND(SUM(D124:O124)/P124,2)) -> 1.33 | T124: =P141 -> 54 | U124: =P148 -> 2194.5 | V124: =P155 -> 683 | W124: =P162 -> 32.4 | X124: =P169 -> 469 | Y124: =IFERROR(ROUND(X124/V124*100,2),"") -> 68.67 | Z124: =IF(Y124="","",IF(Y124>=80,3,IF(Y124>=70,2,IF(Y124>=60,1,0)))) -> 1
B125: =IF(Data_Sheet!A120<>"","Total Attainment level for "&Data_Sheet!A120&" :","") -> Total Attainment level for CO2 : | C125: =IF(Data_Sheet!A120<>"",S125,"") -> 2.4 | D125: =IFERROR((IF(ISNUMBER(SEARCH("2", D$19)),D$21,"0")),"0")*D123 -> 0 | E125: 0 | F125: 0 | G125: 6 | H125: 6 | I125: 0 | J125: 0 | K125: 0 | L125: 0 | M125: 0 | N125: 0 | O125: 0 | P125: 5 | S125: 2.4 | T125: 5 | U125: 416.5 | V125: 173 | W125: 3 | X125: 140 | Y125: 80.92 | Z125: 3
B126: =IF(Data_Sheet!A121<>"","Total Attainment level for "&Data_Sheet!A121&" :","") -> Total Attainment level for CO3 : | C126: =IF(Data_Sheet!A121<>"",S126,"") ->  | D126: =IFERROR((IF(ISNUMBER(SEARCH("3", D$19)),D$21,"0")),"0")*D123 -> 0 | E126: 0 | F126: 0 | G126: 0 | H126: 0 | I126: 0 | J126: 0 | K126: 0 | L126: 0 | M126: 0 | N126: 0 | O126: 0 | P126: 0 | T126: 0 | U126: 0 | V126: 0 | W126: 0 | X126: 0
B127: =IF(Data_Sheet!A122<>"","Total Attainment level for "&Data_Sheet!A122&" :","") -> Total Attainment level for CO4 : | C127: =IF(Data_Sheet!A122<>"",S127,"") ->  | D127: =IFERROR((IF(ISNUMBER(SEARCH("4", D$19)),D$21,"0")),"0")*D123 -> 0 | E127: 0 | F127: 0 | G127: 0 | H127: 0 | I127: 0 | J127: 0 | K127: 0 | L127: 0 | M127: 0 | N127: 0 | O127: 0 | P127: 0 | T127: 0 | U127: 0 | V127: 0 | W127: 0 | X127: 0
B128: =IF(Data_Sheet!A123<>"","Total Attainment level for "&Data_Sheet!A123&" :","") -> Total Attainment level for CO5 : | C128: =IF(Data_Sheet!A123<>"",S128,"") ->  | D128: =IFERROR((IF(ISNUMBER(SEARCH("5", D$19)),D$21,"0")),"0")*D123 -> 0 | E128: 0 | F128: 0 | G128: 0 | H128: 0 | I128: 0 | J128: 0 | K128: 0 | L128: 0 | M128: 0 | N128: 0 | O128: 0 | P128: 0 | T128: 0 | U128: 0 | V128: 0 | W128: 0 | X128: 0
B129: =IF(Data_Sheet!A124<>"","Total Attainment level for "&Data_Sheet!A124&" :","") -> Total Attainment level for CO6 : | C129: =IF(Data_Sheet!A124<>"",S129,"") ->  | D129: =IFERROR((IF(ISNUMBER(SEARCH("6", D$19)),D$21,"0")),"0")*D123 -> 0 | E129: 0 | F129: 0 | G129: 0 | H129: 0 | I129: 0 | J129: 0 | K129: 0 | L129: 0 | M129: 0 | N129: 0 | O129: 0 | P129: 0 | T129: 0 | U129: 0 | V129: 0 | W129: 0 | X129: 0
A131: =Data_Sheet!A127 -> Attainment Level 1: 60% students scoring more than 60% of the Total Marks
A132: =Data_Sheet!A128 -> Attainment Level 2: 70% students scoring more than 60% of the Total Marks
A133: =Data_Sheet!A129 -> Attainment Level 3: 80% students scoring more than 60% of the Total Marks
B135: =Data_Sheet!B10 -> Name of Faculty : | C135: =Data_Sheet!B11 -> Namitha T N
B136: =Data_Sheet!B136 -> Dated Signature :
B138: Last Row Count | C138: =ROW(A118)-2 -> 116 | D138: =SUBSTITUTE(ADDRESS(1,COLUMN(D1),2),"1","")&$C$138 -> D$116 | E138: ="E"&$C$138 -> E116 | F138: =SUBSTITUTE(ADDRESS(1,COLUMN(F1),2),"1","")&$C$138 -> F$116 | G138: G$116 | H138: H$116 | I138: I$116 | J138: J$116 | K138: K$116 | L138: L$116 | M138: M$116 | N138: N$116 | O138: O$116
C141: CO1 | D141: =IFERROR((IF(ISNUMBER(SEARCH("1", D$19)),D$21,"0")),"0") -> 3 | E141: 3 | F141: 3 | G141: 0 | H141: 0 | I141: 3 | J141: 3 | K141: 3 | L141: 9 | M141: 9 | N141: 9 | O141: 9 | P141: =IFERROR(SUM($D141:INDIRECT($S141)),"0") -> 54 | S141: =SUBSTITUTE(ADDRESS(1,U141,4),1,"")&ROW($P141) -> O141 | T141: =COUNTIF($D$19:INDIRECT($V141),"*1*") -> 10 | U141: =COLUMN($P$18)-1 -> 15 | V141: =SUBSTITUTE(ADDRESS(1,U141,4),1,"")&ROW($P$18)+1 -> O19 | W141: Total Marks
C142: CO2 | D142: =IFERROR((IF(ISNUMBER(SEARCH("2", D$19)),D$21,"0")),"0") -> 0 | E142: 0 | F142: 0 | G142: 3 | H142: 2 | I142: 0 | J142: 0 | K142: 0 | L142: 0 | M142: 0 | N142: 0 | O142: 0 | P142: =IFERROR(SUM($D142:INDIRECT($S142)),"0") -> 5 | S142: O142 | T142: =COUNTIF($D$19:INDIRECT($V142),"*2*") -> 2 | U142: 15 | V142: =SUBSTITUTE(ADDRESS(1,U142,4),1,"")&ROW($P$18)+1 -> O19
C143: CO3 | D143: =IFERROR((IF(ISNUMBER(SEARCH("3", D$19)),D$21,"0")),"0") -> 0 | E143: 0 | F143: 0 | G143: 0 | H143: 0 | I143: 0 | J143: 0 | K143: 0 | L143: 0 | M143: 0 | N143: 0 | O143: 0 | P143: =IFERROR(SUM($D143:INDIRECT($S143)),"0") -> 0 | S143: O143 | T143: =COUNTIF($D$19:INDIRECT($V143),"*3*") -> 0 | U143: 15 | V143: O19
C144: CO4 | D144: =IFERROR((IF(ISNUMBER(SEARCH("4", D$19)),D$21,"0")),"0") -> 0 | E144: 0 | F144: 0 | G144: 0 | H144: 0 | I144: 0 | J144: 0 | K144: 0 | L144: 0 | M144: 0 | N144: 0 | O144: 0 | P144: =IFERROR(SUM($D144:INDIRECT($S144)),"0") -> 0 | S144: O144 | T144: =COUNTIF($D$19:INDIRECT($V144),"*4*") -> 0 | U144: 15 | V144: O19
C145: CO5 | D145: =IFERROR((IF(ISNUMBER(SEARCH("5", D$19)),D$21,"0")),"0") -> 0 | E145: 0 | F145: 0 | G145: 0 | H145: 0 | I145: 0 | J145: 0 | K145: 0 | L145: 0 | M145: 0 | N145: 0 | O145: 0 | P145: =IFERROR(SUM($D145:INDIRECT($S145)),"0") -> 0 | S145: O145 | T145: =COUNTIF($D$19:INDIRECT($V145),"*5*") -> 0 | U145: 15 | V145: O19
C146: CO6 | D146: =IFERROR((IF(ISNUMBER(SEARCH("6", D$19)),D$21,"0")),"0") -> 0 | E146: 0 | F146: 0 | G146: 0 | H146: 0 | I146: 0 | J146: 0 | K146: 0 | L146: 0 | M146: 0 | N146: 0 | O146: 0 | P146: =IFERROR(SUM($D146:INDIRECT($S146)),"0") -> 0 | S146: O146 | T146: =COUNTIF($D$19:INDIRECT($V146),"*6*") -> 0 | U146: 15 | V146: O19
C148: CO1 | D148: =IFERROR((IF(ISNUMBER(SEARCH("1", D$19)),D$118,"0")),"0") -> 215 | E148: 212 | F148: 220.5 | G148: 0 | H148: 0 | I148: 188.5 | J148: 102.5 | K148: 143 | L148: 397 | M148: 361.5 | N148: 265 | O148: 89.5 | P148: =IFERROR(SUM($D148:INDIRECT($S148)),"0") -> 2194.5 | S148: =SUBSTITUTE(ADDRESS(1,U148,4),1,"")&ROW($P148) -> O148 | T148: =COUNTIF($D$19:INDIRECT($V148),"*1*") -> 10 | U148: =COLUMN($P$18)-1 -> 15 | V148: =SUBSTITUTE(ADDRESS(1,U148,4),1,"")&ROW($P$18)+1 -> O19 | W148: Total Marks Scored
C149: CO2 | D149: =IFERROR((IF(ISNUMBER(SEARCH("2", D$19)),D$118,"0")),"0") -> 0 | E149: 0 | F149: 0 | G149: 213.5 | H149: 203 | I149: 0 | J149: 0 | K149: 0 | L149: 0 | M149: 0 | N149: 0 | O149: 0 | P149: =IFERROR(SUM($D149:INDIRECT($S149)),"0") -> 416.5 | S149: O149 | T149: =COUNTIF($D$19:INDIRECT($V149),"*2*") -> 2 | U149: 15 | V149: =SUBSTITUTE(ADDRESS(1,U149,4),1,"")&ROW($P$18)+1 -> O19
C150: CO3 | D150: =IFERROR((IF(ISNUMBER(SEARCH("3", D$19)),D$118,"0")),"0") -> 0 | E150: 0 | F150: 0 | G150: 0 | H150: 0 | I150: 0 | J150: 0 | K150: 0 | L150: 0 | M150: 0 | N150: 0 | O150: 0 | P150: =IFERROR(SUM($D150:INDIRECT($S150)),"0") -> 0 | S150: O150 | T150: =COUNTIF($D$19:INDIRECT($V150),"*3*") -> 0 | U150: 15 | V150: O19
C151: CO4 | D151: =IFERROR((IF(ISNUMBER(SEARCH("4", D$19)),D$118,"0")),"0") -> 0 | E151: 0 | F151: 0 | G151: 0 | H151: 0 | I151: 0 | J151: 0 | K151: 0 | L151: 0 | M151: 0 | N151: 0 | O151: 0 | P151: =IFERROR(SUM($D151:INDIRECT($S151)),"0") -> 0 | S151: O151 | T151: =COUNTIF($D$19:INDIRECT($V151),"*4*") -> 0 | U151: 15 | V151: O19
C152: CO5 | D152: =IFERROR((IF(ISNUMBER(SEARCH("5", D$19)),D$118,"0")),"0") -> 0 | E152: 0 | F152: 0 | G152: 0 | H152: 0 | I152: 0 | J152: 0 | K152: 0 | L152: 0 | M152: 0 | N152: 0 | O152: 0 | P152: =IFERROR(SUM($D152:INDIRECT($S152)),"0") -> 0 | S152: O152 | T152: =COUNTIF($D$19:INDIRECT($V152),"*5*") -> 0 | U152: 15 | V152: O19
C153: CO6 | D153: =IFERROR((IF(ISNUMBER(SEARCH("6", D$19)),D$118,"0")),"0") -> 0 | E153: 0 | F153: 0 | G153: 0 | H153: 0 | I153: 0 | J153: 0 | K153: 0 | L153: 0 | M153: 0 | N153: 0 | O153: 0 | P153: =IFERROR(SUM($D153:INDIRECT($S153)),"0") -> 0 | S153: O153 | T153: =COUNTIF($D$19:INDIRECT($V153),"*6*") -> 0 | U153: 15 | V153: O19
C155: CO1 | D155: =IFERROR((IF(ISNUMBER(SEARCH("1", D$19)),D$119,"0")),"0") -> 86 | E155: 87 | F155: 87 | G155: 0 | H155: 0 | I155: 84 | J155: 82 | K155: 81 | L155: 56 | M155: 56 | N155: 49 | O155: 15 | P155: =IFERROR(SUM($D155:INDIRECT($S155)),"0") -> 683 | S155: =SUBSTITUTE(ADDRESS(1,U155,4),1,"")&ROW($P155) -> O155 | T155: =COUNTIF($D$19:INDIRECT($V155),"*1*") -> 10 | U155: =COLUMN($P$18)-1 -> 15 | V155: =SUBSTITUTE(ADDRESS(1,U155,4),1,"")&ROW($P$18)+1 -> O19 | W155: No of Studdents Attended
C156: CO2 | D156: =IFERROR((IF(ISNUMBER(SEARCH("2", D$19)),D$119,"0")),"0") -> 0 | E156: 0 | F156: 0 | G156: 87 | H156: 86 | I156: 0 | J156: 0 | K156: 0 | L156: 0 | M156: 0 | N156: 0 | O156: 0 | P156: =IFERROR(SUM($D156:INDIRECT($S156)),"0") -> 173 | S156: O156 | T156: =COUNTIF($D$19:INDIRECT($V156),"*2*") -> 2 | U156: 15 | V156: =SUBSTITUTE(ADDRESS(1,U156,4),1,"")&ROW($P$18)+1 -> O19
C157: CO3 | D157: =IFERROR((IF(ISNUMBER(SEARCH("3", D$19)),D$119,"0")),"0") -> 0 | E157: 0 | F157: 0 | G157: 0 | H157: 0 | I157: 0 | J157: 0 | K157: 0 | L157: 0 | M157: 0 | N157: 0 | O157: 0 | P157: =IFERROR(SUM($D157:INDIRECT($S157)),"0") -> 0 | S157: O157 | T157: =COUNTIF($D$19:INDIRECT($V157),"*3*") -> 0 | U157: 15 | V157: O19
C158: CO4 | D158: =IFERROR((IF(ISNUMBER(SEARCH("4", D$19)),D$119,"0")),"0") -> 0 | E158: 0 | F158: 0 | G158: 0 | H158: 0 | I158: 0 | J158: 0 | K158: 0 | L158: 0 | M158: 0 | N158: 0 | O158: 0 | P158: =IFERROR(SUM($D158:INDIRECT($S158)),"0") -> 0 | S158: O158 | T158: =COUNTIF($D$19:INDIRECT($V158),"*4*") -> 0 | U158: 15 | V158: O19
C159: CO5 | D159: =IFERROR((IF(ISNUMBER(SEARCH("5", D$19)),D$119,"0")),"0") -> 0 | E159: 0 | F159: 0 | G159: 0 | H159: 0 | I159: 0 | J159: 0 | K159: 0 | L159: 0 | M159: 0 | N159: 0 | O159: 0 | P159: =IFERROR(SUM($D159:INDIRECT($S159)),"0") -> 0 | S159: O159 | T159: =COUNTIF($D$19:INDIRECT($V159),"*5*") -> 0 | U159: 15 | V159: O19
C160: CO6 | D160: =IFERROR((IF(ISNUMBER(SEARCH("6", D$19)),D$119,"0")),"0") -> 0 | E160: 0 | F160: 0 | G160: 0 | H160: 0 | I160: 0 | J160: 0 | K160: 0 | L160: 0 | M160: 0 | N160: 0 | O160: 0 | P160: =IFERROR(SUM($D160:INDIRECT($S160)),"0") -> 0 | S160: O160 | T160: =COUNTIF($D$19:INDIRECT($V160),"*6*") -> 0 | U160: 15 | V160: O19
C162: CO1 | D162: =IFERROR((IF(ISNUMBER(SEARCH("1", D$19)),D$120,"0")),"0") -> 1.8 | E162: 1.8 | F162: 1.8 | G162: 0 | H162: 0 | I162: 1.8 | J162: 1.8 | K162: 1.8 | L162: 5.4 | M162: 5.4 | N162: 5.4 | O162: 5.4 | P162: =IFERROR(SUM($D162:INDIRECT($S162)),"0") -> 32.4 | S162: =SUBSTITUTE(ADDRESS(1,U162,4),1,"")&ROW($P162) -> O162 | T162: =COUNTIF($D$19:INDIRECT($V162),"*1*") -> 10 | U162: =COLUMN($P$18)-1 -> 15 | V162: =SUBSTITUTE(ADDRESS(1,U162,4),1,"")&ROW($P$18)+1 -> O19 | W162: Difficulty Level
C163: CO2 | D163: =IFERROR((IF(ISNUMBER(SEARCH("2", D$19)),D$120,"0")),"0") -> 0 | E163: 0 | F163: 0 | G163: 1.8 | H163: 1.2 | I163: 0 | J163: 0 | K163: 0 | L163: 0 | M163: 0 | N163: 0 | O163: 0 | P163: =IFERROR(SUM($D163:INDIRECT($S163)),"0") -> 3 | S163: O163 | T163: =COUNTIF($D$19:INDIRECT($V163),"*2*") -> 2 | U163: 15 | V163: =SUBSTITUTE(ADDRESS(1,U163,4),1,"")&ROW($P$18)+1 -> O19
C164: CO3 | D164: =IFERROR((IF(ISNUMBER(SEARCH("3", D$19)),D$120,"0")),"0") -> 0 | E164: 0 | F164: 0 | G164: 0 | H164: 0 | I164: 0 | J164: 0 | K164: 0 | L164: 0 | M164: 0 | N164: 0 | O164: 0 | P164: =IFERROR(SUM($D164:INDIRECT($S164)),"0") -> 0 | S164: O164 | T164: =COUNTIF($D$19:INDIRECT($V164),"*3*") -> 0 | U164: 15 | V164: O19
C165: CO4 | D165: =IFERROR((IF(ISNUMBER(SEARCH("4", D$19)),D$120,"0")),"0") -> 0 | E165: 0 | F165: 0 | G165: 0 | H165: 0 | I165: 0 | J165: 0 | K165: 0 | L165: 0 | M165: 0 | N165: 0 | O165: 0 | P165: =IFERROR(SUM($D165:INDIRECT($S165)),"0") -> 0 | S165: O165 | T165: =COUNTIF($D$19:INDIRECT($V165),"*4*") -> 0 | U165: 15 | V165: O19
C166: CO5 | D166: =IFERROR((IF(ISNUMBER(SEARCH("5", D$19)),D$120,"0")),"0") -> 0 | E166: 0 | F166: 0 | G166: 0 | H166: 0 | I166: 0 | J166: 0 | K166: 0 | L166: 0 | M166: 0 | N166: 0 | O166: 0 | P166: =IFERROR(SUM($D166:INDIRECT($S166)),"0") -> 0 | S166: O166 | T166: =COUNTIF($D$19:INDIRECT($V166),"*5*") -> 0 | U166: 15 | V166: O19
C167: CO6 | D167: =IFERROR((IF(ISNUMBER(SEARCH("6", D$19)),D$120,"0")),"0") -> 0 | E167: 0 | F167: 0 | G167: 0 | H167: 0 | I167: 0 | J167: 0 | K167: 0 | L167: 0 | M167: 0 | N167: 0 | O167: 0 | P167: =IFERROR(SUM($D167:INDIRECT($S167)),"0") -> 0 | S167: O167 | T167: =COUNTIF($D$19:INDIRECT($V167),"*6*") -> 0 | U167: 15 | V167: O19
C169: CO1 | D169: =IFERROR((IF(ISNUMBER(SEARCH("1", D$19)),D$121,"0")),"0") -> 68 | E169: 61 | F169: 74 | G169: 0 | H169: 0 | I169: 66 | J169: 41 | K169: 45 | L169: 45 | M169: 37 | N169: 23 | O169: 9 | P169: =IFERROR(SUM($D169:INDIRECT($S169)),"0") -> 469 | S169: =SUBSTITUTE(ADDRESS(1,U169,4),1,"")&ROW($P169) -> O169 | T169: =COUNTIF($D$19:INDIRECT($V169),"*1*") -> 10 | U169: =COLUMN($P$18)-1 -> 15 | V169: =SUBSTITUTE(ADDRESS(1,U169,4),1,"")&ROW($P$18)+1 -> O19 | W169: No of Studdents Above Difficulty Level
C170: CO2 | D170: =IFERROR((IF(ISNUMBER(SEARCH("2", D$19)),D$121,"0")),"0") -> 0 | E170: 0 | F170: 0 | G170: 69 | H170: 71 | I170: 0 | J170: 0 | K170: 0 | L170: 0 | M170: 0 | N170: 0 | O170: 0 | P170: =IFERROR(SUM($D170:INDIRECT($S170)),"0") -> 140 | S170: O170 | T170: =COUNTIF($D$19:INDIRECT($V170),"*2*") -> 2 | U170: 15 | V170: =SUBSTITUTE(ADDRESS(1,U170,4),1,"")&ROW($P$18)+1 -> O19
C171: CO3 | D171: =IFERROR((IF(ISNUMBER(SEARCH("3", D$19)),D$121,"0")),"0") -> 0 | E171: 0 | F171: 0 | G171: 0 | H171: 0 | I171: 0 | J171: 0 | K171: 0 | L171: 0 | M171: 0 | N171: 0 | O171: 0 | P171: =IFERROR(SUM($D171:INDIRECT($S171)),"0") -> 0 | S171: O171 | T171: =COUNTIF($D$19:INDIRECT($V171),"*3*") -> 0 | U171: 15 | V171: O19
C172: CO4 | D172: =IFERROR((IF(ISNUMBER(SEARCH("4", D$19)),D$121,"0")),"0") -> 0 | E172: 0 | F172: 0 | G172: 0 | H172: 0 | I172: 0 | J172: 0 | K172: 0 | L172: 0 | M172: 0 | N172: 0 | O172: 0 | P172: =IFERROR(SUM($D172:INDIRECT($S172)),"0") -> 0 | S172: O172 | T172: =COUNTIF($D$19:INDIRECT($V172),"*4*") -> 0 | U172: 15 | V172: O19
C173: CO5 | D173: =IFERROR((IF(ISNUMBER(SEARCH("5", D$19)),D$121,"0")),"0") -> 0 | E173: 0 | F173: 0 | G173: 0 | H173: 0 | I173: 0 | J173: 0 | K173: 0 | L173: 0 | M173: 0 | N173: 0 | O173: 0 | P173: =IFERROR(SUM($D173:INDIRECT($S173)),"0") -> 0 | S173: O173 | T173: =COUNTIF($D$19:INDIRECT($V173),"*5*") -> 0 | U173: 15 | V173: O19
C174: CO6 | D174: =IFERROR((IF(ISNUMBER(SEARCH("6", D$19)),D$121,"0")),"0") -> 0 | E174: 0 | F174: 0 | G174: 0 | H174: 0 | I174: 0 | J174: 0 | K174: 0 | L174: 0 | M174: 0 | N174: 0 | O174: 0 | P174: =IFERROR(SUM($D174:INDIRECT($S174)),"0") -> 0 | S174: O174 | T174: =COUNTIF($D$19:INDIRECT($V174),"*6*") -> 0 | U174: 15 | V174: O19
C176: 1 | D176: =IFERROR((IF(ISNUMBER(SEARCH("1", D$20)),D$21/IF(LEN(D20)=16,6,IF(LEN(D20)=13,5,IF(LEN(D20)=10,4,IF(LEN(D20)=7,3,IF(LEN(D20)=4,2,1))))),"0")),"0") -> 3 | E176: 3 | F176: 3 | G176: 0 | H176: 2 | I176: 3 | J176: 3 | K176: 3 | L176: 9 | M176: 9 | N176: 9 | O176: 9 | P176: =IFERROR(SUM($D176:INDIRECT($S176)),"0") -> 56 | S176: =SUBSTITUTE(ADDRESS(1,U176,4),1,"")&ROW($P176) -> O176 | T176: =COUNTIF($D$20:INDIRECT($V176),"1") -> 11 | U176: =COLUMN($P$18)-1 -> 15 | V176: =SUBSTITUTE(ADDRESS(1,U176,4),1,"")&ROW($P$19)+1 -> O20
C177: 2 | D177: =IFERROR((IF(ISNUMBER(SEARCH("2", D$20)),D$21/IF(LEN(D20)=16,6,IF(LEN(D20)=13,5,IF(LEN(D20)=10,4,IF(LEN(D20)=7,3,IF(LEN(D20)=4,2,1))))),"0")),"0") -> 0 | E177: 0 | F177: 0 | G177: 3 | H177: 0 | I177: 0 | J177: 0 | K177: 0 | L177: 0 | M177: 0 | N177: 0 | O177: 0 | P177: =IFERROR(SUM($D177:INDIRECT($S177)),"0") -> 3 | S177: =SUBSTITUTE(ADDRESS(1,U177,4),1,"")&ROW($P177) -> O177 | T177: =COUNTIF($D$20:INDIRECT($V177),"2") -> 1 | U177: 15 | V177: O20
C178: 3 | D178: =IFERROR((IF(ISNUMBER(SEARCH("3", D$20)),D$21/IF(LEN(D20)=16,6,IF(LEN(D20)=13,5,IF(LEN(D20)=10,4,IF(LEN(D20)=7,3,IF(LEN(D20)=4,2,1))))),"0")),"0") -> 0 | E178: 0 | F178: 0 | G178: 0 | H178: 0 | I178: 0 | J178: 0 | K178: 0 | L178: 0 | M178: 0 | N178: 0 | O178: 0 | P178: =IFERROR(SUM($D178:INDIRECT($S178)),"0") -> 0 | S178: O178 | T178: =COUNTIF($D$20:INDIRECT($V178),"3") -> 0 | U178: 15 | V178: O20
C179: 4 | D179: =IFERROR((IF(ISNUMBER(SEARCH("4", D$20)),D$21/IF(LEN(D20)=16,6,IF(LEN(D20)=13,5,IF(LEN(D20)=10,4,IF(LEN(D20)=7,3,IF(LEN(D20)=4,2,1))))),"0")),"0") -> 0 | E179: 0 | F179: 0 | G179: 0 | H179: 0 | I179: 0 | J179: 0 | K179: 0 | L179: 0 | M179: 0 | N179: 0 | O179: 0 | P179: =IFERROR(SUM($D179:INDIRECT($S179)),"0") -> 0 | S179: O179 | T179: =COUNTIF($D$20:INDIRECT($V179),"4") -> 0 | U179: 15 | V179: O20
C180: 5 | D180: =IFERROR((IF(ISNUMBER(SEARCH("5", D$20)),D$21/IF(LEN(D20)=16,6,IF(LEN(D20)=13,5,IF(LEN(D20)=10,4,IF(LEN(D20)=7,3,IF(LEN(D20)=4,2,1))))),"0")),"0") -> 0 | E180: 0 | F180: 0 | G180: 0 | H180: 0 | I180: 0 | J180: 0 | K180: 0 | L180: 0 | M180: 0 | N180: 0 | O180: 0 | P180: =IFERROR(SUM($D180:INDIRECT($S180)),"0") -> 0 | S180: O180 | T180: =COUNTIF($D$20:INDIRECT($V180),"5") -> 0 | U180: 15 | V180: O20
C181: 6 | D181: =IFERROR((IF(ISNUMBER(SEARCH("6", D$20)),D$21/IF(LEN(D20)=16,6,IF(LEN(D20)=13,5,IF(LEN(D20)=10,4,IF(LEN(D20)=7,3,IF(LEN(D20)=4,2,1))))),"0")),"0") -> 0 | E181: 0 | F181: 0 | G181: 0 | H181: 0 | I181: 0 | J181: 0 | K181: 0 | L181: 0 | M181: 0 | N181: 0 | O181: 0 | P181: =IFERROR(SUM($D181:INDIRECT($S181)),"0") -> 0 | S181: O181 | T181: =COUNTIF($D$20:INDIRECT($V181),"6") -> 0 | U181: 15 | V181: O20

Sheet T1_Analysis
A3: =Data_Sheet!A2 -> Jyothi Engineering College, Cheruthuruthy
A5: ='T1'!A9 -> Department of Computer Science Engineering
A7: ='T1'!A11 -> CO Analysis - Internal Marks : First Internal Exam 12-02-18
A9: =Data_Sheet!A17 -> S3 CS CS203 Switching Theory and Logic Design 2019-20
A22: ='T1'!A18 -> Register No. | B22: ='T1'!B18 -> Name of Student | C22: ='T1'!P18 -> Total Marks (50) | D22: Category
A24: Column1 | B24: Column2 | C24: Column3 | D24: Column4
A25: =Data_Sheet!A25 -> JEC18CS001 | B25: =Data_Sheet!B25 -> ABHISHEK KRISHNAN MENON E | C25: ='T1'!P25 -> 20 | D25: =IF(C25="A","ABSENT",IF(C25>='T1'!$F$5*$E$124/100,"EXCELLENT",IF(C25>='T1'!$F$5*$E$123/100,"GOOD",IF(C25>='T1'!$F$5*$E$122/100,"AVERAGE","POOR")))) -> POOR
A26: =Data_Sheet!A26 -> JEC18CS002 | B26: =Data_Sheet!B26 -> ABHISHEK SAJEEVAN | C26: ='T1'!P26 -> 10 | D26: =IF(C26="A","ABSENT",IF(C26>='T1'!$F$5*$E$124/100,"EXCELLENT",IF(C26>='T1'!$F$5*$E$123/100,"GOOD",IF(C26>='T1'!$F$5*$E$122/100,"AVERAGE","POOR")))) -> POOR
A27: =Data_Sheet!A27 -> JEC18CS003 | B27: =Data_Sheet!B27 -> ABHITH SHAJI | C27: ='T1'!P27 -> 21 | D27: =IF(C27="A","ABSENT",IF(C27>='T1'!$F$5*$E$124/100,"EXCELLENT",IF(C27>='T1'!$F$5*$E$123/100,"GOOD",IF(C27>='T1'!$F$5*$E$122/100,"AVERAGE","POOR")))) -> POOR
A28: =Data_Sheet!A28 -> JEC18CS004 | B28: =Data_Sheet!B28 -> ABIN SANTHOSH ALAPATT | C28: ='T1'!P28 -> 28 | D28: =IF(C28="A","ABSENT",IF(C28>='T1'!$F$5*$E$124/100,"EXCELLENT",IF(C28>='T1'!$F$5*$E$123/100,"GOOD",IF(C28>='T1'!$F$5*$E$122/100,"AVERAGE","POOR")))) -> AVERAGE
A29: =Data_Sheet!A29 -> JEC18CS005 | B29: =Data_Sheet!B29 -> ADARSH KUMAR M A | C29: ='T1'!P29 -> 34 | D29: =IF(C29="A","ABSENT",IF(C29>='T1'!$F$5*$E$124/100,"EXCELLENT",IF(C29>='T1'!$F$5*$E$123/100,"GOOD",IF(C29>='T1'!$F$5*$E$122/100,"AVERAGE","POOR")))) -> GOOD
A30: =Data_Sheet!A30 -> JEC18CS006 | B30: =Data_Sheet!B30 -> ADHITHYA KRISHNA S | C30: ='T1'!P30 -> 25 | D30: =IF(C30="A","ABSENT",IF(C30>='T1'!$F$5*$E$124/100,"EXCELLENT",IF(C30>='T1'!$F$5*$E$123/100,"GOOD",IF(C30>='T1'!$F$5*$E$122/100,"AVERAGE","POOR")))) -> AVERAGE
A31: =Data_Sheet!A31 -> JEC18CS007 | B31: =Data_Sheet!B31 -> ADITHYA HARIDAS | C31: ='T1'!P31 -> 40 | D31: =IF(C31="A","ABSENT",IF(C31>='T1'!$F$5*$E$124/100,"EXCELLENT",IF(C31>='T1'!$F$5*$E$123/100,"GOOD",IF(C31>='T1'!$F$5*$E$122/100,"AVERAGE","POOR")))) -> EXCELLENT
A32: =Data_Sheet!A32 -> JEC18CS008 | B32: =Data_Sheet!B32 -> AJMAL BASHEER | C32: ='T1'!P32 -> 17 | D32: =IF(C32="A","ABSENT",IF(C32>='T1'!$F$5*$E$124/100,"EXCELLENT",IF(C32>='T1'!$F$5*$E$123/100,"GOOD",IF(C32>='T1'!$F$5*$E$122/100,"AVERAGE","POOR")))) -> POOR
A33: =Data_Sheet!A33 -> JEC18CS009 | B33: =Data_Sheet!B33 -> AKASH.V | C33: ='T1'!P33 -> 19 | D33: =IF(C33="A","ABSENT",IF(C33>='T1'!$F$5*$E$124/100,"EXCELLENT",IF(C33>='T1'!$F$5*$E$123/100,"GOOD",IF(C33>='T1'!$F$5*$E$122/100,"AVERAGE","POOR")))) -> POOR
A34: =Data_Sheet!A34 -> JEC18CS010 | B34: =Data_Sheet!B34 -> AKHIL AZEEZ UPPILAMKUNNATH | C34: ='T1'!P34 -> 24 | D34: =IF(C34="A","ABSENT",IF(C34>='T1'!$F$5*$E$124/100,"EXCELLENT",IF(C34>='T1'!$F$5*$E$123/100,"GOOD",IF(C34>='T1'!$F$5*$E$122/100,"AVERAGE","POOR")))) -> AVERAGE
A35: =Data_Sheet!A35 -> JEC18CS011 | B35: =Data_Sheet!B35 -> AKHIL KRISHNA UK | C35: ='T1'!P35 -> 35 | D35: =IF(C35="A","ABSENT",IF(C35>='T1'!$F$5*$E$124/100,"EXCELLENT",IF(C35>='T1'!$F$5*$E$123/100,"GOOD",IF(C35>='T1'!$F$5*$E$122/100,"AVERAGE","POOR")))) -> GOOD
A36: =Data_Sheet!A36 -> JEC18CS012 | B36: =Data_Sheet!B36 -> ALAN GEORGE | C36: ='T1'!P36 -> 32 | D36: =IF(C36="A","ABSENT",IF(C36>='T1'!$F$5*$E$124/100,"EXCELLENT",IF(C36>='T1'!$F$5*$E$123/100,"GOOD",IF(C36>='T1'!$F$5*$E$122/100,"AVERAGE","POOR")))) -> GOOD
A37: =Data_Sheet!A37 -> JEC18CS013 | B37: =Data_Sheet!B37 -> ALEN VARGHESE | C37: ='T1'!P37 -> 28 | D37: =IF(C37="A","ABSENT",IF(C37>='T1'!$F$5*$E$124/100,"EXCELLENT",IF(C37>='T1'!$F$5*$E$123/100,"GOOD",IF(C37>='T1'!$F$5*$E$122/100,"AVERAGE","POOR")))) -> AVERAGE
A38: =Data_Sheet!A38 -> JEC18CS014 | B38: =Data_Sheet!B38 -> AMAL SEBASTIAN | C38: ='T1'!P38 -> 48 | D38: =IF(C38="A","ABSENT",IF(C38>='T1'!$F$5*$E$124/100,"EXCELLENT",IF(C38>='T1'!$F$5*$E$123/100,"GOOD",IF(C38>='T1'!$F$5*$E$122/100,"AVERAGE","POOR")))) -> EXCELLENT
A39: =Data_Sheet!A39 -> JEC18CS015 | B39: =Data_Sheet!B39 -> AMAL SONY | C39: ='T1'!P39 -> 18 | D39: =IF(C39="A","ABSENT",IF(C39>='T1'!$F$5*$E$124/100,"EXCELLENT",IF(C39>='T1'!$F$5*$E$123/100,"GOOD",IF(C39>='T1'!$F$5*$E$122/100,"AVERAGE","POOR")))) -> POOR
A40: =Data_Sheet!A40 -> JEC18CS016 | B40: =Data_Sheet!B40 -> ANAGHA WILSON | C40: ='T1'!P40 -> 10 | D40: =IF(C40="A","ABSENT",IF(C40>='T1'!$F$5*$E$124/100,"EXCELLENT",IF(C40>='T1'!$F$5*$E$123/100,"GOOD",IF(C40>='T1'!$F$5*$E$122/100,"AVERAGE","POOR")))) -> POOR
A41: =Data_Sheet!A41 -> JEC18CS017 | B41: =Data_Sheet!B41 -> ANETTE ANTO | C41: ='T1'!P41 -> 7 | D41: =IF(C41="A","ABSENT",IF(C41>='T1'!$F$5*$E$124/100,"EXCELLENT",IF(C41>='T1'!$F$5*$E$123/100,"GOOD",IF(C41>='T1'!$F$5*$E$122/100,"AVERAGE","POOR")))) -> POOR
A42: =Data_Sheet!A42 -> JEC18CS018 | B42: =Data_Sheet!B42 -> ANIT MARY THOMAS | C42: ='T1'!P42 -> 35 | D42: =IF(C42="A","ABSENT",IF(C42>='T1'!$F$5*$E$124/100,"EXCELLENT",IF(C42>='T1'!$F$5*$E$123/100,"GOOD",IF(C42>='T1'!$F$5*$E$122/100,"AVERAGE","POOR")))) -> GOOD
A43: =Data_Sheet!A43 -> JEC18CS020 | B43: =Data_Sheet!B43 -> ANN THERESA SHAJI | C43: ='T1'!P43 -> A | D43: =IF(C43="A","ABSENT",IF(C43>='T1'!$F$5*$E$124/100,"EXCELLENT",IF(C43>='T1'!$F$5*$E$123/100,"GOOD",IF(C43>='T1'!$F$5*$E$122/100,"AVERAGE","POOR")))) -> ABSENT
A44: =Data_Sheet!A44 -> JEC18CS021 | B44: =Data_Sheet!B44 -> ANTONY ROY | C44: ='T1'!P44 -> 12 | D44: =IF(C44="A","ABSENT",IF(C44>='T1'!$F$5*$E$124/100,"EXCELLENT",IF(C44>='T1'!$F$5*$E$123/100,"GOOD",IF(C44>='T1'!$F$5*$E$122/100,"AVERAGE","POOR")))) -> POOR
A45: =Data_Sheet!A45 -> JEC18CS022 | B45: =Data_Sheet!B45 -> ANUGRAHA C | C45: ='T1'!P45 -> 29 | D45: =IF(C45="A","ABSENT",IF(C45>='T1'!$F$5*$E$124/100,"EXCELLENT",IF(C45>='T1'!$F$5*$E$123/100,"GOOD",IF(C45>='T1'!$F$5*$E$122/100,"AVERAGE","POOR")))) -> AVERAGE
A46: =Data_Sheet!A46 -> JEC18CS023 | B46: =Data_Sheet!B46 -> APARNA.V | C46: ='T1'!P46 -> 33 | D46: =IF(C46="A","ABSENT",IF(C46>='T1'!$F$5*$E$124/100,"EXCELLENT",IF(C46>='T1'!$F$5*$E$123/100,"GOOD",IF(C46>='T1'!$F$5*$E$122/100,"AVERAGE","POOR")))) -> GOOD
A47: =Data_Sheet!A47 -> JEC18CS024 | B47: =Data_Sheet!B47 -> ARAVIND S KUMAR | C47: ='T1'!P47 -> 19 | D47: =IF(C47="A","ABSENT",IF(C47>='T1'!$F$5*$E$124/100,"EXCELLENT",IF(C47>='T1'!$F$5*$E$123/100,"GOOD",IF(C47>='T1'!$F$5*$E$122/100,"AVERAGE","POOR")))) -> POOR
A48: =Data_Sheet!A48 -> JEC18CS025 | B48: =Data_Sheet!B48 -> ARJUN VINOD | C48: ='T1'!P48 -> 28 | D48: =IF(C48="A","ABSENT",IF(C48>='T1'!$F$5*$E$124/100,"EXCELLENT",IF(C48>='T1'!$F$5*$E$123/100,"GOOD",IF(C48>='T1'!$F$5*$E$122/100,"AVERAGE","POOR")))) -> AVERAGE
A49: =Data_Sheet!A49 -> JEC18CS026 | B49: =Data_Sheet!B49 -> ARUN VG | C49: ='T1'!P49 -> 18 | D49: =IF(C49="A","ABSENT",IF(C49>='T1'!$F$5*$E$124/100,"EXCELLENT",IF(C49>='T1'!$F$5*$E$123/100,"GOOD",IF(C49>='T1'!$F$5*$E$122/100,"AVERAGE","POOR")))) -> POOR
A50: =Data_Sheet!A50 -> JEC18CS027 | B50: =Data_Sheet!B50 -> ASHRUL K | C50: ='T1'!P50 -> 34 | D50: =IF(C50="A","ABSENT",IF(C50>='T1'!$F$5*$E$124/100,"EXCELLENT",IF(C50>='T1'!$F$5*$E$123/100,"GOOD",IF(C50>='T1'!$F$5*$E$122/100,"AVERAGE","POOR")))) -> GOOD
A51: =Data_Sheet!A51 -> JEC18CS028 | B51: =Data_Sheet!B51 -> ATHIL PAULY | C51: ='T1'!P51 -> 20 | D51: =IF(C51="A","ABSENT",IF(C51>='T1'!$F$5*$E$124/100,"EXCELLENT",IF(C51>='T1'!$F$5*$E$123/100,"GOOD",IF(C51>='T1'!$F$5*$E$122/100,"AVERAGE","POOR")))) -> POOR
A52: =Data_Sheet!A52 -> JEC18CS029 | B52: =Data_Sheet!B52 -> ATHIRA K P | C52: ='T1'!P52 -> 44 | D52: =IF(C52="A","ABSENT",IF(C52>='T1'!$F$5*$E$124/100,"EXCELLENT",IF(C52>='T1'!$F$5*$E$123/100,"GOOD",IF(C52>='T1'!$F$5*$E$122/100,"AVERAGE","POOR")))) -> EXCELLENT
A53: =Data_Sheet!A53 -> JEC18CS030 | B53: =Data_Sheet!B53 -> AWIN ANTO | C53: ='T1'!P53 -> 27 | D53: =IF(C53="A","ABSENT",IF(C53>='T1'!$F$5*$E$124/100,"EXCELLENT",IF(C53>='T1'!$F$5*$E$123/100,"GOOD",IF(C53>='T1'!$F$5*$E$122/100,"AVERAGE","POOR")))) -> AVERAGE
A54: =Data_Sheet!A54 -> JEC18CS031 | B54: =Data_Sheet!B54 -> CHARLES JOHNSON | C54: ='T1'!P54 -> 24 | D54: =IF(C54="A","ABSENT",IF(C54>='T1'!$F$5*$E$124/100,"EXCELLENT",IF(C54>='T1'!$F$5*$E$123/100,"GOOD",IF(C54>='T1'!$F$5*$E$122/100,"AVERAGE","POOR")))) -> AVERAGE
A55: =Data_Sheet!A55 -> JEC18CS032 | B55: =Data_Sheet!B55 -> CHITTILAPPILLY JOVIA JOHNSON | C55: ='T1'!P55 -> 46 | D55: =IF(C55="A","ABSENT",IF(C55>='T1'!$F$5*$E$124/100,"EXCELLENT",IF(C55>='T1'!$F$5*$E$123/100,"GOOD",IF(C55>='T1'!$F$5*$E$122/100,"AVERAGE","POOR")))) -> EXCELLENT
A56: =Data_Sheet!A56 -> JEC18CS033 | B56: =Data_Sheet!B56 -> CIYA BABU | C56: ='T1'!P56 -> 15 | D56: =IF(C56="A","ABSENT",IF(C56>='T1'!$F$5*$E$124/100,"EXCELLENT",IF(C56>='T1'!$F$5*$E$123/100,"GOOD",IF(C56>='T1'!$F$5*$E$122/100,"AVERAGE","POOR")))) -> POOR
A57: =Data_Sheet!A57 -> JEC18CS034 | B57: =Data_Sheet!B57 -> DAVID SALUS | C57: ='T1'!P57 -> 35 | D57: =IF(C57="A","ABSENT",IF(C57>='T1'!$F$5*$E$124/100,"EXCELLENT",IF(C57>='T1'!$F$5*$E$123/100,"GOOD",IF(C57>='T1'!$F$5*$E$122/100,"AVERAGE","POOR")))) -> GOOD
A58: =Data_Sheet!A58 -> JEC18CS035 | B58: =Data_Sheet!B58 -> DELICIA REJI | C58: ='T1'!P58 -> 34 | D58: =IF(C58="A","ABSENT",IF(C58>='T1'!$F$5*$E$124/100,"EXCELLENT",IF(C58>='T1'!$F$5*$E$123/100,"GOOD",IF(C58>='T1'!$F$5*$E$122/100,"AVERAGE","POOR")))) -> GOOD
A59: =Data_Sheet!A59 -> JEC18CS036 | B59: =Data_Sheet!B59 -> DELMA SHAJAN | C59: ='T1'!P59 -> 35 | D59: =IF(C59="A","ABSENT",IF(C59>='T1'!$F$5*$E$124/100,"EXCELLENT",IF(C59>='T1'!$F$5*$E$123/100,"GOOD",IF(C59>='T1'!$F$5*$E$122/100,"AVERAGE","POOR")))) -> GOOD
A60: =Data_Sheet!A60 -> JEC18CS037 | B60: =Data_Sheet!B60 -> DILBER SHA AP | C60: ='T1'!P60 -> 23 | D60: =IF(C60="A","ABSENT",IF(C60>='T1'!$F$5*$E$124/100,"EXCELLENT",IF(C60>='T1'!$F$5*$E$123/100,"GOOD",IF(C60>='T1'!$F$5*$E$122/100,"AVERAGE","POOR")))) -> AVERAGE
A61: =Data_Sheet!A61 -> JEC18CS038 | B61: =Data_Sheet!B61 -> EDWIN T JOY | C61: ='T1'!P61 -> 43 | D61: =IF(C61="A","ABSENT",IF(C61>='T1'!$F$5*$E$124/100,"EXCELLENT",IF(C61>='T1'!$F$5*$E$123/100,"GOOD",IF(C61>='T1'!$F$5*$E$122/100,"AVERAGE","POOR")))) -> EXCELLENT
A62: =Data_Sheet!A62 -> JEC18CS039 | B62: =Data_Sheet!B62 -> EDWIN WILSON | C62: ='T1'!P62 -> 19 | D62: =IF(C62="A","ABSENT",IF(C62>='T1'!$F$5*$E$124/100,"EXCELLENT",IF(C62>='T1'!$F$5*$E$123/100,"GOOD",IF(C62>='T1'!$F$5*$E$122/100,"AVERAGE","POOR")))) -> POOR
A63: =Data_Sheet!A63 -> JEC18CS040 | B63: =Data_Sheet!B63 -> EMMANUEL SHIBU | C63: ='T1'!P63 -> 36 | D63: =IF(C63="A","ABSENT",IF(C63>='T1'!$F$5*$E$124/100,"EXCELLENT",IF(C63>='T1'!$F$5*$E$123/100,"GOOD",IF(C63>='T1'!$F$5*$E$122/100,"AVERAGE","POOR")))) -> GOOD
A64: =Data_Sheet!A64 -> JEC18CS041 | B64: =Data_Sheet!B64 -> GAYATHRI DINESH | C64: ='T1'!P64 -> 21 | D64: =IF(C64="A","ABSENT",IF(C64>='T1'!$F$5*$E$124/100,"EXCELLENT",IF(C64>='T1'!$F$5*$E$123/100,"GOOD",IF(C64>='T1'!$F$5*$E$122/100,"AVERAGE","POOR")))) -> POOR
A65: =Data_Sheet!A65 -> JEC18CS042 | B65: =Data_Sheet!B65 -> GOKUL DAS M | C65: ='T1'!P65 -> 23 | D65: =IF(C65="A","ABSENT",IF(C65>='T1'!$F$5*$E$124/100,"EXCELLENT",IF(C65>='T1'!$F$5*$E$123/100,"GOOD",IF(C65>='T1'!$F$5*$E$122/100,"AVERAGE","POOR")))) -> AVERAGE
A66: =Data_Sheet!A66 -> JEC18CS043 | B66: =Data_Sheet!B66 -> G RAMGOPAL | C66: ='T1'!P66 -> 49 | D66: =IF(C66="A","ABSENT",IF(C66>='T1'!$F$5*$E$124/100,"EXCELLENT",IF(C66>='T1'!$F$5*$E$123/100,"GOOD",IF(C66>='T1'!$F$5*$E$122/100,"AVERAGE","POOR")))) -> EXCELLENT
A67: =Data_Sheet!A67 -> JEC18CS044 | B67: =Data_Sheet!B67 -> HARIES DAVIS | C67: ='T1'!P67 -> 35 | D67: =IF(C67="A","ABSENT",IF(C67>='T1'!$F$5*$E$124/100,"EXCELLENT",IF(C67>='T1'!$F$5*$E$123/100,"GOOD",IF(C67>='T1'!$F$5*$E$122/100,"AVERAGE","POOR")))) -> GOOD
A68: =Data_Sheet!A68 -> JEC18CS045 | B68: =Data_Sheet!B68 -> HARISANKER P | C68: ='T1'!P68 -> 29 | D68: =IF(C68="A","ABSENT",IF(C68>='T1'!$F$5*$E$124/100,"EXCELLENT",IF(C68>='T1'!$F$5*$E$123/100,"GOOD",IF(C68>='T1'!$F$5*$E$122/100,"AVERAGE","POOR")))) -> AVERAGE
A69: =Data_Sheet!A69 -> JEC18CS046 | B69: =Data_Sheet!B69 -> HARSHA.K.S. | C69: ='T1'!P69 -> 41 | D69: =IF(C69="A","ABSENT",IF(C69>='T1'!$F$5*$E$124/100,"EXCELLENT",IF(C69>='T1'!$F$5*$E$123/100,"GOOD",IF(C69>='T1'!$F$5*$E$122/100,"AVERAGE","POOR")))) -> EXCELLENT
A70: =Data_Sheet!A70 -> JEC18CS047 | B70: =Data_Sheet!B70 -> HELNA THOMAS | C70: ='T1'!P70 -> 44 | D70: =IF(C70="A","ABSENT",IF(C70>='T1'!$F$5*$E$124/100,"EXCELLENT",IF(C70>='T1'!$F$5*$E$123/100,"GOOD",IF(C70>='T1'!$F$5*$E$122/100,"AVERAGE","POOR")))) -> EXCELLENT
A71: =Data_Sheet!A71 -> JEC18CS048 | B71: =Data_Sheet!B71 -> HRIDI KRISHNA.H | C71: ='T1'!P71 -> 32 | D71: =IF(C71="A","ABSENT",IF(C71>='T1'!$F$5*$E$124/100,"EXCELLENT",IF(C71>='T1'!$F$5*$E$123/100,"GOOD",IF(C71>='T1'!$F$5*$E$122/100,"AVERAGE","POOR")))) -> GOOD
A72: =Data_Sheet!A72 -> JEC18CS049 | B72: =Data_Sheet!B72 -> INDRAJIT R | C72: ='T1'!P72 -> 23 | D72: =IF(C72="A","ABSENT",IF(C72>='T1'!$F$5*$E$124/100,"EXCELLENT",IF(C72>='T1'!$F$5*$E$123/100,"GOOD",IF(C72>='T1'!$F$5*$E$122/100,"AVERAGE","POOR")))) -> AVERAGE
A73: =Data_Sheet!A73 -> JEC18CS050 | B73: =Data_Sheet!B73 -> JESWIN JOJY | C73: ='T1'!P73 -> 48 | D73: =IF(C73="A","ABSENT",IF(C73>='T1'!$F$5*$E$124/100,"EXCELLENT",IF(C73>='T1'!$F$5*$E$123/100,"GOOD",IF(C73>='T1'!$F$5*$E$122/100,"AVERAGE","POOR")))) -> EXCELLENT
A74: =Data_Sheet!A74 -> JEC18CS051 | B74: =Data_Sheet!B74 -> JIBIN A BABU | C74: ='T1'!P74 -> 27 | D74: =IF(C74="A","ABSENT",IF(C74>='T1'!$F$5*$E$124/100,"EXCELLENT",IF(C74>='T1'!$F$5*$E$123/100,"GOOD",IF(C74>='T1'!$F$5*$E$122/100,"AVERAGE","POOR")))) -> AVERAGE
A75: =Data_Sheet!A75 -> JEC18CS052 | B75: =Data_Sheet!B75 -> JISSY JOY | C75: ='T1'!P75 -> 44 | D75: =IF(C75="A","ABSENT",IF(C75>='T1'!$F$5*$E$124/100,"EXCELLENT",IF(C75>='T1'!$F$5*$E$123/100,"GOOD",IF(C75>='T1'!$F$5*$E$122/100,"AVERAGE","POOR")))) -> EXCELLENT
A76: =Data_Sheet!A76 -> JEC18CS053 | B76: =Data_Sheet!B76 -> JOEL JAMES KARIKKANDATHIL | C76: ='T1'!P76 -> 28 | D76: =IF(C76="A","ABSENT",IF(C76>='T1'!$F$5*$E$124/100,"EXCELLENT",IF(C76>='T1'!$F$5*$E$123/100,"GOOD",IF(C76>='T1'!$F$5*$E$122/100,"AVERAGE","POOR")))) -> AVERAGE
A77: =Data_Sheet!A77 -> JEC18CS054 | B77: =Data_Sheet!B77 -> JOSE REJI KARIMADATHI | C77: ='T1'!P77 -> 16 | D77: =IF(C77="A","ABSENT",IF(C77>='T1'!$F$5*$E$124/100,"EXCELLENT",IF(C77>='T1'!$F$5*$E$123/100,"GOOD",IF(C77>='T1'!$F$5*$E$122/100,"AVERAGE","POOR")))) -> POOR
A78: =Data_Sheet!A78 -> JEC18CS055 | B78: =Data_Sheet!B78 -> JUMANA HASIN | C78: ='T1'!P78 -> 43 | D78: =IF(C78="A","ABSENT",IF(C78>='T1'!$F$5*$E$124/100,"EXCELLENT",IF(C78>='T1'!$F$5*$E$123/100,"GOOD",IF(C78>='T1'!$F$5*$E$122/100,"AVERAGE","POOR")))) -> EXCELLENT
A79: =Data_Sheet!A79 -> JEC18CS056 | B79: =Data_Sheet!B79 -> KAILASHNATH | C79: ='T1'!P79 -> 32 | D79: =IF(C79="A","ABSENT",IF(C79>='T1'!$F$5*$E$124/100,"EXCELLENT",IF(C79>='T1'!$F$5*$E$123/100,"GOOD",IF(C79>='T1'!$F$5*$E$122/100,"AVERAGE","POOR")))) -> GOOD
A80: =Data_Sheet!A80 -> JEC18CS057 | B80: =Data_Sheet!B80 -> K AJISHKUMAR | C80: ='T1'!P80 -> 29 | D80: =IF(C80="A","ABSENT",IF(C80>='T1'!$F$5*$E$124/100,"EXCELLENT",IF(C80>='T1'!$F$5*$E$123/100,"GOOD",IF(C80>='T1'!$F$5*$E$122/100,"AVERAGE","POOR")))) -> AVERAGE
A81: =Data_Sheet!A81 -> JEC18CS058 | B81: =Data_Sheet!B81 -> KEERTHANA K S | C81: ='T1'!P81 -> 14 | D81: =IF(C81="A","ABSENT",IF(C81>='T1'!$F$5*$E$124/100,"EXCELLENT",IF(C81>='T1'!$F$5*$E$123/100,"GOOD",IF(C81>='T1'!$F$5*$E$122/100,"AVERAGE","POOR")))) -> POOR
A82: =Data_Sheet!A82 -> JEC18CS059 | B82: =Data_Sheet!B82 -> KEVIN VARGHESE | C82: ='T1'!P82 -> 44 | D82: =IF(C82="A","ABSENT",IF(C82>='T1'!$F$5*$E$124/100,"EXCELLENT",IF(C82>='T1'!$F$5*$E$123/100,"GOOD",IF(C82>='T1'!$F$5*$E$122/100,"AVERAGE","POOR")))) -> EXCELLENT
A83: =Data_Sheet!A83 -> JEC18CS060 | B83: =Data_Sheet!B83 -> LAKSHMI SADANANDAN | C83: ='T1'!P83 -> 23 | D83: =IF(C83="A","ABSENT",IF(C83>='T1'!$F$5*$E$124/100,"EXCELLENT",IF(C83>='T1'!$F$5*$E$123/100,"GOOD",IF(C83>='T1'!$F$5*$E$122/100,"AVERAGE","POOR")))) -> AVERAGE
A84: =Data_Sheet!A84 -> JEC18CS061 | B84: =Data_Sheet!B84 -> LEYA PALLAN | C84: ='T1'!P84 -> A | D84: =IF(C84="A","ABSENT",IF(C84>='T1'!$F$5*$E$124/100,"EXCELLENT",IF(C84>='T1'!$F$5*$E$123/100,"GOOD",IF(C84>='T1'!$F$5*$E$122/100,"AVERAGE","POOR")))) -> ABSENT
A85: =Data_Sheet!A85 -> JEC18CS062 | B85: =Data_Sheet!B85 -> MARVEL BABU | C85: ='T1'!P85 -> 23 | D85: =IF(C85="A","ABSENT",IF(C85>='T1'!$F$5*$E$124/100,"EXCELLENT",IF(C85>='T1'!$F$5*$E$123/100,"GOOD",IF(C85>='T1'!$F$5*$E$122/100,"AVERAGE","POOR")))) -> AVERAGE
A86: =Data_Sheet!A86 -> JEC18CS063 | B86: =Data_Sheet!B86 -> MEDWIN PAUL | C86: ='T1'!P86 -> 25 | D86: =IF(C86="A","ABSENT",IF(C86>='T1'!$F$5*$E$124/100,"EXCELLENT",IF(C86>='T1'!$F$5*$E$123/100,"GOOD",IF(C86>='T1'!$F$5*$E$122/100,"AVERAGE","POOR")))) -> AVERAGE
A87: =Data_Sheet!A87 -> 0 | B87: =Data_Sheet!B87 -> 0 | C87: ='T1'!P87 -> A | D87: =IF(C87="A","ABSENT",IF(C87>='T1'!$F$5*$E$124/100,"EXCELLENT",IF(C87>='T1'!$F$5*$E$123/100,"GOOD",IF(C87>='T1'!$F$5*$E$122/100,"AVERAGE","POOR")))) -> ABSENT
A88: =Data_Sheet!A88 -> 0 | B88: =Data_Sheet!B88 -> 0 | C88: ='T1'!P88 -> A | D88: =IF(C88="A","ABSENT",IF(C88>='T1'!$F$5*$E$124/100,"EXCELLENT",IF(C88>='T1'!$F$5*$E$123/100,"GOOD",IF(C88>='T1'!$F$5*$E$122/100,"AVERAGE","POOR")))) -> ABSENT
A89: =Data_Sheet!A89 -> JEC18CS066 | B89: =Data_Sheet!B89 -> MUHAMMED INSHADH | C89: ='T1'!P89 -> 26 | D89: =IF(C89="A","ABSENT",IF(C89>='T1'!$F$5*$E$124/100,"EXCELLENT",IF(C89>='T1'!$F$5*$E$123/100,"GOOD",IF(C89>='T1'!$F$5*$E$122/100,"AVERAGE","POOR")))) -> AVERAGE
A90: =Data_Sheet!A90 -> JEC18CS067 | B90: =Data_Sheet!B90 -> NAIR MIDHUN RAMACHANDRAN | C90: ='T1'!P90 -> 26 | D90: =IF(C90="A","ABSENT",IF(C90>='T1'!$F$5*$E$124/100,"EXCELLENT",IF(C90>='T1'!$F$5*$E$123/100,"GOOD",IF(C90>='T1'!$F$5*$E$122/100,"AVERAGE","POOR")))) -> AVERAGE
A91: =Data_Sheet!A91 -> JEC18CS068 | B91: =Data_Sheet!B91 -> NAVEENA ANTONY | C91: ='T1'!P91 -> 21 | D91: =IF(C91="A","ABSENT",IF(C91>='T1'!$F$5*$E$124/100,"EXCELLENT",IF(C91>='T1'!$F$5*$E$123/100,"GOOD",IF(C91>='T1'!$F$5*$E$122/100,"AVERAGE","POOR")))) -> POOR
A92: =Data_Sheet!A92 -> JEC18CS069 | B92: =Data_Sheet!B92 -> NITIN MADHU | C92: ='T1'!P92 -> 45 | D92: =IF(C92="A","ABSENT",IF(C92>='T1'!$F$5*$E$124/100,"EXCELLENT",IF(C92>='T1'!$F$5*$E$123/100,"GOOD",IF(C92>='T1'!$F$5*$E$122/100,"AVERAGE","POOR")))) -> EXCELLENT
A93: =Data_Sheet!A93 -> JEC18CS070 | B93: =Data_Sheet!B93 -> PRATHIUSH ARUN | C93: ='T1'!P93 -> 33 | D93: =IF(C93="A","ABSENT",IF(C93>='T1'!$F$5*$E$124/100,"EXCELLENT",IF(C93>='T1'!$F$5*$E$123/100,"GOOD",IF(C93>='T1'!$F$5*$E$122/100,"AVERAGE","POOR")))) -> GOOD
A94: =Data_Sheet!A94 -> JEC18CS071 | B94: =Data_Sheet!B94 -> RACHEL CECER | C94: ='T1'!P94 -> 39 | D94: =IF(C94="A","ABSENT",IF(C94>='T1'!$F$5*$E$124/100,"EXCELLENT",IF(C94>='T1'!$F$5*$E$123/100,"GOOD",IF(C94>='T1'!$F$5*$E$122/100,"AVERAGE","POOR")))) -> GOOD
A95: =Data_Sheet!A95 -> JEC18CS072 | B95: =Data_Sheet!B95 -> RAHUL RAJU | C95: ='T1'!P95 -> A | D95: =IF(C95="A","ABSENT",IF(C95>='T1'!$F$5*$E$124/100,"EXCELLENT",IF(C95>='T1'!$F$5*$E$123/100,"GOOD",IF(C95>='T1'!$F$5*$E$122/100,"AVERAGE","POOR")))) -> ABSENT
A96: =Data_Sheet!A96 -> JEC18CS073 | B96: =Data_Sheet!B96 -> RAHUL T RAVI | C96: ='T1'!P96 -> 34 | D96: =IF(C96="A","ABSENT",IF(C96>='T1'!$F$5*$E$124/100,"EXCELLENT",IF(C96>='T1'!$F$5*$E$123/100,"GOOD",IF(C96>='T1'!$F$5*$E$122/100,"AVERAGE","POOR")))) -> GOOD
A97: =Data_Sheet!A97 -> JEC18CS074 | B97: =Data_Sheet!B97 -> RAPHEAL K MOYALAN | C97: ='T1'!P97 -> 19 | D97: =IF(C97="A","ABSENT",IF(C97>='T1'!$F$5*$E$124/100,"EXCELLENT",IF(C97>='T1'!$F$5*$E$123/100,"GOOD",IF(C97>='T1'!$F$5*$E$122/100,"AVERAGE","POOR")))) -> POOR
A98: =Data_Sheet!A98 -> JEC18CS075 | B98: =Data_Sheet!B98 -> RISHIKESH. V | C98: ='T1'!P98 -> 31 | D98: =IF(C98="A","ABSENT",IF(C98>='T1'!$F$5*$E$124/100,"EXCELLENT",IF(C98>='T1'!$F$5*$E$123/100,"GOOD",IF(C98>='T1'!$F$5*$E$122/100,"AVERAGE","POOR")))) -> GOOD
A99: =Data_Sheet!A99 -> JEC18CS076 | B99: =Data_Sheet!B99 -> ROCKSON T. AUGUSTINE | C99: ='T1'!P99 -> 36 | D99: =IF(C99="A","ABSENT",IF(C99>='T1'!$F$5*$E$124/100,"EXCELLENT",IF(C99>='T1'!$F$5*$E$123/100,"GOOD",IF(C99>='T1'!$F$5*$E$122/100,"AVERAGE","POOR")))) -> GOOD
A100: =Data_Sheet!A100 -> JEC18CS077 | B100: =Data_Sheet!B100 -> SARATH C P | C100: ='T1'!P100 -> 42 | D100: =IF(C100="A","ABSENT",IF(C100>='T1'!$F$5*$E$124/100,"EXCELLENT",IF(C100>='T1'!$F$5*$E$123/100,"GOOD",IF(C100>='T1'!$F$5*$E$122/100,"AVERAGE","POOR")))) -> EXCELLENT
A101: =Data_Sheet!A101 -> JEC18CS078 | B101: =Data_Sheet!B101 -> SARATH SASI | C101: ='T1'!P101 -> 45 | D101: =IF(C101="A","ABSENT",IF(C101>='T1'!$F$5*$E$124/100,"EXCELLENT",IF(C101>='T1'!$F$5*$E$123/100,"GOOD",IF(C101>='T1'!$F$5*$E$122/100,"AVERAGE","POOR")))) -> EXCELLENT
A102: =Data_Sheet!A102 -> JEC18CS079 | B102: =Data_Sheet!B102 -> SHAFNA | C102: ='T1'!P102 -> 50 | D102: =IF(C102="A","ABSENT",IF(C102>='T1'!$F$5*$E$124/100,"EXCELLENT",IF(C102>='T1'!$F$5*$E$123/100,"GOOD",IF(C102>='T1'!$F$5*$E$122/100,"AVERAGE","POOR")))) -> EXCELLENT
A103: =Data_Sheet!A103 -> JEC18CS080 | B103: =Data_Sheet!B103 -> SHELMY SHABU | C103: ='T1'!P103 -> 40 | D103: =IF(C103="A","ABSENT",IF(C103>='T1'!$F$5*$E$124/100,"EXCELLENT",IF(C103>='T1'!$F$5*$E$123/100,"GOOD",IF(C103>='T1'!$F$5*$E$122/100,"AVERAGE","POOR")))) -> EXCELLENT
A104: =Data_Sheet!A104 -> JEC18CS081 | B104: =Data_Sheet!B104 -> SHIZA SHIHAB PUVAMPARAMBIL | C104: ='T1'!P104 -> 47 | D104: =IF(C104="A","ABSENT",IF(C104>='T1'!$F$5*$E$124/100,"EXCELLENT",IF(C104>='T1'!$F$5*$E$123/100,"GOOD",IF(C104>='T1'!$F$5*$E$122/100,"AVERAGE","POOR")))) -> EXCELLENT
A105: =Data_Sheet!A105 -> JEC18CS082 | B105: =Data_Sheet!B105 -> SIJO GEORGE | C105: ='T1'!P105 -> 31 | D105: =IF(C105="A","ABSENT",IF(C105>='T1'!$F$5*$E$124/100,"EXCELLENT",IF(C105>='T1'!$F$5*$E$123/100,"GOOD",IF(C105>='T1'!$F$5*$E$122/100,"AVERAGE","POOR")))) -> GOOD
A106: =Data_Sheet!A106 -> JEC18CS083 | B106: =Data_Sheet!B106 -> SOURAV K | C106: ='T1'!P106 -> 26 | D106: =IF(C106="A","ABSENT",IF(C106>='T1'!$F$5*$E$124/100,"EXCELLENT",IF(C106>='T1'!$F$5*$E$123/100,"GOOD",IF(C106>='T1'!$F$5*$E$122/100,"AVERAGE","POOR")))) -> AVERAGE
A107: =Data_Sheet!A107 -> 0 | B107: =Data_Sheet!B107 -> 0 | C107: ='T1'!P107 -> A | D107: =IF(C107="A","ABSENT",IF(C107>='T1'!$F$5*$E$124/100,"EXCELLENT",IF(C107>='T1'!$F$5*$E$123/100,"GOOD",IF(C107>='T1'!$F$5*$E$122/100,"AVERAGE","POOR")))) -> ABSENT
A108: =Data_Sheet!A108 -> JEC18CS085 | B108: =Data_Sheet!B108 -> SREEHARI | C108: ='T1'!P108 -> 27 | D108: =IF(C108="A","ABSENT",IF(C108>='T1'!$F$5*$E$124/100,"EXCELLENT",IF(C108>='T1'!$F$5*$E$123/100,"GOOD",IF(C108>='T1'!$F$5*$E$122/100,"AVERAGE","POOR")))) -> AVERAGE
A109: =Data_Sheet!A109 -> JEC18CS086 | B109: =Data_Sheet!B109 -> SREEKANTH P | C109: ='T1'!P109 -> 17 | D109: =IF(C109="A","ABSENT",IF(C109>='T1'!$F$5*$E$124/100,"EXCELLENT",IF(C109>='T1'!$F$5*$E$123/100,"GOOD",IF(C109>='T1'!$F$5*$E$122/100,"AVERAGE","POOR")))) -> POOR
A110: =Data_Sheet!A110 -> JEC18CS087 | B110: =Data_Sheet!B110 -> SREELEKSHMI H KUMAR | C110: ='T1'!P110 -> 25 | D110: =IF(C110="A","ABSENT",IF(C110>='T1'!$F$5*$E$124/100,"EXCELLENT",IF(C110>='T1'!$F$5*$E$123/100,"GOOD",IF(C110>='T1'!$F$5*$E$122/100,"AVERAGE","POOR")))) -> AVERAGE
A111: =Data_Sheet!A111 -> JEC18CS088 | B111: =Data_Sheet!B111 -> SUFAIL BADUSHA.T | C111: ='T1'!P111 -> 31 | D111: =IF(C111="A","ABSENT",IF(C111>='T1'!$F$5*$E$124/100,"EXCELLENT",IF(C111>='T1'!$F$5*$E$123/100,"GOOD",IF(C111>='T1'!$F$5*$E$122/100,"AVERAGE","POOR")))) -> GOOD
A112: =Data_Sheet!A112 -> JEC18CS089 | B112: =Data_Sheet!B112 -> TIYA THOMAS | C112: ='T1'!P112 -> 49 | D112: =IF(C112="A","ABSENT",IF(C112>='T1'!$F$5*$E$124/100,"EXCELLENT",IF(C112>='T1'!$F$5*$E$123/100,"GOOD",IF(C112>='T1'!$F$5*$E$122/100,"AVERAGE","POOR")))) -> EXCELLENT
A113: =Data_Sheet!A113 -> JEC18CS090 | B113: =Data_Sheet!B113 -> TOMSUN PAVOO P | C113: ='T1'!P113 -> 32 | D113: =IF(C113="A","ABSENT",IF(C113>='T1'!$F$5*$E$124/100,"EXCELLENT",IF(C113>='T1'!$F$5*$E$123/100,"GOOD",IF(C113>='T1'!$F$5*$E$122/100,"AVERAGE","POOR")))) -> GOOD
A114: =Data_Sheet!A114 -> JEC18CS091 | B114: =Data_Sheet!B114 -> ULLAS. S | C114: ='T1'!P114 -> 23 | D114: =IF(C114="A","ABSENT",IF(C114>='T1'!$F$5*$E$124/100,"EXCELLENT",IF(C114>='T1'!$F$5*$E$123/100,"GOOD",IF(C114>='T1'!$F$5*$E$122/100,"AVERAGE","POOR")))) -> AVERAGE
A115: =Data_Sheet!A115 -> JEC18CS092 | B115: =Data_Sheet!B115 -> VAISHNAV M | C115: ='T1'!P115 -> 31 | D115: =IF(C115="A","ABSENT",IF(C115>='T1'!$F$5*$E$124/100,"EXCELLENT",IF(C115>='T1'!$F$5*$E$123/100,"GOOD",IF(C115>='T1'!$F$5*$E$122/100,"AVERAGE","POOR")))) -> GOOD
A116: =Data_Sheet!A116 -> JEC18CS093 | B116: =Data_Sheet!B116 -> VANI PRAKASHAN CHOYYAN | C116: ='T1'!P116 -> 49.5 | D116: =IF(C116="A","ABSENT",IF(C116>='T1'!$F$5*$E$124/100,"EXCELLENT",IF(C116>='T1'!$F$5*$E$123/100,"GOOD",IF(C116>='T1'!$F$5*$E$122/100,"AVERAGE","POOR")))) -> EXCELLENT
A118: Total Number of Students | C118: =Data_Sheet!$C$6 -> 92
A119: Number of Students Absent | C119: =IF(COUNTIF(C25:INDIRECT(C131),"=A"),COUNTIF(C25:INDIRECT(C131),"=A"),0) -> 6
A120: Total Number of Students attended | C120: =C118-C119 -> 86
A121: ="Number of Students with Marks less than "&E122&"%" -> Number of Students with Marks less than 45% | C121: =IF(COUNTIF(D25:INDIRECT(D131),"=POOR"),COUNTIF(D25:INDIRECT(D131),"=POOR"),0) -> 20 | D121: POOR | E121: Range
A122: ="Number of Students with Marks betweeen "&E122&"% to "&E123&"%" -> Number of Students with Marks betweeen 45% to 60% | C122: =IF(COUNTIF(D25:INDIRECT(D131),"=AVERAGE"),COUNTIF(D25:INDIRECT(D131),"=AVERAGE"),0) -> 24 | D122: AVERAGE | E122: 45
A123: ="Number of Students with Marks betweeen "&E123&"% to "&E124&"%" -> Number of Students with Marks betweeen 60% to 80% | C123: =IF(COUNTIF(D25:INDIRECT(D131),"=GOOD"),COUNTIF(D25:INDIRECT(D131),"=GOOD"),0) -> 22 | D123: GOOD | E123: 60
A124: ="Number of Students with Marks greater than "&E124&"%" -> Number of Students with Marks greater than 80% | C124: =IF(COUNTIF(D25:INDIRECT(D131),"=EXCELLENT"),COUNTIF(D25:INDIRECT(D131),"=EXCELLENT"),0) -> 20 | D124: EXCELLENT | E124: 80
A125: Class Average | C125: =ROUND(AVERAGE(C25:INDIRECT(C131)),2) -> 30.16
A126: Pass Percentage | C126: =ROUND(((C120-C121)/C120)*100,2) -> 76.74
B128: =Data_Sheet!B10 -> Name of Faculty : | C128: =Data_Sheet!B11 -> Namitha T N
B129: =Data_Sheet!B136 -> Dated Signature :
A131: =ROW(A118)-2 -> 116 | B131: Last Row Count | C131: ="$C$"&$A$131 -> $C$116 | D131: ="$D$"&$A$131 -> $D$116

Sheet T2
A3: Add questions one by one as needed.. | C3: Assessment Category | G3: Date : | S3: CO1 | T3: First Internal Exam
C4: Second Internal Exam | G4: 14-03-18 | S4: CO2 | T4: Second Internal Exam
C5: Total Marks : | F5: 50 | S5: CO3 | T5: Assessment Exam - 1
S6: CO4 | T6: Assessment Exam - 2
A7: =Data_Sheet!A2 -> Jyothi Engineering College, Cheruthuruthy | S7: CO5 | T7: Assignment - 1
S8: CO6 | T8: Assignment - 2
A9: =Data_Sheet!A4 -> Department of Computer Science Engineering | T9: Retest
S10: 1
A11: ="CO Analysis - Internal Marks : "&C4 &" " &TEXT(G4,"dd-mm-yy") -> CO Analysis - Internal Marks : Second Internal Exam 14-03-18 | S11: 2
S12: 3
A13: =Data_Sheet!A17 -> S3 CS CS203 Switching Theory and Logic Design 2019-20 | S13: 4
S14: 5
S15: 6
A18: Register No. | B18: Name of Student | C18: Qn. No. | D18: 1 | E18: 2 | F18: 3 | G18: 4 | H18: 5 | I18: 6 | J18: 7 | K18: 8 | L18: 9 | M18: 10 | N18: 10b | O18: 11 | P18: 12a | Q18: 12b | R18: ="Total Marks (" &F5 & ")" -> Total Marks (50) | U18: Calculated Total Marks (50)
C19: CO's | D19: CO3 | E19: CO3 | F19: CO4 | G19: CO4 | H19: CO3 | I19: CO3 | J19: CO3 | K19: CO3 | L19: CO3 | M19: CO3 | N19: CO3 | O19: CO3 | P19: CO3 | Q19: CO5
C20: Blooms Taxonomy Lavel | D20: 3 | E20: 3 | F20: 3 | G20: 4 | H20: 3 | I20: 3 | J20: 3 | K20: 3 | L20: 3 | M20: 3 | N20: 3 | O20: 3 | P20: 3 | Q20: 4
C21: Max. Marks | D21: 5 | E21: 5 | F21: 5 | G21: 5 | H21: 5 | I21: 5 | J21: 5 | K21: 5 | L21: 5 | M21: 5 | N21: 5 | O21: 5 | P21: 5 | Q21: 5
C22: Difficulty Level in % | D22: 60 | E22: 60 | F22: 60 | G22: 60 | H22: 60 | I22: 60 | J22: 60 | K22: 60 | L22: 60 | M22: 60 | N22: 60 | O22: 60 | P22: 60 | Q22: 60
A24: Column1 | B24: Column2 | C24: Column3 | D24: Column4 | E24: Column5 | F24: Column6 | G24: Column7 | H24: Column4 | I24: Column4 | J24: Column4 | K24: Column4 | L24: Column4 | M24: Column4 | N24: Column4 | O24: Column4 | P24: Column4 | Q24: Column8 | R24: Column32
A25: =Data_Sheet!A25 -> JEC18CS001 | B25: =Data_Sheet!B25 -> ABHISHEK KRISHNAN MENON E | D25: 0 | E25: 0 | F25: 1 | I25: 0 | J25: 3 | K25: 3 | L25: 3 | N25: 0 | O25: 0 | P25: 1 | Q25: 2 | R25: =SUM(D25:Q25) -> 13
A26: =Data_Sheet!A26 -> JEC18CS002 | B26: =Data_Sheet!B26 -> ABHISHEK SAJEEVAN | R26: =SUM(D26:Q26) -> 0
A27: =Data_Sheet!A27 -> JEC18CS003 | B27: =Data_Sheet!B27 -> ABHITH SHAJI | H27: 2 | K27: 0 | L27: 9 | O27: 5 | R27: 16
A28: =Data_Sheet!A28 -> JEC18CS004 | B28: =Data_Sheet!B28 -> ABIN SANTHOSH ALAPATT | H28: 2 | L28: 9 | M28: 2 | N28: 3 | O28: 9 | Q28: 4 | R28: 29
A29: =Data_Sheet!A29 -> JEC18CS005 | B29: =Data_Sheet!B29 -> ADARSH KUMAR M A | E29: 2 | F29: 2 | I29: 2 | K29: 3 | L29: 5 | O29: 8 | P29: 2 | Q29: 2 | R29: 26
A30: =Data_Sheet!A30 -> JEC18CS006 | B30: =Data_Sheet!B30 -> ADHITHYA KRISHNA S | D30: 2 | G30: 3 | H30: 1 | K30: 2 | L30: 4 | O30: 9 | P30: 4 | R30: 25
A31: =Data_Sheet!A31 -> JEC18CS007 | B31: =Data_Sheet!B31 -> ADITHYA HARIDAS | E31: 2 | F31: 1 | I31: 1 | J31: 1 | K31: 3 | L31: 7 | M31: 3 | N31: 3 | O31: 2 | R31: 23
A32: =Data_Sheet!A32 -> JEC18CS008 | B32: =Data_Sheet!B32 -> AJMAL BASHEER | R32: 0
A33: =Data_Sheet!A33 -> JEC18CS009 | B33: =Data_Sheet!B33 -> AKASH.V | D33: 0 | L33: 4 | O33: 6 | P33: 2 | Q33: 3 | R33: 15
A34: =Data_Sheet!A34 -> JEC18CS010 | B34: =Data_Sheet!B34 -> AKHIL AZEEZ UPPILAMKUNNATH | E34: 2 | F34: 2 | I34: 2 | J34: 3 | K34: 3 | L34: 9 | O34: 8 | P34: 5 | Q34: 1 | R34: 35
A35: =Data_Sheet!A35 -> JEC18CS011 | B35: =Data_Sheet!B35 -> AKHIL KRISHNA UK | H35: 1 | I35: 2 | J35: 1 | K35: 3 | L35: 3 | O35: 2 | R35: 12
A36: =Data_Sheet!A36 -> JEC18CS012 | B36: =Data_Sheet!B36 -> ALAN GEORGE | E36: 3 | I36: 1 | J36: 1 | K36: 3 | L36: 8 | M36: 2 | R36: 18
A37: =Data_Sheet!A37 -> JEC18CS013 | B37: =Data_Sheet!B37 -> ALEN VARGHESE | D37: 2 | E37: 3 | F37: 2 | I37: 1 | K37: 3 | L37: 5 | O37: 9 | P37: 5 | Q37: 4 | R37: 34
A38: =Data_Sheet!A38 -> JEC18CS014 | B38: =Data_Sheet!B38 -> AMAL SEBASTIAN | D38: 2.5 | E38: 2 | F38: 2 | G38: 3 | H38: 1.5 | I38: 2.5 | J38: 3 | K38: 3 | L38: 9 | O38: 9 | P38: 4 | Q38: 4 | R38: 45.5
A39: =Data_Sheet!A39 -> JEC18CS015 | B39: =Data_Sheet!B39 -> AMAL SONY | H39: 1 | L39: 4 | O39: 4 | R39: 9
A40: =Data_Sheet!A40 -> JEC18CS016 | B40: =Data_Sheet!B40 -> ANAGHA WILSON | D40: 2 | E40: 3 | F40: 2 | G40: 3 | I40: 1 | J40: 3 | K40: 2 | L40: 9 | M40: 3 | R40: 28
A41: =Data_Sheet!A41 -> JEC18CS017 | B41: =Data_Sheet!B41 -> ANETTE ANTO | E41: 1 | K41: 3 | L41: 3 | O41: 2 | P41: 1 | Q41: 3 | R41: 13
A42: =Data_Sheet!A42 -> JEC18CS018 | B42: =Data_Sheet!B42 -> ANIT MARY THOMAS | E42: 3 | I42: 2 | J42: 3 | K42: 3 | L42: 9 | O42: 8 | P42: 3 | Q42: 4 | R42: 35
A43: =Data_Sheet!A43 -> JEC18CS020 | B43: =Data_Sheet!B43 -> ANN THERESA SHAJI | D43: 3 | E43: 3 | F43: 3 | G43: 3 | H43: 2 | I43: 3 | J43: 3 | K43: 2 | L43: 9 | M43: 5 | N43: 4 | P43: 5 | Q43: 4 | R43: 49
A44: =Data_Sheet!A44 -> JEC18CS021 | B44: =Data_Sheet!B44 -> ANTONY ROY | H44: 1 | I44: 1 | J44: 3 | K44: 0 | L44: 1 | R44: 6
A45: =Data_Sheet!A45 -> JEC18CS022 | B45: =Data_Sheet!B45 -> ANUGRAHA C | D45: 2 | E45: 3 | G45: 3 | I45: 2 | J45: 3 | K45: 3 | L45: 5 | O45: 4 | P45: 5 | Q45: 4 | R45: 34
A46: =Data_Sheet!A46 -> JEC18CS023 | B46: =Data_Sheet!B46 -> APARNA.V | F46: 2 | I46: 2 | J46: 3 | K46: 2 | L46: 7 | M46: 5 | N46: 4 | P46: 5 | Q46: 4 | R46: 34
A47: =Data_Sheet!A47 -> JEC18CS024 | B47: =Data_Sheet!B47 -> ARAVIND S KUMAR | E47: 3 | G47: 3 | H47: 2 | K47: 3 | L47: 9 | O47: 9 | P47: 2 | Q47: 4 | R47: 35
A48: =Data_Sheet!A48 -> JEC18CS025 | B48: =Data_Sheet!B48 -> ARJUN VINOD | H48: 2 | L48: 5 | O48: 9 | R48: 16
A49: =Data_Sheet!A49 -> JEC18CS026 | B49: =Data_Sheet!B49 -> ARUN VG | E49: 3 | H49: 1 | I49: 1 | K49: 1 | M49: 4 | N49: 4 | O49: 9 | R49: 23
A50: =Data_Sheet!A50 -> JEC18CS027 | B50: =Data_Sheet!B50 -> ASHRUL K | E50: 2 | F50: 1 | H50: 2 | I50: 1 | J50: 1 | K50: 1 | L50: 7 | M50: 3 | N50: 3 | P50: 5 | Q50: 4 | R50: 30
A51: =Data_Sheet!A51 -> JEC18CS028 | B51: =Data_Sheet!B51 -> ATHIL PAULY | H51: 2 | K51: 1 | L51: 8 | M51: 3 | P51: 3 | R51: 17
A52: =Data_Sheet!A52 -> JEC18CS029 | B52: =Data_Sheet!B52 -> ATHIRA K P | E52: 3 | J52: 3 | K52: 3 | L52: 5 | M52: 5 | N52: 3 | P52: 5 | Q52: 4 | R52: 31
A53: =Data_Sheet!A53 -> JEC18CS030 | B53: =Data_Sheet!B53 -> AWIN ANTO | F53: 1 | I53: 1 | K53: 3 | L53: 3 | O53: 5 | P53: 4 | R53: 17
A54: =Data_Sheet!A54 -> JEC18CS031 | B54: =Data_Sheet!B54 -> CHARLES JOHNSON | D54: 2 | E54: 3 | H54: 2 | I54: 1 | K54: 3 | L54: 4 | M54: 2 | O54: 4 | P54: 3 | Q54: 2 | R54: 26
A55: =Data_Sheet!A55 -> JEC18CS032 | B55: =Data_Sheet!B55 -> CHITTILAPPILLY JOVIA JOHNSON | E55: 2 | F55: 2 | H55: 2 | J55: 3 | L55: 9 | N55: 4 | O55: 5 | Q55: 4 | R55: 31
A56: =Data_Sheet!A56 -> JEC18CS033 | B56: =Data_Sheet!B56 -> CIYA BABU | H56: 1 | K56: 1 | L56: 4 | M56: 5 | N56: 4 | P56: 4 | R56: 19
A57: =Data_Sheet!A57 -> JEC18CS034 | B57: =Data_Sheet!B57 -> DAVID SALUS | H57: 2 | I57: 1 | K57: 3 | L57: 7 | O57: 2 | Q57: 2 | R57: 17
A58: =Data_Sheet!A58 -> JEC18CS035 | B58: =Data_Sheet!B58 -> DELICIA REJI | D58: 3 | E58: 3 | G58: 3 | H58: 2 | I58: 1 | J58: 3 | K58: 3 | L58: 9 | M58: 1 | O58: 9 | P58: 3 | Q58: 4 | R58: 44
A59: =Data_Sheet!A59 -> JEC18CS036 | B59: =Data_Sheet!B59 -> DELMA SHAJAN | D59: 2 | E59: 3 | F59: 3 | I59: 2 | J59: 3 | K59: 3 | L59: 5 | M59: 2 | N59: 3 | P59: 5 | Q59: 3 | R59: 34
A60: =Data_Sheet!A60 -> JEC18CS037 | B60: =Data_Sheet!B60 -> DILBER SHA AP | R60: 0
A61: =Data_Sheet!A61 -> JEC18CS038 | B61: =Data_Sheet!B61 -> EDWIN T JOY | F61: 2 | H61: 2 | J61: 1 | K61: 2 | L61: 8 | O61: 7 | P61: 1 | Q61: 4 | R61: 27
A62: =Data_Sheet!A62 -> JEC18CS039 | B62: =Data_Sheet!B62 -> EDWIN WILSON | G62: 1 | K62: 1 | L62: 8 | P62: 4 | Q62: 3 | R62: 17
A63: =Data_Sheet!A63 -> JEC18CS040 | B63: =Data_Sheet!B63 -> EMMANUEL SHIBU | F63: 2 | G63: 3 | H63: 1 | I63: 2 | J63: 2 | L63: 8 | Q63: 1 | R63: 19
A64: =Data_Sheet!A64 -> JEC18CS041 | B64: =Data_Sheet!B64 -> GAYATHRI DINESH | E64: 3 | F64: 1 | H64: 2 | I64: 1 | J64: 3 | K64: 2 | L64: 4 | O64: 4 | P64: 2 | Q64: 2 | R64: 24
A65: =Data_Sheet!A65 -> JEC18CS042 | B65: =Data_Sheet!B65 -> GOKUL DAS M | F65: 2 | H65: 2 | I65: 2 | J65: 3 | K65: 3 | L65: 9 | M65: 4 | N65: 3 | P65: 3 | Q65: 4 | R65: 35
A66: =Data_Sheet!A66 -> JEC18CS043 | B66: =Data_Sheet!B66 -> G RAMGOPAL | D66: 3 | E66: 3 | F66: 3 | H66: 2 | I66: 2.5 | J66: 3 | K66: 3 | L66: 9 | M66: 4 | N66: 4 | P66: 5 | Q66: 4 | R66: 45.5
A67: =Data_Sheet!A67 -> JEC18CS044 | B67: =Data_Sheet!B67 -> HARIES DAVIS | G67: 3 | I67: 2 | K67: 2 | L67: 5 | O67: 3 | Q67: 1 | R67: 16
A68: =Data_Sheet!A68 -> JEC18CS045 | B68: =Data_Sheet!B68 -> HARISANKER P | E68: 3 | G68: 3 | H68: 2 | I68: 2 | J68: 3 | K68: 1 | L68: 9 | O68: 9 | R68: 32
A69: =Data_Sheet!A69 -> JEC18CS046 | B69: =Data_Sheet!B69 -> HARSHA.K.S. | D69: 1 | E69: 3 | F69: 2 | H69: 2 | I69: 2 | J69: 3 | K69: 3 | L69: 9 | M69: 1 | N69: 1 | O69: 3 | Q69: 3 | R69: 33
A70: =Data_Sheet!A70 -> JEC18CS047 | B70: =Data_Sheet!B70 -> HELNA THOMAS | E70: 3 | F70: 1 | H70: 2 | I70: 2 | J70: 3 | K70: 3 | L70: 7 | M70: 4 | N70: 3 | P70: 4 | Q70: 4 | R70: 36
A71: =Data_Sheet!A71 -> JEC18CS048 | B71: =Data_Sheet!B71 -> HRIDI KRISHNA.H | J71: 3 | K71: 2 | L71: 5 | N71: 1 | P71: 1 | Q71: 4 | R71: 16
A72: =Data_Sheet!A72 -> JEC18CS049 | B72: =Data_Sheet!B72 -> INDRAJIT R | D72: 0.5 | J72: 2 | K72: 2 | M72: 0.5 | O72: 3 | P72: 1 | R72: 9
A73: =Data_Sheet!A73 -> JEC18CS050 | B73: =Data_Sheet!B73 -> JESWIN JOJY | D73: 2 | G73: 3 | I73: 2 | J73: 3 | K73: 3 | L73: 9 | O73: 4 | P73: 2.5 | Q73: 2 | R73: 30.5
A74: =Data_Sheet!A74 -> JEC18CS051 | B74: =Data_Sheet!B74 -> JIBIN A BABU | D74: 2 | E74: 0.5 | G74: 2 | I74: 3 | J74: 1.5 | K74: 3.5 | L74: 5 | P74: 3 | Q74: 2.5 | R74: 23
A75: =Data_Sheet!A75 -> JEC18CS052 | B75: =Data_Sheet!B75 -> JISSY JOY | D75: 3 | E75: 2.5 | F75: 1 | G75: 3 | H75: 2 | I75: 2.5 | J75: 3 | K75: 3 | L75: 7 | O75: 5 | P75: 5 | Q75: 4 | R75: 41
A76: =Data_Sheet!A76 -> JEC18CS053 | B76: =Data_Sheet!B76 -> JOEL JAMES KARIKKANDATHIL | D76: 3 | G76: 3 | J76: 0.5 | K76: 3 | L76: 2 | P76: 1 | Q76: 1 | R76: 13.5
A77: =Data_Sheet!A77 -> JEC18CS054 | B77: =Data_Sheet!B77 -> JOSE REJI KARIMADATHI | E77: 2.5 | G77: 3 | I77: 2.5 | K77: 2 | L77: 7 | N77: 0.5 | P77: 2 | Q77: 1 | R77: 20.5
A78: =Data_Sheet!A78 -> JEC18CS055 | B78: =Data_Sheet!B78 -> JUMANA HASIN | D78: 1 | G78: 0.5 | H78: 2 | I78: 1 | J78: 2 | K78: 1 | L78: 9 | N78: 4 | O78: 0.5 | P78: 4 | Q78: 3 | R78: 28
A79: =Data_Sheet!A79 -> JEC18CS056 | B79: =Data_Sheet!B79 -> KAILASHNATH | D79: 3 | E79: 1.5 | I79: 1.5 | J79: 3 | L79: 6 | M79: 1 | R79: 16
A80: =Data_Sheet!A80 -> JEC18CS057 | B80: =Data_Sheet!B80 -> K AJISHKUMAR | R80: 0
A81: =Data_Sheet!A81 -> JEC18CS058 | B81: =Data_Sheet!B81 -> KEERTHANA K S | E81: 0.5 | G81: 0.5 | J81: 3 | K81: 3 | L81: 3 | O81: 2 | P81: 1 | Q81: 2 | R81: 15
A82: =Data_Sheet!A82 -> JEC18CS059 | B82: =Data_Sheet!B82 -> KEVIN VARGHESE | D82: 3 | E82: 2 | F82: 0.5 | G82: 3 | H82: 0.5 | I82: 3 | J82: 3 | K82: 3 | L82: 5 | O82: 9 | P82: 5 | Q82: 3 | R82: 40
A83: =Data_Sheet!A83 -> JEC18CS060 | B83: =Data_Sheet!B83 -> LAKSHMI SADANANDAN | D83: 3 | G83: 2 | I83: 1 | J83: 1 | L83: 7 | P83: 2.5 | Q83: 0.5 | R83: 17
A84: =Data_Sheet!A84 -> JEC18CS061 | B84: =Data_Sheet!B84 -> LEYA PALLAN | D84: 0.5 | E84: 1.5 | G84: 0.5 | H84: 1 | J84: 3 | K84: 2 | L84: 4 | O84: 1 | Q84: 4 | R84: 17.5
A85: =Data_Sheet!A85 -> JEC18CS062 | B85: =Data_Sheet!B85 -> MARVEL BABU | H85: 0.5 | J85: 0.5 | K85: 1 | L85: 5 | O85: 3 | P85: 1 | Q85: 2 | R85: 13
A86: =Data_Sheet!A86 -> JEC18CS063 | B86: =Data_Sheet!B86 -> MEDWIN PAUL | K86: 1 | L86: 4 | R86: 5
A87: =Data_Sheet!A87 -> 0 | B87: =Data_Sheet!B87 -> 0
A88: =Data_Sheet!A88 -> 0 | B88: =Data_Sheet!B88 -> 0
A89: =Data_Sheet!A89 -> JEC18CS066 | B89: =Data_Sheet!B89 -> MUHAMMED INSHADH | E89: 1 | K89: 1 | L89: 4 | O89: 3 | R89: =SUM(D89:Q89) -> 9
A90: =Data_Sheet!A90 -> JEC18CS067 | B90: =Data_Sheet!B90 -> NAIR MIDHUN RAMACHANDRAN | K90: 2.5 | L90: 6 | O90: 5 | P90: 5 | Q90: 4 | R90: =SUM(D90:Q90) -> 22.5
A91: =Data_Sheet!A91 -> JEC18CS068 | B91: =Data_Sheet!B91 -> NAVEENA ANTONY | D91: 3 | E91: 2 | G91: 3 | I91: 1.5 | J91: 2 | K91: 2.5 | O91: 5 | P91: 1 | Q91: 2 | R91: 22
A92: =Data_Sheet!A92 -> JEC18CS069 | B92: =Data_Sheet!B92 -> NITIN MADHU | D92: 3 | E92: 3 | G92: 3 | I92: 2 | J92: 3 | K92: 0.5 | M92: 2.5 | O92: 3 | P92: 1 | Q92: 3 | R92: 24
A93: =Data_Sheet!A93 -> JEC18CS070 | B93: =Data_Sheet!B93 -> PRATHIUSH ARUN | E93: 1 | F93: 2 | G93: 1 | I93: 1 | J93: 2 | K93: 1 | M93: 1 | N93: 4 | O93: 1 | P93: 1 | Q93: 2 | R93: 17
A94: =Data_Sheet!A94 -> JEC18CS071 | B94: =Data_Sheet!B94 -> RACHEL CECER | D94: 3 | E94: 3 | F94: 1 | G94: 3 | H94: 1 | I94: 2 | J94: 3 | K94: 2.5 | L94: 9 | O94: 9 | P94: 2 | Q94: 4 | R94: 42.5
A95: =Data_Sheet!A95 -> JEC18CS072 | B95: =Data_Sheet!B95 -> RAHUL RAJU | E95: 2 | K95: 1.5 | L95: 3 | N95: 1 | O95: 1 | P95: 3 | R95: 11.5
A96: =Data_Sheet!A96 -> JEC18CS073 | B96: =Data_Sheet!B96 -> RAHUL T RAVI | K96: 2 | L96: 7 | O96: 2 | Q96: 2 | R96: 13
A97: =Data_Sheet!A97 -> JEC18CS074 | B97: =Data_Sheet!B97 -> RAPHEAL K MOYALAN | D97: 1.5 | G97: 2 | K97: 1 | L97: 4 | P97: 1 | Q97: 1 | R97: 10.5
A98: =Data_Sheet!A98 -> JEC18CS075 | B98: =Data_Sheet!B98 -> RISHIKESH. V | D98: 2 | E98: 3 | G98: 2 | H98: 1 | J98: 3 | K98: 2 | L98: 6 | N98: 4 | P98: 5 | Q98: 4 | R98: 32
A99: =Data_Sheet!A99 -> JEC18CS076 | B99: =Data_Sheet!B99 -> ROCKSON T. AUGUSTINE | D99: 1 | E99: 1.5 | F99: 1.5 | H99: 0.5 | I99: 1.5 | J99: 3 | K99: 1 | L99: 8 | M99: 1 | N99: 4 | O99: 1 | R99: 24
A100: =Data_Sheet!A100 -> JEC18CS077 | B100: =Data_Sheet!B100 -> SARATH C P | D100: 3 | E100: 2 | G100: 3 | H100: 1.5 | I100: 2 | K100: 1 | L100: 9 | M100: 4 | P100: 4 | R100: 29.5
A101: =Data_Sheet!A101 -> JEC18CS078 | B101: =Data_Sheet!B101 -> SARATH SASI | D101: 3 | E101: 3 | G101: 3 | H101: 0.5 | I101: 2.5 | J101: 3 | K101: 2 | L101: 7 | O101: 5 | P101: 1 | Q101: 4 | R101: 34
A102: =Data_Sheet!A102 -> JEC18CS079 | B102: =Data_Sheet!B102 -> SHAFNA | D102: 3 | E102: 3 | F102: 1.5 | G102: 3 | H102: 2 | I102: 2.5 | J102: 3 | K102: 3 | L102: 9 | O102: 9 | P102: 5 | Q102: 4 | R102: 48
A103: =Data_Sheet!A103 -> JEC18CS080 | B103: =Data_Sheet!B103 -> SHELMY SHABU | D103: 1.5 | E103: 3 | F103: 3 | G103: 2 | H103: 1.5 | I103: 2.5 | J103: 3 | K103: 3 | L103: 9 | O103: 9 | P103: 5 | Q103: 4 | R103: 46.5
A104: =Data_Sheet!A104 -> JEC18CS081 | B104: =Data_Sheet!B104 -> SHIZA SHIHAB PUVAMPARAMBIL | E104: 1.5 | H104: 1 | K104: 3 | L104: 7 | M104: 4 | P104: 3 | Q104: 4 | R104: 23.5
A105: =Data_Sheet!A105 -> JEC18CS082 | B105: =Data_Sheet!B105 -> SIJO GEORGE | R105: 0
A106: =Data_Sheet!A106 -> JEC18CS083 | B106: =Data_Sheet!B106 -> SOURAV K | E106: 1 | I106: 1 | J106: 1 | L106: 5 | O106: 3 | P106: 0.5 | Q106: 0.5 | R106: 12
A107: =Data_Sheet!A107 -> 0 | B107: =Data_Sheet!B107 -> 0
A108: =Data_Sheet!A108 -> JEC18CS085 | B108: =Data_Sheet!B108 -> SREEHARI | D108: 1 | E108: 1 | H108: 0.5 | L108: 1 | P108: 2 | Q108: 2 | R108: =SUM(D108:Q108) -> 7.5
A109: =Data_Sheet!A109 -> JEC18CS086 | B109: =Data_Sheet!B109 -> SREEKANTH P | H109: 1 | K109: 0.5 | R109: 1.5
A110: =Data_Sheet!A110 -> JEC18CS087 | B110: =Data_Sheet!B110 -> SREELEKSHMI H KUMAR | D110: 1.5 | E110: 3 | F110: 0.5 | G110: 3 | H110: 1 | I110: 2 | J110: 3 | K110: 0.5 | L110: 9 | O110: 3 | P110: 5 | Q110: 2 | R110: 33.5
A111: =Data_Sheet!A111 -> JEC18CS088 | B111: =Data_Sheet!B111 -> SUFAIL BADUSHA.T | R111: 0
A112: =Data_Sheet!A112 -> JEC18CS089 | B112: =Data_Sheet!B112 -> TIYA THOMAS | D112: 3 | E112: 3 | F112: 1 | G112: 3 | H112: 2 | I112: 3 | J112: 3 | K112: 2 | L112: 9 | O112: 1 | P112: 5 | Q112: 4 | R112: 39
A113: =Data_Sheet!A113 -> JEC18CS090 | B113: =Data_Sheet!B113 -> TOMSUN PAVOO P | D113: 3 | E113: 0.5 | F113: 1.5 | G113: 3 | H113: 1 | K113: 0.5 | L113: 4 | N113: 4 | P113: 1 | Q113: 3 | R113: 21.5
A114: =Data_Sheet!A114 -> JEC18CS091 | B114: =Data_Sheet!B114 -> ULLAS. S | E114: 1 | H114: 1 | I114: 1 | K114: 1.5 | L114: 5 | O114: 1 | P114: 2 | Q114: 3 | R114: 15.5
A115: =Data_Sheet!A115 -> JEC18CS092 | B115: =Data_Sheet!B115 -> VAISHNAV M | K115: 1 | L115: 1 | O115: 0.5 | P115: 1 | Q115: 1.5 | R115: 5
A116: =Data_Sheet!A116 -> JEC18CS093 | B116: =Data_Sheet!B116 -> VANI PRAKASHAN CHOYYAN | D116: 2.5 | E116: 3 | F116: 2 | G116: 3 | H116: 2 | I116: 2.5 | J116: 3 | K116: 3 | L116: 9 | O116: 9 | P116: 5 | Q116: 4 | R116: 48
A118: Total Marks scored for the Question | D118: =IF(D$22<>"",IF(SUM(D25:INDIRECT(D138))>=0,SUM(D25:INDIRECT(D138)),""),"") -> 80.5 | E118: =IF(E$22<>"",IF(SUM(E25:INDIRECT(E138))>=0,SUM(E25:INDIRECT(E138)),""),"") -> 116.5 | F118: =IF(F$22<>"",IF(SUM(F25:INDIRECT(F138))>=0,SUM(F25:INDIRECT(F138)),""),"") -> 52.5 | G118: =IF(G$22<>"",IF(SUM(G25:INDIRECT(G138))>=0,SUM(G25:INDIRECT(G138)),""),"") -> 88.5 | H118: =IF(H$22<>"",IF(SUM(H25:INDIRECT(H138))>=0,SUM(H25:INDIRECT(H138)),""),"") -> 68 | I118: =IF(I$22<>"",IF(SUM(I25:INDIRECT(I138))>=0,SUM(I25:INDIRECT(I138)),""),"") -> 89.5 | J118: =IF(J$22<>"",IF(SUM(J25:INDIRECT(J138))>=0,SUM(J25:INDIRECT(J138)),""),"") -> 127.5 | K118: =IF(K$22<>"",IF(SUM(K25:INDIRECT(K138))>=0,SUM(K25:INDIRECT(K138)),""),"") -> 154 | L118: =IF(L$22<>"",IF(SUM(L25:INDIRECT(L138))>=0,SUM(L25:INDIRECT(L138)),""),"") -> 482 | M118: =IF(M$22<>"",IF(SUM(M25:INDIRECT(M138))>=0,SUM(M25:INDIRECT(M138)),""),"") -> 72 | N118: =IF(N$22<>"",IF(SUM(N25:INDIRECT(N138))>=0,SUM(N25:INDIRECT(N138)),""),"") -> 68.5 | O118: =IF(O$22<>"",IF(SUM(O25:INDIRECT(O138))>=0,SUM(O25:INDIRECT(O138)),""),"") -> 261 | P118: =IF(P$22<>"",IF(SUM(P25:INDIRECT(P138))>=0,SUM(P25:INDIRECT(P138)),""),"") -> 182.5 | Q118: =IF(Q$22<>"",IF(SUM(Q25:INDIRECT(Q138))>=0,SUM(Q25:INDIRECT(Q138)),""),"") -> 179
A119: No. of Students who attended the Question | D119: =IF(D$22<>"",IF(COUNT(D25:INDIRECT(D138))>=0,COUNT(D25:INDIRECT(D138)),""),"") -> 38 | E119: =IF(E$22<>"",IF(COUNT(E25:INDIRECT(E138))>=0,COUNT(E25:INDIRECT(E138)),""),"") -> 52 | F119: =IF(F$22<>"",IF(COUNT(F25:INDIRECT(F138))>=0,COUNT(F25:INDIRECT(F138)),""),"") -> 31 | G119: =IF(G$22<>"",IF(COUNT(G25:INDIRECT(G138))>=0,COUNT(G25:INDIRECT(G138)),""),"") -> 35 | H119: =IF(H$22<>"",IF(COUNT(H25:INDIRECT(H138))>=0,COUNT(H25:INDIRECT(H138)),""),"") -> 46 | I119: =IF(I$22<>"",IF(COUNT(I25:INDIRECT(I138))>=0,COUNT(I25:INDIRECT(I138)),""),"") -> 51 | J119: =IF(J$22<>"",IF(COUNT(J25:INDIRECT(J138))>=0,COUNT(J25:INDIRECT(J138)),""),"") -> 51 | K119: =IF(K$22<>"",IF(COUNT(K25:INDIRECT(K138))>=0,COUNT(K25:INDIRECT(K138)),""),"") -> 73 | L119: =IF(L$22<>"",IF(COUNT(L25:INDIRECT(L138))>=0,COUNT(L25:INDIRECT(L138)),""),"") -> 77 | M119: =IF(M$22<>"",IF(COUNT(M25:INDIRECT(M138))>=0,COUNT(M25:INDIRECT(M138)),""),"") -> 25 | N119: =IF(N$22<>"",IF(COUNT(N25:INDIRECT(N138))>=0,COUNT(N25:INDIRECT(N138)),""),"") -> 23 | O119: =IF(O$22<>"",IF(COUNT(O25:INDIRECT(O138))>=0,COUNT(O25:INDIRECT(O138)),""),"") -> 54 | P119: =IF(P$22<>"",IF(COUNT(P25:INDIRECT(P138))>=0,COUNT(P25:INDIRECT(P138)),""),"") -> 60 | Q119: =IF(Q$22<>"",IF(COUNT(Q25:INDIRECT(Q138))>=0,COUNT(Q25:INDIRECT(Q138)),""),"") -> 61
A120: Difficulty Level marks of the Question | D120: =IF(D21*D22/100=0,"",D21*D22/100) -> 3 | E120: 3 | F120: 3 | G120: 3 | H120: =IF(H21*H22/100=0,"",H21*H22/100) -> 3 | I120: =IF(I21*I22/100=0,"",I21*I22/100) -> 3 | J120: =IF(J21*J22/100=0,"",J21*J22/100) -> 3 | K120: =IF(K21*K22/100=0,"",K21*K22/100) -> 3 | L120: =IF(L21*L22/100=0,"",L21*L22/100) -> 3 | M120: =IF(M21*M22/100=0,"",M21*M22/100) -> 3 | N120: =IF(N21*N22/100=0,"",N21*N22/100) -> 3 | O120: =IF(O21*O22/100=0,"",O21*O22/100) -> 3 | P120: =IF(P21*P22/100=0,"",P21*P22/100) -> 3 | Q120: 3
A121: No. of Students who scored above the Difficulty Level | D121: =IF(COUNTIF(D25:INDIRECT(D138),">="&D120)=0,"",COUNTIF(D25:INDIRECT(D138),">="&D120)) -> 16 | E121: =IF(COUNTIF(E25:INDIRECT(E138),">="&E120)=0,"",COUNTIF(E25:INDIRECT(E138),">="&E120)) -> 26 | F121: =IF(COUNTIF(F25:INDIRECT(F138),">="&F120)=0,"",COUNTIF(F25:INDIRECT(F138),">="&F120)) -> 4 | G121: =IF(COUNTIF(G25:INDIRECT(G138),">="&G120)=0,"",COUNTIF(G25:INDIRECT(G138),">="&G120)) -> 25 | H121: =IF(COUNTIF(H25:INDIRECT(H138),">="&H120)=0,"",COUNTIF(H25:INDIRECT(H138),">="&H120)) ->  | I121: =IF(COUNTIF(I25:INDIRECT(I138),">="&I120)=0,"",COUNTIF(I25:INDIRECT(I138),">="&I120)) -> 4 | J121: =IF(COUNTIF(J25:INDIRECT(J138),">="&J120)=0,"",COUNTIF(J25:INDIRECT(J138),">="&J120)) -> 36 | K121: =IF(COUNTIF(K25:INDIRECT(K138),">="&K120)=0,"",COUNTIF(K25:INDIRECT(K138),">="&K120)) -> 32 | L121: =IF(COUNTIF(L25:INDIRECT(L138),">="&L120)=0,"",COUNTIF(L25:INDIRECT(L138),">="&L120)) -> 73 | M121: =IF(COUNTIF(M25:INDIRECT(M138),">="&M120)=0,"",COUNTIF(M25:INDIRECT(M138),">="&M120)) -> 14 | N121: =IF(COUNTIF(N25:INDIRECT(N138),">="&N120)=0,"",COUNTIF(N25:INDIRECT(N138),">="&N120)) -> 18 | O121: =IF(COUNTIF(O25:INDIRECT(O138),">="&O120)=0,"",COUNTIF(O25:INDIRECT(O138),">="&O120)) -> 39 | P121: =IF(COUNTIF(P25:INDIRECT(P138),">="&P120)=0,"",COUNTIF(P25:INDIRECT(P138),">="&P120)) -> 34 | Q121: =IF(COUNTIF(Q25:INDIRECT(Q138),">="&Q120)=0,"",COUNTIF(Q25:INDIRECT(Q138),">="&Q120)) -> 38
A122: % of Students who scored above the Difficulty Level | D122: =IFERROR(ROUND(D121/D119*100,2),"") -> 42.11 | E122: 50 | F122: 12.9 | G122: 71.43 | I122: 7.84 | J122: 70.59 | K122: 43.84 | L122: 94.81 | M122: 56 | N122: 78.26 | O122: 72.22 | P122: 56.67 | Q122: 62.3
D123: =IF(D122="",0,IF(D122>=80,3,IF(D122>=70,2,IF(D122>=60,1,0)))) -> 0 | E123: 0 | F123: 0 | G123: 2 | H123: 0 | I123: 0 | J123: 2 | K123: 0 | L123: 3 | M123: 0 | N123: 2 | O123: 2 | P123: 0 | Q123: 1 | R123: Marks | V123: T_Marks | W123: S_Marks | X123: Students | Y123: Level | Z123: Above | AA123: Above % | AB123: Attainment
B124: =IF(Data_Sheet!A119<>"","Total Attainment level for "&Data_Sheet!A119&" :","") -> Total Attainment level for CO1 : | C124: =IF(Data_Sheet!A119<>"",U124,"") ->  | D124: =IFERROR((IF(ISNUMBER(SEARCH("1", D$19)),D$21,"0")),"0")*D123 -> 0 | E124: 0 | F124: 0 | G124: 0 | H124: 0 | I124: 0 | J124: 0 | K124: 0 | L124: 0 | M124: 0 | N124: 0 | O124: 0 | P124: 0 | Q124: 0 | R124: =R141 -> 0 | U124: =IF(R124=0,"",ROUND(SUM(D124:Q124)/R124,2)) ->  | V124: =R141 -> 0 | W124: =R148 -> 0 | X124: =R155 -> 0 | Y124: =R162 -> 0 | Z124: =R169 -> 0 | AA124: =IFERROR(ROUND(Z124/X124*100,2),"") ->  | AB124: =IF(AA124="","",IF(AA124>=80,3,IF(AA124>=70,2,IF(AA124>=60,1,0)))) -> 
B125: =IF(Data_Sheet!A120<>"","Total Attainment level for "&Data_Sheet!A120&" :","") -> Total Attainment level for CO2 : | C125: =IF(Data_Sheet!A120<>"",U125,"") ->  | D125: =IFERROR((IF(ISNUMBER(SEARCH("2", D$19)),D$21,"0")),"0")*D123 -> 0 | E125: 0 | F125: 0 | G125: 0 | H125: 0 | I125: 0 | J125: 0 | K125: 0 | L125: 0 | M125: 0 | N125: 0 | O125: 0 | P125: 0 | Q125: 0 | R125: 0 | V125: 0 | W125: 0 | X125: 0 | Y125: 0 | Z125: 0
B126: =IF(Data_Sheet!A121<>"","Total Attainment level for "&Data_Sheet!A121&" :","") -> Total Attainment level for CO3 : | C126: =IF(Data_Sheet!A121<>"",U126,"") -> 0.82 | D126: =IFERROR((IF(ISNUMBER(SEARCH("3", D$19)),D$21,"0")),"0")*D123 -> 0 | E126: 0 | F126: 0 | G126: 0 | H126: 0 | I126: 0 | J126: 10 | K126: 0 | L126: 15 | M126: 0 | N126: 10 | O126: 10 | P126: 0 | Q126: 0 | R126: 55 | U126: 0.82 | V126: 55 | W126: 1702 | X126: 550 | Y126: 33 | Z126: 292 | AA126: 53.09 | AB126: 0
B127: =IF(Data_Sheet!A122<>"","Total Attainment level for "&Data_Sheet!A122&" :","") -> Total Attainment level for CO4 : | C127: =IF(Data_Sheet!A122<>"",U127,"") -> 1 | D127: =IFERROR((IF(ISNUMBER(SEARCH("4", D$19)),D$21,"0")),"0")*D123 -> 0 | E127: 0 | F127: 0 | G127: 10 | H127: 0 | I127: 0 | J127: 0 | K127: 0 | L127: 0 | M127: 0 | N127: 0 | O127: 0 | P127: 0 | Q127: 0 | R127: 10 | U127: 1 | V127: 10 | W127: 141 | X127: 66 | Y127: 6 | Z127: 29 | AA127: 43.94 | AB127: 0
B128: =IF(Data_Sheet!A123<>"","Total Attainment level for "&Data_Sheet!A123&" :","") -> Total Attainment level for CO5 : | C128: =IF(Data_Sheet!A123<>"",U128,"") -> 1 | D128: =IFERROR((IF(ISNUMBER(SEARCH("5", D$19)),D$21,"0")),"0")*D123 -> 0 | E128: 0 | F128: 0 | G128: 0 | H128: 0 | I128: 0 | J128: 0 | K128: 0 | L128: 0 | M128: 0 | N128: 0 | O128: 0 | P128: 0 | Q128: 5 | R128: 5 | U128: 1 | V128: 5 | W128: 179 | X128: 61 | Y128: 3 | Z128: 38 | AA128: 62.3 | AB128: 1
B129: =IF(Data_Sheet!A124<>"","Total Attainment level for "&Data_Sheet!A124&" :","") -> Total Attainment level for CO6 : | C129: =IF(Data_Sheet!A124<>"",U129,"") ->  | D129: =IFERROR((IF(ISNUMBER(SEARCH("6", D$19)),D$21,"0")),"0")*D123 -> 0 | E129: 0 | F129: 0 | G129: 0 | H129: 0 | I129: 0 | J129: 0 | K129: 0 | L129: 0 | M129: 0 | N129: 0 | O129: 0 | P129: 0 | Q129: 0 | R129: 0 | V129: 0 | W129: 0 | X129: 0 | Y129: 0 | Z129: 0
A131: =Data_Sheet!A127 -> Attainment Level 1: 60% students scoring more than 60% of the Total Marks
A132: =Data_Sheet!A128 -> Attainment Level 2: 70% students scoring more than 60% of the Total Marks
A133: =Data_Sheet!A129 -> Attainment Level 3: 80% students scoring more than 60% of the Total Marks
B135: =Data_Sheet!B10 -> Name of Faculty : | C135: =Data_Sheet!B11 -> Namitha T N
B136: =Data_Sheet!B136 -> Dated Signature :
B138: Last Row Count | C138: =ROW(A118)-2 -> 116 | D138: =SUBSTITUTE(ADDRESS(1,COLUMN(D1),2),"1","")&$C$138 -> D$116 | E138: ="E"&$C$138 -> E116 | F138: =SUBSTITUTE(ADDRESS(1,COLUMN(F1),2),"1","")&$C$138 -> F$116 | G138: G$116 | H138: H$116 | I138: I$116 | J138: J$116 | K138: K$116 | L138: L$116 | M138: M$116 | N138: N$116 | O138: O$116 | P138: P$116 | Q138: Q$116
C141: CO1 | D141: =IFERROR((IF(ISNUMBER(SEARCH("1", D$19)),D$21,"0")),"0") -> 0 | E141: =IFERROR((IF(ISNUMBER(SEARCH("1", E$19)),E$21,"0")),"0") -> 0 | F141: =IFERROR((IF(ISNUMBER(SEARCH("1", F$19)),F$21,"0")),"0") -> 0 | G141: 0 | H141: =IFERROR((IF(ISNUMBER(SEARCH("1", H$19)),H$21,"0")),"0") -> 0 | I141: 0 | J141: 0 | K141: 0 | L141: 0 | M141: 0 | N141: 0 | O141: 0 | P141: 0 | Q141: 0 | R141: =IFERROR(SUM($D141:INDIRECT($U141)),"0") -> 0 | U141: =SUBSTITUTE(ADDRESS(1,W141,4),1,"")&ROW($R141) -> Q141 | V141: =COUNTIF($D$19:INDIRECT($X141),"*1*") -> 0 | W141: =COLUMN($R$18)-1 -> 17 | X141: =SUBSTITUTE(ADDRESS(1,W141,4),1,"")&ROW($R$18)+1 -> Q19 | Y141: Total Marks
C142: CO2 | D142: =IFERROR((IF(ISNUMBER(SEARCH("2", D$19)),D$21,"0")),"0") -> 0 | E142: =IFERROR((IF(ISNUMBER(SEARCH("2", E$19)),E$21,"0")),"0") -> 0 | F142: =IFERROR((IF(ISNUMBER(SEARCH("2", F$19)),F$21,"0")),"0") -> 0 | G142: 0 | H142: =IFERROR((IF(ISNUMBER(SEARCH("2", H$19)),H$21,"0")),"0") -> 0 | I142: 0 | J142: 0 | K142: 0 | L142: 0 | M142: 0 | N142: 0 | O142: 0 | P142: 0 | Q142: 0 | R142: =IFERROR(SUM($D142:INDIRECT($U142)),"0") -> 0 | U142: Q142 | V142: =COUNTIF($D$19:INDIRECT($X142),"*2*") -> 0 | W142: =COLUMN($R$18)-1 -> 17 | X142: =SUBSTITUTE(ADDRESS(1,W142,4),1,"")&ROW($R$18)+1 -> Q19
C143: CO3 | D143: =IFERROR((IF(ISNUMBER(SEARCH("3", D$19)),D$21,"0")),"0") -> 5 | E143: =IFERROR((IF(ISNUMBER(SEARCH("3", E$19)),E$21,"0")),"0") -> 5 | F143: =IFERROR((IF(ISNUMBER(SEARCH("3", F$19)),F$21,"0")),"0") -> 0 | G143: 0 | H143: =IFERROR((IF(ISNUMBER(SEARCH("3", H$19)),H$21,"0")),"0") -> 5 | I143: 5 | J143: 5 | K143: 5 | L143: 5 | M143: 5 | N143: 5 | O143: 5 | P143: 5 | Q143: 0 | R143: =IFERROR(SUM($D143:INDIRECT($U143)),"0") -> 55 | U143: Q143 | V143: =COUNTIF($D$19:INDIRECT($X143),"*3*") -> 11 | W143: 17 | X143: Q19
C144: CO4 | D144: =IFERROR((IF(ISNUMBER(SEARCH("4", D$19)),D$21,"0")),"0") -> 0 | E144: =IFERROR((IF(ISNUMBER(SEARCH("4", E$19)),E$21,"0")),"0") -> 0 | F144: =IFERROR((IF(ISNUMBER(SEARCH("4", F$19)),F$21,"0")),"0") -> 5 | G144: 5 | H144: =IFERROR((IF(ISNUMBER(SEARCH("4", H$19)),H$21,"0")),"0") -> 0 | I144: 0 | J144: 0 | K144: 0 | L144: 0 | M144: 0 | N144: 0 | O144: 0 | P144: 0 | Q144: 0 | R144: =IFERROR(SUM($D144:INDIRECT($U144)),"0") -> 10 | U144: Q144 | V144: =COUNTIF($D$19:INDIRECT($X144),"*4*") -> 2 | W144: 17 | X144: Q19
C145: CO5 | D145: =IFERROR((IF(ISNUMBER(SEARCH("5", D$19)),D$21,"0")),"0") -> 0 | E145: =IFERROR((IF(ISNUMBER(SEARCH("5", E$19)),E$21,"0")),"0") -> 0 | F145: =IFERROR((IF(ISNUMBER(SEARCH("5", F$19)),F$21,"0")),"0") -> 0 | G145: 0 | H145: =IFERROR((IF(ISNUMBER(SEARCH("5", H$19)),H$21,"0")),"0") -> 0 | I145: 0 | J145: 0 | K145: 0 | L145: 0 | M145: 0 | N145: 0 | O145: 0 | P145: 0 | Q145: 5 | R145: =IFERROR(SUM($D145:INDIRECT($U145)),"0") -> 5 | U145: Q145 | V145: =COUNTIF($D$19:INDIRECT($X145),"*5*") -> 1 | W145: 17 | X145: Q19
C146: CO6 | D146: =IFERROR((IF(ISNUMBER(SEARCH("6", D$19)),D$21,"0")),"0") -> 0 | E146: =IFERROR((IF(ISNUMBER(SEARCH("6", E$19)),E$21,"0")),"0") -> 0 | F146: =IFERROR((IF(ISNUMBER(SEARCH("6", F$19)),F$21,"0")),"0") -> 0 | G146: 0 | H146: =IFERROR((IF(ISNUMBER(SEARCH("6", H$19)),H$21,"0")),"0") -> 0 | I146: 0 | J146: 0 | K146: 0 | L146: 0 | M146: 0 | N146: 0 | O146: 0 | P146: 0 | Q146: 0 | R146: =IFERROR(SUM($D146:INDIRECT($U146)),"0") -> 0 | U146: Q146 | V146: =COUNTIF($D$19:INDIRECT($X146),"*6*") -> 0 | W146: 17 | X146: Q19
C148: CO1 | D148: =IFERROR((IF(ISNUMBER(SEARCH("1", D$19)),D$118,"0")),"0") -> 0 | E148: =IFERROR((IF(ISNUMBER(SEARCH("1", E$19)),E$118,"0")),"0") -> 0 | F148: 0 | G148: 0 | H148: =IFERROR((IF(ISNUMBER(SEARCH("1", H$19)),H$118,"0")),"0") -> 0 | I148: 0 | J148: 0 | K148: 0 | L148: 0 | M148: 0 | N148: 0 | O148: 0 | P148: 0 | Q148: 0 | R148: =IFERROR(SUM($D148:INDIRECT($U148)),"0") -> 0 | U148: =SUBSTITUTE(ADDRESS(1,W148,4),1,"")&ROW($R148) -> Q148 | V148: =COUNTIF($D$19:INDIRECT($X148),"*1*") -> 0 | W148: =COLUMN($R$18)-1 -> 17 | X148: =SUBSTITUTE(ADDRESS(1,W148,4),1,"")&ROW($R$18)+1 -> Q19 | Y148: Total Marks Scored
C149: CO2 | D149: =IFERROR((IF(ISNUMBER(SEARCH("2", D$19)),D$118,"0")),"0") -> 0 | E149: =IFERROR((IF(ISNUMBER(SEARCH("2", E$19)),E$118,"0")),"0") -> 0 | F149: 0 | G149: 0 | H149: =IFERROR((IF(ISNUMBER(SEARCH("2", H$19)),H$118,"0")),"0") -> 0 | I149: 0 | J149: 0 | K149: 0 | L149: 0 | M149: 0 | N149: 0 | O149: 0 | P149: 0 | Q149: 0 | R149: =IFERROR(SUM($D149:INDIRECT($U149)),"0") -> 0 | U149: Q149 | V149: =COUNTIF($D$19:INDIRECT($X149),"*2*") -> 0 | W149: =COLUMN($R$18)-1 -> 17 | X149: =SUBSTITUTE(ADDRESS(1,W149,4),1,"")&ROW($R$18)+1 -> Q19
C150: CO3 | D150: =IFERROR((IF(ISNUMBER(SEARCH("3", D$19)),D$118,"0")),"0") -> 80.5 | E150: =IFERROR((IF(ISNUMBER(SEARCH("3", E$19)),E$118,"0")),"0") -> 116.5 | F150: =IFERROR((IF(ISNUMBER(SEARCH("3", F$19)),F$118,"0")),"0") -> 0 | G150: 0 | H150: =IFERROR((IF(ISNUMBER(SEARCH("3", H$19)),H$118,"0")),"0") -> 68 | I150: 89.5 | J150: 127.5 | K150: 154 | L150: 482 | M150: 72 | N150: 68.5 | O150: 261 | P150: 182.5 | Q150: 0 | R150: =IFERROR(SUM($D150:INDIRECT($U150)),"0") -> 1702 | U150: Q150 | V150: =COUNTIF($D$19:INDIRECT($X150),"*3*") -> 11 | W150: 17 | X150: Q19
C151: CO4 | D151: =IFERROR((IF(ISNUMBER(SEARCH("4", D$19)),D$118,"0")),"0") -> 0 | E151: =IFERROR((IF(ISNUMBER(SEARCH("4", E$19)),E$118,"0")),"0") -> 0 | F151: =IFERROR((IF(ISNUMBER(SEARCH("4", F$19)),F$118,"0")),"0") -> 52.5 | G151: 88.5 | H151: 0 | I151: 0 | J151: 0 | K151: 0 | L151: 0 | M151: 0 | N151: 0 | O151: 0 | P151: 0 | Q151: 0 | R151: =IFERROR(SUM($D151:INDIRECT($U151)),"0") -> 141 | U151: Q151 | V151: =COUNTIF($D$19:INDIRECT($X151),"*4*") -> 2 | W151: 17 | X151: Q19
C152: CO5 | D152: =IFERROR((IF(ISNUMBER(SEARCH("5", D$19)),D$118,"0")),"0") -> 0 | E152: =IFERROR((IF(ISNUMBER(SEARCH("5", E$19)),E$118,"0")),"0") -> 0 | F152: 0 | G152: 0 | H152: =IFERROR((IF(ISNUMBER(SEARCH("5", H$19)),H$118,"0")),"0") -> 0 | I152: 0 | J152: 0 | K152: 0 | L152: 0 | M152: 0 | N152: 0 | O152: 0 | P152: 0 | Q152: 179 | R152: =IFERROR(SUM($D152:INDIRECT($U152)),"0") -> 179 | U152: Q152 | V152: =COUNTIF($D$19:INDIRECT($X152),"*5*") -> 1 | W152: 17 | X152: Q19
C153: CO6 | D153: =IFERROR((IF(ISNUMBER(SEARCH("6", D$19)),D$118,"0")),"0") -> 0 | E153: =IFERROR((IF(ISNUMBER(SEARCH("6", E$19)),E$118,"0")),"0") -> 0 | F153: 0 | G153: 0 | H153: =IFERROR((IF(ISNUMBER(SEARCH("6", H$19)),H$118,"0")),"0") -> 0 | I153: 0 | J153: 0 | K153: 0 | L153: 0 | M153: 0 | N153: 0 | O153: 0 | P153: 0 | Q153: 0 | R153: =IFERROR(SUM($D153:INDIRECT($U153)),"0") -> 0 | U153: Q153 | V153: =COUNTIF($D$19:INDIRECT($X153),"*6*") -> 0 | W153: 17 | X153: Q19
C155: CO1 | D155: =IFERROR((IF(ISNUMBER(SEARCH("1", D$19)),D$119,"0")),"0") -> 0 | E155: =IFERROR((IF(ISNUMBER(SEARCH("1", E$19)),E$119,"0")),"0") -> 0 | F155: 0 | G155: 0 | H155: =IFERROR((IF(ISNUMBER(SEARCH("1", H$19)),H$119,"0")),"0") -> 0 | I155: 0 | J155: 0 | K155: 0 | L155: 0 | M155: 0 | N155: 0 | O155: 0 | P155: 0 | Q155: 0 | R155: =IFERROR(SUM($D155:INDIRECT($U155)),"0") -> 0 | U155: =SUBSTITUTE(ADDRESS(1,W155,4),1,"")&ROW($R155) -> Q155 | V155: =COUNTIF($D$19:INDIRECT($X155),"*1*") -> 0 | W155: =COLUMN($R$18)-1 -> 17 | X155: =SUBSTITUTE(ADDRESS(1,W155,4),1,"")&ROW($R$18)+1 -> Q19 | Y155: No of Studdents Attended
C156: CO2 | D156: =IFERROR((IF(ISNUMBER(SEARCH("2", D$19)),D$119,"0")),"0") -> 0 | E156: =IFERROR((IF(ISNUMBER(SEARCH("2", E$19)),E$119,"0")),"0") -> 0 | F156: 0 | G156: 0 | H156: =IFERROR((IF(ISNUMBER(SEARCH("2", H$19)),H$119,"0")),"0") -> 0 | I156: 0 | J156: 0 | K156: 0 | L156: 0 | M156: 0 | N156: 0 | O156: 0 | P156: 0 | Q156: 0 | R156: =IFERROR(SUM($D156:INDIRECT($U156)),"0") -> 0 | U156: Q156 | V156: =COUNTIF($D$19:INDIRECT($X156),"*2*") -> 0 | W156: =COLUMN($R$18)-1 -> 17 | X156: =SUBSTITUTE(ADDRESS(1,W156,4),1,"")&ROW($R$18)+1 -> Q19
C157: CO3 | D157: =IFERROR((IF(ISNUMBER(SEARCH("3", D$19)),D$119,"0")),"0") -> 38 | E157: =IFERROR((IF(ISNUMBER(SEARCH("3", E$19)),E$119,"0")),"0") -> 52 | F157: =IFERROR((IF(ISNUMBER(SEARCH("3", F$19)),F$119,"0")),"0") -> 0 | G157: 0 | H157: =IFERROR((IF(ISNUMBER(SEARCH("3", H$19)),H$119,"0")),"0") -> 46 | I157: 51 | J157: 51 | K157: 73 | L157: 77 | M157: 25 | N157: 23 | O157: 54 | P157: 60 | Q157: 0 | R157: =IFERROR(SUM($D157:INDIRECT($U157)),"0") -> 550 | U157: Q157 | V157: =COUNTIF($D$19:INDIRECT($X157),"*3*") -> 11 | W157: 17 | X157: Q19
C158: CO4 | D158: =IFERROR((IF(ISNUMBER(SEARCH("4", D$19)),D$119,"0")),"0") -> 0 | E158: =IFERROR((IF(ISNUMBER(SEARCH("4", E$19)),E$119,"0")),"0") -> 0 | F158: =IFERROR((IF(ISNUMBER(SEARCH("4", F$19)),F$119,"0")),"0") -> 31 | G158: 35 | H158: 0 | I158: 0 | J158: 0 | K158: 0 | L158: 0 | M158: 0 | N158: 0 | O158: 0 | P158: 0 | Q158: 0 | R158: =IFERROR(SUM($D158:INDIRECT($U158)),"0") -> 66 | U158: Q158 | V158: =COUNTIF($D$19:INDIRECT($X158),"*4*") -> 2 | W158: 17 | X158: Q19
C159: CO5 | D159: =IFERROR((IF(ISNUMBER(SEARCH("5", D$19)),D$119,"0")),"0") -> 0 | E159: =IFERROR((IF(ISNUMBER(SEARCH("5", E$19)),E$119,"0")),"0") -> 0 | F159: 0 | G159: 0 | H159: =IFERROR((IF(ISNUMBER(SEARCH("5", H$19)),H$119,"0")),"0") -> 0 | I159: 0 | J159: 0 | K159: 0 | L159: 0 | M159: 0 | N159: 0 | O159: 0 | P159: 0 | Q159: 61 | R159: =IFERROR(SUM($D159:INDIRECT($U159)),"0") -> 61 | U159: Q159 | V159: =COUNTIF($D$19:INDIRECT($X159),"*5*") -> 1 | W159: 17 | X159: Q19
C160: CO6 | D160: =IFERROR((IF(ISNUMBER(SEARCH("6", D$19)),D$119,"0")),"0") -> 0 | E160: =IFERROR((IF(ISNUMBER(SEARCH("6", E$19)),E$119,"0")),"0") -> 0 | F160: 0 | G160: 0 | H160: =IFERROR((IF(ISNUMBER(SEARCH("6", H$19)),H$119,"0")),"0") -> 0 | I160: 0 | J160: 0 | K160: 0 | L160: 0 | M160: 0 | N160: 0 | O160: 0 | P160: 0 | Q160: 0 | R160: =IFERROR(SUM($D160:INDIRECT($U160)),"0") -> 0 | U160: Q160 | V160: =COUNTIF($D$19:INDIRECT($X160),"*6*") -> 0 | W160: 17 | X160: Q19
C162: CO1 | D162: =IFERROR((IF(ISNUMBER(SEARCH("1", D$19)),D$120,"0")),"0") -> 0 | E162: =IFERROR((IF(ISNUMBER(SEARCH("1", E$19)),E$120,"0")),"0") -> 0 | F162: 0 | G162: 0 | H162: =IFERROR((IF(ISNUMBER(SEARCH("1", H$19)),H$120,"0")),"0") -> 0 | I162: 0 | J162: 0 | K162: 0 | L162: 0 | M162: 0 | N162: 0 | O162: 0 | P162: 0 | Q162: 0 | R162: =IFERROR(SUM($D162:INDIRECT($U162)),"0") -> 0 | U162: =SUBSTITUTE(ADDRESS(1,W162,4),1,"")&ROW($R162) -> Q162 | V162: =COUNTIF($D$19:INDIRECT($X162),"*1*") -> 0 | W162: =COLUMN($R$18)-1 -> 17 | X162: =SUBSTITUTE(ADDRESS(1,W162,4),1,"")&ROW($R$18)+1 -> Q19 | Y162: Difficulty Level
C163: CO2 | D163: =IFERROR((IF(ISNUMBER(SEARCH("2", D$19)),D$120,"0")),"0") -> 0 | E163: =IFERROR((IF(ISNUMBER(SEARCH("2", E$19)),E$120,"0")),"0") -> 0 | F163: 0 | G163: 0 | H163: =IFERROR((IF(ISNUMBER(SEARCH("2", H$19)),H$120,"0")),"0") -> 0 | I163: 0 | J163: 0 | K163: 0 | L163: 0 | M163: 0 | N163: 0 | O163: 0 | P163: 0 | Q163: 0 | R163: =IFERROR(SUM($D163:INDIRECT($U163)),"0") -> 0 | U163: Q163 | V163: =COUNTIF($D$19:INDIRECT($X163),"*2*") -> 0 | W163: =COLUMN($R$18)-1 -> 17 | X163: =SUBSTITUTE(ADDRESS(1,W163,4),1,"")&ROW($R$18)+1 -> Q19
C164: CO3 | D164: =IFERROR((IF(ISNUMBER(SEARCH("3", D$19)),D$120,"0")),"0") -> 3 | E164: =IFERROR((IF(ISNUMBER(SEARCH("3", E$19)),E$120,"0")),"0") -> 3 | F164: 0 | G164: 0 | H164: =IFERROR((IF(ISNUMBER(SEARCH("3", H$19)),H$120,"0")),"0") -> 3 | I164: 3 | J164: 3 | K164: 3 | L164: 3 | M164: 3 | N164: 3 | O164: 3 | P164: 3 | Q164: 0 | R164: =IFERROR(SUM($D164:INDIRECT($U164)),"0") -> 33 | U164: Q164 | V164: =COUNTIF($D$19:INDIRECT($X164),"*3*") -> 11 | W164: 17 | X164: Q19
C165: CO4 | D165: =IFERROR((IF(ISNUMBER(SEARCH("4", D$19)),D$120,"0")),"0") -> 0 | E165: =IFERROR((IF(ISNUMBER(SEARCH("4", E$19)),E$120,"0")),"0") -> 0 | F165: 3 | G165: 3 | H165: =IFERROR((IF(ISNUMBER(SEARCH("4", H$19)),H$120,"0")),"0") -> 0 | I165: 0 | J165: 0 | K165: 0 | L165: 0 | M165: 0 | N165: 0 | O165: 0 | P165: 0 | Q165: 0 | R165: =IFERROR(SUM($D165:INDIRECT($U165)),"0") -> 6 | U165: Q165 | V165: =COUNTIF($D$19:INDIRECT($X165),"*4*") -> 2 | W165: 17 | X165: Q19
C166: CO5 | D166: =IFERROR((IF(ISNUMBER(SEARCH("5", D$19)),D$120,"0")),"0") -> 0 | E166: =IFERROR((IF(ISNUMBER(SEARCH("5", E$19)),E$120,"0")),"0") -> 0 | F166: 0 | G166: 0 | H166: =IFERROR((IF(ISNUMBER(SEARCH("5", H$19)),H$120,"0")),"0") -> 0 | I166: 0 | J166: 0 | K166: 0 | L166: 0 | M166: 0 | N166: 0 | O166: 0 | P166: 0 | Q166: 3 | R166: =IFERROR(SUM($D166:INDIRECT($U166)),"0") -> 3 | U166: Q166 | V166: =COUNTIF($D$19:INDIRECT($X166),"*5*") -> 1 | W166: 17 | X166: Q19
C167: CO6 | D167: =IFERROR((IF(ISNUMBER(SEARCH("6", D$19)),D$120,"0")),"0") -> 0 | E167: =IFERROR((IF(ISNUMBER(SEARCH("6", E$19)),E$120,"0")),"0") -> 0 | F167: 0 | G167: 0 | H167: =IFERROR((IF(ISNUMBER(SEARCH("6", H$19)),H$120,"0")),"0") -> 0 | I167: 0 | J167: 0 | K167: 0 | L167: 0 | M167: 0 | N167: 0 | O167: 0 | P167: 0 | Q167: 0 | R167: =IFERROR(SUM($D167:INDIRECT($U167)),"0") -> 0 | U167: Q167 | V167: =COUNTIF($D$19:INDIRECT($X167),"*6*") -> 0 | W167: 17 | X167: Q19
C169: CO1 | D169: =IFERROR((IF(ISNUMBER(SEARCH("1", D$19)),D$121,"0")),"0") -> 0 | E169: =IFERROR((IF(ISNUMBER(SEARCH("1", E$19)),E$121,"0")),"0") -> 0 | F169: 0 | G169: 0 | H169: =IFERROR((IF(ISNUMBER(SEARCH("1", H$19)),H$121,"0")),"0") -> 0 | I169: 0 | J169: 0 | K169: 0 | L169: 0 | M169: 0 | N169: 0 | O169: 0 | P169: 0 | Q169: 0 | R169: =IFERROR(SUM($D169:INDIRECT($U169)),"0") -> 0 | U169: =SUBSTITUTE(ADDRESS(1,W169,4),1,"")&ROW($R169) -> Q169 | V169: =COUNTIF($D$19:INDIRECT($X169),"*1*") -> 0 | W169: =COLUMN($R$18)-1 -> 17 | X169: =SUBSTITUTE(ADDRESS(1,W169,4),1,"")&ROW($R$18)+1 -> Q19 | Y169: No of Studdents Above Difficulty Level
C170: CO2 | D170: =IFERROR((IF(ISNUMBER(SEARCH("2", D$19)),D$121,"0")),"0") -> 0 | E170: =IFERROR((IF(ISNUMBER(SEARCH("2", E$19)),E$121,"0")),"0") -> 0 | F170: 0 | G170: 0 | H170: =IFERROR((IF(ISNUMBER(SEARCH("2", H$19)),H$121,"0")),"0") -> 0 | I170: 0 | J170: 0 | K170: 0 | L170: 0 | M170: 0 | N170: 0 | O170: 0 | P170: 0 | Q170: 0 | R170: =IFERROR(SUM($D170:INDIRECT($U170)),"0") -> 0 | U170: Q170 | V170: =COUNTIF($D$19:INDIRECT($X170),"*2*") -> 0 | W170: =COLUMN($R$18)-1 -> 17 | X170: =SUBSTITUTE(ADDRESS(1,W170,4),1,"")&ROW($R$18)+1 -> Q19
C171: CO3 | D171: =IFERROR((IF(ISNUMBER(SEARCH("3", D$19)),D$121,"0")),"0") -> 16 | E171: =IFERROR((IF(ISNUMBER(SEARCH("3", E$19)),E$121,"0")),"0") -> 26 | F171: =IFERROR((IF(ISNUMBER(SEARCH("3", F$19)),F$121,"0")),"0") -> 0 | G171: 0 | H171: =IFERROR((IF(ISNUMBER(SEARCH("3", H$19)),H$121,"0")),"0") ->  | I171: 4 | J171: 36 | K171: 32 | L171: 73 | M171: 14 | N171: 18 | O171: 39 | P171: 34 | Q171: 0 | R171: =IFERROR(SUM($D171:INDIRECT($U171)),"0") -> 292 | U171: Q171 | V171: =COUNTIF($D$19:INDIRECT($X171),"*3*") -> 11 | W171: 17 | X171: Q19
C172: CO4 | D172: =IFERROR((IF(ISNUMBER(SEARCH("4", D$19)),D$121,"0")),"0") -> 0 | E172: =IFERROR((IF(ISNUMBER(SEARCH("4", E$19)),E$121,"0")),"0") -> 0 | F172: =IFERROR((IF(ISNUMBER(SEARCH("4", F$19)),F$121,"0")),"0") -> 4 | G172: 25 | H172: 0 | I172: 0 | J172: 0 | K172: 0 | L172: 0 | M172: 0 | N172: 0 | O172: 0 | P172: 0 | Q172: 0 | R172: =IFERROR(SUM($D172:INDIRECT($U172)),"0") -> 29 | U172: Q172 | V172: =COUNTIF($D$19:INDIRECT($X172),"*4*") -> 2 | W172: 17 | X172: Q19
C173: CO5 | D173: =IFERROR((IF(ISNUMBER(SEARCH("5", D$19)),D$121,"0")),"0") -> 0 | E173: =IFERROR((IF(ISNUMBER(SEARCH("5", E$19)),E$121,"0")),"0") -> 0 | F173: 0 | G173: 0 | H173: =IFERROR((IF(ISNUMBER(SEARCH("5", H$19)),H$121,"0")),"0") -> 0 | I173: 0 | J173: 0 | K173: 0 | L173: 0 | M173: 0 | N173: 0 | O173: 0 | P173: 0 | Q173: 38 | R173: =IFERROR(SUM($D173:INDIRECT($U173)),"0") -> 38 | U173: Q173 | V173: =COUNTIF($D$19:INDIRECT($X173),"*5*") -> 1 | W173: 17 | X173: Q19
C174: CO6 | D174: =IFERROR((IF(ISNUMBER(SEARCH("6", D$19)),D$121,"0")),"0") -> 0 | E174: =IFERROR((IF(ISNUMBER(SEARCH("6", E$19)),E$121,"0")),"0") -> 0 | F174: 0 | G174: 0 | H174: =IFERROR((IF(ISNUMBER(SEARCH("6", H$19)),H$121,"0")),"0") -> 0 | I174: 0 | J174: 0 | K174: 0 | L174: 0 | M174: 0 | N174: 0 | O174: 0 | P174: 0 | Q174: 0 | R174: =IFERROR(SUM($D174:INDIRECT($U174)),"0") -> 0 | U174: Q174 | V174: =COUNTIF($D$19:INDIRECT($X174),"*6*") -> 0 | W174: 17 | X174: Q19
C176: 1 | D176: =IFERROR((IF(ISNUMBER(SEARCH("1", D$20)),D$21/IF(LEN(D20)=16,6,IF(LEN(D20)=13,5,IF(LEN(D20)=10,4,IF(LEN(D20)=7,3,IF(LEN(D20)=4,2,1))))),"0")),"0") -> 0 | E176: 0 | F176: 0 | G176: 0 | H176: 0 | I176: 0 | J176: 0 | K176: 0 | L176: 0 | M176: 0 | N176: 0 | O176: 0 | P176: 0 | Q176: 0 | R176: =IFERROR(SUM($D176:INDIRECT($U176)),"0") -> 0 | U176: =SUBSTITUTE(ADDRESS(1,W176,4),1,"")&ROW($R176) -> Q176 | V176: =COUNTIF($D$20:INDIRECT($X176),"1") -> 0 | W176: =COLUMN($R$18)-1 -> 17 | X176: =SUBSTITUTE(ADDRESS(1,W176,4),1,"")&ROW($R$19)+1 -> Q20
C177: 2 | D177: =IFERROR((IF(ISNUMBER(SEARCH("2", D$20)),D$21/IF(LEN(D20)=16,6,IF(LEN(D20)=13,5,IF(LEN(D20)=10,4,IF(LEN(D20)=7,3,IF(LEN(D20)=4,2,1))))),"0")),"0") -> 0 | E177: 0 | F177: 0 | G177: 0 | H177: 0 | I177: 0 | J177: 0 | K177: 0 | L177: 0 | M177: 0 | N177: 0 | O177: 0 | P177: 0 | Q177: 0 | R177: =IFERROR(SUM($D177:INDIRECT($U177)),"0") -> 0 | U177: =SUBSTITUTE(ADDRESS(1,W177,4),1,"")&ROW($R177) -> Q177 | V177: =COUNTIF($D$20:INDIRECT($X177),"2") -> 0 | W177: 17 | X177: Q20
C178: 3 | D178: =IFERROR((IF(ISNUMBER(SEARCH("3", D$20)),D$21/IF(LEN(D20)=16,6,IF(LEN(D20)=13,5,IF(LEN(D20)=10,4,IF(LEN(D20)=7,3,IF(LEN(D20)=4,2,1))))),"0")),"0") -> 5 | E178: 5 | F178: 5 | G178: 0 | H178: 5 | I178: 5 | J178: 5 | K178: 5 | L178: 5 | M178: 5 | N178: 5 | O178: 5 | P178: 5 | Q178: 0 | R178: =IFERROR(SUM($D178:INDIRECT($U178)),"0") -> 60 | U178: Q178 | V178: =COUNTIF($D$20:INDIRECT($X178),"3") -> 12 | W178: 17 | X178: Q20
C179: 4 | D179: =IFERROR((IF(ISNUMBER(SEARCH("4", D$20)),D$21/IF(LEN(D20)=16,6,IF(LEN(D20)=13,5,IF(LEN(D20)=10,4,IF(LEN(D20)=7,3,IF(LEN(D20)=4,2,1))))),"0")),"0") -> 0 | E179: 0 | F179: 0 | G179: 5 | H179: 0 | I179: 0 | J179: 0 | K179: 0 | L179: 0 | M179: 0 | N179: 0 | O179: 0 | P179: 0 | Q179: 5 | R179: =IFERROR(SUM($D179:INDIRECT($U179)),"0") -> 10 | U179: Q179 | V179: =COUNTIF($D$20:INDIRECT($X179),"4") -> 2 | W179: 17 | X179: Q20
C180: 5 | D180: =IFERROR((IF(ISNUMBER(SEARCH("5", D$20)),D$21/IF(LEN(D20)=16,6,IF(LEN(D20)=13,5,IF(LEN(D20)=10,4,IF(LEN(D20)=7,3,IF(LEN(D20)=4,2,1))))),"0")),"0") -> 0 | E180: 0 | F180: 0 | G180: 0 | H180: 0 | I180: 0 | J180: 0 | K180: 0 | L180: 0 | M180: 0 | N180: 0 | O180: 0 | P180: 0 | Q180: 0 | R180: =IFERROR(SUM($D180:INDIRECT($U180)),"0") -> 0 | U180: Q180 | V180: =COUNTIF($D$20:INDIRECT($X180),"5") -> 0 | W180: 17 | X180: Q20
C181: 6 | D181: =IFERROR((IF(ISNUMBER(SEARCH("6", D$20)),D$21/IF(LEN(D20)=16,6,IF(LEN(D20)=13,5,IF(LEN(D20)=10,4,IF(LEN(D20)=7,3,IF(LEN(D20)=4,2,1))))),"0")),"0") -> 0 | E181: 0 | F181: 0 | G181: 0 | H181: 0 | I181: 0 | J181: 0 | K181: 0 | L181: 0 | M181: 0 | N181: 0 | O181: 0 | P181: 0 | Q181: 0 | R181: =IFERROR(SUM($D181:INDIRECT($U181)),"0") -> 0 | U181: Q181 | V181: =COUNTIF($D$20:INDIRECT($X181),"6") -> 0 | W181: 17 | X181: Q20

Sheet T2_Analysis
A3: =Data_Sheet!A2 -> Jyothi Engineering College, Cheruthuruthy
A5: =Data_Sheet!A4 -> Department of Computer Science Engineering
A7: ='T2'!A11 -> CO Analysis - Internal Marks : Second Internal Exam 14-03-18
A9: =Data_Sheet!A17 -> S3 CS CS203 Switching Theory and Logic Design 2019-20
A22: ='T1'!A18 -> Register No. | B22: ='T1'!B18 -> Name of Student | C22: ='T2'!R18 -> Total Marks (50) | D22: Category
A24: Column1 | B24: Column2 | C24: Column3 | D24: Column4
A25: =Data_Sheet!A25 -> JEC18CS001 | B25: =Data_Sheet!B25 -> ABHISHEK KRISHNAN MENON E | C25: ='T2'!R25 -> 13 | D25: =IF(C25="A","ABSENT",IF(C25>='T2'!$F$5*$E$124/100,"EXCELLENT",IF(C25>='T2'!$F$5*$E$123/100,"GOOD",IF(C25>='T2'!$F$5*$E$122/100,"AVERAGE","POOR")))) -> POOR
A26: =Data_Sheet!A26 -> JEC18CS002 | B26: =Data_Sheet!B26 -> ABHISHEK SAJEEVAN | C26: ='T2'!R26 -> 0 | D26: =IF(C26="A","ABSENT",IF(C26>='T2'!$F$5*$E$124/100,"EXCELLENT",IF(C26>='T2'!$F$5*$E$123/100,"GOOD",IF(C26>='T2'!$F$5*$E$122/100,"AVERAGE","POOR")))) -> POOR
A27: =Data_Sheet!A27 -> JEC18CS003 | B27: =Data_Sheet!B27 -> ABHITH SHAJI | C27: ='T2'!R27 -> 16 | D27: =IF(C27="A","ABSENT",IF(C27>='T2'!$F$5*$E$124/100,"EXCELLENT",IF(C27>='T2'!$F$5*$E$123/100,"GOOD",IF(C27>='T2'!$F$5*$E$122/100,"AVERAGE","POOR")))) -> POOR
A28: =Data_Sheet!A28 -> JEC18CS004 | B28: =Data_Sheet!B28 -> ABIN SANTHOSH ALAPATT | C28: ='T2'!R28 -> 29 | D28: =IF(C28="A","ABSENT",IF(C28>='T2'!$F$5*$E$124/100,"EXCELLENT",IF(C28>='T2'!$F$5*$E$123/100,"GOOD",IF(C28>='T2'!$F$5*$E$122/100,"AVERAGE","POOR")))) -> AVERAGE
A29: =Data_Sheet!A29 -> JEC18CS005 | B29: =Data_Sheet!B29 -> ADARSH KUMAR M A | C29: ='T2'!R29 -> 26 | D29: =IF(C29="A","ABSENT",IF(C29>='T2'!$F$5*$E$124/100,"EXCELLENT",IF(C29>='T2'!$F$5*$E$123/100,"GOOD",IF(C29>='T2'!$F$5*$E$122/100,"AVERAGE","POOR")))) -> AVERAGE
A30: =Data_Sheet!A30 -> JEC18CS006 | B30: =Data_Sheet!B30 -> ADHITHYA KRISHNA S | C30: ='T2'!R30 -> 25 | D30: =IF(C30="A","ABSENT",IF(C30>='T2'!$F$5*$E$124/100,"EXCELLENT",IF(C30>='T2'!$F$5*$E$123/100,"GOOD",IF(C30>='T2'!$F$5*$E$122/100,"AVERAGE","POOR")))) -> AVERAGE
A31: =Data_Sheet!A31 -> JEC18CS007 | B31: =Data_Sheet!B31 -> ADITHYA HARIDAS | C31: ='T2'!R31 -> 23 | D31: =IF(C31="A","ABSENT",IF(C31>='T2'!$F$5*$E$124/100,"EXCELLENT",IF(C31>='T2'!$F$5*$E$123/100,"GOOD",IF(C31>='T2'!$F$5*$E$122/100,"AVERAGE","POOR")))) -> AVERAGE
A32: =Data_Sheet!A32 -> JEC18CS008 | B32: =Data_Sheet!B32 -> AJMAL BASHEER | C32: ='T2'!R32 -> 0 | D32: =IF(C32="A","ABSENT",IF(C32>='T2'!$F$5*$E$124/100,"EXCELLENT",IF(C32>='T2'!$F$5*$E$123/100,"GOOD",IF(C32>='T2'!$F$5*$E$122/100,"AVERAGE","POOR")))) -> POOR
A33: =Data_Sheet!A33 -> JEC18CS009 | B33: =Data_Sheet!B33 -> AKASH.V | C33: ='T2'!R33 -> 15 | D33: =IF(C33="A","ABSENT",IF(C33>='T2'!$F$5*$E$124/100,"EXCELLENT",IF(C33>='T2'!$F$5*$E$123/100,"GOOD",IF(C33>='T2'!$F$5*$E$122/100,"AVERAGE","POOR")))) -> POOR
A34: =Data_Sheet!A34 -> JEC18CS010 | B34: =Data_Sheet!B34 -> AKHIL AZEEZ UPPILAMKUNNATH | C34: ='T2'!R34 -> 35 | D34: =IF(C34="A","ABSENT",IF(C34>='T2'!$F$5*$E$124/100,"EXCELLENT",IF(C34>='T2'!$F$5*$E$123/100,"GOOD",IF(C34>='T2'!$F$5*$E$122/100,"AVERAGE","POOR")))) -> GOOD
A35: =Data_Sheet!A35 -> JEC18CS011 | B35: =Data_Sheet!B35 -> AKHIL KRISHNA UK | C35: ='T2'!R35 -> 12 | D35: =IF(C35="A","ABSENT",IF(C35>='T2'!$F$5*$E$124/100,"EXCELLENT",IF(C35>='T2'!$F$5*$E$123/100,"GOOD",IF(C35>='T2'!$F$5*$E$122/100,"AVERAGE","POOR")))) -> POOR
A36: =Data_Sheet!A36 -> JEC18CS012 | B36: =Data_Sheet!B36 -> ALAN GEORGE | C36: ='T2'!R36 -> 18 | D36: =IF(C36="A","ABSENT",IF(C36>='T2'!$F$5*$E$124/100,"EXCELLENT",IF(C36>='T2'!$F$5*$E$123/100,"GOOD",IF(C36>='T2'!$F$5*$E$122/100,"AVERAGE","POOR")))) -> POOR
A37: =Data_Sheet!A37 -> JEC18CS013 | B37: =Data_Sheet!B37 -> ALEN VARGHESE | C37: ='T2'!R37 -> 34 | D37: =IF(C37="A","ABSENT",IF(C37>='T2'!$F$5*$E$124/100,"EXCELLENT",IF(C37>='T2'!$F$5*$E$123/100,"GOOD",IF(C37>='T2'!$F$5*$E$122/100,"AVERAGE","POOR")))) -> GOOD
A38: =Data_Sheet!A38 -> JEC18CS014 | B38: =Data_Sheet!B38 -> AMAL SEBASTIAN | C38: ='T2'!R38 -> 45.5 | D38: =IF(C38="A","ABSENT",IF(C38>='T2'!$F$5*$E$124/100,"EXCELLENT",IF(C38>='T2'!$F$5*$E$123/100,"GOOD",IF(C38>='T2'!$F$5*$E$122/100,"AVERAGE","POOR")))) -> EXCELLENT
A39: =Data_Sheet!A39 -> JEC18CS015 | B39: =Data_Sheet!B39 -> AMAL SONY | C39: ='T2'!R39 -> 9 | D39: =IF(C39="A","ABSENT",IF(C39>='T2'!$F$5*$E$124/100,"EXCELLENT",IF(C39>='T2'!$F$5*$E$123/100,"GOOD",IF(C39>='T2'!$F$5*$E$122/100,"AVERAGE","POOR")))) -> POOR
A40: =Data_Sheet!A40 -> JEC18CS016 | B40: =Data_Sheet!B40 -> ANAGHA WILSON | C40: ='T2'!R40 -> 28 | D40: =IF(C40="A","ABSENT",IF(C40>='T2'!$F$5*$E$124/100,"EXCELLENT",IF(C40>='T2'!$F$5*$E$123/100,"GOOD",IF(C40>='T2'!$F$5*$E$122/100,"AVERAGE","POOR")))) -> AVERAGE
A41: =Data_Sheet!A41 -> JEC18CS017 | B41: =Data_Sheet!B41 -> ANETTE ANTO | C41: ='T2'!R41 -> 13 | D41: =IF(C41="A","ABSENT",IF(C41>='T2'!$F$5*$E$124/100,"EXCELLENT",IF(C41>='T2'!$F$5*$E$123/100,"GOOD",IF(C41>='T2'!$F$5*$E$122/100,"AVERAGE","POOR")))) -> POOR
A42: =Data_Sheet!A42 -> JEC18CS018 | B42: =Data_Sheet!B42 -> ANIT MARY THOMAS | C42: ='T2'!R42 -> 35 | D42: =IF(C42="A","ABSENT",IF(C42>='T2'!$F$5*$E$124/100,"EXCELLENT",IF(C42>='T2'!$F$5*$E$123/100,"GOOD",IF(C42>='T2'!$F$5*$E$122/100,"AVERAGE","POOR")))) -> GOOD
A43: =Data_Sheet!A43 -> JEC18CS020 | B43: =Data_Sheet!B43 -> ANN THERESA SHAJI | C43: ='T2'!R43 -> 49 | D43: =IF(C43="A","ABSENT",IF(C43>='T2'!$F$5*$E$124/100,"EXCELLENT",IF(C43>='T2'!$F$5*$E$123/100,"GOOD",IF(C43>='T2'!$F$5*$E$122/100,"AVERAGE","POOR")))) -> EXCELLENT
A44: =Data_Sheet!A44 -> JEC18CS021 | B44: =Data_Sheet!B44 -> ANTONY ROY | C44: ='T2'!R44 -> 6 | D44: =IF(C44="A","ABSENT",IF(C44>='T2'!$F$5*$E$124/100,"EXCELLENT",IF(C44>='T2'!$F$5*$E$123/100,"GOOD",IF(C44>='T2'!$F$5*$E$122/100,"AVERAGE","POOR")))) -> POOR
A45: =Data_Sheet!A45 -> JEC18CS022 | B45: =Data_Sheet!B45 -> ANUGRAHA C | C45: ='T2'!R45 -> 34 | D45: =IF(C45="A","ABSENT",IF(C45>='T2'!$F$5*$E$124/100,"EXCELLENT",IF(C45>='T2'!$F$5*$E$123/100,"GOOD",IF(C45>='T2'!$F$5*$E$122/100,"AVERAGE","POOR")))) -> GOOD
A46: =Data_Sheet!A46 -> JEC18CS023 | B46: =Data_Sheet!B46 -> APARNA.V | C46: ='T2'!R46 -> 34 | D46: =IF(C46="A","ABSENT",IF(C46>='T2'!$F$5*$E$124/100,"EXCELLENT",IF(C46>='T2'!$F$5*$E$123/100,"GOOD",IF(C46>='T2'!$F$5*$E$122/100,"AVERAGE","POOR")))) -> GOOD
A47: =Data_Sheet!A47 -> JEC18CS024 | B47: =Data_Sheet!B47 -> ARAVIND S KUMAR | C47: ='T2'!R47 -> 35 | D47: =IF(C47="A","ABSENT",IF(C47>='T2'!$F$5*$E$124/100,"EXCELLENT",IF(C47>='T2'!$F$5*$E$123/100,"GOOD",IF(C47>='T2'!$F$5*$E$122/100,"AVERAGE","POOR")))) -> GOOD
A48: =Data_Sheet!A48 -> JEC18CS025 | B48: =Data_Sheet!B48 -> ARJUN VINOD | C48: ='T2'!R48 -> 16 | D48: =IF(C48="A","ABSENT",IF(C48>='T2'!$F$5*$E$124/100,"EXCELLENT",IF(C48>='T2'!$F$5*$E$123/100,"GOOD",IF(C48>='T2'!$F$5*$E$122/100,"AVERAGE","POOR")))) -> POOR
A49: =Data_Sheet!A49 -> JEC18CS026 | B49: =Data_Sheet!B49 -> ARUN VG | C49: ='T2'!R49 -> 23 | D49: =IF(C49="A","ABSENT",IF(C49>='T2'!$F$5*$E$124/100,"EXCELLENT",IF(C49>='T2'!$F$5*$E$123/100,"GOOD",IF(C49>='T2'!$F$5*$E$122/100,"AVERAGE","POOR")))) -> AVERAGE
A50: =Data_Sheet!A50 -> JEC18CS027 | B50: =Data_Sheet!B50 -> ASHRUL K | C50: ='T2'!R50 -> 30 | D50: =IF(C50="A","ABSENT",IF(C50>='T2'!$F$5*$E$124/100,"EXCELLENT",IF(C50>='T2'!$F$5*$E$123/100,"GOOD",IF(C50>='T2'!$F$5*$E$122/100,"AVERAGE","POOR")))) -> GOOD
A51: =Data_Sheet!A51 -> JEC18CS028 | B51: =Data_Sheet!B51 -> ATHIL PAULY | C51: ='T2'!R51 -> 17 | D51: =IF(C51="A","ABSENT",IF(C51>='T2'!$F$5*$E$124/100,"EXCELLENT",IF(C51>='T2'!$F$5*$E$123/100,"GOOD",IF(C51>='T2'!$F$5*$E$122/100,"AVERAGE","POOR")))) -> POOR
A52: =Data_Sheet!A52 -> JEC18CS029 | B52: =Data_Sheet!B52 -> ATHIRA K P | C52: ='T2'!R52 -> 31 | D52: =IF(C52="A","ABSENT",IF(C52>='T2'!$F$5*$E$124/100,"EXCELLENT",IF(C52>='T2'!$F$5*$E$123/100,"GOOD",IF(C52>='T2'!$F$5*$E$122/100,"AVERAGE","POOR")))) -> GOOD
A53: =Data_Sheet!A53 -> JEC18CS030 | B53: =Data_Sheet!B53 -> AWIN ANTO | C53: ='T2'!R53 -> 17 | D53: =IF(C53="A","ABSENT",IF(C53>='T2'!$F$5*$E$124/100,"EXCELLENT",IF(C53>='T2'!$F$5*$E$123/100,"GOOD",IF(C53>='T2'!$F$5*$E$122/100,"AVERAGE","POOR")))) -> POOR
A54: =Data_Sheet!A54 -> JEC18CS031 | B54: =Data_Sheet!B54 -> CHARLES JOHNSON | C54: ='T2'!R54 -> 26 | D54: =IF(C54="A","ABSENT",IF(C54>='T2'!$F$5*$E$124/100,"EXCELLENT",IF(C54>='T2'!$F$5*$E$123/100,"GOOD",IF(C54>='T2'!$F$5*$E$122/100,"AVERAGE","POOR")))) -> AVERAGE
A55: =Data_Sheet!A55 -> JEC18CS032 | B55: =Data_Sheet!B55 -> CHITTILAPPILLY JOVIA JOHNSON | C55: ='T2'!R55 -> 31 | D55: =IF(C55="A","ABSENT",IF(C55>='T2'!$F$5*$E$124/100,"EXCELLENT",IF(C55>='T2'!$F$5*$E$123/100,"GOOD",IF(C55>='T2'!$F$5*$E$122/100,"AVERAGE","POOR")))) -> GOOD
A56: =Data_Sheet!A56 -> JEC18CS033 | B56: =Data_Sheet!B56 -> CIYA BABU | C56: ='T2'!R56 -> 19 | D56: =IF(C56="A","ABSENT",IF(C56>='T2'!$F$5*$E$124/100,"EXCELLENT",IF(C56>='T2'!$F$5*$E$123/100,"GOOD",IF(C56>='T2'!$F$5*$E$122/100,"AVERAGE","POOR")))) -> POOR
A57: =Data_Sheet!A57 -> JEC18CS034 | B57: =Data_Sheet!B57 -> DAVID SALUS | C57: ='T2'!R57 -> 17 | D57: =IF(C57="A","ABSENT",IF(C57>='T2'!$F$5*$E$124/100,"EXCELLENT",IF(C57>='T2'!$F$5*$E$123/100,"GOOD",IF(C57>='T2'!$F$5*$E$122/100,"AVERAGE","POOR")))) -> POOR
A58: =Data_Sheet!A58 -> JEC18CS035 | B58: =Data_Sheet!B58 -> DELICIA REJI | C58: ='T2'!R58 -> 44 | D58: =IF(C58="A","ABSENT",IF(C58>='T2'!$F$5*$E$124/100,"EXCELLENT",IF(C58>='T2'!$F$5*$E$123/100,"GOOD",IF(C58>='T2'!$F$5*$E$122/100,"AVERAGE","POOR")))) -> EXCELLENT
A59: =Data_Sheet!A59 -> JEC18CS036 | B59: =Data_Sheet!B59 -> DELMA SHAJAN | C59: ='T2'!R59 -> 34 | D59: =IF(C59="A","ABSENT",IF(C59>='T2'!$F$5*$E$124/100,"EXCELLENT",IF(C59>='T2'!$F$5*$E$123/100,"GOOD",IF(C59>='T2'!$F$5*$E$122/100,"AVERAGE","POOR")))) -> GOOD
A60: =Data_Sheet!A60 -> JEC18CS037 | B60: =Data_Sheet!B60 -> DILBER SHA AP | C60: ='T2'!R60 -> 0 | D60: =IF(C60="A","ABSENT",IF(C60>='T2'!$F$5*$E$124/100,"EXCELLENT",IF(C60>='T2'!$F$5*$E$123/100,"GOOD",IF(C60>='T2'!$F$5*$E$122/100,"AVERAGE","POOR")))) -> POOR
A61: =Data_Sheet!A61 -> JEC18CS038 | B61: =Data_Sheet!B61 -> EDWIN T JOY | C61: ='T2'!R61 -> 27 | D61: =IF(C61="A","ABSENT",IF(C61>='T2'!$F$5*$E$124/100,"EXCELLENT",IF(C61>='T2'!$F$5*$E$123/100,"GOOD",IF(C61>='T2'!$F$5*$E$122/100,"AVERAGE","POOR")))) -> AVERAGE
A62: =Data_Sheet!A62 -> JEC18CS039 | B62: =Data_Sheet!B62 -> EDWIN WILSON | C62: ='T2'!R62 -> 17 | D62: =IF(C62="A","ABSENT",IF(C62>='T2'!$F$5*$E$124/100,"EXCELLENT",IF(C62>='T2'!$F$5*$E$123/100,"GOOD",IF(C62>='T2'!$F$5*$E$122/100,"AVERAGE","POOR")))) -> POOR
A63: =Data_Sheet!A63 -> JEC18CS040 | B63: =Data_Sheet!B63 -> EMMANUEL SHIBU | C63: ='T2'!R63 -> 19 | D63: =IF(C63="A","ABSENT",IF(C63>='T2'!$F$5*$E$124/100,"EXCELLENT",IF(C63>='T2'!$F$5*$E$123/100,"GOOD",IF(C63>='T2'!$F$5*$E$122/100,"AVERAGE","POOR")))) -> POOR
A64: =Data_Sheet!A64 -> JEC18CS041 | B64: =Data_Sheet!B64 -> GAYATHRI DINESH | C64: ='T2'!R64 -> 24 | D64: =IF(C64="A","ABSENT",IF(C64>='T2'!$F$5*$E$124/100,"EXCELLENT",IF(C64>='T2'!$F$5*$E$123/100,"GOOD",IF(C64>='T2'!$F$5*$E$122/100,"AVERAGE","POOR")))) -> AVERAGE
A65: =Data_Sheet!A65 -> JEC18CS042 | B65: =Data_Sheet!B65 -> GOKUL DAS M | C65: ='T2'!R65 -> 35 | D65: =IF(C65="A","ABSENT",IF(C65>='T2'!$F$5*$E$124/100,"EXCELLENT",IF(C65>='T2'!$F$5*$E$123/100,"GOOD",IF(C65>='T2'!$F$5*$E$122/100,"AVERAGE","POOR")))) -> GOOD
A66: =Data_Sheet!A66 -> JEC18CS043 | B66: =Data_Sheet!B66 -> G RAMGOPAL | C66: ='T2'!R66 -> 45.5 | D66: =IF(C66="A","ABSENT",IF(C66>='T2'!$F$5*$E$124/100,"EXCELLENT",IF(C66>='T2'!$F$5*$E$123/100,"GOOD",IF(C66>='T2'!$F$5*$E$122/100,"AVERAGE","POOR")))) -> EXCELLENT
A67: =Data_Sheet!A67 -> JEC18CS044 | B67: =Data_Sheet!B67 -> HARIES DAVIS | C67: ='T2'!R67 -> 16 | D67: =IF(C67="A","ABSENT",IF(C67>='T2'!$F$5*$E$124/100,"EXCELLENT",IF(C67>='T2'!$F$5*$E$123/100,"GOOD",IF(C67>='T2'!$F$5*$E$122/100,"AVERAGE","POOR")))) -> POOR
A68: =Data_Sheet!A68 -> JEC18CS045 | B68: =Data_Sheet!B68 -> HARISANKER P | C68: ='T2'!R68 -> 32 | D68: =IF(C68="A","ABSENT",IF(C68>='T2'!$F$5*$E$124/100,"EXCELLENT",IF(C68>='T2'!$F$5*$E$123/100,"GOOD",IF(C68>='T2'!$F$5*$E$122/100,"AVERAGE","POOR")))) -> GOOD
A69: =Data_Sheet!A69 -> JEC18CS046 | B69: =Data_Sheet!B69 -> HARSHA.K.S. | C69: ='T2'!R69 -> 33 | D69: =IF(C69="A","ABSENT",IF(C69>='T2'!$F$5*$E$124/100,"EXCELLENT",IF(C69>='T2'!$F$5*$E$123/100,"GOOD",IF(C69>='T2'!$F$5*$E$122/100,"AVERAGE","POOR")))) -> GOOD
A70: =Data_Sheet!A70 -> JEC18CS047 | B70: =Data_Sheet!B70 -> HELNA THOMAS | C70: ='T2'!R70 -> 36 | D70: =IF(C70="A","ABSENT",IF(C70>='T2'!$F$5*$E$124/100,"EXCELLENT",IF(C70>='T2'!$F$5*$E$123/100,"GOOD",IF(C70>='T2'!$F$5*$E$122/100,"AVERAGE","POOR")))) -> GOOD
A71: =Data_Sheet!A71 -> JEC18CS048 | B71: =Data_Sheet!B71 -> HRIDI KRISHNA.H | C71: ='T2'!R71 -> 16 | D71: =IF(C71="A","ABSENT",IF(C71>='T2'!$F$5*$E$124/100,"EXCELLENT",IF(C71>='T2'!$F$5*$E$123/100,"GOOD",IF(C71>='T2'!$F$5*$E$122/100,"AVERAGE","POOR")))) -> POOR
A72: =Data_Sheet!A72 -> JEC18CS049 | B72: =Data_Sheet!B72 -> INDRAJIT R | C72: ='T2'!R72 -> 9 | D72: =IF(C72="A","ABSENT",IF(C72>='T2'!$F$5*$E$124/100,"EXCELLENT",IF(C72>='T2'!$F$5*$E$123/100,"GOOD",IF(C72>='T2'!$F$5*$E$122/100,"AVERAGE","POOR")))) -> POOR
A73: =Data_Sheet!A73 -> JEC18CS050 | B73: =Data_Sheet!B73 -> JESWIN JOJY | C73: ='T2'!R73 -> 30.5 | D73: =IF(C73="A","ABSENT",IF(C73>='T2'!$F$5*$E$124/100,"EXCELLENT",IF(C73>='T2'!$F$5*$E$123/100,"GOOD",IF(C73>='T2'!$F$5*$E$122/100,"AVERAGE","POOR")))) -> GOOD
A74: =Data_Sheet!A74 -> JEC18CS051 | B74: =Data_Sheet!B74 -> JIBIN A BABU | C74: ='T2'!R74 -> 23 | D74: =IF(C74="A","ABSENT",IF(C74>='T2'!$F$5*$E$124/100,"EXCELLENT",IF(C74>='T2'!$F$5*$E$123/100,"GOOD",IF(C74>='T2'!$F$5*$E$122/100,"AVERAGE","POOR")))) -> AVERAGE
A75: =Data_Sheet!A75 -> JEC18CS052 | B75: =Data_Sheet!B75 -> JISSY JOY | C75: ='T2'!R75 -> 41 | D75: =IF(C75="A","ABSENT",IF(C75>='T2'!$F$5*$E$124/100,"EXCELLENT",IF(C75>='T2'!$F$5*$E$123/100,"GOOD",IF(C75>='T2'!$F$5*$E$122/100,"AVERAGE","POOR")))) -> EXCELLENT
A76: =Data_Sheet!A76 -> JEC18CS053 | B76: =Data_Sheet!B76 -> JOEL JAMES KARIKKANDATHIL | C76: ='T2'!R76 -> 13.5 | D76: =IF(C76="A","ABSENT",IF(C76>='T2'!$F$5*$E$124/100,"EXCELLENT",IF(C76>='T2'!$F$5*$E$123/100,"GOOD",IF(C76>='T2'!$F$5*$E$122/100,"AVERAGE","POOR")))) -> POOR
A77: =Data_Sheet!A77 -> JEC18CS054 | B77: =Data_Sheet!B77 -> JOSE REJI KARIMADATHI | C77: ='T2'!R77 -> 20.5 | D77: =IF(C77="A","ABSENT",IF(C77>='T2'!$F$5*$E$124/100,"EXCELLENT",IF(C77>='T2'!$F$5*$E$123/100,"GOOD",IF(C77>='T2'!$F$5*$E$122/100,"AVERAGE","POOR")))) -> POOR
A78: =Data_Sheet!A78 -> JEC18CS055 | B78: =Data_Sheet!B78 -> JUMANA HASIN | C78: ='T2'!R78 -> 28 | D78: =IF(C78="A","ABSENT",IF(C78>='T2'!$F$5*$E$124/100,"EXCELLENT",IF(C78>='T2'!$F$5*$E$123/100,"GOOD",IF(C78>='T2'!$F$5*$E$122/100,"AVERAGE","POOR")))) -> AVERAGE
A79: =Data_Sheet!A79 -> JEC18CS056 | B79: =Data_Sheet!B79 -> KAILASHNATH | C79: ='T2'!R79 -> 16 | D79: =IF(C79="A","ABSENT",IF(C79>='T2'!$F$5*$E$124/100,"EXCELLENT",IF(C79>='T2'!$F$5*$E$123/100,"GOOD",IF(C79>='T2'!$F$5*$E$122/100,"AVERAGE","POOR")))) -> POOR
A80: =Data_Sheet!A80 -> JEC18CS057 | B80: =Data_Sheet!B80 -> K AJISHKUMAR | C80: ='T2'!R80 -> 0 | D80: =IF(C80="A","ABSENT",IF(C80>='T2'!$F$5*$E$124/100,"EXCELLENT",IF(C80>='T2'!$F$5*$E$123/100,"GOOD",IF(C80>='T2'!$F$5*$E$122/100,"AVERAGE","POOR")))) -> POOR
A81: =Data_Sheet!A81 -> JEC18CS058 | B81: =Data_Sheet!B81 -> KEERTHANA K S | C81: ='T2'!R81 -> 15 | D81: =IF(C81="A","ABSENT",IF(C81>='T2'!$F$5*$E$124/100,"EXCELLENT",IF(C81>='T2'!$F$5*$E$123/100,"GOOD",IF(C81>='T2'!$F$5*$E$122/100,"AVERAGE","POOR")))) -> POOR
A82: =Data_Sheet!A82 -> JEC18CS059 | B82: =Data_Sheet!B82 -> KEVIN VARGHESE | C82: ='T2'!R82 -> 40 | D82: =IF(C82="A","ABSENT",IF(C82>='T2'!$F$5*$E$124/100,"EXCELLENT",IF(C82>='T2'!$F$5*$E$123/100,"GOOD",IF(C82>='T2'!$F$5*$E$122/100,"AVERAGE","POOR")))) -> EXCELLENT
A83: =Data_Sheet!A83 -> JEC18CS060 | B83: =Data_Sheet!B83 -> LAKSHMI SADANANDAN | C83: ='T2'!R83 -> 17 | D83: =IF(C83="A","ABSENT",IF(C83>='T2'!$F$5*$E$124/100,"EXCELLENT",IF(C83>='T2'!$F$5*$E$123/100,"GOOD",IF(C83>='T2'!$F$5*$E$122/100,"AVERAGE","POOR")))) -> POOR
A84: =Data_Sheet!A84 -> JEC18CS061 | B84: =Data_Sheet!B84 -> LEYA PALLAN | C84: ='T2'!R84 -> 17.5 | D84: =IF(C84="A","ABSENT",IF(C84>='T2'!$F$5*$E$124/100,"EXCELLENT",IF(C84>='T2'!$F$5*$E$123/100,"GOOD",IF(C84>='T2'!$F$5*$E$122/100,"AVERAGE","POOR")))) -> POOR
A85: =Data_Sheet!A85 -> JEC18CS062 | B85: =Data_Sheet!B85 -> MARVEL BABU | C85: ='T2'!R85 -> 13 | D85: =IF(C85="A","ABSENT",IF(C85>='T2'!$F$5*$E$124/100,"EXCELLENT",IF(C85>='T2'!$F$5*$E$123/100,"GOOD",IF(C85>='T2'!$F$5*$E$122/100,"AVERAGE","POOR")))) -> POOR
A86: =Data_Sheet!A86 -> JEC18CS063 | B86: =Data_Sheet!B86 -> MEDWIN PAUL | C86: ='T2'!R86 -> 5 | D86: =IF(C86="A","ABSENT",IF(C86>='T2'!$F$5*$E$124/100,"EXCELLENT",IF(C86>='T2'!$F$5*$E$123/100,"GOOD",IF(C86>='T2'!$F$5*$E$122/100,"AVERAGE","POOR")))) -> POOR
A87: =Data_Sheet!A87 -> 0 | B87: =Data_Sheet!B87 -> 0 | C87: ='T2'!R87 -> 0 | D87: =IF(C87="A","ABSENT",IF(C87>='T2'!$F$5*$E$124/100,"EXCELLENT",IF(C87>='T2'!$F$5*$E$123/100,"GOOD",IF(C87>='T2'!$F$5*$E$122/100,"AVERAGE","POOR")))) -> POOR
A88: =Data_Sheet!A88 -> 0 | B88: =Data_Sheet!B88 -> 0 | C88: ='T2'!R88 -> 0 | D88: =IF(C88="A","ABSENT",IF(C88>='T2'!$F$5*$E$124/100,"EXCELLENT",IF(C88>='T2'!$F$5*$E$123/100,"GOOD",IF(C88>='T2'!$F$5*$E$122/100,"AVERAGE","POOR")))) -> POOR
A89: =Data_Sheet!A89 -> JEC18CS066 | B89: =Data_Sheet!B89 -> MUHAMMED INSHADH | C89: ='T2'!R89 -> 9 | D89: =IF(C89="A","ABSENT",IF(C89>='T2'!$F$5*$E$124/100,"EXCELLENT",IF(C89>='T2'!$F$5*$E$123/100,"GOOD",IF(C89>='T2'!$F$5*$E$122/100,"AVERAGE","POOR")))) -> POOR
A90: =Data_Sheet!A90 -> JEC18CS067 | B90: =Data_Sheet!B90 -> NAIR MIDHUN RAMACHANDRAN | C90: ='T2'!R90 -> 22.5 | D90: =IF(C90="A","ABSENT",IF(C90>='T2'!$F$5*$E$124/100,"EXCELLENT",IF(C90>='T2'!$F$5*$E$123/100,"GOOD",IF(C90>='T2'!$F$5*$E$122/100,"AVERAGE","POOR")))) -> AVERAGE
A91: =Data_Sheet!A91 -> JEC18CS068 | B91: =Data_Sheet!B91 -> NAVEENA ANTONY | C91: ='T2'!R91 -> 22 | D91: =IF(C91="A","ABSENT",IF(C91>='T2'!$F$5*$E$124/100,"EXCELLENT",IF(C91>='T2'!$F$5*$E$123/100,"GOOD",IF(C91>='T2'!$F$5*$E$122/100,"AVERAGE","POOR")))) -> POOR
A92: =Data_Sheet!A92 -> JEC18CS069 | B92: =Data_Sheet!B92 -> NITIN MADHU | C92: ='T2'!R92 -> 24 | D92: =IF(C92="A","ABSENT",IF(C92>='T2'!$F$5*$E$124/100,"EXCELLENT",IF(C92>='T2'!$F$5*$E$123/100,"GOOD",IF(C92>='T2'!$F$5*$E$122/100,"AVERAGE","POOR")))) -> AVERAGE
A93: =Data_Sheet!A93 -> JEC18CS070 | B93: =Data_Sheet!B93 -> PRATHIUSH ARUN | C93: ='T2'!R93 -> 17 | D93: =IF(C93="A","ABSENT",IF(C93>='T2'!$F$5*$E$124/100,"EXCELLENT",IF(C93>='T2'!$F$5*$E$123/100,"GOOD",IF(C93>='T2'!$F$5*$E$122/100,"AVERAGE","POOR")))) -> POOR
A94: =Data_Sheet!A94 -> JEC18CS071 | B94: =Data_Sheet!B94 -> RACHEL CECER | C94: ='T2'!R94 -> 42.5 | D94: =IF(C94="A","ABSENT",IF(C94>='T2'!$F$5*$E$124/100,"EXCELLENT",IF(C94>='T2'!$F$5*$E$123/100,"GOOD",IF(C94>='T2'!$F$5*$E$122/100,"AVERAGE","POOR")))) -> EXCELLENT
A95: =Data_Sheet!A95 -> JEC18CS072 | B95: =Data_Sheet!B95 -> RAHUL RAJU | C95: ='T2'!R95 -> 11.5 | D95: =IF(C95="A","ABSENT",IF(C95>='T2'!$F$5*$E$124/100,"EXCELLENT",IF(C95>='T2'!$F$5*$E$123/100,"GOOD",IF(C95>='T2'!$F$5*$E$122/100,"AVERAGE","POOR")))) -> POOR
A96: =Data_Sheet!A96 -> JEC18CS073 | B96: =Data_Sheet!B96 -> RAHUL T RAVI | C96: ='T2'!R96 -> 13 | D96: =IF(C96="A","ABSENT",IF(C96>='T2'!$F$5*$E$124/100,"EXCELLENT",IF(C96>='T2'!$F$5*$E$123/100,"GOOD",IF(C96>='T2'!$F$5*$E$122/100,"AVERAGE","POOR")))) -> POOR
A97: =Data_Sheet!A97 -> JEC18CS074 | B97: =Data_Sheet!B97 -> RAPHEAL K MOYALAN | C97: ='T2'!R97 -> 10.5 | D97: =IF(C97="A","ABSENT",IF(C97>='T2'!$F$5*$E$124/100,"EXCELLENT",IF(C97>='T2'!$F$5*$E$123/100,"GOOD",IF(C97>='T2'!$F$5*$E$122/100,"AVERAGE","POOR")))) -> POOR
A98: =Data_Sheet!A98 -> JEC18CS075 | B98: =Data_Sheet!B98 -> RISHIKESH. V | C98: ='T2'!R98 -> 32 | D98: =IF(C98="A","ABSENT",IF(C98>='T2'!$F$5*$E$124/100,"EXCELLENT",IF(C98>='T2'!$F$5*$E$123/100,"GOOD",IF(C98>='T2'!$F$5*$E$122/100,"AVERAGE","POOR")))) -> GOOD
A99: =Data_Sheet!A99 -> JEC18CS076 | B99: =Data_Sheet!B99 -> ROCKSON T. AUGUSTINE | C99: ='T2'!R99 -> 24 | D99: =IF(C99="A","ABSENT",IF(C99>='T2'!$F$5*$E$124/100,"EXCELLENT",IF(C99>='T2'!$F$5*$E$123/100,"GOOD",IF(C99>='T2'!$F$5*$E$122/100,"AVERAGE","POOR")))) -> AVERAGE
A100: =Data_Sheet!A100 -> JEC18CS077 | B100: =Data_Sheet!B100 -> SARATH C P | C100: ='T2'!R100 -> 29.5 | D100: =IF(C100="A","ABSENT",IF(C100>='T2'!$F$5*$E$124/100,"EXCELLENT",IF(C100>='T2'!$F$5*$E$123/100,"GOOD",IF(C100>='T2'!$F$5*$E$122/100,"AVERAGE","POOR")))) -> AVERAGE
A101: =Data_Sheet!A101 -> JEC18CS078 | B101: =Data_Sheet!B101 -> SARATH SASI | C101: ='T2'!R101 -> 34 | D101: =IF(C101="A","ABSENT",IF(C101>='T2'!$F$5*$E$124/100,"EXCELLENT",IF(C101>='T2'!$F$5*$E$123/100,"GOOD",IF(C101>='T2'!$F$5*$E$122/100,"AVERAGE","POOR")))) -> GOOD
A102: =Data_Sheet!A102 -> JEC18CS079 | B102: =Data_Sheet!B102 -> SHAFNA | C102: ='T2'!R102 -> 48 | D102: =IF(C102="A","ABSENT",IF(C102>='T2'!$F$5*$E$124/100,"EXCELLENT",IF(C102>='T2'!$F$5*$E$123/100,"GOOD",IF(C102>='T2'!$F$5*$E$122/100,"AVERAGE","POOR")))) -> EXCELLENT
A103: =Data_Sheet!A103 -> JEC18CS080 | B103: =Data_Sheet!B103 -> SHELMY SHABU | C103: ='T2'!R103 -> 46.5 | D103: =IF(C103="A","ABSENT",IF(C103>='T2'!$F$5*$E$124/100,"EXCELLENT",IF(C103>='T2'!$F$5*$E$123/100,"GOOD",IF(C103>='T2'!$F$5*$E$122/100,"AVERAGE","POOR")))) -> EXCELLENT
A104: =Data_Sheet!A104 -> JEC18CS081 | B104: =Data_Sheet!B104 -> SHIZA SHIHAB PUVAMPARAMBIL | C104: ='T2'!R104 -> 23.5 | D104: =IF(C104="A","ABSENT",IF(C104>='T2'!$F$5*$E$124/100,"EXCELLENT",IF(C104>='T2'!$F$5*$E$123/100,"GOOD",IF(C104>='T2'!$F$5*$E$122/100,"AVERAGE","POOR")))) -> AVERAGE
A105: =Data_Sheet!A105 -> JEC18CS082 | B105: =Data_Sheet!B105 -> SIJO GEORGE | C105: ='T2'!R105 -> 0 | D105: =IF(C105="A","ABSENT",IF(C105>='T2'!$F$5*$E$124/100,"EXCELLENT",IF(C105>='T2'!$F$5*$E$123/100,"GOOD",IF(C105>='T2'!$F$5*$E$122/100,"AVERAGE","POOR")))) -> POOR
A106: =Data_Sheet!A106 -> JEC18CS083 | B106: =Data_Sheet!B106 -> SOURAV K | C106: ='T2'!R106 -> 12 | D106: =IF(C106="A","ABSENT",IF(C106>='T2'!$F$5*$E$124/100,"EXCELLENT",IF(C106>='T2'!$F$5*$E$123/100,"GOOD",IF(C106>='T2'!$F$5*$E$122/100,"AVERAGE","POOR")))) -> POOR
A107: =Data_Sheet!A107 -> 0 | B107: =Data_Sheet!B107 -> 0 | C107: ='T2'!R107 -> 0 | D107: =IF(C107="A","ABSENT",IF(C107>='T2'!$F$5*$E$124/100,"EXCELLENT",IF(C107>='T2'!$F$5*$E$123/100,"GOOD",IF(C107>='T2'!$F$5*$E$122/100,"AVERAGE","POOR")))) -> POOR
A108: =Data_Sheet!A108 -> JEC18CS085 | B108: =Data_Sheet!B108 -> SREEHARI | C108: ='T2'!R108 -> 7.5 | D108: =IF(C108="A","ABSENT",IF(C108>='T2'!$F$5*$E$124/100,"EXCELLENT",IF(C108>='T2'!$F$5*$E$123/100,"GOOD",IF(C108>='T2'!$F$5*$E$122/100,"AVERAGE","POOR")))) -> POOR
A109: =Data_Sheet!A109 -> JEC18CS086 | B109: =Data_Sheet!B109 -> SREEKANTH P | C109: ='T2'!R109 -> 1.5 | D109: =IF(C109="A","ABSENT",IF(C109>='T2'!$F$5*$E$124/100,"EXCELLENT",IF(C109>='T2'!$F$5*$E$123/100,"GOOD",IF(C109>='T2'!$F$5*$E$122/100,"AVERAGE","POOR")))) -> POOR
A110: =Data_Sheet!A110 -> JEC18CS087 | B110: =Data_Sheet!B110 -> SREELEKSHMI H KUMAR | C110: ='T2'!R110 -> 33.5 | D110: =IF(C110="A","ABSENT",IF(C110>='T2'!$F$5*$E$124/100,"EXCELLENT",IF(C110>='T2'!$F$5*$E$123/100,"GOOD",IF(C110>='T2'!$F$5*$E$122/100,"AVERAGE","POOR")))) -> GOOD
A111: =Data_Sheet!A111 -> JEC18CS088 | B111: =Data_Sheet!B111 -> SUFAIL BADUSHA.T | C111: ='T2'!R111 -> 0 | D111: =IF(C111="A","ABSENT",IF(C111>='T2'!$F$5*$E$124/100,"EXCELLENT",IF(C111>='T2'!$F$5*$E$123/100,"GOOD",IF(C111>='T2'!$F$5*$E$122/100,"AVERAGE","POOR")))) -> POOR
A112: =Data_Sheet!A112 -> JEC18CS089 | B112: =Data_Sheet!B112 -> TIYA THOMAS | C112: ='T2'!R112 -> 39 | D112: =IF(C112="A","ABSENT",IF(C112>='T2'!$F$5*$E$124/100,"EXCELLENT",IF(C112>='T2'!$F$5*$E$123/100,"GOOD",IF(C112>='T2'!$F$5*$E$122/100,"AVERAGE","POOR")))) -> GOOD
A113: =Data_Sheet!A113 -> JEC18CS090 | B113: =Data_Sheet!B113 -> TOMSUN PAVOO P | C113: ='T2'!R113 -> 21.5 | D113: =IF(C113="A","ABSENT",IF(C113>='T2'!$F$5*$E$124/100,"EXCELLENT",IF(C113>='T2'!$F$5*$E$123/100,"GOOD",IF(C113>='T2'!$F$5*$E$122/100,"AVERAGE","POOR")))) -> POOR
A114: =Data_Sheet!A114 -> JEC18CS091 | B114: =Data_Sheet!B114 -> ULLAS. S | C114: ='T2'!R114 -> 15.5 | D114: =IF(C114="A","ABSENT",IF(C114>='T2'!$F$5*$E$124/100,"EXCELLENT",IF(C114>='T2'!$F$5*$E$123/100,"GOOD",IF(C114>='T2'!$F$5*$E$122/100,"AVERAGE","POOR")))) -> POOR
A115: =Data_Sheet!A115 -> JEC18CS092 | B115: =Data_Sheet!B115 -> VAISHNAV M | C115: ='T2'!R115 -> 5 | D115: =IF(C115="A","ABSENT",IF(C115>='T2'!$F$5*$E$124/100,"EXCELLENT",IF(C115>='T2'!$F$5*$E$123/100,"GOOD",IF(C115>='T2'!$F$5*$E$122/100,"AVERAGE","POOR")))) -> POOR
A116: =Data_Sheet!A116 -> JEC18CS093 | B116: =Data_Sheet!B116 -> VANI PRAKASHAN CHOYYAN | C116: ='T2'!R116 -> 48 | D116: =IF(C116="A","ABSENT",IF(C116>='T2'!$F$5*$E$124/100,"EXCELLENT",IF(C116>='T2'!$F$5*$E$123/100,"GOOD",IF(C116>='T2'!$F$5*$E$122/100,"AVERAGE","POOR")))) -> EXCELLENT
A118: Total Number of Students | C118: =Data_Sheet!$C$6 -> 92
A119: Number of Students Absent | C119: =IF(COUNTIF(C25:INDIRECT(C131),"=A"),COUNTIF(C25:INDIRECT(C131),"=A"),0) -> 0
A120: Total Number of Students attended | C120: =C118-C119 -> 92
A121: ="Number of Students with Marks less than "&E122&"%" -> Number of Students with Marks less than 45% | C121: =IF(COUNTIF(D25:INDIRECT(D131),"=POOR"),COUNTIF(D25:INDIRECT(D131),"=POOR"),0) -> 47 | D121: POOR | E121: Range
A122: ="Number of Students with Marks betweeen "&E122&"% to "&E123&"%" -> Number of Students with Marks betweeen 45% to 60% | C122: =IF(COUNTIF(D25:INDIRECT(D131),"=AVERAGE"),COUNTIF(D25:INDIRECT(D131),"=AVERAGE"),0) -> 16 | D122: AVERAGE | E122: 45
A123: ="Number of Students with Marks betweeen "&E123&"% to "&E124&"%" -> Number of Students with Marks betweeen 60% to 80% | C123: =IF(COUNTIF(D25:INDIRECT(D131),"=GOOD"),COUNTIF(D25:INDIRECT(D131),"=GOOD"),0) -> 19 | D123: GOOD | E123: 60
A124: ="Number of Students with Marks greater than "&E124&"%" -> Number of Students with Marks greater than 80% | C124: =IF(COUNTIF(D25:INDIRECT(D131),"=EXCELLENT"),COUNTIF(D25:INDIRECT(D131),"=EXCELLENT"),0) -> 10 | D124: EXCELLENT | E124: 80
A125: Class Average | C125: =ROUND(AVERAGE(C25:INDIRECT(C131)),2) -> 21.98
A126: Pass Percentage | C126: =ROUND(((C120-C121)/C120)*100,2) -> 48.91
B128: =Data_Sheet!B10 -> Name of Faculty : | C128: =Data_Sheet!B11 -> Namitha T N
B129: =Data_Sheet!B136 -> Dated Signature :
A131: =ROW(A118)-2 -> 116 | B131: Last Row Count | C131: ="$C$"&$A$131 -> $C$116 | D131: ="$D$"&$A$131 -> $D$116

Sheet T3
A3: Add questions one by one as needed.. | C3: Assessment Category | G3: Date : | J3: CO1 | K3: First Internal Exam
C4: Retest | G4: 14-03-18 | J4: CO2 | K4: Second Internal Exam
C5: Total Marks : | F5: 50 | J5: CO3 | K5: Assessment Exam - 1
J6: CO4 | K6: Assessment Exam - 2
A7: =Data_Sheet!A2 -> Jyothi Engineering College, Cheruthuruthy | J7: CO5 | K7: Assignment - 1
J8: CO6 | K8: Assignment - 2
A9: =Data_Sheet!A4 -> Department of Computer Science Engineering | K9: Retest
J10: 1
A11: ="CO Analysis - Internal Marks : "&C4 &" " &TEXT(G4,"dd-mm-yy") -> CO Analysis - Internal Marks : Retest 14-03-18 | J11: 2
J12: 3
A13: =Data_Sheet!A17 -> S3 CS CS203 Switching Theory and Logic Design 2019-20 | J13: 4
J14: 5
J15: 6
A18: Register No. | B18: Name of Student | C18: Qn. No. | D18: 1 | E18: 2 | F18: 3 | G18: 4 | H18: 5 | I18: ="Total Marks (" &F5 & ")" -> Total Marks (50) | L18: Calculated Total Marks (50)
C19: CO's | D19: CO3 | E19: CO3 | F19: CO4 | G19: CO4 | H19: CO5
C20: Blooms Taxonomy Lavel | D20: 5 | E20: 5 | F20: 5 | G20: 6 | H20: 6
C21: Max. Marks | D21: 5 | E21: 5 | F21: 5 | G21: 5 | H21: 5
C22: Difficulty Level in % | D22: 60 | E22: 60 | F22: 60 | G22: 60 | H22: 60
A24: Column1 | B24: Column2 | C24: Column3 | D24: Column4 | E24: Column5 | F24: Column6 | G24: Column7 | H24: Column8 | I24: Column32
A25: =Data_Sheet!A25 -> JEC18CS001 | B25: =Data_Sheet!B25 -> ABHISHEK KRISHNAN MENON E
A26: =Data_Sheet!A26 -> JEC18CS002 | B26: =Data_Sheet!B26 -> ABHISHEK SAJEEVAN
A27: =Data_Sheet!A27 -> JEC18CS003 | B27: =Data_Sheet!B27 -> ABHITH SHAJI
A28: =Data_Sheet!A28 -> JEC18CS004 | B28: =Data_Sheet!B28 -> ABIN SANTHOSH ALAPATT
A29: =Data_Sheet!A29 -> JEC18CS005 | B29: =Data_Sheet!B29 -> ADARSH KUMAR M A
A30: =Data_Sheet!A30 -> JEC18CS006 | B30: =Data_Sheet!B30 -> ADHITHYA KRISHNA S
A31: =Data_Sheet!A31 -> JEC18CS007 | B31: =Data_Sheet!B31 -> ADITHYA HARIDAS
A32: =Data_Sheet!A32 -> JEC18CS008 | B32: =Data_Sheet!B32 -> AJMAL BASHEER
A33: =Data_Sheet!A33 -> JEC18CS009 | B33: =Data_Sheet!B33 -> AKASH.V
A34: =Data_Sheet!A34 -> JEC18CS010 | B34: =Data_Sheet!B34 -> AKHIL AZEEZ UPPILAMKUNNATH
A35: =Data_Sheet!A35 -> JEC18CS011 | B35: =Data_Sheet!B35 -> AKHIL KRISHNA UK
A36: =Data_Sheet!A36 -> JEC18CS012 | B36: =Data_Sheet!B36 -> ALAN GEORGE
A37: =Data_Sheet!A37 -> JEC18CS013 | B37: =Data_Sheet!B37 -> ALEN VARGHESE
A38: =Data_Sheet!A38 -> JEC18CS014 | B38: =Data_Sheet!B38 -> AMAL SEBASTIAN
A39: =Data_Sheet!A39 -> JEC18CS015 | B39: =Data_Sheet!B39 -> AMAL SONY
A40: =Data_Sheet!A40 -> JEC18CS016 | B40: =Data_Sheet!B40 -> ANAGHA WILSON
A41: =Data_Sheet!A41 -> JEC18CS017 | B41: =Data_Sheet!B41 -> ANETTE ANTO
A42: =Data_Sheet!A42 -> JEC18CS018 | B42: =Data_Sheet!B42 -> ANIT MARY THOMAS
A43: =Data_Sheet!A43 -> JEC18CS020 | B43: =Data_Sheet!B43 -> ANN THERESA SHAJI
A44: =Data_Sheet!A44 -> JEC18CS021 | B44: =Data_Sheet!B44 -> ANTONY ROY
A45: =Data_Sheet!A45 -> JEC18CS022 | B45: =Data_Sheet!B45 -> ANUGRAHA C
A46: =Data_Sheet!A46 -> JEC18CS023 | B46: =Data_Sheet!B46 -> APARNA.V
A47: =Data_Sheet!A47 -> JEC18CS024 | B47: =Data_Sheet!B47 -> ARAVIND S KUMAR
A48: =Data_Sheet!A48 -> JEC18CS025 | B48: =Data_Sheet!B48 -> ARJUN VINOD
A49: =Data_Sheet!A49 -> JEC18CS026 | B49: =Data_Sheet!B49 -> ARUN VG
A50: =Data_Sheet!A50 -> JEC18CS027 | B50: =Data_Sheet!B50 -> ASHRUL K
A51: =Data_Sheet!A51 -> JEC18CS028 | B51: =Data_Sheet!B51 -> ATHIL PAULY
A52: =Data_Sheet!A52 -> JEC18CS029 | B52: =Data_Sheet!B52 -> ATHIRA K P
A53: =Data_Sheet!A53 -> JEC18CS030 | B53: =Data_Sheet!B53 -> AWIN ANTO
A54: =Data_Sheet!A54 -> JEC18CS031 | B54: =Data_Sheet!B54 -> CHARLES JOHNSON
A55: =Data_Sheet!A55 -> JEC18CS032 | B55: =Data_Sheet!B55 -> CHITTILAPPILLY JOVIA JOHNSON
A56: =Data_Sheet!A56 -> JEC18CS033 | B56: =Data_Sheet!B56 -> CIYA BABU
A57: =Data_Sheet!A57 -> JEC18CS034 | B57: =Data_Sheet!B57 -> DAVID SALUS
A58: =Data_Sheet!A58 -> JEC18CS035 | B58: =Data_Sheet!B58 -> DELICIA REJI
A59: =Data_Sheet!A59 -> JEC18CS036 | B59: =Data_Sheet!B59 -> DELMA SHAJAN
A60: =Data_Sheet!A60 -> JEC18CS037 | B60: =Data_Sheet!B60 -> DILBER SHA AP
A61: =Data_Sheet!A61 -> JEC18CS038 | B61: =Data_Sheet!B61 -> EDWIN T JOY
A62: =Data_Sheet!A62 -> JEC18CS039 | B62: =Data_Sheet!B62 -> EDWIN WILSON
A63: =Data_Sheet!A63 -> JEC18CS040 | B63: =Data_Sheet!B63 -> EMMANUEL SHIBU
A64: =Data_Sheet!A64 -> JEC18CS041 | B64: =Data_Sheet!B64 -> GAYATHRI DINESH
A65: =Data_Sheet!A65 -> JEC18CS042 | B65: =Data_Sheet!B65 -> GOKUL DAS M
A66: =Data_Sheet!A66 -> JEC18CS043 | B66: =Data_Sheet!B66 -> G RAMGOPAL
A67: =Data_Sheet!A67 -> JEC18CS044 | B67: =Data_Sheet!B67 -> HARIES DAVIS
A68: =Data_Sheet!A68 -> JEC18CS045 | B68: =Data_Sheet!B68 -> HARISANKER P
A69: =Data_Sheet!A69 -> JEC18CS046 | B69: =Data_Sheet!B69 -> HARSHA.K.S.
A70: =Data_Sheet!A70 -> JEC18CS047 | B70: =Data_Sheet!B70 -> HELNA THOMAS
A71: =Data_Sheet!A71 -> JEC18CS048 | B71: =Data_Sheet!B71 -> HRIDI KRISHNA.H
A72: =Data_Sheet!A72 -> JEC18CS049 | B72: =Data_Sheet!B72 -> INDRAJIT R
A73: =Data_Sheet!A73 -> JEC18CS050 | B73: =Data_Sheet!B73 -> JESWIN JOJY
A74: =Data_Sheet!A74 -> JEC18CS051 | B74: =Data_Sheet!B74 -> JIBIN A BABU
A75: =Data_Sheet!A75 -> JEC18CS052 | B75: =Data_Sheet!B75 -> JISSY JOY
A76: =Data_Sheet!A76 -> JEC18CS053 | B76: =Data_Sheet!B76 -> JOEL JAMES KARIKKANDATHIL
A77: =Data_Sheet!A77 -> JEC18CS054 | B77: =Data_Sheet!B77 -> JOSE REJI KARIMADATHI
A78: =Data_Sheet!A78 -> JEC18CS055 | B78: =Data_Sheet!B78 -> JUMANA HASIN
A79: =Data_Sheet!A79 -> JEC18CS056 | B79: =Data_Sheet!B79 -> KAILASHNATH
A80: =Data_Sheet!A80 -> JEC18CS057 | B80: =Data_Sheet!B80 -> K AJISHKUMAR
A81: =Data_Sheet!A81 -> JEC18CS058 | B81: =Data_Sheet!B81 -> KEERTHANA K S
A82: =Data_Sheet!A82 -> JEC18CS059 | B82: =Data_Sheet!B82 -> KEVIN VARGHESE
A83: =Data_Sheet!A83 -> JEC18CS060 | B83: =Data_Sheet!B83 -> LAKSHMI SADANANDAN
A84: =Data_Sheet!A84 -> JEC18CS061 | B84: =Data_Sheet!B84 -> LEYA PALLAN
A85: =Data_Sheet!A85 -> JEC18CS062 | B85: =Data_Sheet!B85 -> MARVEL BABU
A86: =Data_Sheet!A86 -> JEC18CS063 | B86: =Data_Sheet!B86 -> MEDWIN PAUL
A87: =Data_Sheet!A87 -> 0 | B87: =Data_Sheet!B87 -> 0
A88: =Data_Sheet!A88 -> 0 | B88: =Data_Sheet!B88 -> 0
A89: =Data_Sheet!A89 -> JEC18CS066 | B89: =Data_Sheet!B89 -> MUHAMMED INSHADH
A90: =Data_Sheet!A90 -> JEC18CS067 | B90: =Data_Sheet!B90 -> NAIR MIDHUN RAMACHANDRAN
A91: =Data_Sheet!A91 -> JEC18CS068 | B91: =Data_Sheet!B91 -> NAVEENA ANTONY
A92: =Data_Sheet!A92 -> JEC18CS069 | B92: =Data_Sheet!B92 -> NITIN MADHU
A93: =Data_Sheet!A93 -> JEC18CS070 | B93: =Data_Sheet!B93 -> PRATHIUSH ARUN
A94: =Data_Sheet!A94 -> JEC18CS071 | B94: =Data_Sheet!B94 -> RACHEL CECER
A95: =Data_Sheet!A95 -> JEC18CS072 | B95: =Data_Sheet!B95 -> RAHUL RAJU
A96: =Data_Sheet!A96 -> JEC18CS073 | B96: =Data_Sheet!B96 -> RAHUL T RAVI
A97: =Data_Sheet!A97 -> JEC18CS074 | B97: =Data_Sheet!B97 -> RAPHEAL K MOYALAN
A98: =Data_Sheet!A98 -> JEC18CS075 | B98: =Data_Sheet!B98 -> RISHIKESH. V
A99: =Data_Sheet!A99 -> JEC18CS076 | B99: =Data_Sheet!B99 -> ROCKSON T. AUGUSTINE
A100: =Data_Sheet!A100 -> JEC18CS077 | B100: =Data_Sheet!B100 -> SARATH C P
A101: =Data_Sheet!A101 -> JEC18CS078 | B101: =Data_Sheet!B101 -> SARATH SASI
A102: =Data_Sheet!A102 -> JEC18CS079 | B102: =Data_Sheet!B102 -> SHAFNA
A103: =Data_Sheet!A103 -> JEC18CS080 | B103: =Data_Sheet!B103 -> SHELMY SHABU
A104: =Data_Sheet!A104 -> JEC18CS081 | B104: =Data_Sheet!B104 -> SHIZA SHIHAB PUVAMPARAMBIL
A105: =Data_Sheet!A105 -> JEC18CS082 | B105: =Data_Sheet!B105 -> SIJO GEORGE
A106: =Data_Sheet!A106 -> JEC18CS083 | B106: =Data_Sheet!B106 -> SOURAV K
A107: =Data_Sheet!A107 -> 0 | B107: =Data_Sheet!B107 -> 0
A108: =Data_Sheet!A108 -> JEC18CS085 | B108: =Data_Sheet!B108 -> SREEHARI
A109: =Data_Sheet!A109 -> JEC18CS086 | B109: =Data_Sheet!B109 -> SREEKANTH P
A110: =Data_Sheet!A110 -> JEC18CS087 | B110: =Data_Sheet!B110 -> SREELEKSHMI H KUMAR
A111: =Data_Sheet!A111 -> JEC18CS088 | B111: =Data_Sheet!B111 -> SUFAIL BADUSHA.T
A112: =Data_Sheet!A112 -> JEC18CS089 | B112: =Data_Sheet!B112 -> TIYA THOMAS
A113: =Data_Sheet!A113 -> JEC18CS090 | B113: =Data_Sheet!B113 -> TOMSUN PAVOO P
A114: =Data_Sheet!A114 -> JEC18CS091 | B114: =Data_Sheet!B114 -> ULLAS. S
A115: =Data_Sheet!A115 -> JEC18CS092 | B115: =Data_Sheet!B115 -> VAISHNAV M
A116: =Data_Sheet!A116 -> JEC18CS093 | B116: =Data_Sheet!B116 -> VANI PRAKASHAN CHOYYAN
A118: Total Marks scored for the Question | D118: =IF(D$22<>"",IF(SUM(D25:INDIRECT(D138))>=0,SUM(D25:INDIRECT(D138)),""),"") -> 0 | E118: =IF(E$22<>"",IF(SUM(E25:INDIRECT(E138))>=0,SUM(E25:INDIRECT(E138)),""),"") -> 0 | F118: =IF(F$22<>"",IF(SUM(F25:INDIRECT(F138))>=0,SUM(F25:INDIRECT(F138)),""),"") -> 0 | G118: =IF(G$22<>"",IF(SUM(G25:INDIRECT(G138))>=0,SUM(G25:INDIRECT(G138)),""),"") -> 0 | H118: =IF(H$22<>"",IF(SUM(H25:INDIRECT(H138))>=0,SUM(H25:INDIRECT(H138)),""),"") -> 0
A119: No. of Students who attended the Question | D119: =IF(D$22<>"",IF(COUNT(D25:INDIRECT(D138))>=0,COUNT(D25:INDIRECT(D138)),""),"") -> 0 | E119: =IF(E$22<>"",IF(COUNT(E25:INDIRECT(E138))>=0,COUNT(E25:INDIRECT(E138)),""),"") -> 0 | F119: =IF(F$22<>"",IF(COUNT(F25:INDIRECT(F138))>=0,COUNT(F25:INDIRECT(F138)),""),"") -> 0 | G119: =IF(G$22<>"",IF(COUNT(G25:INDIRECT(G138))>=0,COUNT(G25:INDIRECT(G138)),""),"") -> 0 | H119: =IF(H$22<>"",IF(COUNT(H25:INDIRECT(H138))>=0,COUNT(H25:INDIRECT(H138)),""),"") -> 0
A120: Difficulty Level marks of the Question | D120: =IF(D21*D22/100=0,"",D21*D22/100) -> 3 | E120: 3 | F120: 3 | G120: 3 | H120: 3
A121: No. of Students who scored above the Difficulty Level | D121: =IF(COUNTIF(D25:INDIRECT(D138),">="&D120)=0,"",COUNTIF(D25:INDIRECT(D138),">="&D120)) ->  | E121: =IF(COUNTIF(E25:INDIRECT(E138),">="&E120)=0,"",COUNTIF(E25:INDIRECT(E138),">="&E120)) ->  | F121: =IF(COUNTIF(F25:INDIRECT(F138),">="&F120)=0,"",COUNTIF(F25:INDIRECT(F138),">="&F120)) ->  | G121: =IF(COUNTIF(G25:INDIRECT(G138),">="&G120)=0,"",COUNTIF(G25:INDIRECT(G138),">="&G120)) ->  | H121: =IF(COUNTIF(H25:INDIRECT(H138),">="&H120)=0,"",COUNTIF(H25:INDIRECT(H138),">="&H120)) -> 
A122: % of Students who scored above the Difficulty Level | D122: =IFERROR(ROUND(D121/D119*100,2),"") ->  | E122: =IFERROR(ROUND(E121/E119*100,2),"") ->  | F122: =IFERROR(ROUND(F121/F119*100,2),"") ->  | G122: =IFERROR(ROUND(G121/G119*100,2),"") ->  | H122: =IFERROR(ROUND(H121/H119*100,2),"") -> 
D123: =IF(D122="",0,IF(D122>=80,3,IF(D122>=70,2,IF(D122>=60,1,0)))) -> 0 | E123: =IF(E122="",0,IF(E122>=80,3,IF(E122>=70,2,IF(E122>=60,1,0)))) -> 0 | F123: =IF(F122="",0,IF(F122>=80,3,IF(F122>=70,2,IF(F122>=60,1,0)))) -> 0 | G123: =IF(G122="",0,IF(G122>=80,3,IF(G122>=70,2,IF(G122>=60,1,0)))) -> 0 | H123: =IF(H122="",0,IF(H122>=80,3,IF(H122>=70,2,IF(H122>=60,1,0)))) -> 0 | I123: Marks | M123: T_Marks | N123: S_Marks | O123: Students | P123: Level | Q123: Above | R123: Above % | S123: Attainment
B124: =IF(Data_Sheet!A119<>"","Total Attainment level for "&Data_Sheet!A119&" :","") -> Total Attainment level for CO1 : | C124: =IF(Data_Sheet!A119<>"",L124,"") ->  | D124: =IFERROR((IF(ISNUMBER(SEARCH("1", D$19)),D$21,"0")),"0")*D123 -> 0 | E124: =IFERROR((IF(ISNUMBER(SEARCH("1", E$19)),E$21,"0")),"0")*E123 -> 0 | F124: =IFERROR((IF(ISNUMBER(SEARCH("1", F$19)),F$21,"0")),"0")*F123 -> 0 | G124: =IFERROR((IF(ISNUMBER(SEARCH("1", G$19)),G$21,"0")),"0")*G123 -> 0 | H124: =IFERROR((IF(ISNUMBER(SEARCH("1", H$19)),H$21,"0")),"0")*H123 -> 0 | I124: =I141 -> 0 | L124: =IF(I124=0,"",ROUND(SUM(D124:H124)/I124,2)) ->  | M124: =I141 -> 0 | N124: =I148 -> 0 | O124: =I155 -> 0 | P124: =I162 -> 0 | Q124: =I169 -> 0 | R124: =IFERROR(ROUND(Q124/O124*100,2),"") ->  | S124: =IF(R124="","",IF(R124>=80,3,IF(R124>=70,2,IF(R124>=60,1,0)))) -> 
B125: =IF(Data_Sheet!A120<>"","Total Attainment level for "&Data_Sheet!A120&" :","") -> Total Attainment level for CO2 : | C125: =IF(Data_Sheet!A120<>"",L125,"") ->  | D125: =IFERROR((IF(ISNUMBER(SEARCH("2", D$19)),D$21,"0")),"0")*D123 -> 0 | E125: =IFERROR((IF(ISNUMBER(SEARCH("2", E$19)),E$21,"0")),"0")*E123 -> 0 | F125: =IFERROR((IF(ISNUMBER(SEARCH("2", F$19)),F$21,"0")),"0")*F123 -> 0 | G125: =IFERROR((IF(ISNUMBER(SEARCH("2", G$19)),G$21,"0")),"0")*G123 -> 0 | H125: =IFERROR((IF(ISNUMBER(SEARCH("2", H$19)),H$21,"0")),"0")*H123 -> 0 | I125: 0 | M125: 0 | N125: 0 | O125: 0 | P125: 0 | Q125: 0
B126: =IF(Data_Sheet!A121<>"","Total Attainment level for "&Data_Sheet!A121&" :","") -> Total Attainment level for CO3 : | C126: =IF(Data_Sheet!A121<>"",L126,"") -> 0 | D126: =IFERROR((IF(ISNUMBER(SEARCH("3", D$19)),D$21,"0")),"0")*D123 -> 0 | E126: =IFERROR((IF(ISNUMBER(SEARCH("3", E$19)),E$21,"0")),"0")*E123 -> 0 | F126: =IFERROR((IF(ISNUMBER(SEARCH("3", F$19)),F$21,"0")),"0")*F123 -> 0 | G126: =IFERROR((IF(ISNUMBER(SEARCH("3", G$19)),G$21,"0")),"0")*G123 -> 0 | H126: =IFERROR((IF(ISNUMBER(SEARCH("3", H$19)),H$21,"0")),"0")*H123 -> 0 | I126: 10 | L126: 0 | M126: 10 | N126: 0 | O126: 0 | P126: 6 | Q126: 0
B127: =IF(Data_Sheet!A122<>"","Total Attainment level for "&Data_Sheet!A122&" :","") -> Total Attainment level for CO4 : | C127: =IF(Data_Sheet!A122<>"",L127,"") -> 0 | D127: =IFERROR((IF(ISNUMBER(SEARCH("4", D$19)),D$21,"0")),"0")*D123 -> 0 | E127: =IFERROR((IF(ISNUMBER(SEARCH("4", E$19)),E$21,"0")),"0")*E123 -> 0 | F127: =IFERROR((IF(ISNUMBER(SEARCH("4", F$19)),F$21,"0")),"0")*F123 -> 0 | G127: =IFERROR((IF(ISNUMBER(SEARCH("4", G$19)),G$21,"0")),"0")*G123 -> 0 | H127: =IFERROR((IF(ISNUMBER(SEARCH("4", H$19)),H$21,"0")),"0")*H123 -> 0 | I127: 10 | L127: 0 | M127: 10 | N127: 0 | O127: 0 | P127: 6 | Q127: 0
B128: =IF(Data_Sheet!A123<>"","Total Attainment level for "&Data_Sheet!A123&" :","") -> Total Attainment level for CO5 : | C128: =IF(Data_Sheet!A123<>"",L128,"") -> 0 | D128: =IFERROR((IF(ISNUMBER(SEARCH("5", D$19)),D$21,"0")),"0")*D123 -> 0 | E128: =IFERROR((IF(ISNUMBER(SEARCH("5", E$19)),E$21,"0")),"0")*E123 -> 0 | F128: =IFERROR((IF(ISNUMBER(SEARCH("5", F$19)),F$21,"0")),"0")*F123 -> 0 | G128: =IFERROR((IF(ISNUMBER(SEARCH("5", G$19)),G$21,"0")),"0")*G123 -> 0 | H128: =IFERROR((IF(ISNUMBER(SEARCH("5", H$19)),H$21,"0")),"0")*H123 -> 0 | I128: 5 | L128: 0 | M128: 5 | N128: 0 | O128: 0 | P128: 3 | Q128: 0
B129: =IF(Data_Sheet!A124<>"","Total Attainment level for "&Data_Sheet!A124&" :","") -> Total Attainment level for CO6 : | C129: =IF(Data_Sheet!A124<>"",L129,"") ->  | D129: =IFERROR((IF(ISNUMBER(SEARCH("6", D$19)),D$21,"0")),"0")*D123 -> 0 | E129: =IFERROR((IF(ISNUMBER(SEARCH("6", E$19)),E$21,"0")),"0")*E123 -> 0 | F129: =IFERROR((IF(ISNUMBER(SEARCH("6", F$19)),F$21,"0")),"0")*F123 -> 0 | G129: =IFERROR((IF(ISNUMBER(SEARCH("6", G$19)),G$21,"0")),"0")*G123 -> 0 | H129: =IFERROR((IF(ISNUMBER(SEARCH("6", H$19)),H$21,"0")),"0")*H123 -> 0 | I129: 0 | M129: 0 | N129: 0 | O129: 0 | P129: 0 | Q129: 0
A131: =Data_Sheet!A127 -> Attainment Level 1: 60% students scoring more than 60% of the Total Marks
A132: =Data_Sheet!A128 -> Attainment Level 2: 70% students scoring more than 60% of the Total Marks
A133: =Data_Sheet!A129 -> Attainment Level 3: 80% students scoring more than 60% of the Total Marks
B135: =Data_Sheet!B10 -> Name of Faculty : | C135: =Data_Sheet!B11 -> Namitha T N
B136: =Data_Sheet!B136 -> Dated Signature :
B138: Last Row Count | C138: =ROW(A118)-2 -> 116 | D138: =SUBSTITUTE(ADDRESS(1,COLUMN(D1),2),"1","")&$C$138 -> D$116 | E138: ="E"&$C$138 -> E116 | F138: =SUBSTITUTE(ADDRESS(1,COLUMN(F1),2),"1","")&$C$138 -> F$116 | G138: =SUBSTITUTE(ADDRESS(1,COLUMN(G1),2),"1","")&$C$138 -> G$116 | H138: =SUBSTITUTE(ADDRESS(1,COLUMN(H1),2),"1","")&$C$138 -> H$116
C141: CO1 | D141: =IFERROR((IF(ISNUMBER(SEARCH("1", D$19)),D$21,"0")),"0") -> 0 | E141: =IFERROR((IF(ISNUMBER(SEARCH("1", E$19)),E$21,"0")),"0") -> 0 | F141: 0 | G141: 0 | H141: 0 | I141: =IFERROR(SUM($D141:INDIRECT($L141)),"0") -> 0 | L141: =SUBSTITUTE(ADDRESS(1,N141,4),1,"")&ROW($I141) -> H141 | M141: =COUNTIF($D$20:INDIRECT($O141),"*1*") -> 0 | N141: =COLUMN($I$19)-1 -> 8 | O141: =SUBSTITUTE(ADDRESS(1,N141,4),1,"")&ROW($I$19)+1 -> H20 | P141: Total Marks
C142: CO2 | D142: =IFERROR((IF(ISNUMBER(SEARCH("2", D$19)),D$21,"0")),"0") -> 0 | E142: =IFERROR((IF(ISNUMBER(SEARCH("2", E$19)),E$21,"0")),"0") -> 0 | F142: 0 | G142: 0 | H142: 0 | I142: =IFERROR(SUM($D142:INDIRECT($L142)),"0") -> 0 | L142: H142 | M142: =COUNTIF($D$20:INDIRECT($O142),"*2*") -> 0 | N142: 8 | O142: H20
C143: CO3 | D143: =IFERROR((IF(ISNUMBER(SEARCH("3", D$19)),D$21,"0")),"0") -> 5 | E143: =IFERROR((IF(ISNUMBER(SEARCH("3", E$19)),E$21,"0")),"0") -> 5 | F143: 0 | G143: 0 | H143: 0 | I143: =IFERROR(SUM($D143:INDIRECT($L143)),"0") -> 10 | L143: H143 | M143: =COUNTIF($D$20:INDIRECT($O143),"*3*") -> 0 | N143: 8 | O143: H20
C144: CO4 | D144: =IFERROR((IF(ISNUMBER(SEARCH("4", D$19)),D$21,"0")),"0") -> 0 | E144: =IFERROR((IF(ISNUMBER(SEARCH("4", E$19)),E$21,"0")),"0") -> 0 | F144: 5 | G144: 5 | H144: 0 | I144: =IFERROR(SUM($D144:INDIRECT($L144)),"0") -> 10 | L144: H144 | M144: =COUNTIF($D$20:INDIRECT($O144),"*4*") -> 0 | N144: 8 | O144: H20
C145: CO5 | D145: =IFERROR((IF(ISNUMBER(SEARCH("5", D$19)),D$21,"0")),"0") -> 0 | E145: =IFERROR((IF(ISNUMBER(SEARCH("5", E$19)),E$21,"0")),"0") -> 0 | F145: 0 | G145: 0 | H145: 5 | I145: =IFERROR(SUM($D145:INDIRECT($L145)),"0") -> 5 | L145: H145 | M145: =COUNTIF($D$20:INDIRECT($O145),"*5*") -> 0 | N145: 8 | O145: H20
C146: CO6 | D146: =IFERROR((IF(ISNUMBER(SEARCH("6", D$19)),D$21,"0")),"0") -> 0 | E146: =IFERROR((IF(ISNUMBER(SEARCH("6", E$19)),E$21,"0")),"0") -> 0 | F146: 0 | G146: 0 | H146: 0 | I146: =IFERROR(SUM($D146:INDIRECT($L146)),"0") -> 0 | L146: H146 | M146: =COUNTIF($D$20:INDIRECT($O146),"*6*") -> 0 | N146: 8 | O146: H20
C148: CO1 | D148: =IFERROR((IF(ISNUMBER(SEARCH("1", D$19)),D$118,"0")),"0") -> 0 | E148: =IFERROR((IF(ISNUMBER(SEARCH("1", E$19)),E$118,"0")),"0") -> 0 | F148: 0 | G148: 0 | H148: 0 | I148: =IFERROR(SUM($D148:INDIRECT($L148)),"0") -> 0 | L148: =SUBSTITUTE(ADDRESS(1,N148,4),1,"")&ROW($I148) -> H148 | M148: =COUNTIF($D$20:INDIRECT($O148),"*1*") -> 0 | N148: =COLUMN($I$19)-1 -> 8 | O148: =SUBSTITUTE(ADDRESS(1,N148,4),1,"")&ROW($I$19)+1 -> H20 | P148: Total Marks Scored
C149: CO2 | D149: =IFERROR((IF(ISNUMBER(SEARCH("2", D$19)),D$118,"0")),"0") -> 0 | E149: =IFERROR((IF(ISNUMBER(SEARCH("2", E$19)),E$118,"0")),"0") -> 0 | F149: 0 | G149: 0 | H149: 0 | I149: =IFERROR(SUM($D149:INDIRECT($L149)),"0") -> 0 | L149: H149 | M149: =COUNTIF($D$20:INDIRECT($O149),"*2*") -> 0 | N149: 8 | O149: H20
C150: CO3 | D150: =IFERROR((IF(ISNUMBER(SEARCH("3", D$19)),D$118,"0")),"0") -> 0 | E150: =IFERROR((IF(ISNUMBER(SEARCH("3", E$19)),E$118,"0")),"0") -> 0 | F150: 0 | G150: 0 | H150: 0 | I150: =IFERROR(SUM($D150:INDIRECT($L150)),"0") -> 0 | L150: H150 | M150: =COUNTIF($D$20:INDIRECT($O150),"*3*") -> 0 | N150: 8 | O150: H20
C151: CO4 | D151: =IFERROR((IF(ISNUMBER(SEARCH("4", D$19)),D$118,"0")),"0") -> 0 | E151: =IFERROR((IF(ISNUMBER(SEARCH("4", E$19)),E$118,"0")),"0") -> 0 | F151: 0 | G151: 0 | H151: 0 | I151: =IFERROR(SUM($D151:INDIRECT($L151)),"0") -> 0 | L151: H151 | M151: =COUNTIF($D$20:INDIRECT($O151),"*4*") -> 0 | N151: 8 | O151: H20
C152: CO5 | D152: =IFERROR((IF(ISNUMBER(SEARCH("5", D$19)),D$118,"0")),"0") -> 0 | E152: =IFERROR((IF(ISNUMBER(SEARCH("5", E$19)),E$118,"0")),"0") -> 0 | F152: 0 | G152: 0 | H152: 0 | I152: =IFERROR(SUM($D152:INDIRECT($L152)),"0") -> 0 | L152: H152 | M152: =COUNTIF($D$20:INDIRECT($O152),"*5*") -> 0 | N152: 8 | O152: H20
C153: CO6 | D153: =IFERROR((IF(ISNUMBER(SEARCH("6", D$19)),D$118,"0")),"0") -> 0 | E153: =IFERROR((IF(ISNUMBER(SEARCH("6", E$19)),E$118,"0")),"0") -> 0 | F153: 0 | G153: 0 | H153: 0 | I153: =IFERROR(SUM($D153:INDIRECT($L153)),"0") -> 0 | L153: H153 | M153: =COUNTIF($D$20:INDIRECT($O153),"*6*") -> 0 | N153: 8 | O153: H20
C155: CO1 | D155: =IFERROR((IF(ISNUMBER(SEARCH("1", D$19)),D$119,"0")),"0") -> 0 | E155: =IFERROR((IF(ISNUMBER(SEARCH("1", E$19)),E$119,"0")),"0") -> 0 | F155: 0 | G155: 0 | H155: 0 | I155: =IFERROR(SUM($D155:INDIRECT($L155)),"0") -> 0 | L155: =SUBSTITUTE(ADDRESS(1,N155,4),1,"")&ROW($I155) -> H155 | M155: =COUNTIF($D$20:INDIRECT($O155),"*1*") -> 0 | N155: =COLUMN($I$19)-1 -> 8 | O155: =SUBSTITUTE(ADDRESS(1,N155,4),1,"")&ROW($I$19)+1 -> H20 | P155: No of Studdents Attended
C156: CO2 | D156: =IFERROR((IF(ISNUMBER(SEARCH("2", D$19)),D$119,"0")),"0") -> 0 | E156: =IFERROR((IF(ISNUMBER(SEARCH("2", E$19)),E$119,"0")),"0") -> 0 | F156: 0 | G156: 0 | H156: 0 | I156: =IFERROR(SUM($D156:INDIRECT($L156)),"0") -> 0 | L156: H156 | M156: =COUNTIF($D$20:INDIRECT($O156),"*2*") -> 0 | N156: 8 | O156: H20
C157: CO3 | D157: =IFERROR((IF(ISNUMBER(SEARCH("3", D$19)),D$119,"0")),"0") -> 0 | E157: =IFERROR((IF(ISNUMBER(SEARCH("3", E$19)),E$119,"0")),"0") -> 0 | F157: 0 | G157: 0 | H157: 0 | I157: =IFERROR(SUM($D157:INDIRECT($L157)),"0") -> 0 | L157: H157 | M157: =COUNTIF($D$20:INDIRECT($O157),"*3*") -> 0 | N157: 8 | O157: H20
C158: CO4 | D158: =IFERROR((IF(ISNUMBER(SEARCH("4", D$19)),D$119,"0")),"0") -> 0 | E158: =IFERROR((IF(ISNUMBER(SEARCH("4", E$19)),E$119,"0")),"0") -> 0 | F158: 0 | G158: 0 | H158: 0 | I158: =IFERROR(SUM($D158:INDIRECT($L158)),"0") -> 0 | L158: H158 | M158: =COUNTIF($D$20:INDIRECT($O158),"*4*") -> 0 | N158: 8 | O158: H20
C159: CO5 | D159: =IFERROR((IF(ISNUMBER(SEARCH("5", D$19)),D$119,"0")),"0") -> 0 | E159: =IFERROR((IF(ISNUMBER(SEARCH("5", E$19)),E$119,"0")),"0") -> 0 | F159: 0 | G159: 0 | H159: 0 | I159: =IFERROR(SUM($D159:INDIRECT($L159)),"0") -> 0 | L159: H159 | M159: =COUNTIF($D$20:INDIRECT($O159),"*5*") -> 0 | N159: 8 | O159: H20
C160: CO6 | D160: =IFERROR((IF(ISNUMBER(SEARCH("6", D$19)),D$119,"0")),"0") -> 0 | E160: =IFERROR((IF(ISNUMBER(SEARCH("6", E$19)),E$119,"0")),"0") -> 0 | F160: 0 | G160: 0 | H160: 0 | I160: =IFERROR(SUM($D160:INDIRECT($L160)),"0") -> 0 | L160: H160 | M160: =COUNTIF($D$20:INDIRECT($O160),"*6*") -> 0 | N160: 8 | O160: H20
C162: CO1 | D162: =IFERROR((IF(ISNUMBER(SEARCH("1", D$19)),D$120,"0")),"0") -> 0 | E162: =IFERROR((IF(ISNUMBER(SEARCH("1", E$19)),E$120,"0")),"0") -> 0 | F162: 0 | G162: 0 | H162: 0 | I162: =IFERROR(SUM($D162:INDIRECT($L162)),"0") -> 0 | L162: =SUBSTITUTE(ADDRESS(1,N162,4),1,"")&ROW($I162) -> H162 | M162: =COUNTIF($D$20:INDIRECT($O162),"*1*") -> 0 | N162: =COLUMN($I$19)-1 -> 8 | O162: =SUBSTITUTE(ADDRESS(1,N162,4),1,"")&ROW($I$19)+1 -> H20 | P162: Difficulty Level
C163: CO2 | D163: =IFERROR((IF(ISNUMBER(SEARCH("2", D$19)),D$120,"0")),"0") -> 0 | E163: =IFERROR((IF(ISNUMBER(SEARCH("2", E$19)),E$120,"0")),"0") -> 0 | F163: 0 | G163: 0 | H163: 0 | I163: =IFERROR(SUM($D163:INDIRECT($L163)),"0") -> 0 | L163: H163 | M163: =COUNTIF($D$20:INDIRECT($O163),"*2*") -> 0 | N163: 8 | O163: H20
C164: CO3 | D164: =IFERROR((IF(ISNUMBER(SEARCH("3", D$19)),D$120,"0")),"0") -> 3 | E164: =IFERROR((IF(ISNUMBER(SEARCH("3", E$19)),E$120,"0")),"0") -> 3 | F164: 0 | G164: 0 | H164: 0 | I164: =IFERROR(SUM($D164:INDIRECT($L164)),"0") -> 6 | L164: H164 | M164: =COUNTIF($D$20:INDIRECT($O164),"*3*") -> 0 | N164: 8 | O164: H20
C165: CO4 | D165: =IFERROR((IF(ISNUMBER(SEARCH("4", D$19)),D$120,"0")),"0") -> 0 | E165: =IFERROR((IF(ISNUMBER(SEARCH("4", E$19)),E$120,"0")),"0") -> 0 | F165: 3 | G165: 3 | H165: 0 | I165: =IFERROR(SUM($D165:INDIRECT($L165)),"0") -> 6 | L165: H165 | M165: =COUNTIF($D$20:INDIRECT($O165),"*4*") -> 0 | N165: 8 | O165: H20
C166: CO5 | D166: =IFERROR((IF(ISNUMBER(SEARCH("5", D$19)),D$120,"0")),"0") -> 0 | E166: =IFERROR((IF(ISNUMBER(SEARCH("5", E$19)),E$120,"0")),"0") -> 0 | F166: 0 | G166: 0 | H166: 3 | I166: =IFERROR(SUM($D166:INDIRECT($L166)),"0") -> 3 | L166: H166 | M166: =COUNTIF($D$20:INDIRECT($O166),"*5*") -> 0 | N166: 8 | O166: H20
C167: CO6 | D167: =IFERROR((IF(ISNUMBER(SEARCH("6", D$19)),D$120,"0")),"0") -> 0 | E167: =IFERROR((IF(ISNUMBER(SEARCH("6", E$19)),E$120,"0")),"0") -> 0 | F167: 0 | G167: 0 | H167: 0 | I167: =IFERROR(SUM($D167:INDIRECT($L167)),"0") -> 0 | L167: H167 | M167: =COUNTIF($D$20:INDIRECT($O167),"*6*") -> 0 | N167: 8 | O167: H20
C169: CO1 | D169: =IFERROR((IF(ISNUMBER(SEARCH("1", D$19)),D$121,"0")),"0") -> 0 | E169: =IFERROR((IF(ISNUMBER(SEARCH("1", E$19)),E$121,"0")),"0") -> 0 | F169: 0 | G169: 0 | H169: 0 | I169: =IFERROR(SUM($D169:INDIRECT($L169)),"0") -> 0 | L169: =SUBSTITUTE(ADDRESS(1,N169,4),1,"")&ROW($I169) -> H169 | M169: =COUNTIF($D$20:INDIRECT($O169),"*1*") -> 0 | N169: =COLUMN($I$19)-1 -> 8 | O169: =SUBSTITUTE(ADDRESS(1,N169,4),1,"")&ROW($I$19)+1 -> H20 | P169: No of Studdents Above Difficulty Level
C170: CO2 | D170: =IFERROR((IF(ISNUMBER(SEARCH("2", D$19)),D$121,"0")),"0") -> 0 | E170: =IFERROR((IF(ISNUMBER(SEARCH("2", E$19)),E$121,"0")),"0") -> 0 | F170: 0 | G170: 0 | H170: 0 | I170: =IFERROR(SUM($D170:INDIRECT($L170)),"0") -> 0 | L170: H170 | M170: =COUNTIF($D$20:INDIRECT($O170),"*2*") -> 0 | N170: 8 | O170: H20
C171: CO3 | D171: =IFERROR((IF(ISNUMBER(SEARCH("3", D$19)),D$121,"0")),"0") ->  | E171: =IFERROR((IF(ISNUMBER(SEARCH("3", E$19)),E$121,"0")),"0") ->  | F171: 0 | G171: 0 | H171: 0 | I171: =IFERROR(SUM($D171:INDIRECT($L171)),"0") -> 0 | L171: H171 | M171: =COUNTIF($D$20:INDIRECT($O171),"*3*") -> 0 | N171: 8 | O171: H20
C172: CO4 | D172: =IFERROR((IF(ISNUMBER(SEARCH("4", D$19)),D$121,"0")),"0") -> 0 | E172: =IFERROR((IF(ISNUMBER(SEARCH("4", E$19)),E$121,"0")),"0") -> 0 | H172: 0 | I172: =IFERROR(SUM($D172:INDIRECT($L172)),"0") -> 0 | L172: H172 | M172: =COUNTIF($D$20:INDIRECT($O172),"*4*") -> 0 | N172: 8 | O172: H20
C173: CO5 | D173: =IFERROR((IF(ISNUMBER(SEARCH("5", D$19)),D$121,"0")),"0") -> 0 | E173: =IFERROR((IF(ISNUMBER(SEARCH("5", E$19)),E$121,"0")),"0") -> 0 | F173: 0 | G173: 0 | I173: =IFERROR(SUM($D173:INDIRECT($L173)),"0") -> 0 | L173: H173 | M173: =COUNTIF($D$20:INDIRECT($O173),"*5*") -> 0 | N173: 8 | O173: H20
C174: CO6 | D174: =IFERROR((IF(ISNUMBER(SEARCH("6", D$19)),D$121,"0")),"0") -> 0 | E174: =IFERROR((IF(ISNUMBER(SEARCH("6", E$19)),E$121,"0")),"0") -> 0 | F174: 0 | G174: 0 | H174: 0 | I174: =IFERROR(SUM($D174:INDIRECT($L174)),"0") -> 0 | L174: H174 | M174: =COUNTIF($D$20:INDIRECT($O174),"*6*") -> 0 | N174: 8 | O174: H20
C176: 1 | D176: =IFERROR((IF(ISNUMBER(SEARCH("1", D$20)),D$21/IF(LEN(D20)=16,6,IF(LEN(D20)=13,5,IF(LEN(D20)=10,4,IF(LEN(D20)=7,3,IF(LEN(D20)=4,2,1))))),"0")),"0") -> 0 | E176: =IFERROR((IF(ISNUMBER(SEARCH("1", E$20)),E$21/IF(LEN(E20)=16,6,IF(LEN(E20)=13,5,IF(LEN(E20)=10,4,IF(LEN(E20)=7,3,IF(LEN(E20)=4,2,1))))),"0")),"0") -> 0 | F176: =IFERROR((IF(ISNUMBER(SEARCH("1", F$20)),F$21/IF(LEN(F20)=16,6,IF(LEN(F20)=13,5,IF(LEN(F20)=10,4,IF(LEN(F20)=7,3,IF(LEN(F20)=4,2,1))))),"0")),"0") -> 0 | G176: =IFERROR((IF(ISNUMBER(SEARCH("1", G$20)),G$21/IF(LEN(G20)=16,6,IF(LEN(G20)=13,5,IF(LEN(G20)=10,4,IF(LEN(G20)=7,3,IF(LEN(G20)=4,2,1))))),"0")),"0") -> 0 | H176: =IFERROR((IF(ISNUMBER(SEARCH("1", H$20)),H$21/IF(LEN(H20)=16,6,IF(LEN(H20)=13,5,IF(LEN(H20)=10,4,IF(LEN(H20)=7,3,IF(LEN(H20)=4,2,1))))),"0")),"0") -> 0 | I176: =IFERROR(SUM($D176:INDIRECT($L176)),"0") -> 0 | L176: =SUBSTITUTE(ADDRESS(1,N176,4),1,"")&ROW($I176) -> H176 | M176: =COUNTIF($D$20:INDIRECT($O176),"1") -> 0 | N176: =COLUMN($I$18)-1 -> 8 | O176: =SUBSTITUTE(ADDRESS(1,N176,4),1,"")&ROW($I$19)+1 -> H20
C177: 2 | D177: =IFERROR((IF(ISNUMBER(SEARCH("2", D$20)),D$21/IF(LEN(D20)=16,6,IF(LEN(D20)=13,5,IF(LEN(D20)=10,4,IF(LEN(D20)=7,3,IF(LEN(D20)=4,2,1))))),"0")),"0") -> 0 | E177: =IFERROR((IF(ISNUMBER(SEARCH("2", E$20)),E$21/IF(LEN(E20)=16,6,IF(LEN(E20)=13,5,IF(LEN(E20)=10,4,IF(LEN(E20)=7,3,IF(LEN(E20)=4,2,1))))),"0")),"0") -> 0 | F177: =IFERROR((IF(ISNUMBER(SEARCH("2", F$20)),F$21/IF(LEN(F20)=16,6,IF(LEN(F20)=13,5,IF(LEN(F20)=10,4,IF(LEN(F20)=7,3,IF(LEN(F20)=4,2,1))))),"0")),"0") -> 0 | G177: =IFERROR((IF(ISNUMBER(SEARCH("2", G$20)),G$21/IF(LEN(G20)=16,6,IF(LEN(G20)=13,5,IF(LEN(G20)=10,4,IF(LEN(G20)=7,3,IF(LEN(G20)=4,2,1))))),"0")),"0") -> 0 | H177: =IFERROR((IF(ISNUMBER(SEARCH("2", H$20)),H$21/IF(LEN(H20)=16,6,IF(LEN(H20)=13,5,IF(LEN(H20)=10,4,IF(LEN(H20)=7,3,IF(LEN(H20)=4,2,1))))),"0")),"0") -> 0 | I177: =IFERROR(SUM($D177:INDIRECT($L177)),"0") -> 0 | L177: =SUBSTITUTE(ADDRESS(1,N177,4),1,"")&ROW($I177) -> H177 | M177: =COUNTIF($D$20:INDIRECT($O177),"2") -> 0 | N177: 8 | O177: H20
C178: 3 | D178: =IFERROR((IF(ISNUMBER(SEARCH("3", D$20)),D$21/IF(LEN(D20)=16,6,IF(LEN(D20)=13,5,IF(LEN(D20)=10,4,IF(LEN(D20)=7,3,IF(LEN(D20)=4,2,1))))),"0")),"0") -> 0 | E178: =IFERROR((IF(ISNUMBER(SEARCH("3", E$20)),E$21/IF(LEN(E20)=16,6,IF(LEN(E20)=13,5,IF(LEN(E20)=10,4,IF(LEN(E20)=7,3,IF(LEN(E20)=4,2,1))))),"0")),"0") -> 0 | F178: =IFERROR((IF(ISNUMBER(SEARCH("3", F$20)),F$21/IF(LEN(F20)=16,6,IF(LEN(F20)=13,5,IF(LEN(F20)=10,4,IF(LEN(F20)=7,3,IF(LEN(F20)=4,2,1))))),"0")),"0") -> 0 | G178: =IFERROR((IF(ISNUMBER(SEARCH("3", G$20)),G$21/IF(LEN(G20)=16,6,IF(LEN(G20)=13,5,IF(LEN(G20)=10,4,IF(LEN(G20)=7,3,IF(LEN(G20)=4,2,1))))),"0")),"0") -> 0 | H178: =IFERROR((IF(ISNUMBER(SEARCH("3", H$20)),H$21/IF(LEN(H20)=16,6,IF(LEN(H20)=13,5,IF(LEN(H20)=10,4,IF(LEN(H20)=7,3,IF(LEN(H20)=4,2,1))))),"0")),"0") -> 0 | I178: =IFERROR(SUM($D178:INDIRECT($L178)),"0") -> 0 | L178: H178 | M178: =COUNTIF($D$20:INDIRECT($O178),"3") -> 0 | N178: 8 | O178: H20
C179: 4 | D179: =IFERROR((IF(ISNUMBER(SEARCH("4", D$20)),D$21/IF(LEN(D20)=16,6,IF(LEN(D20)=13,5,IF(LEN(D20)=10,4,IF(LEN(D20)=7,3,IF(LEN(D20)=4,2,1))))),"0")),"0") -> 0 | E179: =IFERROR((IF(ISNUMBER(SEARCH("4", E$20)),E$21/IF(LEN(E20)=16,6,IF(LEN(E20)=13,5,IF(LEN(E20)=10,4,IF(LEN(E20)=7,3,IF(LEN(E20)=4,2,1))))),"0")),"0") -> 0 | F179: =IFERROR((IF(ISNUMBER(SEARCH("4", F$20)),F$21/IF(LEN(F20)=16,6,IF(LEN(F20)=13,5,IF(LEN(F20)=10,4,IF(LEN(F20)=7,3,IF(LEN(F20)=4,2,1))))),"0")),"0") -> 0 | G179: =IFERROR((IF(ISNUMBER(SEARCH("4", G$20)),G$21/IF(LEN(G20)=16,6,IF(LEN(G20)=13,5,IF(LEN(G20)=10,4,IF(LEN(G20)=7,3,IF(LEN(G20)=4,2,1))))),"0")),"0") -> 0 | H179: =IFERROR((IF(ISNUMBER(SEARCH("4", H$20)),H$21/IF(LEN(H20)=16,6,IF(LEN(H20)=13,5,IF(LEN(H20)=10,4,IF(LEN(H20)=7,3,IF(LEN(H20)=4,2,1))))),"0")),"0") -> 0 | I179: =IFERROR(SUM($D179:INDIRECT($L179)),"0") -> 0 | L179: H179 | M179: =COUNTIF($D$20:INDIRECT($O179),"4") -> 0 | N179: 8 | O179: H20
C180: 5 | D180: =IFERROR((IF(ISNUMBER(SEARCH("5", D$20)),D$21/IF(LEN(D20)=16,6,IF(LEN(D20)=13,5,IF(LEN(D20)=10,4,IF(LEN(D20)=7,3,IF(LEN(D20)=4,2,1))))),"0")),"0") -> 5 | E180: =IFERROR((IF(ISNUMBER(SEARCH("5", E$20)),E$21/IF(LEN(E20)=16,6,IF(LEN(E20)=13,5,IF(LEN(E20)=10,4,IF(LEN(E20)=7,3,IF(LEN(E20)=4,2,1))))),"0")),"0") -> 5 | F180: =IFERROR((IF(ISNUMBER(SEARCH("5", F$20)),F$21/IF(LEN(F20)=16,6,IF(LEN(F20)=13,5,IF(LEN(F20)=10,4,IF(LEN(F20)=7,3,IF(LEN(F20)=4,2,1))))),"0")),"0") -> 5 | G180: =IFERROR((IF(ISNUMBER(SEARCH("5", G$20)),G$21/IF(LEN(G20)=16,6,IF(LEN(G20)=13,5,IF(LEN(G20)=10,4,IF(LEN(G20)=7,3,IF(LEN(G20)=4,2,1))))),"0")),"0") -> 0 | H180: =IFERROR((IF(ISNUMBER(SEARCH("5", H$20)),H$21/IF(LEN(H20)=16,6,IF(LEN(H20)=13,5,IF(LEN(H20)=10,4,IF(LEN(H20)=7,3,IF(LEN(H20)=4,2,1))))),"0")),"0") -> 0 | I180: =IFERROR(SUM($D180:INDIRECT($L180)),"0") -> 15 | L180: H180 | M180: =COUNTIF($D$20:INDIRECT($O180),"5") -> 3 | N180: 8 | O180: H20
C181: 6 | D181: =IFERROR((IF(ISNUMBER(SEARCH("6", D$20)),D$21/IF(LEN(D20)=16,6,IF(LEN(D20)=13,5,IF(LEN(D20)=10,4,IF(LEN(D20)=7,3,IF(LEN(D20)=4,2,1))))),"0")),"0") -> 0 | E181: =IFERROR((IF(ISNUMBER(SEARCH("6", E$20)),E$21/IF(LEN(E20)=16,6,IF(LEN(E20)=13,5,IF(LEN(E20)=10,4,IF(LEN(E20)=7,3,IF(LEN(E20)=4,2,1))))),"0")),"0") -> 0 | F181: =IFERROR((IF(ISNUMBER(SEARCH("6", F$20)),F$21/IF(LEN(F20)=16,6,IF(LEN(F20)=13,5,IF(LEN(F20)=10,4,IF(LEN(F20)=7,3,IF(LEN(F20)=4,2,1))))),"0")),"0") -> 0 | G181: =IFERROR((IF(ISNUMBER(SEARCH("6", G$20)),G$21/IF(LEN(G20)=16,6,IF(LEN(G20)=13,5,IF(LEN(G20)=10,4,IF(LEN(G20)=7,3,IF(LEN(G20)=4,2,1))))),"0")),"0") -> 5 | H181: =IFERROR((IF(ISNUMBER(SEARCH("6", H$20)),H$21/IF(LEN(H20)=16,6,IF(LEN(H20)=13,5,IF(LEN(H20)=10,4,IF(LEN(H20)=7,3,IF(LEN(H20)=4,2,1))))),"0")),"0") -> 5 | I181: =IFERROR(SUM($D181:INDIRECT($L181)),"0") -> 10 | L181: H181 | M181: =COUNTIF($D$20:INDIRECT($O181),"6") -> 2 | N181: 8 | O181: H20

Sheet T3_Analysis
A3: =Data_Sheet!A2 -> Jyothi Engineering College, Cheruthuruthy
A5: =Data_Sheet!A4 -> Department of Computer Science Engineering
A7: ='T3'!A11 -> CO Analysis - Internal Marks : Retest 14-03-18
A9: =Data_Sheet!A17 -> S3 CS CS203 Switching Theory and Logic Design 2019-20
A22: ='T1'!A18 -> Register No. | B22: ='T1'!B18 -> Name of Student | C22: ='T3'!I18 -> Total Marks (50) | D22: Category
A24: Column1 | B24: Column2 | C24: Column3 | D24: Column4
A25: =Data_Sheet!A25 -> JEC18CS001 | B25: =Data_Sheet!B25 -> ABHISHEK KRISHNAN MENON E | C25: ='T3'!I25 -> 0 | D25: =IF(C25="A","ABSENT",IF(C25>='T3'!$F$5*$E$124/100,"EXCELLENT",IF(C25>='T3'!$F$5*$E$123/100,"GOOD",IF(C25>='T3'!$F$5*$E$122/100,"AVERAGE","POOR")))) -> POOR
A26: =Data_Sheet!A26 -> JEC18CS002 | B26: =Data_Sheet!B26 -> ABHISHEK SAJEEVAN | C26: ='T3'!I26 -> 0 | D26: =IF(C26="A","ABSENT",IF(C26>='T3'!$F$5*$E$124/100,"EXCELLENT",IF(C26>='T3'!$F$5*$E$123/100,"GOOD",IF(C26>='T3'!$F$5*$E$122/100,"AVERAGE","POOR")))) -> POOR
A27: =Data_Sheet!A27 -> JEC18CS003 | B27: =Data_Sheet!B27 -> ABHITH SHAJI | C27: ='T3'!I27 -> 0 | D27: =IF(C27="A","ABSENT",IF(C27>='T3'!$F$5*$E$124/100,"EXCELLENT",IF(C27>='T3'!$F$5*$E$123/100,"GOOD",IF(C27>='T3'!$F$5*$E$122/100,"AVERAGE","POOR")))) -> POOR
A28: =Data_Sheet!A28 -> JEC18CS004 | B28: =Data_Sheet!B28 -> ABIN SANTHOSH ALAPATT | C28: ='T3'!I28 -> 0 | D28: =IF(C28="A","ABSENT",IF(C28>='T3'!$F$5*$E$124/100,"EXCELLENT",IF(C28>='T3'!$F$5*$E$123/100,"GOOD",IF(C28>='T3'!$F$5*$E$122/100,"AVERAGE","POOR")))) -> POOR
A29: =Data_Sheet!A29 -> JEC18CS005 | B29: =Data_Sheet!B29 -> ADARSH KUMAR M A | C29: ='T3'!I29 -> 0 | D29: =IF(C29="A","ABSENT",IF(C29>='T3'!$F$5*$E$124/100,"EXCELLENT",IF(C29>='T3'!$F$5*$E$123/100,"GOOD",IF(C29>='T3'!$F$5*$E$122/100,"AVERAGE","POOR")))) -> POOR
A30: =Data_Sheet!A30 -> JEC18CS006 | B30: =Data_Sheet!B30 -> ADHITHYA KRISHNA S | C30: ='T3'!I30 -> 0 | D30: =IF(C30="A","ABSENT",IF(C30>='T3'!$F$5*$E$124/100,"EXCELLENT",IF(C30>='T3'!$F$5*$E$123/100,"GOOD",IF(C30>='T3'!$F$5*$E$122/100,"AVERAGE","POOR")))) -> POOR
A31: =Data_Sheet!A31 -> JEC18CS007 | B31: =Data_Sheet!B31 -> ADITHYA HARIDAS | C31: ='T3'!I31 -> 0 | D31: =IF(C31="A","ABSENT",IF(C31>='T3'!$F$5*$E$124/100,"EXCELLENT",IF(C31>='T3'!$F$5*$E$123/100,"GOOD",IF(C31>='T3'!$F$5*$E$122/100,"AVERAGE","POOR")))) -> POOR
A32: =Data_Sheet!A32 -> JEC18CS008 | B32: =Data_Sheet!B32 -> AJMAL BASHEER | C32: ='T3'!I32 -> 0 | D32: =IF(C32="A","ABSENT",IF(C32>='T3'!$F$5*$E$124/100,"EXCELLENT",IF(C32>='T3'!$F$5*$E$123/100,"GOOD",IF(C32>='T3'!$F$5*$E$122/100,"AVERAGE","POOR")))) -> POOR
A33: =Data_Sheet!A33 -> JEC18CS009 | B33: =Data_Sheet!B33 -> AKASH.V | C33: ='T3'!I33 -> 0 | D33: =IF(C33="A","ABSENT",IF(C33>='T3'!$F$5*$E$124/100,"EXCELLENT",IF(C33>='T3'!$F$5*$E$123/100,"GOOD",IF(C33>='T3'!$F$5*$E$122/100,"AVERAGE","POOR")))) -> POOR
A34: =Data_Sheet!A34 -> JEC18CS010 | B34: =Data_Sheet!B34 -> AKHIL AZEEZ UPPILAMKUNNATH | C34: ='T3'!I34 -> 0 | D34: =IF(C34="A","ABSENT",IF(C34>='T3'!$F$5*$E$124/100,"EXCELLENT",IF(C34>='T3'!$F$5*$E$123/100,"GOOD",IF(C34>='T3'!$F$5*$E$122/100,"AVERAGE","POOR")))) -> POOR
A35: =Data_Sheet!A35 -> JEC18CS011 | B35: =Data_Sheet!B35 -> AKHIL KRISHNA UK | C35: ='T3'!I35 -> 0 | D35: =IF(C35="A","ABSENT",IF(C35>='T3'!$F$5*$E$124/100,"EXCELLENT",IF(C35>='T3'!$F$5*$E$123/100,"GOOD",IF(C35>='T3'!$F$5*$E$122/100,"AVERAGE","POOR")))) -> POOR
A36: =Data_Sheet!A36 -> JEC18CS012 | B36: =Data_Sheet!B36 -> ALAN GEORGE | C36: ='T3'!I36 -> 0 | D36: =IF(C36="A","ABSENT",IF(C36>='T3'!$F$5*$E$124/100,"EXCELLENT",IF(C36>='T3'!$F$5*$E$123/100,"GOOD",IF(C36>='T3'!$F$5*$E$122/100,"AVERAGE","POOR")))) -> POOR
A37: =Data_Sheet!A37 -> JEC18CS013 | B37: =Data_Sheet!B37 -> ALEN VARGHESE | C37: ='T3'!I37 -> 0 | D37: =IF(C37="A","ABSENT",IF(C37>='T3'!$F$5*$E$124/100,"EXCELLENT",IF(C37>='T3'!$F$5*$E$123/100,"GOOD",IF(C37>='T3'!$F$5*$E$122/100,"AVERAGE","POOR")))) -> POOR
A38: =Data_Sheet!A38 -> JEC18CS014 | B38: =Data_Sheet!B38 -> AMAL SEBASTIAN | C38: ='T3'!I38 -> 0 | D38: =IF(C38="A","ABSENT",IF(C38>='T3'!$F$5*$E$124/100,"EXCELLENT",IF(C38>='T3'!$F$5*$E$123/100,"GOOD",IF(C38>='T3'!$F$5*$E$122/100,"AVERAGE","POOR")))) -> POOR
A39: =Data_Sheet!A39 -> JEC18CS015 | B39: =Data_Sheet!B39 -> AMAL SONY | C39: ='T3'!I39 -> 0 | D39: =IF(C39="A","ABSENT",IF(C39>='T3'!$F$5*$E$124/100,"EXCELLENT",IF(C39>='T3'!$F$5*$E$123/100,"GOOD",IF(C39>='T3'!$F$5*$E$122/100,"AVERAGE","POOR")))) -> POOR
A40: =Data_Sheet!A40 -> JEC18CS016 | B40: =Data_Sheet!B40 -> ANAGHA WILSON | C40: ='T3'!I40 -> 0 | D40: =IF(C40="A","ABSENT",IF(C40>='T3'!$F$5*$E$124/100,"EXCELLENT",IF(C40>='T3'!$F$5*$E$123/100,"GOOD",IF(C40>='T3'!$F$5*$E$122/100,"AVERAGE","POOR")))) -> POOR
A41: =Data_Sheet!A41 -> JEC18CS017 | B41: =Data_Sheet!B41 -> ANETTE ANTO | C41: ='T3'!I41 -> 0 | D41: =IF(C41="A","ABSENT",IF(C41>='T3'!$F$5*$E$124/100,"EXCELLENT",IF(C41>='T3'!$F$5*$E$123/100,"GOOD",IF(C41>='T3'!$F$5*$E$122/100,"AVERAGE","POOR")))) -> POOR
A42: =Data_Sheet!A42 -> JEC18CS018 | B42: =Data_Sheet!B42 -> ANIT MARY THOMAS | C42: ='T3'!I42 -> 0 | D42: =IF(C42="A","ABSENT",IF(C42>='T3'!$F$5*$E$124/100,"EXCELLENT",IF(C42>='T3'!$F$5*$E$123/100,"GOOD",IF(C42>='T3'!$F$5*$E$122/100,"AVERAGE","POOR")))) -> POOR
A43: =Data_Sheet!A43 -> JEC18CS020 | B43: =Data_Sheet!B43 -> ANN THERESA SHAJI | C43: ='T3'!I43 -> 0 | D43: =IF(C43="A","ABSENT",IF(C43>='T3'!$F$5*$E$124/100,"EXCELLENT",IF(C43>='T3'!$F$5*$E$123/100,"GOOD",IF(C43>='T3'!$F$5*$E$122/100,"AVERAGE","POOR")))) -> POOR
A44: =Data_Sheet!A44 -> JEC18CS021 | B44: =Data_Sheet!B44 -> ANTONY ROY | C44: ='T3'!I44 -> 0 | D44: =IF(C44="A","ABSENT",IF(C44>='T3'!$F$5*$E$124/100,"EXCELLENT",IF(C44>='T3'!$F$5*$E$123/100,"GOOD",IF(C44>='T3'!$F$5*$E$122/100,"AVERAGE","POOR")))) -> POOR
A45: =Data_Sheet!A45 -> JEC18CS022 | B45: =Data_Sheet!B45 -> ANUGRAHA C | C45: ='T3'!I45 -> 0 | D45: =IF(C45="A","ABSENT",IF(C45>='T3'!$F$5*$E$124/100,"EXCELLENT",IF(C45>='T3'!$F$5*$E$123/100,"GOOD",IF(C45>='T3'!$F$5*$E$122/100,"AVERAGE","POOR")))) -> POOR
A46: =Data_Sheet!A46 -> JEC18CS023 | B46: =Data_Sheet!B46 -> APARNA.V | C46: ='T3'!I46 -> 0 | D46: =IF(C46="A","ABSENT",IF(C46>='T3'!$F$5*$E$124/100,"EXCELLENT",IF(C46>='T3'!$F$5*$E$123/100,"GOOD",IF(C46>='T3'!$F$5*$E$122/100,"AVERAGE","POOR")))) -> POOR
A47: =Data_Sheet!A47 -> JEC18CS024 | B47: =Data_Sheet!B47 -> ARAVIND S KUMAR | C47: ='T3'!I47 -> 0 | D47: =IF(C47="A","ABSENT",IF(C47>='T3'!$F$5*$E$124/100,"EXCELLENT",IF(C47>='T3'!$F$5*$E$123/100,"GOOD",IF(C47>='T3'!$F$5*$E$122/100,"AVERAGE","POOR")))) -> POOR
A48: =Data_Sheet!A48 -> JEC18CS025 | B48: =Data_Sheet!B48 -> ARJUN VINOD | C48: ='T3'!I48 -> 0 | D48: =IF(C48="A","ABSENT",IF(C48>='T3'!$F$5*$E$124/100,"EXCELLENT",IF(C48>='T3'!$F$5*$E$123/100,"GOOD",IF(C48>='T3'!$F$5*$E$122/100,"AVERAGE","POOR")))) -> POOR
A49: =Data_Sheet!A49 -> JEC18CS026 | B49: =Data_Sheet!B49 -> ARUN VG | C49: ='T3'!I49 -> 0 | D49: =IF(C49="A","ABSENT",IF(C49>='T3'!$F$5*$E$124/100,"EXCELLENT",IF(C49>='T3'!$F$5*$E$123/100,"GOOD",IF(C49>='T3'!$F$5*$E$122/100,"AVERAGE","POOR")))) -> POOR
A50: =Data_Sheet!A50 -> JEC18CS027 | B50: =Data_Sheet!B50 -> ASHRUL K | C50: ='T3'!I50 -> 0 | D50: =IF(C50="A","ABSENT",IF(C50>='T3'!$F$5*$E$124/100,"EXCELLENT",IF(C50>='T3'!$F$5*$E$123/100,"GOOD",IF(C50>='T3'!$F$5*$E$122/100,"AVERAGE","POOR")))) -> POOR
A51: =Data_Sheet!A51 -> JEC18CS028 | B51: =Data_Sheet!B51 -> ATHIL PAULY | C51: ='T3'!I51 -> 0 | D51: =IF(C51="A","ABSENT",IF(C51>='T3'!$F$5*$E$124/100,"EXCELLENT",IF(C51>='T3'!$F$5*$E$123/100,"GOOD",IF(C51>='T3'!$F$5*$E$122/100,"AVERAGE","POOR")))) -> POOR
A52: =Data_Sheet!A52 -> JEC18CS029 | B52: =Data_Sheet!B52 -> ATHIRA K P | C52: ='T3'!I52 -> 0 | D52: =IF(C52="A","ABSENT",IF(C52>='T3'!$F$5*$E$124/100,"EXCELLENT",IF(C52>='T3'!$F$5*$E$123/100,"GOOD",IF(C52>='T3'!$F$5*$E$122/100,"AVERAGE","POOR")))) -> POOR
A53: =Data_Sheet!A53 -> JEC18CS030 | B53: =Data_Sheet!B53 -> AWIN ANTO | C53: ='T3'!I53 -> 0 | D53: =IF(C53="A","ABSENT",IF(C53>='T3'!$F$5*$E$124/100,"EXCELLENT",IF(C53>='T3'!$F$5*$E$123/100,"GOOD",IF(C53>='T3'!$F$5*$E$122/100,"AVERAGE","POOR")))) -> POOR
A54: =Data_Sheet!A54 -> JEC18CS031 | B54: =Data_Sheet!B54 -> CHARLES JOHNSON | C54: ='T3'!I54 -> 0 | D54: =IF(C54="A","ABSENT",IF(C54>='T3'!$F$5*$E$124/100,"EXCELLENT",IF(C54>='T3'!$F$5*$E$123/100,"GOOD",IF(C54>='T3'!$F$5*$E$122/100,"AVERAGE","POOR")))) -> POOR
A55: =Data_Sheet!A55 -> JEC18CS032 | B55: =Data_Sheet!B55 -> CHITTILAPPILLY JOVIA JOHNSON | C55: ='T3'!I55 -> 0 | D55: =IF(C55="A","ABSENT",IF(C55>='T3'!$F$5*$E$124/100,"EXCELLENT",IF(C55>='T3'!$F$5*$E$123/100,"GOOD",IF(C55>='T3'!$F$5*$E$122/100,"AVERAGE","POOR")))) -> POOR
A56: =Data_Sheet!A56 -> JEC18CS033 | B56: =Data_Sheet!B56 -> CIYA BABU | C56: ='T3'!I56 -> 0 | D56: =IF(C56="A","ABSENT",IF(C56>='T3'!$F$5*$E$124/100,"EXCELLENT",IF(C56>='T3'!$F$5*$E$123/100,"GOOD",IF(C56>='T3'!$F$5*$E$122/100,"AVERAGE","POOR")))) -> POOR
A57: =Data_Sheet!A57 -> JEC18CS034 | B57: =Data_Sheet!B57 -> DAVID SALUS | C57: ='T3'!I57 -> 0 | D57: =IF(C57="A","ABSENT",IF(C57>='T3'!$F$5*$E$124/100,"EXCELLENT",IF(C57>='T3'!$F$5*$E$123/100,"GOOD",IF(C57>='T3'!$F$5*$E$122/100,"AVERAGE","POOR")))) -> POOR
A58: =Data_Sheet!A58 -> JEC18CS035 | B58: =Data_Sheet!B58 -> DELICIA REJI | C58: ='T3'!I58 -> 0 | D58: =IF(C58="A","ABSENT",IF(C58>='T3'!$F$5*$E$124/100,"EXCELLENT",IF(C58>='T3'!$F$5*$E$123/100,"GOOD",IF(C58>='T3'!$F$5*$E$122/100,"AVERAGE","POOR")))) -> POOR
A59: =Data_Sheet!A59 -> JEC18CS036 | B59: =Data_Sheet!B59 -> DELMA SHAJAN | C59: ='T3'!I59 -> 0 | D59: =IF(C59="A","ABSENT",IF(C59>='T3'!$F$5*$E$124/100,"EXCELLENT",IF(C59>='T3'!$F$5*$E$123/100,"GOOD",IF(C59>='T3'!$F$5*$E$122/100,"AVERAGE","POOR")))) -> POOR
A60: =Data_Sheet!A60 -> JEC18CS037 | B60: =Data_Sheet!B60 -> DILBER SHA AP | C60: ='T3'!I60 -> 0 | D60: =IF(C60="A","ABSENT",IF(C60>='T3'!$F$5*$E$124/100,"EXCELLENT",IF(C60>='T3'!$F$5*$E$123/100,"GOOD",IF(C60>='T3'!$F$5*$E$122/100,"AVERAGE","POOR")))) -> POOR
A61: =Data_Sheet!A61 -> JEC18CS038 | B61: =Data_Sheet!B61 -> EDWIN T JOY | C61: ='T3'!I61 -> 0 | D61: =IF(C61="A","ABSENT",IF(C61>='T3'!$F$5*$E$124/100,"EXCELLENT",IF(C61>='T3'!$F$5*$E$123/100,"GOOD",IF(C61>='T3'!$F$5*$E$122/100,"AVERAGE","POOR")))) -> POOR
A62: =Data_Sheet!A62 -> JEC18CS039 | B62: =Data_Sheet!B62 -> EDWIN WILSON | C62: ='T3'!I62 -> 0 | D62: =IF(C62="A","ABSENT",IF(C62>='T3'!$F$5*$E$124/100,"EXCELLENT",IF(C62>='T3'!$F$5*$E$123/100,"GOOD",IF(C62>='T3'!$F$5*$E$122/100,"AVERAGE","POOR")))) -> POOR
A63: =Data_Sheet!A63 -> JEC18CS040 | B63: =Data_Sheet!B63 -> EMMANUEL SHIBU | C63: ='T3'!I63 -> 0 | D63: =IF(C63="A","ABSENT",IF(C63>='T3'!$F$5*$E$124/100,"EXCELLENT",IF(C63>='T3'!$F$5*$E$123/100,"GOOD",IF(C63>='T3'!$F$5*$E$122/100,"AVERAGE","POOR")))) -> POOR
A64: =Data_Sheet!A64 -> JEC18CS041 | B64: =Data_Sheet!B64 -> GAYATHRI DINESH | C64: ='T3'!I64 -> 0 | D64: =IF(C64="A","ABSENT",IF(C64>='T3'!$F$5*$E$124/100,"EXCELLENT",IF(C64>='T3'!$F$5*$E$123/100,"GOOD",IF(C64>='T3'!$F$5*$E$122/100,"AVERAGE","POOR")))) -> POOR
A65: =Data_Sheet!A65 -> JEC18CS042 | B65: =Data_Sheet!B65 -> GOKUL DAS M | C65: ='T3'!I65 -> 0 | D65: =IF(C65="A","ABSENT",IF(C65>='T3'!$F$5*$E$124/100,"EXCELLENT",IF(C65>='T3'!$F$5*$E$123/100,"GOOD",IF(C65>='T3'!$F$5*$E$122/100,"AVERAGE","POOR")))) -> POOR
A66: =Data_Sheet!A66 -> JEC18CS043 | B66: =Data_Sheet!B66 -> G RAMGOPAL | C66: ='T3'!I66 -> 0 | D66: =IF(C66="A","ABSENT",IF(C66>='T3'!$F$5*$E$124/100,"EXCELLENT",IF(C66>='T3'!$F$5*$E$123/100,"GOOD",IF(C66>='T3'!$F$5*$E$122/100,"AVERAGE","POOR")))) -> POOR
A67: =Data_Sheet!A67 -> JEC18CS044 | B67: =Data_Sheet!B67 -> HARIES DAVIS | C67: ='T3'!I67 -> 0 | D67: =IF(C67="A","ABSENT",IF(C67>='T3'!$F$5*$E$124/100,"EXCELLENT",IF(C67>='T3'!$F$5*$E$123/100,"GOOD",IF(C67>='T3'!$F$5*$E$122/100,"AVERAGE","POOR")))) -> POOR
A68: =Data_Sheet!A68 -> JEC18CS045 | B68: =Data_Sheet!B68 -> HARISANKER P | C68: ='T3'!I68 -> 0 | D68: =IF(C68="A","ABSENT",IF(C68>='T3'!$F$5*$E$124/100,"EXCELLENT",IF(C68>='T3'!$F$5*$E$123/100,"GOOD",IF(C68>='T3'!$F$5*$E$122/100,"AVERAGE","POOR")))) -> POOR
A69: =Data_Sheet!A69 -> JEC18CS046 | B69: =Data_Sheet!B69 -> HARSHA.K.S. | C69: ='T3'!I69 -> 0 | D69: =IF(C69="A","ABSENT",IF(C69>='T3'!$F$5*$E$124/100,"EXCELLENT",IF(C69>='T3'!$F$5*$E$123/100,"GOOD",IF(C69>='T3'!$F$5*$E$122/100,"AVERAGE","POOR")))) -> POOR
A70: =Data_Sheet!A70 -> JEC18CS047 | B70: =Data_Sheet!B70 -> HELNA THOMAS | C70: ='T3'!I70 -> 0 | D70: =IF(C70="A","ABSENT",IF(C70>='T3'!$F$5*$E$124/100,"EXCELLENT",IF(C70>='T3'!$F$5*$E$123/100,"GOOD",IF(C70>='T3'!$F$5*$E$122/100,"AVERAGE","POOR")))) -> POOR
A71: =Data_Sheet!A71 -> JEC18CS048 | B71: =Data_Sheet!B71 -> HRIDI KRISHNA.H | C71: ='T3'!I71 -> 0 | D71: =IF(C71="A","ABSENT",IF(C71>='T3'!$F$5*$E$124/100,"EXCELLENT",IF(C71>='T3'!$F$5*$E$123/100,"GOOD",IF(C71>='T3'!$F$5*$E$122/100,"AVERAGE","POOR")))) -> POOR
A72: =Data_Sheet!A72 -> JEC18CS049 | B72: =Data_Sheet!B72 -> INDRAJIT R | C72: ='T3'!I72 -> 0 | D72: =IF(C72="A","ABSENT",IF(C72>='T3'!$F$5*$E$124/100,"EXCELLENT",IF(C72>='T3'!$F$5*$E$123/100,"GOOD",IF(C72>='T3'!$F$5*$E$122/100,"AVERAGE","POOR")))) -> POOR
A73: =Data_Sheet!A73 -> JEC18CS050 | B73: =Data_Sheet!B73 -> JESWIN JOJY | C73: ='T3'!I73 -> 0 | D73: =IF(C73="A","ABSENT",IF(C73>='T3'!$F$5*$E$124/100,"EXCELLENT",IF(C73>='T3'!$F$5*$E$123/100,"GOOD",IF(C73>='T3'!$F$5*$E$122/100,"AVERAGE","POOR")))) -> POOR
A74: =Data_Sheet!A74 -> JEC18CS051 | B74: =Data_Sheet!B74 -> JIBIN A BABU | C74: ='T3'!I74 -> 0 | D74: =IF(C74="A","ABSENT",IF(C74>='T3'!$F$5*$E$124/100,"EXCELLENT",IF(C74>='T3'!$F$5*$E$123/100,"GOOD",IF(C74>='T3'!$F$5*$E$122/100,"AVERAGE","POOR")))) -> POOR
A75: =Data_Sheet!A75 -> JEC18CS052 | B75: =Data_Sheet!B75 -> JISSY JOY | C75: ='T3'!I75 -> 0 | D75: =IF(C75="A","ABSENT",IF(C75>='T3'!$F$5*$E$124/100,"EXCELLENT",IF(C75>='T3'!$F$5*$E$123/100,"GOOD",IF(C75>='T3'!$F$5*$E$122/100,"AVERAGE","POOR")))) -> POOR
A76: =Data_Sheet!A76 -> JEC18CS053 | B76: =Data_Sheet!B76 -> JOEL JAMES KARIKKANDATHIL | C76: ='T3'!I76 -> 0 | D76: =IF(C76="A","ABSENT",IF(C76>='T3'!$F$5*$E$124/100,"EXCELLENT",IF(C76>='T3'!$F$5*$E$123/100,"GOOD",IF(C76>='T3'!$F$5*$E$122/100,"AVERAGE","POOR")))) -> POOR
A77: =Data_Sheet!A77 -> JEC18CS054 | B77: =Data_Sheet!B77 -> JOSE REJI KARIMADATHI | C77: ='T3'!I77 -> 0 | D77: =IF(C77="A","ABSENT",IF(C77>='T3'!$F$5*$E$124/100,"EXCELLENT",IF(C77>='T3'!$F$5*$E$123/100,"GOOD",IF(C77>='T3'!$F$5*$E$122/100,"AVERAGE","POOR")))) -> POOR
A78: =Data_Sheet!A78 -> JEC18CS055 | B78: =Data_Sheet!B78 -> JUMANA HASIN | C78: ='T3'!I78 -> 0 | D78: =IF(C78="A","ABSENT",IF(C78>='T3'!$F$5*$E$124/100,"EXCELLENT",IF(C78>='T3'!$F$5*$E$123/100,"GOOD",IF(C78>='T3'!$F$5*$E$122/100,"AVERAGE","POOR")))) -> POOR
A79: =Data_Sheet!A79 -> JEC18CS056 | B79: =Data_Sheet!B79 -> KAILASHNATH | C79: ='T3'!I79 -> 0 | D79: =IF(C79="A","ABSENT",IF(C79>='T3'!$F$5*$E$124/100,"EXCELLENT",IF(C79>='T3'!$F$5*$E$123/100,"GOOD",IF(C79>='T3'!$F$5*$E$122/100,"AVERAGE","POOR")))) -> POOR
A80: =Data_Sheet!A80 -> JEC18CS057 | B80: =Data_Sheet!B80 -> K AJISHKUMAR | C80: ='T3'!I80 -> 0 | D80: =IF(C80="A","ABSENT",IF(C80>='T3'!$F$5*$E$124/100,"EXCELLENT",IF(C80>='T3'!$F$5*$E$123/100,"GOOD",IF(C80>='T3'!$F$5*$E$122/100,"AVERAGE","POOR")))) -> POOR
A81: =Data_Sheet!A81 -> JEC18CS058 | B81: =Data_Sheet!B81 -> KEERTHANA K S | C81: ='T3'!I81 -> 0 | D81: =IF(C81="A","ABSENT",IF(C81>='T3'!$F$5*$E$124/100,"EXCELLENT",IF(C81>='T3'!$F$5*$E$123/100,"GOOD",IF(C81>='T3'!$F$5*$E$122/100,"AVERAGE","POOR")))) -> POOR
A82: =Data_Sheet!A82 -> JEC18CS059 | B82: =Data_Sheet!B82 -> KEVIN VARGHESE | C82: ='T3'!I82 -> 0 | D82: =IF(C82="A","ABSENT",IF(C82>='T3'!$F$5*$E$124/100,"EXCELLENT",IF(C82>='T3'!$F$5*$E$123/100,"GOOD",IF(C82>='T3'!$F$5*$E$122/100,"AVERAGE","POOR")))) -> POOR
A83: =Data_Sheet!A83 -> JEC18CS060 | B83: =Data_Sheet!B83 -> LAKSHMI SADANANDAN | C83: ='T3'!I83 -> 0 | D83: =IF(C83="A","ABSENT",IF(C83>='T3'!$F$5*$E$124/100,"EXCELLENT",IF(C83>='T3'!$F$5*$E$123/100,"GOOD",IF(C83>='T3'!$F$5*$E$122/100,"AVERAGE","POOR")))) -> POOR
A84: =Data_Sheet!A84 -> JEC18CS061 | B84: =Data_Sheet!B84 -> LEYA PALLAN | C84: ='T3'!I84 -> 0 | D84: =IF(C84="A","ABSENT",IF(C84>='T3'!$F$5*$E$124/100,"EXCELLENT",IF(C84>='T3'!$F$5*$E$123/100,"GOOD",IF(C84>='T3'!$F$5*$E$122/100,"AVERAGE","POOR")))) -> POOR
A85: =Data_Sheet!A85 -> JEC18CS062 | B85: =Data_Sheet!B85 -> MARVEL BABU | C85: ='T3'!I85 -> 0 | D85: =IF(C85="A","ABSENT",IF(C85>='T3'!$F$5*$E$124/100,"EXCELLENT",IF(C85>='T3'!$F$5*$E$123/100,"GOOD",IF(C85>='T3'!$F$5*$E$122/100,"AVERAGE","POOR")))) -> POOR
A86: =Data_Sheet!A86 -> JEC18CS063 | B86: =Data_Sheet!B86 -> MEDWIN PAUL | C86: ='T3'!I86 -> 0 | D86: =IF(C86="A","ABSENT",IF(C86>='T3'!$F$5*$E$124/100,"EXCELLENT",IF(C86>='T3'!$F$5*$E$123/100,"GOOD",IF(C86>='T3'!$F$5*$E$122/100,"AVERAGE","POOR")))) -> POOR
A87: =Data_Sheet!A87 -> 0 | B87: =Data_Sheet!B87 -> 0 | C87: ='T3'!I87 -> 0 | D87: =IF(C87="A","ABSENT",IF(C87>='T3'!$F$5*$E$124/100,"EXCELLENT",IF(C87>='T3'!$F$5*$E$123/100,"GOOD",IF(C87>='T3'!$F$5*$E$122/100,"AVERAGE","POOR")))) -> POOR
A88: =Data_Sheet!A88 -> 0 | B88: =Data_Sheet!B88 -> 0 | C88: ='T3'!I88 -> 0 | D88: =IF(C88="A","ABSENT",IF(C88>='T3'!$F$5*$E$124/100,"EXCELLENT",IF(C88>='T3'!$F$5*$E$123/100,"GOOD",IF(C88>='T3'!$F$5*$E$122/100,"AVERAGE","POOR")))) -> POOR
A89: =Data_Sheet!A89 -> JEC18CS066 | B89: =Data_Sheet!B89 -> MUHAMMED INSHADH | C89: ='T3'!I89 -> 0 | D89: =IF(C89="A","ABSENT",IF(C89>='T3'!$F$5*$E$124/100,"EXCELLENT",IF(C89>='T3'!$F$5*$E$123/100,"GOOD",IF(C89>='T3'!$F$5*$E$122/100,"AVERAGE","POOR")))) -> POOR
A90: =Data_Sheet!A90 -> JEC18CS067 | B90: =Data_Sheet!B90 -> NAIR MIDHUN RAMACHANDRAN | C90: ='T3'!I90 -> 0 | D90: =IF(C90="A","ABSENT",IF(C90>='T3'!$F$5*$E$124/100,"EXCELLENT",IF(C90>='T3'!$F$5*$E$123/100,"GOOD",IF(C90>='T3'!$F$5*$E$122/100,"AVERAGE","POOR")))) -> POOR
A91: =Data_Sheet!A91 -> JEC18CS068 | B91: =Data_Sheet!B91 -> NAVEENA ANTONY | C91: ='T3'!I91 -> 0 | D91: =IF(C91="A","ABSENT",IF(C91>='T3'!$F$5*$E$124/100,"EXCELLENT",IF(C91>='T3'!$F$5*$E$123/100,"GOOD",IF(C91>='T3'!$F$5*$E$122/100,"AVERAGE","POOR")))) -> POOR
A92: =Data_Sheet!A92 -> JEC18CS069 | B92: =Data_Sheet!B92 -> NITIN MADHU | C92: ='T3'!I92 -> 0 | D92: =IF(C92="A","ABSENT",IF(C92>='T3'!$F$5*$E$124/100,"EXCELLENT",IF(C92>='T3'!$F$5*$E$123/100,"GOOD",IF(C92>='T3'!$F$5*$E$122/100,"AVERAGE","POOR")))) -> POOR
A93: =Data_Sheet!A93 -> JEC18CS070 | B93: =Data_Sheet!B93 -> PRATHIUSH ARUN | C93: ='T3'!I93 -> 0 | D93: =IF(C93="A","ABSENT",IF(C93>='T3'!$F$5*$E$124/100,"EXCELLENT",IF(C93>='T3'!$F$5*$E$123/100,"GOOD",IF(C93>='T3'!$F$5*$E$122/100,"AVERAGE","POOR")))) -> POOR
A94: =Data_Sheet!A94 -> JEC18CS071 | B94: =Data_Sheet!B94 -> RACHEL CECER | C94: ='T3'!I94 -> 0 | D94: =IF(C94="A","ABSENT",IF(C94>='T3'!$F$5*$E$124/100,"EXCELLENT",IF(C94>='T3'!$F$5*$E$123/100,"GOOD",IF(C94>='T3'!$F$5*$E$122/100,"AVERAGE","POOR")))) -> POOR
A95: =Data_Sheet!A95 -> JEC18CS072 | B95: =Data_Sheet!B95 -> RAHUL RAJU | C95: ='T3'!I95 -> 0 | D95: =IF(C95="A","ABSENT",IF(C95>='T3'!$F$5*$E$124/100,"EXCELLENT",IF(C95>='T3'!$F$5*$E$123/100,"GOOD",IF(C95>='T3'!$F$5*$E$122/100,"AVERAGE","POOR")))) -> POOR
A96: =Data_Sheet!A96 -> JEC18CS073 | B96: =Data_Sheet!B96 -> RAHUL T RAVI | C96: ='T3'!I96 -> 0 | D96: =IF(C96="A","ABSENT",IF(C96>='T3'!$F$5*$E$124/100,"EXCELLENT",IF(C96>='T3'!$F$5*$E$123/100,"GOOD",IF(C96>='T3'!$F$5*$E$122/100,"AVERAGE","POOR")))) -> POOR
A97: =Data_Sheet!A97 -> JEC18CS074 | B97: =Data_Sheet!B97 -> RAPHEAL K MOYALAN | C97: ='T3'!I97 -> 0 | D97: =IF(C97="A","ABSENT",IF(C97>='T3'!$F$5*$E$124/100,"EXCELLENT",IF(C97>='T3'!$F$5*$E$123/100,"GOOD",IF(C97>='T3'!$F$5*$E$122/100,"AVERAGE","POOR")))) -> POOR
A98: =Data_Sheet!A98 -> JEC18CS075 | B98: =Data_Sheet!B98 -> RISHIKESH. V | C98: ='T3'!I98 -> 0 | D98: =IF(C98="A","ABSENT",IF(C98>='T3'!$F$5*$E$124/100,"EXCELLENT",IF(C98>='T3'!$F$5*$E$123/100,"GOOD",IF(C98>='T3'!$F$5*$E$122/100,"AVERAGE","POOR")))) -> POOR
A99: =Data_Sheet!A99 -> JEC18CS076 | B99: =Data_Sheet!B99 -> ROCKSON T. AUGUSTINE | C99: ='T3'!I99 -> 0 | D99: =IF(C99="A","ABSENT",IF(C99>='T3'!$F$5*$E$124/100,"EXCELLENT",IF(C99>='T3'!$F$5*$E$123/100,"GOOD",IF(C99>='T3'!$F$5*$E$122/100,"AVERAGE","POOR")))) -> POOR
A100: =Data_Sheet!A100 -> JEC18CS077 | B100: =Data_Sheet!B100 -> SARATH C P | C100: ='T3'!I100 -> 0 | D100: =IF(C100="A","ABSENT",IF(C100>='T3'!$F$5*$E$124/100,"EXCELLENT",IF(C100>='T3'!$F$5*$E$123/100,"GOOD",IF(C100>='T3'!$F$5*$E$122/100,"AVERAGE","POOR")))) -> POOR
A101: =Data_Sheet!A101 -> JEC18CS078 | B101: =Data_Sheet!B101 -> SARATH SASI | C101: ='T3'!I101 -> 0 | D101: =IF(C101="A","ABSENT",IF(C101>='T3'!$F$5*$E$124/100,"EXCELLENT",IF(C101>='T3'!$F$5*$E$123/100,"GOOD",IF(C101>='T3'!$F$5*$E$122/100,"AVERAGE","POOR")))) -> POOR
A102: =Data_Sheet!A102 -> JEC18CS079 | B102: =Data_Sheet!B102 -> SHAFNA | C102: ='T3'!I102 -> 0 | D102: =IF(C102="A","ABSENT",IF(C102>='T3'!$F$5*$E$124/100,"EXCELLENT",IF(C102>='T3'!$F$5*$E$123/100,"GOOD",IF(C102>='T3'!$F$5*$E$122/100,"AVERAGE","POOR")))) -> POOR
A103: =Data_Sheet!A103 -> JEC18CS080 | B103: =Data_Sheet!B103 -> SHELMY SHABU | C103: ='T3'!I103 -> 0 | D103: =IF(C103="A","ABSENT",IF(C103>='T3'!$F$5*$E$124/100,"EXCELLENT",IF(C103>='T3'!$F$5*$E$123/100,"GOOD",IF(C103>='T3'!$F$5*$E$122/100,"AVERAGE","POOR")))) -> POOR
A104: =Data_Sheet!A104 -> JEC18CS081 | B104: =Data_Sheet!B104 -> SHIZA SHIHAB PUVAMPARAMBIL | C104: ='T3'!I104 -> 0 | D104: =IF(C104="A","ABSENT",IF(C104>='T3'!$F$5*$E$124/100,"EXCELLENT",IF(C104>='T3'!$F$5*$E$123/100,"GOOD",IF(C104>='T3'!$F$5*$E$122/100,"AVERAGE","POOR")))) -> POOR
A105: =Data_Sheet!A105 -> JEC18CS082 | B105: =Data_Sheet!B105 -> SIJO GEORGE | C105: ='T3'!I105 -> 0 | D105: =IF(C105="A","ABSENT",IF(C105>='T3'!$F$5*$E$124/100,"EXCELLENT",IF(C105>='T3'!$F$5*$E$123/100,"GOOD",IF(C105>='T3'!$F$5*$E$122/100,"AVERAGE","POOR")))) -> POOR
A106: =Data_Sheet!A106 -> JEC18CS083 | B106: =Data_Sheet!B106 -> SOURAV K | C106: ='T3'!I106 -> 0 | D106: =IF(C106="A","ABSENT",IF(C106>='T3'!$F$5*$E$124/100,"EXCELLENT",IF(C106>='T3'!$F$5*$E$123/100,"GOOD",IF(C106>='T3'!$F$5*$E$122/100,"AVERAGE","POOR")))) -> POOR
A107: =Data_Sheet!A107 -> 0 | B107: =Data_Sheet!B107 -> 0 | C107: ='T3'!I107 -> 0 | D107: =IF(C107="A","ABSENT",IF(C107>='T3'!$F$5*$E$124/100,"EXCELLENT",IF(C107>='T3'!$F$5*$E$123/100,"GOOD",IF(C107>='T3'!$F$5*$E$122/100,"AVERAGE","POOR")))) -> POOR
A108: =Data_Sheet!A108 -> JEC18CS085 | B108: =Data_Sheet!B108 -> SREEHARI | C108: ='T3'!I108 -> 0 | D108: =IF(C108="A","ABSENT",IF(C108>='T3'!$F$5*$E$124/100,"EXCELLENT",IF(C108>='T3'!$F$5*$E$123/100,"GOOD",IF(C108>='T3'!$F$5*$E$122/100,"AVERAGE","POOR")))) -> POOR
A109: =Data_Sheet!A109 -> JEC18CS086 | B109: =Data_Sheet!B109 -> SREEKANTH P | C109: ='T3'!I109 -> 0 | D109: =IF(C109="A","ABSENT",IF(C109>='T3'!$F$5*$E$124/100,"EXCELLENT",IF(C109>='T3'!$F$5*$E$123/100,"GOOD",IF(C109>='T3'!$F$5*$E$122/100,"AVERAGE","POOR")))) -> POOR
A110: =Data_Sheet!A110 -> JEC18CS087 | B110: =Data_Sheet!B110 -> SREELEKSHMI H KUMAR | C110: ='T3'!I110 -> 0 | D110: =IF(C110="A","ABSENT",IF(C110>='T3'!$F$5*$E$124/100,"EXCELLENT",IF(C110>='T3'!$F$5*$E$123/100,"GOOD",IF(C110>='T3'!$F$5*$E$122/100,"AVERAGE","POOR")))) -> POOR
A111: =Data_Sheet!A111 -> JEC18CS088 | B111: =Data_Sheet!B111 -> SUFAIL BADUSHA.T | C111: ='T3'!I111 -> 0 | D111: =IF(C111="A","ABSENT",IF(C111>='T3'!$F$5*$E$124/100,"EXCELLENT",IF(C111>='T3'!$F$5*$E$123/100,"GOOD",IF(C111>='T3'!$F$5*$E$122/100,"AVERAGE","POOR")))) -> POOR
A112: =Data_Sheet!A112 -> JEC18CS089 | B112: =Data_Sheet!B112 -> TIYA THOMAS | C112: ='T3'!I112 -> 0 | D112: =IF(C112="A","ABSENT",IF(C112>='T3'!$F$5*$E$124/100,"EXCELLENT",IF(C112>='T3'!$F$5*$E$123/100,"GOOD",IF(C112>='T3'!$F$5*$E$122/100,"AVERAGE","POOR")))) -> POOR
A113: =Data_Sheet!A113 -> JEC18CS090 | B113: =Data_Sheet!B113 -> TOMSUN PAVOO P | C113: ='T3'!I113 -> 0 | D113: =IF(C113="A","ABSENT",IF(C113>='T3'!$F$5*$E$124/100,"EXCELLENT",IF(C113>='T3'!$F$5*$E$123/100,"GOOD",IF(C113>='T3'!$F$5*$E$122/100,"AVERAGE","POOR")))) -> POOR
A114: =Data_Sheet!A114 -> JEC18CS091 | B114: =Data_Sheet!B114 -> ULLAS. S | C114: ='T3'!I114 -> 0 | D114: =IF(C114="A","ABSENT",IF(C114>='T3'!$F$5*$E$124/100,"EXCELLENT",IF(C114>='T3'!$F$5*$E$123/100,"GOOD",IF(C114>='T3'!$F$5*$E$122/100,"AVERAGE","POOR")))) -> POOR
A115: =Data_Sheet!A115 -> JEC18CS092 | B115: =Data_Sheet!B115 -> VAISHNAV M | C115: ='T3'!I115 -> 0 | D115: =IF(C115="A","ABSENT",IF(C115>='T3'!$F$5*$E$124/100,"EXCELLENT",IF(C115>='T3'!$F$5*$E$123/100,"GOOD",IF(C115>='T3'!$F$5*$E$122/100,"AVERAGE","POOR")))) -> POOR
A116: =Data_Sheet!A116 -> JEC18CS093 | B116: =Data_Sheet!B116 -> VANI PRAKASHAN CHOYYAN | C116: ='T3'!I116 -> 0 | D116: =IF(C116="A","ABSENT",IF(C116>='T3'!$F$5*$E$124/100,"EXCELLENT",IF(C116>='T3'!$F$5*$E$123/100,"GOOD",IF(C116>='T3'!$F$5*$E$122/100,"AVERAGE","POOR")))) -> POOR
A118: Total Number of Students | C118: =Data_Sheet!$C$6 -> 92
A119: Number of Students Absent | C119: =IF(COUNTIF(C25:INDIRECT(C131),"=A"),COUNTIF(C25:INDIRECT(C131),"=A"),0) -> 0
A120: Total Number of Students attended | C120: =C118-C119 -> 92
A121: ="Number of Students with Marks less than "&E122&"%" -> Number of Students with Marks less than 45% | C121: =IF(COUNTIF(D25:INDIRECT(D131),"=POOR"),COUNTIF(D25:INDIRECT(D131),"=POOR"),0) -> 92 | D121: POOR | E121: Range
A122: ="Number of Students with Marks betweeen "&E122&"% to "&E123&"%" -> Number of Students with Marks betweeen 45% to 60% | C122: =IF(COUNTIF(D25:INDIRECT(D131),"=AVERAGE"),COUNTIF(D25:INDIRECT(D131),"=AVERAGE"),0) -> 0 | D122: AVERAGE | E122: 45
A123: ="Number of Students with Marks betweeen "&E123&"% to "&E124&"%" -> Number of Students with Marks betweeen 60% to 80% | C123: =IF(COUNTIF(D25:INDIRECT(D131),"=GOOD"),COUNTIF(D25:INDIRECT(D131),"=GOOD"),0) -> 0 | D123: GOOD | E123: 60
A124: ="Number of Students with Marks greater than "&E124&"%" -> Number of Students with Marks greater than 80% | C124: =IF(COUNTIF(D25:INDIRECT(D131),"=EXCELLENT"),COUNTIF(D25:INDIRECT(D131),"=EXCELLENT"),0) -> 0 | D124: EXCELLENT | E124: 80
A125: Class Average | C125: =ROUND(AVERAGE(C25:INDIRECT(C131)),2) -> 0
A126: Pass Percentage | C126: =ROUND(((C120-C121)/C120)*100,2) -> 0
B128: =Data_Sheet!B10 -> Name of Faculty : | C128: =Data_Sheet!B11 -> Namitha T N
B129: =Data_Sheet!B136 -> Dated Signature :
A131: =ROW(A118)-2 -> 116 | B131: Last Row Count | C131: ="$C$"&$A$131 -> $C$116 | D131: ="$D$"&$A$131 -> $D$116

Sheet A1
C1: Date :
C2: 2018-02-11
A3: Add questions one by one as needed.. | C3: Assessment Category | G3: CO1 | H3: First Internal Exam
C4: Assignment - 1 | G4: CO2 | H4: Second Internal Exam
C5: Total Marks : | E5: 10 | G5: CO3 | H5: Assessment Exam - 1
G6: CO4 | H6: Assessment Exam - 2
A7: =Data_Sheet!A2 -> Jyothi Engineering College, Cheruthuruthy | G7: CO5 | H7: Assignment - 1
G8: CO6 | H8: Assignment - 2
A9: =Data_Sheet!A4 -> Department of Computer Science Engineering | H9: Retest
G10: 1
A11: ="CO Analysis - Internal Marks : "&C4 &" " &TEXT(C2,"dd-mm-yy") -> CO Analysis - Internal Marks : Assignment - 1 11-02-18 | G11: 2
G12: 3
A13: =Data_Sheet!A17 -> S3 CS CS203 Switching Theory and Logic Design 2019-20 | G13: 4
G14: 5
G15: 6
A18: Register No. | B18: Name of Student | C18: Qn. No. | D18: 1 | E18: 2 | F18: ="Total Marks (" &E5 & ")" -> Total Marks (10) | I18: Calculated Total Marks (10)
C19: CO's | D19: CO1 | E19: CO2
C20: Blooms Taxonomy Lavel | D20: 1, 2, 3, 4, 5, 6 | E20: 2
C21: Max. Marks | D21: 5 | E21: 5
C22: Difficulty Level in % | D22: 60 | E22: 60
A24: Column1 | B24: Column2 | C24: Column3 | D24: Column4 | E24: Column5 | F24: Column32
A25: =Data_Sheet!A25 -> JEC18CS001 | B25: =Data_Sheet!B25 -> ABHISHEK KRISHNAN MENON E | D25: 5 | E25: 5 | F25: 10
A26: =Data_Sheet!A26 -> JEC18CS002 | B26: =Data_Sheet!B26 -> ABHISHEK SAJEEVAN | D26: 2.5 | E26: 2.5 | F26: 5
A27: =Data_Sheet!A27 -> JEC18CS003 | B27: =Data_Sheet!B27 -> ABHITH SHAJI | D27: 4.5 | E27: 4.5 | F27: 9
A28: =Data_Sheet!A28 -> JEC18CS004 | B28: =Data_Sheet!B28 -> ABIN SANTHOSH ALAPATT | D28: 5 | E28: 5 | F28: 10
A29: =Data_Sheet!A29 -> JEC18CS005 | B29: =Data_Sheet!B29 -> ADARSH KUMAR M A | D29: 5 | E29: 5 | F29: 10
A30: =Data_Sheet!A30 -> JEC18CS006 | B30: =Data_Sheet!B30 -> ADHITHYA KRISHNA S | D30: 4.5 | E30: 4.5 | F30: 9
A31: =Data_Sheet!A31 -> JEC18CS007 | B31: =Data_Sheet!B31 -> ADITHYA HARIDAS | D31: 5 | E31: 5 | F31: 10
A32: =Data_Sheet!A32 -> JEC18CS008 | B32: =Data_Sheet!B32 -> AJMAL BASHEER | D32: 2.5 | E32: 2.5 | F32: 5
A33: =Data_Sheet!A33 -> JEC18CS009 | B33: =Data_Sheet!B33 -> AKASH.V | D33: 4 | E33: 5 | F33: 9
A34: =Data_Sheet!A34 -> JEC18CS010 | B34: =Data_Sheet!B34 -> AKHIL AZEEZ UPPILAMKUNNATH | D34: 5 | E34: 5 | F34: 10
A35: =Data_Sheet!A35 -> JEC18CS011 | B35: =Data_Sheet!B35 -> AKHIL KRISHNA UK | D35: 4 | E35: 5 | F35: 9
A36: =Data_Sheet!A36 -> JEC18CS012 | B36: =Data_Sheet!B36 -> ALAN GEORGE | D36: 5 | E36: 5 | F36: 10
A37: =Data_Sheet!A37 -> JEC18CS013 | B37: =Data_Sheet!B37 -> ALEN VARGHESE | D37: 5 | E37: 5 | F37: 10
A38: =Data_Sheet!A38 -> JEC18CS014 | B38: =Data_Sheet!B38 -> AMAL SEBASTIAN | D38: 5 | E38: 5 | F38: 10
A39: =Data_Sheet!A39 -> JEC18CS015 | B39: =Data_Sheet!B39 -> AMAL SONY | D39: 3 | E39: 5 | F39: 8
A40: =Data_Sheet!A40 -> JEC18CS016 | B40: =Data_Sheet!B40 -> ANAGHA WILSON | D40: 5 | E40: 5 | F40: 10
A41: =Data_Sheet!A41 -> JEC18CS017 | B41: =Data_Sheet!B41 -> ANETTE ANTO | D41: 5 | E41: 5 | F41: 10
A42: =Data_Sheet!A42 -> JEC18CS018 | B42: =Data_Sheet!B42 -> ANIT MARY THOMAS | D42: 5 | E42: 5 | F42: 10
A43: =Data_Sheet!A43 -> JEC18CS020 | B43: =Data_Sheet!B43 -> ANN THERESA SHAJI | D43: 5 | E43: 5 | F43: 10
A44: =Data_Sheet!A44 -> JEC18CS021 | B44: =Data_Sheet!B44 -> ANTONY ROY | D44: 4 | E44: 5 | F44: 9
A45: =Data_Sheet!A45 -> JEC18CS022 | B45: =Data_Sheet!B45 -> ANUGRAHA C | D45: 5 | E45: 5 | F45: 10
A46: =Data_Sheet!A46 -> JEC18CS023 | B46: =Data_Sheet!B46 -> APARNA.V | D46: 5 | E46: 5 | F46: 10
A47: =Data_Sheet!A47 -> JEC18CS024 | B47: =Data_Sheet!B47 -> ARAVIND S KUMAR | D47: 5 | E47: 5 | F47: 10
A48: =Data_Sheet!A48 -> JEC18CS025 | B48: =Data_Sheet!B48 -> ARJUN VINOD | D48: 3 | E48: 2 | F48: 5
A49: =Data_Sheet!A49 -> JEC18CS026 | B49: =Data_Sheet!B49 -> ARUN VG | D49: 5 | E49: 5 | F49: 10
A50: =Data_Sheet!A50 -> JEC18CS027 | B50: =Data_Sheet!B50 -> ASHRUL K | D50: 5 | E50: 5 | F50: 10
A51: =Data_Sheet!A51 -> JEC18CS028 | B51: =Data_Sheet!B51 -> ATHIL PAULY | D51: 4 | E51: 5 | F51: 9
A52: =Data_Sheet!A52 -> JEC18CS029 | B52: =Data_Sheet!B52 -> ATHIRA K P | D52: 5 | E52: 5 | F52: 10
A53: =Data_Sheet!A53 -> JEC18CS030 | B53: =Data_Sheet!B53 -> AWIN ANTO | D53: 5 | E53: 5 | F53: 10
A54: =Data_Sheet!A54 -> JEC18CS031 | B54: =Data_Sheet!B54 -> CHARLES JOHNSON | D54: 5 | E54: 4 | F54: 9
A55: =Data_Sheet!A55 -> JEC18CS032 | B55: =Data_Sheet!B55 -> CHITTILAPPILLY JOVIA JOHNSON | D55: 5 | E55: 5 | F55: 10
A56: =Data_Sheet!A56 -> JEC18CS033 | B56: =Data_Sheet!B56 -> CIYA BABU | D56: 5 | E56: 5 | F56: 10
A57: =Data_Sheet!A57 -> JEC18CS034 | B57: =Data_Sheet!B57 -> DAVID SALUS | D57: 5 | E57: 5 | F57: 10
A58: =Data_Sheet!A58 -> JEC18CS035 | B58: =Data_Sheet!B58 -> DELICIA REJI | D58: 5 | E58: 5 | F58: 10
A59: =Data_Sheet!A59 -> JEC18CS036 | B59: =Data_Sheet!B59 -> DELMA SHAJAN | D59: 5 | E59: 5 | F59: 10
A60: =Data_Sheet!A60 -> JEC18CS037 | B60: =Data_Sheet!B60 -> DILBER SHA AP | D60: 4 | E60: 5 | F60: 9
A61: =Data_Sheet!A61 -> JEC18CS038 | B61: =Data_Sheet!B61 -> EDWIN T JOY | D61: 4 | E61: 5 | F61: 9
A62: =Data_Sheet!A62 -> JEC18CS039 | B62: =Data_Sheet!B62 -> EDWIN WILSON | D62: 4 | E62: 5 | F62: 9
A63: =Data_Sheet!A63 -> JEC18CS040 | B63: =Data_Sheet!B63 -> EMMANUEL SHIBU | D63: 5 | E63: 5 | F63: 10
A64: =Data_Sheet!A64 -> JEC18CS041 | B64: =Data_Sheet!B64 -> GAYATHRI DINESH | D64: 5 | E64: 5 | F64: 10
A65: =Data_Sheet!A65 -> JEC18CS042 | B65: =Data_Sheet!B65 -> GOKUL DAS M | D65: 5 | E65: 5 | F65: 10
A66: =Data_Sheet!A66 -> JEC18CS043 | B66: =Data_Sheet!B66 -> G RAMGOPAL | D66: 5 | E66: 5 | F66: 10
A67: =Data_Sheet!A67 -> JEC18CS044 | B67: =Data_Sheet!B67 -> HARIES DAVIS | D67: 5 | E67: 5 | F67: 10
A68: =Data_Sheet!A68 -> JEC18CS045 | B68: =Data_Sheet!B68 -> HARISANKER P | D68: 5 | E68: 5 | F68: 10
A69: =Data_Sheet!A69 -> JEC18CS046 | B69: =Data_Sheet!B69 -> HARSHA.K.S. | D69: 5 | E69: 5 | F69: 10
A70: =Data_Sheet!A70 -> JEC18CS047 | B70: =Data_Sheet!B70 -> HELNA THOMAS | D70: 5 | E70: 5 | F70: 10
A71: =Data_Sheet!A71 -> JEC18CS048 | B71: =Data_Sheet!B71 -> HRIDI KRISHNA.H | D71: 5 | E71: 5 | F71: 10
A72: =Data_Sheet!A72 -> JEC18CS049 | B72: =Data_Sheet!B72 -> INDRAJIT R | D72: 5 | E72: 3 | F72: 8
A73: =Data_Sheet!A73 -> JEC18CS050 | B73: =Data_Sheet!B73 -> JESWIN JOJY | D73: 5 | E73: 3 | F73: 8
A74: =Data_Sheet!A74 -> JEC18CS051 | B74: =Data_Sheet!B74 -> JIBIN A BABU | D74: 5 | E74: 5 | F74: 10
A75: =Data_Sheet!A75 -> JEC18CS052 | B75: =Data_Sheet!B75 -> JISSY JOY | D75: 5 | E75: 5 | F75: 10
A76: =Data_Sheet!A76 -> JEC18CS053 | B76: =Data_Sheet!B76 -> JOEL JAMES KARIKKANDATHIL | D76: 5 | E76: 5 | F76: 10
A77: =Data_Sheet!A77 -> JEC18CS054 | B77: =Data_Sheet!B77 -> JOSE REJI KARIMADATHI | D77: 5 | E77: 3 | F77: 8
A78: =Data_Sheet!A78 -> JEC18CS055 | B78: =Data_Sheet!B78 -> JUMANA HASIN | D78: 5 | E78: 5 | F78: 10
A79: =Data_Sheet!A79 -> JEC18CS056 | B79: =Data_Sheet!B79 -> KAILASHNATH | D79: 5 | E79: 5 | F79: 9
A80: =Data_Sheet!A80 -> JEC18CS057 | B80: =Data_Sheet!B80 -> K AJISHKUMAR | D80: 5 | E80: 5 | F80: 9
A81: =Data_Sheet!A81 -> JEC18CS058 | B81: =Data_Sheet!B81 -> KEERTHANA K S | D81: 5 | E81: 5 | F81: 9
A82: =Data_Sheet!A82 -> JEC18CS059 | B82: =Data_Sheet!B82 -> KEVIN VARGHESE | D82: 5 | E82: 5 | F82: 10
A83: =Data_Sheet!A83 -> JEC18CS060 | B83: =Data_Sheet!B83 -> LAKSHMI SADANANDAN | D83: 5 | E83: 5 | F83: 10
A84: =Data_Sheet!A84 -> JEC18CS061 | B84: =Data_Sheet!B84 -> LEYA PALLAN | D84: 5 | E84: 5 | F84: 10
A85: =Data_Sheet!A85 -> JEC18CS062 | B85: =Data_Sheet!B85 -> MARVEL BABU | D85: 5 | E85: 4 | F85: 9
A86: =Data_Sheet!A86 -> JEC18CS063 | B86: =Data_Sheet!B86 -> MEDWIN PAUL | D86: 2.5 | E86: 2.5 | F86: 5
A87: =Data_Sheet!A87 -> 0 | B87: =Data_Sheet!B87 -> 0
A88: =Data_Sheet!A88 -> 0 | B88: =Data_Sheet!B88 -> 0
A89: =Data_Sheet!A89 -> JEC18CS066 | B89: =Data_Sheet!B89 -> MUHAMMED INSHADH | D89: 5 | E89: 4 | F89: 9
A90: =Data_Sheet!A90 -> JEC18CS067 | B90: =Data_Sheet!B90 -> NAIR MIDHUN RAMACHANDRAN | D90: 5 | E90: 3 | F90: 8
A91: =Data_Sheet!A91 -> JEC18CS068 | B91: =Data_Sheet!B91 -> NAVEENA ANTONY | D91: 5 | E91: 5 | F91: 10
A92: =Data_Sheet!A92 -> JEC18CS069 | B92: =Data_Sheet!B92 -> NITIN MADHU | D92: 5 | E92: 3 | F92: 8
A93: =Data_Sheet!A93 -> JEC18CS070 | B93: =Data_Sheet!B93 -> PRATHIUSH ARUN | D93: 5 | E93: 5 | F93: 10
A94: =Data_Sheet!A94 -> JEC18CS071 | B94: =Data_Sheet!B94 -> RACHEL CECER | D94: 5 | E94: 5 | F94: 10
A95: =Data_Sheet!A95 -> JEC18CS072 | B95: =Data_Sheet!B95 -> RAHUL RAJU | D95: 5 | E95: 5 | F95: 10
A96: =Data_Sheet!A96 -> JEC18CS073 | B96: =Data_Sheet!B96 -> RAHUL T RAVI | D96: 5 | E96: 5 | F96: 10
A97: =Data_Sheet!A97 -> JEC18CS074 | B97: =Data_Sheet!B97 -> RAPHEAL K MOYALAN | D97: 5 | E97: 2 | F97: 7
A98: =Data_Sheet!A98 -> JEC18CS075 | B98: =Data_Sheet!B98 -> RISHIKESH. V | D98: 5 | E98: 4 | F98: 9
A99: =Data_Sheet!A99 -> JEC18CS076 | B99: =Data_Sheet!B99 -> ROCKSON T. AUGUSTINE | D99: 3 | E99: 5 | F99: 8
A100: =Data_Sheet!A100 -> JEC18CS077 | B100: =Data_Sheet!B100 -> SARATH C P | D100: 5 | E100: 5 | F100: 10
A101: =Data_Sheet!A101 -> JEC18CS078 | B101: =Data_Sheet!B101 -> SARATH SASI | D101: 5 | E101: 3 | F101: 8
A102: =Data_Sheet!A102 -> JEC18CS079 | B102: =Data_Sheet!B102 -> SHAFNA | D102: 5 | E102: 5 | F102: 10
A103: =Data_Sheet!A103 -> JEC18CS080 | B103: =Data_Sheet!B103 -> SHELMY SHABU | D103: 5 | E103: 5 | F103: 10
A104: =Data_Sheet!A104 -> JEC18CS081 | B104: =Data_Sheet!B104 -> SHIZA SHIHAB PUVAMPARAMBIL | D104: 5 | E104: 5 | F104: 10
A105: =Data_Sheet!A105 -> JEC18CS082 | B105: =Data_Sheet!B105 -> SIJO GEORGE | D105: 5 | E105: 3 | F105: 8
A106: =Data_Sheet!A106 -> JEC18CS083 | B106: =Data_Sheet!B106 -> SOURAV K | D106: 5 | E106: 5 | F106: 8
A107: =Data_Sheet!A107 -> 0 | B107: =Data_Sheet!B107 -> 0 | F107: 0
A108: =Data_Sheet!A108 -> JEC18CS085 | B108: =Data_Sheet!B108 -> SREEHARI | D108: 5 | E108: 2 | F108: 7
A109: =Data_Sheet!A109 -> JEC18CS086 | B109: =Data_Sheet!B109 -> SREEKANTH P | D109: 2 | E109: 5 | F109: 7
A110: =Data_Sheet!A110 -> JEC18CS087 | B110: =Data_Sheet!B110 -> SREELEKSHMI H KUMAR | D110: 5 | E110: 5 | F110: 10
A111: =Data_Sheet!A111 -> JEC18CS088 | B111: =Data_Sheet!B111 -> SUFAIL BADUSHA.T | D111: 5 | E111: 4 | F111: 9
A112: =Data_Sheet!A112 -> JEC18CS089 | B112: =Data_Sheet!B112 -> TIYA THOMAS | D112: 5 | E112: 5 | F112: 10
A113: =Data_Sheet!A113 -> JEC18CS090 | B113: =Data_Sheet!B113 -> TOMSUN PAVOO P | D113: 5 | E113: 5 | F113: 10
A114: =Data_Sheet!A114 -> JEC18CS091 | B114: =Data_Sheet!B114 -> ULLAS. S | D114: 2.5 | E114: 2.5 | F114: 5
A115: =Data_Sheet!A115 -> JEC18CS092 | B115: =Data_Sheet!B115 -> VAISHNAV M | D115: 2.5 | E115: 2.5 | F115: 5
A116: =Data_Sheet!A116 -> JEC18CS093 | B116: =Data_Sheet!B116 -> VANI PRAKASHAN CHOYYAN | D116: 5 | E116: 5 | F116: 10
A118: Total Marks scored for the Question | D118: =IF(D$22<>"",IF(SUM(D25:INDIRECT(D138))>=0,SUM(D25:INDIRECT(D138)),""),"") -> 415.5 | E118: =IF(E$22<>"",IF(SUM(E25:INDIRECT(E138))>=0,SUM(E25:INDIRECT(E138)),""),"") -> 403.5
A119: No. of Students who attended the Question | D119: =IF(D$22<>"",IF(COUNT(D25:INDIRECT(D138))>=0,COUNT(D25:INDIRECT(D138)),""),"") -> 89 | E119: =IF(E$22<>"",IF(COUNT(E25:INDIRECT(E138))>=0,COUNT(E25:INDIRECT(E138)),""),"") -> 89
A120: Difficulty Level marks of the Question | D120: =IF(D21*D22/100=0,"",D21*D22/100) -> 3 | E120: 3
A121: No. of Students who scored above the Difficulty Level | D121: =IF(COUNTIF(D25:INDIRECT(D138),">="&D120)=0,"",COUNTIF(D25:INDIRECT(D138),">="&D120)) -> 83 | E121: =IF(COUNTIF(E25:INDIRECT(E138),">="&E120)=0,"",COUNTIF(E25:INDIRECT(E138),">="&E120)) -> 81
A122: % of Students who scored above the Difficulty Level | D122: =IFERROR(ROUND(D121/D119*100,2),"") -> 93.26 | E122: 91.01
D123: =IF(D122="",0,IF(D122>=80,3,IF(D122>=70,2,IF(D122>=60,1,0)))) -> 3 | E123: 3 | F123: Marks | J123: T_Marks | K123: S_Marks | L123: Students | M123: Level | N123: Above | O123: Above % | P123: Attainment
B124: =IF(Data_Sheet!A119<>"","Total Attainment level for "&Data_Sheet!A119&" :","") -> Total Attainment level for CO1 : | C124: =IF(Data_Sheet!A119<>"",I124,"") -> 3 | D124: =IFERROR((IF(ISNUMBER(SEARCH("1", D$19)),D$21,"0")),"0")*D123 -> 15 | E124: =IFERROR((IF(ISNUMBER(SEARCH("1", E$19)),E$21,"0")),"0")*E123 -> 0 | F124: =F141 -> 5 | I124: =IF(F124=0,"",ROUND(SUM(D124:E124)/F124,2)) -> 3 | J124: =F141 -> 5 | K124: =F148 -> 415.5 | L124: =F155 -> 89 | M124: =F162 -> 3 | N124: =F169 -> 83 | O124: =IFERROR(ROUND(N124/L124*100,2),"") -> 93.26 | P124: =IF(O124="","",IF(O124>=80,3,IF(O124>=70,2,IF(O124>=60,1,0)))) -> 3
B125: =IF(Data_Sheet!A120<>"","Total Attainment level for "&Data_Sheet!A120&" :","") -> Total Attainment level for CO2 : | C125: =IF(Data_Sheet!A120<>"",I125,"") -> 3 | D125: =IFERROR((IF(ISNUMBER(SEARCH("2", D$19)),D$21,"0")),"0")*D123 -> 0 | E125: =IFERROR((IF(ISNUMBER(SEARCH("2", E$19)),E$21,"0")),"0")*E123 -> 15 | F125: =F142 -> 5 | I125: 3 | J125: =F142 -> 5 | K125: =F149 -> 403.5 | L125: =F156 -> 89 | M125: =F163 -> 3 | N125: =F170 -> 81 | O125: =IFERROR(ROUND(N125/L125*100,2),"") -> 91.01 | P125: =IF(O125="","",IF(O125>=80,3,IF(O125>=70,2,IF(O125>=60,1,0)))) -> 3
B126: =IF(Data_Sheet!A121<>"","Total Attainment level for "&Data_Sheet!A121&" :","") -> Total Attainment level for CO3 : | C126: =IF(Data_Sheet!A121<>"",I126,"") ->  | D126: =IFERROR((IF(ISNUMBER(SEARCH("3", D$19)),D$21,"0")),"0")*D123 -> 0 | E126: =IFERROR((IF(ISNUMBER(SEARCH("3", E$19)),E$21,"0")),"0")*E123 -> 0 | F126: 0 | J126: 0 | K126: 0 | L126: 0 | M126: 0 | N126: 0
B127: =IF(Data_Sheet!A122<>"","Total Attainment level for "&Data_Sheet!A122&" :","") -> Total Attainment level for CO4 : | C127: =IF(Data_Sheet!A122<>"",I127,"") ->  | D127: =IFERROR((IF(ISNUMBER(SEARCH("4", D$19)),D$21,"0")),"0")*D123 -> 0 | E127: =IFERROR((IF(ISNUMBER(SEARCH("4", E$19)),E$21,"0")),"0")*E123 -> 0 | F127: 0 | J127: 0 | K127: 0 | L127: 0 | M127: 0 | N127: 0
B128: =IF(Data_Sheet!A123<>"","Total Attainment level for "&Data_Sheet!A123&" :","") -> Total Attainment level for CO5 : | C128: =IF(Data_Sheet!A123<>"",I128,"") ->  | D128: =IFERROR((IF(ISNUMBER(SEARCH("5", D$19)),D$21,"0")),"0")*D123 -> 0 | E128: =IFERROR((IF(ISNUMBER(SEARCH("5", E$19)),E$21,"0")),"0")*E123 -> 0 | F128: 0 | J128: 0 | K128: 0 | L128: 0 | M128: 0 | N128: 0
B129: =IF(Data_Sheet!A124<>"","Total Attainment level for "&Data_Sheet!A124&" :","") -> Total Attainment level for CO6 : | C129: =IF(Data_Sheet!A124<>"",I129,"") ->  | D129: =IFERROR((IF(ISNUMBER(SEARCH("6", D$19)),D$21,"0")),"0")*D123 -> 0 | E129: =IFERROR((IF(ISNUMBER(SEARCH("6", E$19)),E$21,"0")),"0")*E123 -> 0 | F129: 0 | J129: 0 | K129: 0 | L129: 0 | M129: 0 | N129: 0
A131: =Data_Sheet!A127 -> Attainment Level 1: 60% students scoring more than 60% of the Total Marks
A132: =Data_Sheet!A128 -> Attainment Level 2: 70% students scoring more than 60% of the Total Marks
A133: =Data_Sheet!A129 -> Attainment Level 3: 80% students scoring more than 60% of the Total Marks
B135: =Data_Sheet!B10 -> Name of Faculty : | C135: =Data_Sheet!B11 -> Namitha T N
B136: =Data_Sheet!B136 -> Dated Signature :
B138: Last Row Count | C138: =ROW(A118)-2 -> 116 | D138: =SUBSTITUTE(ADDRESS(1,COLUMN(D1),2),"1","")&$C$138 -> D$116 | E138: ="E"&$C$138 -> E116
C141: CO1 | D141: =IFERROR((IF(ISNUMBER(SEARCH("1", D$19)),D$21,"0")),"0") -> 5 | E141: =IFERROR((IF(ISNUMBER(SEARCH("1", E$19)),E$21,"0")),"0") -> 0 | F141: =IFERROR(SUM($D141:INDIRECT($I141)),"0") -> 5 | I141: =SUBSTITUTE(ADDRESS(1,K141,4),1,"")&ROW($I141) -> E141 | J141: =COUNTIF($D$20:INDIRECT($L141),"*1*") -> 1 | K141: =COLUMN($F$19)-1 -> 5 | L141: =SUBSTITUTE(ADDRESS(1,K141,4),1,"")&ROW($I$19)+1 -> E20 | M141: Total Marks
C142: CO2 | D142: =IFERROR((IF(ISNUMBER(SEARCH("2", D$19)),D$21,"0")),"0") -> 0 | E142: =IFERROR((IF(ISNUMBER(SEARCH("2", E$19)),E$21,"0")),"0") -> 5 | F142: =IFERROR(SUM($D142:INDIRECT($I142)),"0") -> 5 | I142: E142 | J142: =COUNTIF($D$20:INDIRECT($L142),"*2*") -> 1 | K142: =COLUMN($F$19)-1 -> 5 | L142: =SUBSTITUTE(ADDRESS(1,K142,4),1,"")&ROW($I$19)+1 -> E20
C143: CO3 | D143: =IFERROR((IF(ISNUMBER(SEARCH("3", D$19)),D$21,"0")),"0") -> 0 | E143: =IFERROR((IF(ISNUMBER(SEARCH("3", E$19)),E$21,"0")),"0") -> 0 | F143: =IFERROR(SUM($D143:INDIRECT($I143)),"0") -> 0 | I143: E143 | J143: =COUNTIF($D$20:INDIRECT($L143),"*2*") -> 1 | K143: 5 | L143: E20
C144: CO4 | D144: =IFERROR((IF(ISNUMBER(SEARCH("4", D$19)),D$21,"0")),"0") -> 0 | E144: =IFERROR((IF(ISNUMBER(SEARCH("4", E$19)),E$21,"0")),"0") -> 0 | F144: =IFERROR(SUM($D144:INDIRECT($I144)),"0") -> 0 | I144: E144 | J144: =COUNTIF($D$20:INDIRECT($L144),"*2*") -> 1 | K144: 5 | L144: E20
C145: CO5 | D145: =IFERROR((IF(ISNUMBER(SEARCH("5", D$19)),D$21,"0")),"0") -> 0 | E145: =IFERROR((IF(ISNUMBER(SEARCH("5", E$19)),E$21,"0")),"0") -> 0 | F145: =IFERROR(SUM($D145:INDIRECT($I145)),"0") -> 0 | I145: E145 | J145: =COUNTIF($D$20:INDIRECT($L145),"*2*") -> 1 | K145: 5 | L145: E20
C146: CO6 | D146: =IFERROR((IF(ISNUMBER(SEARCH("6", D$19)),D$21,"0")),"0") -> 0 | E146: =IFERROR((IF(ISNUMBER(SEARCH("6", E$19)),E$21,"0")),"0") -> 0 | F146: =IFERROR(SUM($D146:INDIRECT($I146)),"0") -> 0 | I146: E146 | J146: =COUNTIF($D$20:INDIRECT($L146),"*2*") -> 1 | K146: 5 | L146: E20
C148: CO1 | D148: =IFERROR((IF(ISNUMBER(SEARCH("1", D$19)),D$118,"0")),"0") -> 415.5 | E148: =IFERROR((IF(ISNUMBER(SEARCH("1", E$19)),E$118,"0")),"0") -> 0 | F148: =IFERROR(SUM($D148:INDIRECT($I148)),"0") -> 415.5 | I148: =SUBSTITUTE(ADDRESS(1,K148,4),1,"")&ROW($I148) -> E148 | J148: =COUNTIF($D$20:INDIRECT($L148),"*1*") -> 1 | K148: =COLUMN($F$19)-1 -> 5 | L148: =SUBSTITUTE(ADDRESS(1,K148,4),1,"")&ROW($I$19)+1 -> E20 | M148: Total Marks Scored
C149: CO2 | D149: =IFERROR((IF(ISNUMBER(SEARCH("2", D$19)),D$118,"0")),"0") -> 0 | E149: =IFERROR((IF(ISNUMBER(SEARCH("2", E$19)),E$118,"0")),"0") -> 403.5 | F149: =IFERROR(SUM($D149:INDIRECT($I149)),"0") -> 403.5 | I149: E149 | J149: =COUNTIF($D$20:INDIRECT($L149),"*2*") -> 1 | K149: =COLUMN($F$19)-1 -> 5 | L149: =SUBSTITUTE(ADDRESS(1,K149,4),1,"")&ROW($I$19)+1 -> E20
C150: CO3 | D150: =IFERROR((IF(ISNUMBER(SEARCH("3", D$19)),D$118,"0")),"0") -> 0 | E150: =IFERROR((IF(ISNUMBER(SEARCH("3", E$19)),E$118,"0")),"0") -> 0 | F150: =IFERROR(SUM($D150:INDIRECT($I150)),"0") -> 0 | I150: E150 | J150: =COUNTIF($D$20:INDIRECT($L150),"*2*") -> 1 | K150: 5 | L150: E20
C151: CO4 | D151: =IFERROR((IF(ISNUMBER(SEARCH("4", D$19)),D$118,"0")),"0") -> 0 | E151: =IFERROR((IF(ISNUMBER(SEARCH("4", E$19)),E$118,"0")),"0") -> 0 | F151: =IFERROR(SUM($D151:INDIRECT($I151)),"0") -> 0 | I151: E151 | J151: =COUNTIF($D$20:INDIRECT($L151),"*2*") -> 1 | K151: 5 | L151: E20
C152: CO5 | D152: =IFERROR((IF(ISNUMBER(SEARCH("5", D$19)),D$118,"0")),"0") -> 0 | E152: =IFERROR((IF(ISNUMBER(SEARCH("5", E$19)),E$118,"0")),"0") -> 0 | F152: =IFERROR(SUM($D152:INDIRECT($I152)),"0") -> 0 | I152: E152 | J152: =COUNTIF($D$20:INDIRECT($L152),"*2*") -> 1 | K152: 5 | L152: E20
C153: CO6 | D153: =IFERROR((IF(ISNUMBER(SEARCH("6", D$19)),D$118,"0")),"0") -> 0 | E153: =IFERROR((IF(ISNUMBER(SEARCH("6", E$19)),E$118,"0")),"0") -> 0 | F153: =IFERROR(SUM($D153:INDIRECT($I153)),"0") -> 0 | I153: E153 | J153: =COUNTIF($D$20:INDIRECT($L153),"*2*") -> 1 | K153: 5 | L153: E20
C155: CO1 | D155: =IFERROR((IF(ISNUMBER(SEARCH("1", D$19)),D$119,"0")),"0") -> 89 | E155: =IFERROR((IF(ISNUMBER(SEARCH("1", E$19)),E$119,"0")),"0") -> 0 | F155: =IFERROR(SUM($D155:INDIRECT($I155)),"0") -> 89 | I155: =SUBSTITUTE(ADDRESS(1,K155,4),1,"")&ROW($I155) -> E155 | J155: =COUNTIF($D$20:INDIRECT($L155),"*1*") -> 1 | K155: =COLUMN($F$19)-1 -> 5 | L155: =SUBSTITUTE(ADDRESS(1,K155,4),1,"")&ROW($I$19)+1 -> E20 | M155: No of Studdents Attended
C156: CO2 | D156: =IFERROR((IF(ISNUMBER(SEARCH("2", D$19)),D$119,"0")),"0") -> 0 | E156: =IFERROR((IF(ISNUMBER(SEARCH("2", E$19)),E$119,"0")),"0") -> 89 | F156: =IFERROR(SUM($D156:INDIRECT($I156)),"0") -> 89 | I156: E156 | J156: =COUNTIF($D$20:INDIRECT($L156),"*2*") -> 1 | K156: =COLUMN($F$19)-1 -> 5 | L156: =SUBSTITUTE(ADDRESS(1,K156,4),1,"")&ROW($I$19)+1 -> E20
C157: CO3 | D157: =IFERROR((IF(ISNUMBER(SEARCH("3", D$19)),D$119,"0")),"0") -> 0 | E157: =IFERROR((IF(ISNUMBER(SEARCH("3", E$19)),E$119,"0")),"0") -> 0 | F157: =IFERROR(SUM($D157:INDIRECT($I157)),"0") -> 0 | I157: E157 | J157: =COUNTIF($D$20:INDIRECT($L157),"*2*") -> 1 | K157: 5 | L157: E20
C158: CO4 | D158: =IFERROR((IF(ISNUMBER(SEARCH("4", D$19)),D$119,"0")),"0") -> 0 | E158: =IFERROR((IF(ISNUMBER(SEARCH("4", E$19)),E$119,"0")),"0") -> 0 | F158: =IFERROR(SUM($D158:INDIRECT($I158)),"0") -> 0 | I158: E158 | J158: =COUNTIF($D$20:INDIRECT($L158),"*2*") -> 1 | K158: 5 | L158: E20
C159: CO5 | D159: =IFERROR((IF(ISNUMBER(SEARCH("5", D$19)),D$119,"0")),"0") -> 0 | E159: =IFERROR((IF(ISNUMBER(SEARCH("5", E$19)),E$119,"0")),"0") -> 0 | F159: =IFERROR(SUM($D159:INDIRECT($I159)),"0") -> 0 | I159: E159 | J159: =COUNTIF($D$20:INDIRECT($L159),"*2*") -> 1 | K159: 5 | L159: E20
C160: CO6 | D160: =IFERROR((IF(ISNUMBER(SEARCH("6", D$19)),D$119,"0")),"0") -> 0 | E160: =IFERROR((IF(ISNUMBER(SEARCH("6", E$19)),E$119,"0")),"0") -> 0 | F160: =IFERROR(SUM($D160:INDIRECT($I160)),"0") -> 0 | I160: E160 | J160: =COUNTIF($D$20:INDIRECT($L160),"*2*") -> 1 | K160: 5 | L160: E20
C162: CO1 | D162: =IFERROR((IF(ISNUMBER(SEARCH("1", D$19)),D$120,"0")),"0") -> 3 | E162: =IFERROR((IF(ISNUMBER(SEARCH("1", E$19)),E$120,"0")),"0") -> 0 | F162: =IFERROR(SUM($D162:INDIRECT($I162)),"0") -> 3 | I162: =SUBSTITUTE(ADDRESS(1,K162,4),1,"")&ROW($I162) -> E162 | J162: =COUNTIF($D$20:INDIRECT($L162),"*1*") -> 1 | K162: =COLUMN($F$19)-1 -> 5 | L162: =SUBSTITUTE(ADDRESS(1,K162,4),1,"")&ROW($I$19)+1 -> E20 | M162: Difficulty Level
C163: CO2 | D163: =IFERROR((IF(ISNUMBER(SEARCH("2", D$19)),D$120,"0")),"0") -> 0 | E163: =IFERROR((IF(ISNUMBER(SEARCH("2", E$19)),E$120,"0")),"0") -> 3 | F163: =IFERROR(SUM($D163:INDIRECT($I163)),"0") -> 3 | I163: E163 | J163: =COUNTIF($D$20:INDIRECT($L163),"*2*") -> 1 | K163: =COLUMN($F$19)-1 -> 5 | L163: =SUBSTITUTE(ADDRESS(1,K163,4),1,"")&ROW($I$19)+1 -> E20
C164: CO3 | D164: =IFERROR((IF(ISNUMBER(SEARCH("3", D$19)),D$120,"0")),"0") -> 0 | E164: =IFERROR((IF(ISNUMBER(SEARCH("3", E$19)),E$120,"0")),"0") -> 0 | F164: =IFERROR(SUM($D164:INDIRECT($I164)),"0") -> 0 | I164: E164 | J164: =COUNTIF($D$20:INDIRECT($L164),"*2*") -> 1 | K164: 5 | L164: E20
C165: CO4 | D165: =IFERROR((IF(ISNUMBER(SEARCH("4", D$19)),D$120,"0")),"0") -> 0 | E165: =IFERROR((IF(ISNUMBER(SEARCH("4", E$19)),E$120,"0")),"0") -> 0 | F165: =IFERROR(SUM($D165:INDIRECT($I165)),"0") -> 0 | I165: E165 | J165: =COUNTIF($D$20:INDIRECT($L165),"*2*") -> 1 | K165: 5 | L165: E20
C166: CO5 | D166: =IFERROR((IF(ISNUMBER(SEARCH("5", D$19)),D$120,"0")),"0") -> 0 | E166: =IFERROR((IF(ISNUMBER(SEARCH("5", E$19)),E$120,"0")),"0") -> 0 | F166: =IFERROR(SUM($D166:INDIRECT($I166)),"0") -> 0 | I166: E166 | J166: =COUNTIF($D$20:INDIRECT($L166),"*2*") -> 1 | K166: 5 | L166: E20
C167: CO6 | D167: =IFERROR((IF(ISNUMBER(SEARCH("6", D$19)),D$120,"0")),"0") -> 0 | E167: =IFERROR((IF(ISNUMBER(SEARCH("6", E$19)),E$120,"0")),"0") -> 0 | F167: =IFERROR(SUM($D167:INDIRECT($I167)),"0") -> 0 | I167: E167 | J167: =COUNTIF($D$20:INDIRECT($L167),"*2*") -> 1 | K167: 5 | L167: E20
C169: CO1 | D169: =IFERROR((IF(ISNUMBER(SEARCH("1", D$19)),D$121,"0")),"0") -> 83 | E169: =IFERROR((IF(ISNUMBER(SEARCH("1", E$19)),E$121,"0")),"0") -> 0 | F169: =IFERROR(SUM($D169:INDIRECT($I169)),"0") -> 83 | I169: =SUBSTITUTE(ADDRESS(1,K169,4),1,"")&ROW($I169) -> E169 | J169: =COUNTIF($D$20:INDIRECT($L169),"*1*") -> 1 | K169: =COLUMN($F$19)-1 -> 5 | L169: =SUBSTITUTE(ADDRESS(1,K169,4),1,"")&ROW($I$19)+1 -> E20 | M169: No of Studdents Above Difficulty Level
C170: CO2 | D170: =IFERROR((IF(ISNUMBER(SEARCH("2", D$19)),D$121,"0")),"0") -> 0 | E170: =IFERROR((IF(ISNUMBER(SEARCH("2", E$19)),E$121,"0")),"0") -> 81 | F170: =IFERROR(SUM($D170:INDIRECT($I170)),"0") -> 81 | I170: E170 | J170: =COUNTIF($D$20:INDIRECT($L170),"*2*") -> 1 | K170: =COLUMN($F$19)-1 -> 5 | L170: =SUBSTITUTE(ADDRESS(1,K170,4),1,"")&ROW($I$19)+1 -> E20
C171: CO3 | D171: =IFERROR((IF(ISNUMBER(SEARCH("3", D$19)),D$121,"0")),"0") -> 0 | E171: =IFERROR((IF(ISNUMBER(SEARCH("3", E$19)),E$121,"0")),"0") -> 0 | F171: =IFERROR(SUM($D171:INDIRECT($I171)),"0") -> 0 | I171: E171 | J171: =COUNTIF($D$20:INDIRECT($L171),"*2*") -> 1 | K171: 5 | L171: E20
C172: CO4 | D172: =IFERROR((IF(ISNUMBER(SEARCH("4", D$19)),D$121,"0")),"0") -> 0 | E172: =IFERROR((IF(ISNUMBER(SEARCH("4", E$19)),E$121,"0")),"0") -> 0 | F172: =IFERROR(SUM($D172:INDIRECT($I172)),"0") -> 0 | I172: E172 | J172: =COUNTIF($D$20:INDIRECT($L172),"*2*") -> 1 | K172: 5 | L172: E20
C173: CO5 | D173: =IFERROR((IF(ISNUMBER(SEARCH("5", D$19)),D$121,"0")),"0") -> 0 | E173: =IFERROR((IF(ISNUMBER(SEARCH("5", E$19)),E$121,"0")),"0") -> 0 | F173: =IFERROR(SUM($D173:INDIRECT($I173)),"0") -> 0 | I173: E173 | J173: =COUNTIF($D$20:INDIRECT($L173),"*2*") -> 1 | K173: 5 | L173: E20
C174: CO6 | D174: =IFERROR((IF(ISNUMBER(SEARCH("6", D$19)),D$121,"0")),"0") -> 0 | E174: =IFERROR((IF(ISNUMBER(SEARCH("6", E$19)),E$121,"0")),"0") -> 0 | F174: =IFERROR(SUM($D174:INDIRECT($I174)),"0") -> 0 | I174: E174 | J174: =COUNTIF($D$20:INDIRECT($L174),"*2*") -> 1 | K174: 5 | L174: E20
C176: 1 | D176: =IFERROR((IF(ISNUMBER(SEARCH("1", D$20)),D$21/IF(LEN(D20)=16,6,IF(LEN(D20)=13,5,IF(LEN(D20)=10,4,IF(LEN(D20)=7,3,IF(LEN(D20)=4,2,1))))),"0")),"0") -> 0.8333333333 | E176: =IFERROR((IF(ISNUMBER(SEARCH("1", E$20)),E$21/IF(LEN(E20)=16,6,IF(LEN(E20)=13,5,IF(LEN(E20)=10,4,IF(LEN(E20)=7,3,IF(LEN(E20)=4,2,1))))),"0")),"0") -> 0 | F176: =IFERROR(SUM($D176:INDIRECT($I176)),"0") -> 0.8333333333 | I176: =SUBSTITUTE(ADDRESS(1,K176,4),1,"")&ROW($I176) -> E176 | J176: =COUNTIF($D$20:INDIRECT($L176),"1") -> 0 | K176: =COLUMN($F$18)-1 -> 5 | L176: =SUBSTITUTE(ADDRESS(1,K176,4),1,"")&ROW($I$19)+1 -> E20
C177: 2 | D177: =IFERROR((IF(ISNUMBER(SEARCH("2", D$20)),D$21/IF(LEN(D20)=16,6,IF(LEN(D20)=13,5,IF(LEN(D20)=10,4,IF(LEN(D20)=7,3,IF(LEN(D20)=4,2,1))))),"0")),"0") -> 0.8333333333 | E177: =IFERROR((IF(ISNUMBER(SEARCH("2", E$20)),E$21/IF(LEN(E20)=16,6,IF(LEN(E20)=13,5,IF(LEN(E20)=10,4,IF(LEN(E20)=7,3,IF(LEN(E20)=4,2,1))))),"0")),"0") -> 5 | F177: =IFERROR(SUM($D177:INDIRECT($I177)),"0") -> 5.833333333 | I177: =SUBSTITUTE(ADDRESS(1,K177,4),1,"")&ROW($I177) -> E177 | J177: =COUNTIF($D$20:INDIRECT($L177),"2") -> 1 | K177: =COLUMN($F$18)-1 -> 5 | L177: =SUBSTITUTE(ADDRESS(1,K177,4),1,"")&ROW($I$19)+1 -> E20
C178: 3 | D178: =IFERROR((IF(ISNUMBER(SEARCH("3", D$20)),D$21/IF(LEN(D20)=16,6,IF(LEN(D20)=13,5,IF(LEN(D20)=10,4,IF(LEN(D20)=7,3,IF(LEN(D20)=4,2,1))))),"0")),"0") -> 0.8333333333 | E178: =IFERROR((IF(ISNUMBER(SEARCH("3", E$20)),E$21/IF(LEN(E20)=16,6,IF(LEN(E20)=13,5,IF(LEN(E20)=10,4,IF(LEN(E20)=7,3,IF(LEN(E20)=4,2,1))))),"0")),"0") -> 0 | F178: =IFERROR(SUM($D178:INDIRECT($I178)),"0") -> 0.8333333333 | I178: E178 | J178: =COUNTIF($D$20:INDIRECT($L178),"3") -> 0 | K178: 5 | L178: E20
C179: 4 | D179: =IFERROR((IF(ISNUMBER(SEARCH("4", D$20)),D$21/IF(LEN(D20)=16,6,IF(LEN(D20)=13,5,IF(LEN(D20)=10,4,IF(LEN(D20)=7,3,IF(LEN(D20)=4,2,1))))),"0")),"0") -> 0.8333333333 | E179: =IFERROR((IF(ISNUMBER(SEARCH("4", E$20)),E$21/IF(LEN(E20)=16,6,IF(LEN(E20)=13,5,IF(LEN(E20)=10,4,IF(LEN(E20)=7,3,IF(LEN(E20)=4,2,1))))),"0")),"0") -> 0 | F179: =IFERROR(SUM($D179:INDIRECT($I179)),"0") -> 0.8333333333 | I179: E179 | J179: =COUNTIF($D$20:INDIRECT($L179),"4") -> 0 | K179: 5 | L179: E20
C180: 5 | D180: =IFERROR((IF(ISNUMBER(SEARCH("5", D$20)),D$21/IF(LEN(D20)=16,6,IF(LEN(D20)=13,5,IF(LEN(D20)=10,4,IF(LEN(D20)=7,3,IF(LEN(D20)=4,2,1))))),"0")),"0") -> 0.8333333333 | E180: =IFERROR((IF(ISNUMBER(SEARCH("5", E$20)),E$21/IF(LEN(E20)=16,6,IF(LEN(E20)=13,5,IF(LEN(E20)=10,4,IF(LEN(E20)=7,3,IF(LEN(E20)=4,2,1))))),"0")),"0") -> 0 | F180: =IFERROR(SUM($D180:INDIRECT($I180)),"0") -> 0.8333333333 | I180: E180 | J180: =COUNTIF($D$20:INDIRECT($L180),"5") -> 0 | K180: 5 | L180: E20
C181: 6 | D181: =IFERROR((IF(ISNUMBER(SEARCH("6", D$20)),D$21/IF(LEN(D20)=16,6,IF(LEN(D20)=13,5,IF(LEN(D20)=10,4,IF(LEN(D20)=7,3,IF(LEN(D20)=4,2,1))))),"0")),"0") -> 0.8333333333 | E181: =IFERROR((IF(ISNUMBER(SEARCH("6", E$20)),E$21/IF(LEN(E20)=16,6,IF(LEN(E20)=13,5,IF(LEN(E20)=10,4,IF(LEN(E20)=7,3,IF(LEN(E20)=4,2,1))))),"0")),"0") -> 0 | F181: =IFERROR(SUM($D181:INDIRECT($I181)),"0") -> 0.8333333333 | I181: E181 | J181: =COUNTIF($D$20:INDIRECT($L181),"6") -> 0 | K181: 5 | L181: E20

Sheet A1_Analysis
A3: =Data_Sheet!A2 -> Jyothi Engineering College, Cheruthuruthy
A5: =Data_Sheet!A4 -> Department of Computer Science Engineering
A7: ='A1'!A11:F11 -> CO Analysis - Internal Marks : Assignment - 1 11-02-18
A9: =Data_Sheet!A17 -> S3 CS CS203 Switching Theory and Logic Design 2019-20
A22: ='T1'!A18 -> Register No. | B22: ='T1'!B18 -> Name of Student | C22: ='A1'!F18 -> Total Marks (10) | D22: Category
A24: Column1 | B24: Column2 | C24: Column3 | D24: Column4
A25: =Data_Sheet!A25 -> JEC18CS001 | B25: =Data_Sheet!B25 -> ABHISHEK KRISHNAN MENON E | C25: ='A1'!F25 -> 10 | D25: =IF(C25="A","ABSENT",IF(C25>='A1'!$E$5*$E$124/100,"EXCELLENT",IF(C25>='A1'!$E$5*$E$123/100,"GOOD",IF(C25>='A1'!$E$5*$E$122/100,"AVERAGE","POOR")))) -> EXCELLENT
A26: =Data_Sheet!A26 -> JEC18CS002 | B26: =Data_Sheet!B26 -> ABHISHEK SAJEEVAN | C26: ='A1'!F26 -> 5 | D26: =IF(C26="A","ABSENT",IF(C26>='A1'!$E$5*$E$124/100,"EXCELLENT",IF(C26>='A1'!$E$5*$E$123/100,"GOOD",IF(C26>='A1'!$E$5*$E$122/100,"AVERAGE","POOR")))) -> AVERAGE
A27: =Data_Sheet!A27 -> JEC18CS003 | B27: =Data_Sheet!B27 -> ABHITH SHAJI | C27: ='A1'!F27 -> 9 | D27: =IF(C27="A","ABSENT",IF(C27>='A1'!$E$5*$E$124/100,"EXCELLENT",IF(C27>='A1'!$E$5*$E$123/100,"GOOD",IF(C27>='A1'!$E$5*$E$122/100,"AVERAGE","POOR")))) -> EXCELLENT
A28: =Data_Sheet!A28 -> JEC18CS004 | B28: =Data_Sheet!B28 -> ABIN SANTHOSH ALAPATT | C28: ='A1'!F28 -> 10 | D28: =IF(C28="A","ABSENT",IF(C28>='A1'!$E$5*$E$124/100,"EXCELLENT",IF(C28>='A1'!$E$5*$E$123/100,"GOOD",IF(C28>='A1'!$E$5*$E$122/100,"AVERAGE","POOR")))) -> EXCELLENT
A29: =Data_Sheet!A29 -> JEC18CS005 | B29: =Data_Sheet!B29 -> ADARSH KUMAR M A | C29: ='A1'!F29 -> 10 | D29: =IF(C29="A","ABSENT",IF(C29>='A1'!$E$5*$E$124/100,"EXCELLENT",IF(C29>='A1'!$E$5*$E$123/100,"GOOD",IF(C29>='A1'!$E$5*$E$122/100,"AVERAGE","POOR")))) -> EXCELLENT
A30: =Data_Sheet!A30 -> JEC18CS006 | B30: =Data_Sheet!B30 -> ADHITHYA KRISHNA S | C30: ='A1'!F30 -> 9 | D30: =IF(C30="A","ABSENT",IF(C30>='A1'!$E$5*$E$124/100,"EXCELLENT",IF(C30>='A1'!$E$5*$E$123/100,"GOOD",IF(C30>='A1'!$E$5*$E$122/100,"AVERAGE","POOR")))) -> EXCELLENT
A31: =Data_Sheet!A31 -> JEC18CS007 | B31: =Data_Sheet!B31 -> ADITHYA HARIDAS | C31: ='A1'!F31 -> 10 | D31: =IF(C31="A","ABSENT",IF(C31>='A1'!$E$5*$E$124/100,"EXCELLENT",IF(C31>='A1'!$E$5*$E$123/100,"GOOD",IF(C31>='A1'!$E$5*$E$122/100,"AVERAGE","POOR")))) -> EXCELLENT
A32: =Data_Sheet!A32 -> JEC18CS008 | B32: =Data_Sheet!B32 -> AJMAL BASHEER | C32: ='A1'!F32 -> 5 | D32: =IF(C32="A","ABSENT",IF(C32>='A1'!$E$5*$E$124/100,"EXCELLENT",IF(C32>='A1'!$E$5*$E$123/100,"GOOD",IF(C32>='A1'!$E$5*$E$122/100,"AVERAGE","POOR")))) -> AVERAGE
A33: =Data_Sheet!A33 -> JEC18CS009 | B33: =Data_Sheet!B33 -> AKASH.V | C33: ='A1'!F33 -> 9 | D33: =IF(C33="A","ABSENT",IF(C33>='A1'!$E$5*$E$124/100,"EXCELLENT",IF(C33>='A1'!$E$5*$E$123/100,"GOOD",IF(C33>='A1'!$E$5*$E$122/100,"AVERAGE","POOR")))) -> EXCELLENT
A34: =Data_Sheet!A34 -> JEC18CS010 | B34: =Data_Sheet!B34 -> AKHIL AZEEZ UPPILAMKUNNATH | C34: ='A1'!F34 -> 10 | D34: =IF(C34="A","ABSENT",IF(C34>='A1'!$E$5*$E$124/100,"EXCELLENT",IF(C34>='A1'!$E$5*$E$123/100,"GOOD",IF(C34>='A1'!$E$5*$E$122/100,"AVERAGE","POOR")))) -> EXCELLENT
A35: =Data_Sheet!A35 -> JEC18CS011 | B35: =Data_Sheet!B35 -> AKHIL KRISHNA UK | C35: ='A1'!F35 -> 9 | D35: =IF(C35="A","ABSENT",IF(C35>='A1'!$E$5*$E$124/100,"EXCELLENT",IF(C35>='A1'!$E$5*$E$123/100,"GOOD",IF(C35>='A1'!$E$5*$E$122/100,"AVERAGE","POOR")))) -> EXCELLENT
A36: =Data_Sheet!A36 -> JEC18CS012 | B36: =Data_Sheet!B36 -> ALAN GEORGE | C36: ='A1'!F36 -> 10 | D36: =IF(C36="A","ABSENT",IF(C36>='A1'!$E$5*$E$124/100,"EXCELLENT",IF(C36>='A1'!$E$5*$E$123/100,"GOOD",IF(C36>='A1'!$E$5*$E$122/100,"AVERAGE","POOR")))) -> EXCELLENT
A37: =Data_Sheet!A37 -> JEC18CS013 | B37: =Data_Sheet!B37 -> ALEN VARGHESE | C37: ='A1'!F37 -> 10 | D37: =IF(C37="A","ABSENT",IF(C37>='A1'!$E$5*$E$124/100,"EXCELLENT",IF(C37>='A1'!$E$5*$E$123/100,"GOOD",IF(C37>='A1'!$E$5*$E$122/100,"AVERAGE","POOR")))) -> EXCELLENT
A38: =Data_Sheet!A38 -> JEC18CS014 | B38: =Data_Sheet!B38 -> AMAL SEBASTIAN | C38: ='A1'!F38 -> 10 | D38: =IF(C38="A","ABSENT",IF(C38>='A1'!$E$5*$E$124/100,"EXCELLENT",IF(C38>='A1'!$E$5*$E$123/100,"GOOD",IF(C38>='A1'!$E$5*$E$122/100,"AVERAGE","POOR")))) -> EXCELLENT
A39: =Data_Sheet!A39 -> JEC18CS015 | B39: =Data_Sheet!B39 -> AMAL SONY | C39: ='A1'!F39 -> 8 | D39: =IF(C39="A","ABSENT",IF(C39>='A1'!$E$5*$E$124/100,"EXCELLENT",IF(C39>='A1'!$E$5*$E$123/100,"GOOD",IF(C39>='A1'!$E$5*$E$122/100,"AVERAGE","POOR")))) -> EXCELLENT
A40: =Data_Sheet!A40 -> JEC18CS016 | B40: =Data_Sheet!B40 -> ANAGHA WILSON | C40: ='A1'!F40 -> 10 | D40: =IF(C40="A","ABSENT",IF(C40>='A1'!$E$5*$E$124/100,"EXCELLENT",IF(C40>='A1'!$E$5*$E$123/100,"GOOD",IF(C40>='A1'!$E$5*$E$122/100,"AVERAGE","POOR")))) -> EXCELLENT
A41: =Data_Sheet!A41 -> JEC18CS017 | B41: =Data_Sheet!B41 -> ANETTE ANTO | C41: ='A1'!F41 -> 10 | D41: =IF(C41="A","ABSENT",IF(C41>='A1'!$E$5*$E$124/100,"EXCELLENT",IF(C41>='A1'!$E$5*$E$123/100,"GOOD",IF(C41>='A1'!$E$5*$E$122/100,"AVERAGE","POOR")))) -> EXCELLENT
A42: =Data_Sheet!A42 -> JEC18CS018 | B42: =Data_Sheet!B42 -> ANIT MARY THOMAS | C42: ='A1'!F42 -> 10 | D42: =IF(C42="A","ABSENT",IF(C42>='A1'!$E$5*$E$124/100,"EXCELLENT",IF(C42>='A1'!$E$5*$E$123/100,"GOOD",IF(C42>='A1'!$E$5*$E$122/100,"AVERAGE","POOR")))) -> EXCELLENT
A43: =Data_Sheet!A43 -> JEC18CS020 | B43: =Data_Sheet!B43 -> ANN THERESA SHAJI | C43: ='A1'!F43 -> 10 | D43: =IF(C43="A","ABSENT",IF(C43>='A1'!$E$5*$E$124/100,"EXCELLENT",IF(C43>='A1'!$E$5*$E$123/100,"GOOD",IF(C43>='A1'!$E$5*$E$122/100,"AVERAGE","POOR")))) -> EXCELLENT
A44: =Data_Sheet!A44 -> JEC18CS021 | B44: =Data_Sheet!B44 -> ANTONY ROY | C44: ='A1'!F44 -> 9 | D44: =IF(C44="A","ABSENT",IF(C44>='A1'!$E$5*$E$124/100,"EXCELLENT",IF(C44>='A1'!$E$5*$E$123/100,"GOOD",IF(C44>='A1'!$E$5*$E$122/100,"AVERAGE","POOR")))) -> EXCELLENT
A45: =Data_Sheet!A45 -> JEC18CS022 | B45: =Data_Sheet!B45 -> ANUGRAHA C | C45: ='A1'!F45 -> 10 | D45: =IF(C45="A","ABSENT",IF(C45>='A1'!$E$5*$E$124/100,"EXCELLENT",IF(C45>='A1'!$E$5*$E$123/100,"GOOD",IF(C45>='A1'!$E$5*$E$122/100,"AVERAGE","POOR")))) -> EXCELLENT
A46: =Data_Sheet!A46 -> JEC18CS023 | B46: =Data_Sheet!B46 -> APARNA.V | C46: ='A1'!F46 -> 10 | D46: =IF(C46="A","ABSENT",IF(C46>='A1'!$E$5*$E$124/100,"EXCELLENT",IF(C46>='A1'!$E$5*$E$123/100,"GOOD",IF(C46>='A1'!$E$5*$E$122/100,"AVERAGE","POOR")))) -> EXCELLENT
A47: =Data_Sheet!A47 -> JEC18CS024 | B47: =Data_Sheet!B47 -> ARAVIND S KUMAR | C47: ='A1'!F47 -> 10 | D47: =IF(C47="A","ABSENT",IF(C47>='A1'!$E$5*$E$124/100,"EXCELLENT",IF(C47>='A1'!$E$5*$E$123/100,"GOOD",IF(C47>='A1'!$E$5*$E$122/100,"AVERAGE","POOR")))) -> EXCELLENT
A48: =Data_Sheet!A48 -> JEC18CS025 | B48: =Data_Sheet!B48 -> ARJUN VINOD | C48: ='A1'!F48 -> 5 | D48: =IF(C48="A","ABSENT",IF(C48>='A1'!$E$5*$E$124/100,"EXCELLENT",IF(C48>='A1'!$E$5*$E$123/100,"GOOD",IF(C48>='A1'!$E$5*$E$122/100,"AVERAGE","POOR")))) -> AVERAGE
A49: =Data_Sheet!A49 -> JEC18CS026 | B49: =Data_Sheet!B49 -> ARUN VG | C49: ='A1'!F49 -> 10 | D49: =IF(C49="A","ABSENT",IF(C49>='A1'!$E$5*$E$124/100,"EXCELLENT",IF(C49>='A1'!$E$5*$E$123/100,"GOOD",IF(C49>='A1'!$E$5*$E$122/100,"AVERAGE","POOR")))) -> EXCELLENT
A50: =Data_Sheet!A50 -> JEC18CS027 | B50: =Data_Sheet!B50 -> ASHRUL K | C50: ='A1'!F50 -> 10 | D50: =IF(C50="A","ABSENT",IF(C50>='A1'!$E$5*$E$124/100,"EXCELLENT",IF(C50>='A1'!$E$5*$E$123/100,"GOOD",IF(C50>='A1'!$E$5*$E$122/100,"AVERAGE","POOR")))) -> EXCELLENT
A51: =Data_Sheet!A51 -> JEC18CS028 | B51: =Data_Sheet!B51 -> ATHIL PAULY | C51: ='A1'!F51 -> 9 | D51: =IF(C51="A","ABSENT",IF(C51>='A1'!$E$5*$E$124/100,"EXCELLENT",IF(C51>='A1'!$E$5*$E$123/100,"GOOD",IF(C51>='A1'!$E$5*$E$122/100,"AVERAGE","POOR")))) -> EXCELLENT
A52: =Data_Sheet!A52 -> JEC18CS029 | B52: =Data_Sheet!B52 -> ATHIRA K P | C52: ='A1'!F52 -> 10 | D52: =IF(C52="A","ABSENT",IF(C52>='A1'!$E$5*$E$124/100,"EXCELLENT",IF(C52>='A1'!$E$5*$E$123/100,"GOOD",IF(C52>='A1'!$E$5*$E$122/100,"AVERAGE","POOR")))) -> EXCELLENT
A53: =Data_Sheet!A53 -> JEC18CS030 | B53: =Data_Sheet!B53 -> AWIN ANTO | C53: ='A1'!F53 -> 10 | D53: =IF(C53="A","ABSENT",IF(C53>='A1'!$E$5*$E$124/100,"EXCELLENT",IF(C53>='A1'!$E$5*$E$123/100,"GOOD",IF(C53>='A1'!$E$5*$E$122/100,"AVERAGE","POOR")))) -> EXCELLENT
A54: =Data_Sheet!A54 -> JEC18CS031 | B54: =Data_Sheet!B54 -> CHARLES JOHNSON | C54: ='A1'!F54 -> 9 | D54: =IF(C54="A","ABSENT",IF(C54>='A1'!$E$5*$E$124/100,"EXCELLENT",IF(C54>='A1'!$E$5*$E$123/100,"GOOD",IF(C54>='A1'!$E$5*$E$122/100,"AVERAGE","POOR")))) -> EXCELLENT
A55: =Data_Sheet!A55 -> JEC18CS032 | B55: =Data_Sheet!B55 -> CHITTILAPPILLY JOVIA JOHNSON | C55: ='A1'!F55 -> 10 | D55: =IF(C55="A","ABSENT",IF(C55>='A1'!$E$5*$E$124/100,"EXCELLENT",IF(C55>='A1'!$E$5*$E$123/100,"GOOD",IF(C55>='A1'!$E$5*$E$122/100,"AVERAGE","POOR")))) -> EXCELLENT
A56: =Data_Sheet!A56 -> JEC18CS033 | B56: =Data_Sheet!B56 -> CIYA BABU | C56: ='A1'!F56 -> 10 | D56: =IF(C56="A","ABSENT",IF(C56>='A1'!$E$5*$E$124/100,"EXCELLENT",IF(C56>='A1'!$E$5*$E$123/100,"GOOD",IF(C56>='A1'!$E$5*$E$122/100,"AVERAGE","POOR")))) -> EXCELLENT
A57: =Data_Sheet!A57 -> JEC18CS034 | B57: =Data_Sheet!B57 -> DAVID SALUS | C57: ='A1'!F57 -> 10 | D57: =IF(C57="A","ABSENT",IF(C57>='A1'!$E$5*$E$124/100,"EXCELLENT",IF(C57>='A1'!$E$5*$E$123/100,"GOOD",IF(C57>='A1'!$E$5*$E$122/100,"AVERAGE","POOR")))) -> EXCELLENT
A58: =Data_Sheet!A58 -> JEC18CS035 | B58: =Data_Sheet!B58 -> DELICIA REJI | C58: ='A1'!F58 -> 10 | D58: =IF(C58="A","ABSENT",IF(C58>='A1'!$E$5*$E$124/100,"EXCELLENT",IF(C58>='A1'!$E$5*$E$123/100,"GOOD",IF(C58>='A1'!$E$5*$E$122/100,"AVERAGE","POOR")))) -> EXCELLENT
A59: =Data_Sheet!A59 -> JEC18CS036 | B59: =Data_Sheet!B59 -> DELMA SHAJAN | C59: ='A1'!F59 -> 10 | D59: =IF(C59="A","ABSENT",IF(C59>='A1'!$E$5*$E$124/100,"EXCELLENT",IF(C59>='A1'!$E$5*$E$123/100,"GOOD",IF(C59>='A1'!$E$5*$E$122/100,"AVERAGE","POOR")))) -> EXCELLENT
A60: =Data_Sheet!A60 -> JEC18CS037 | B60: =Data_Sheet!B60 -> DILBER SHA AP | C60: ='A1'!F60 -> 9 | D60: =IF(C60="A","ABSENT",IF(C60>='A1'!$E$5*$E$124/100,"EXCELLENT",IF(C60>='A1'!$E$5*$E$123/100,"GOOD",IF(C60>='A1'!$E$5*$E$122/100,"AVERAGE","POOR")))) -> EXCELLENT
A61: =Data_Sheet!A61 -> JEC18CS038 | B61: =Data_Sheet!B61 -> EDWIN T JOY | C61: ='A1'!F61 -> 9 | D61: =IF(C61="A","ABSENT",IF(C61>='A1'!$E$5*$E$124/100,"EXCELLENT",IF(C61>='A1'!$E$5*$E$123/100,"GOOD",IF(C61>='A1'!$E$5*$E$122/100,"AVERAGE","POOR")))) -> EXCELLENT
A62: =Data_Sheet!A62 -> JEC18CS039 | B62: =Data_Sheet!B62 -> EDWIN WILSON | C62: ='A1'!F62 -> 9 | D62: =IF(C62="A","ABSENT",IF(C62>='A1'!$E$5*$E$124/100,"EXCELLENT",IF(C62>='A1'!$E$5*$E$123/100,"GOOD",IF(C62>='A1'!$E$5*$E$122/100,"AVERAGE","POOR")))) -> EXCELLENT
A63: =Data_Sheet!A63 -> JEC18CS040 | B63: =Data_Sheet!B63 -> EMMANUEL SHIBU | C63: ='A1'!F63 -> 10 | D63: =IF(C63="A","ABSENT",IF(C63>='A1'!$E$5*$E$124/100,"EXCELLENT",IF(C63>='A1'!$E$5*$E$123/100,"GOOD",IF(C63>='A1'!$E$5*$E$122/100,"AVERAGE","POOR")))) -> EXCELLENT
A64: =Data_Sheet!A64 -> JEC18CS041 | B64: =Data_Sheet!B64 -> GAYATHRI DINESH | C64: ='A1'!F64 -> 10 | D64: =IF(C64="A","ABSENT",IF(C64>='A1'!$E$5*$E$124/100,"EXCELLENT",IF(C64>='A1'!$E$5*$E$123/100,"GOOD",IF(C64>='A1'!$E$5*$E$122/100,"AVERAGE","POOR")))) -> EXCELLENT
A65: =Data_Sheet!A65 -> JEC18CS042 | B65: =Data_Sheet!B65 -> GOKUL DAS M | C65: ='A1'!F65 -> 10 | D65: =IF(C65="A","ABSENT",IF(C65>='A1'!$E$5*$E$124/100,"EXCELLENT",IF(C65>='A1'!$E$5*$E$123/100,"GOOD",IF(C65>='A1'!$E$5*$E$122/100,"AVERAGE","POOR")))) -> EXCELLENT
A66: =Data_Sheet!A66 -> JEC18CS043 | B66: =Data_Sheet!B66 -> G RAMGOPAL | C66: ='A1'!F66 -> 10 | D66: =IF(C66="A","ABSENT",IF(C66>='A1'!$E$5*$E$124/100,"EXCELLENT",IF(C66>='A1'!$E$5*$E$123/100,"GOOD",IF(C66>='A1'!$E$5*$E$122/100,"AVERAGE","POOR")))) -> EXCELLENT
A67: =Data_Sheet!A67 -> JEC18CS044 | B67: =Data_Sheet!B67 -> HARIES DAVIS | C67: ='A1'!F67 -> 10 | D67: =IF(C67="A","ABSENT",IF(C67>='A1'!$E$5*$E$124/100,"EXCELLENT",IF(C67>='A1'!$E$5*$E$123/100,"GOOD",IF(C67>='A1'!$E$5*$E$122/100,"AVERAGE","POOR")))) -> EXCELLENT
A68: =Data_Sheet!A68 -> JEC18CS045 | B68: =Data_Sheet!B68 -> HARISANKER P | C68: ='A1'!F68 -> 10 | D68: =IF(C68="A","ABSENT",IF(C68>='A1'!$E$5*$E$124/100,"EXCELLENT",IF(C68>='A1'!$E$5*$E$123/100,"GOOD",IF(C68>='A1'!$E$5*$E$122/100,"AVERAGE","POOR")))) -> EXCELLENT
A69: =Data_Sheet!A69 -> JEC18CS046 | B69: =Data_Sheet!B69 -> HARSHA.K.S. | C69: ='A1'!F69 -> 10 | D69: =IF(C69="A","ABSENT",IF(C69>='A1'!$E$5*$E$124/100,"EXCELLENT",IF(C69>='A1'!$E$5*$E$123/100,"GOOD",IF(C69>='A1'!$E$5*$E$122/100,"AVERAGE","POOR")))) -> EXCELLENT
A70: =Data_Sheet!A70 -> JEC18CS047 | B70: =Data_Sheet!B70 -> HELNA THOMAS | C70: ='A1'!F70 -> 10 | D70: =IF(C70="A","ABSENT",IF(C70>='A1'!$E$5*$E$124/100,"EXCELLENT",IF(C70>='A1'!$E$5*$E$123/100,"GOOD",IF(C70>='A1'!$E$5*$E$122/100,"AVERAGE","POOR")))) -> EXCELLENT
A71: =Data_Sheet!A71 -> JEC18CS048 | B71: =Data_Sheet!B71 -> HRIDI KRISHNA.H | C71: ='A1'!F71 -> 10 | D71: =IF(C71="A","ABSENT",IF(C71>='A1'!$E$5*$E$124/100,"EXCELLENT",IF(C71>='A1'!$E$5*$E$123/100,"GOOD",IF(C71>='A1'!$E$5*$E$122/100,"AVERAGE","POOR")))) -> EXCELLENT
A72: =Data_Sheet!A72 -> JEC18CS049 | B72: =Data_Sheet!B72 -> INDRAJIT R | C72: ='A1'!F72 -> 8 | D72: =IF(C72="A","ABSENT",IF(C72>='A1'!$E$5*$E$124/100,"EXCELLENT",IF(C72>='A1'!$E$5*$E$123/100,"GOOD",IF(C72>='A1'!$E$5*$E$122/100,"AVERAGE","POOR")))) -> EXCELLENT
A73: =Data_Sheet!A73 -> JEC18CS050 | B73: =Data_Sheet!B73 -> JESWIN JOJY | C73: ='A1'!F73 -> 8 | D73: =IF(C73="A","ABSENT",IF(C73>='A1'!$E$5*$E$124/100,"EXCELLENT",IF(C73>='A1'!$E$5*$E$123/100,"GOOD",IF(C73>='A1'!$E$5*$E$122/100,"AVERAGE","POOR")))) -> EXCELLENT
A74: =Data_Sheet!A74 -> JEC18CS051 | B74: =Data_Sheet!B74 -> JIBIN A BABU | C74: ='A1'!F74 -> 10 | D74: =IF(C74="A","ABSENT",IF(C74>='A1'!$E$5*$E$124/100,"EXCELLENT",IF(C74>='A1'!$E$5*$E$123/100,"GOOD",IF(C74>='A1'!$E$5*$E$122/100,"AVERAGE","POOR")))) -> EXCELLENT
A75: =Data_Sheet!A75 -> JEC18CS052 | B75: =Data_Sheet!B75 -> JISSY JOY | C75: ='A1'!F75 -> 10 | D75: =IF(C75="A","ABSENT",IF(C75>='A1'!$E$5*$E$124/100,"EXCELLENT",IF(C75>='A1'!$E$5*$E$123/100,"GOOD",IF(C75>='A1'!$E$5*$E$122/100,"AVERAGE","POOR")))) -> EXCELLENT
A76: =Data_Sheet!A76 -> JEC18CS053 | B76: =Data_Sheet!B76 -> JOEL JAMES KARIKKANDATHIL | C76: ='A1'!F76 -> 10 | D76: =IF(C76="A","ABSENT",IF(C76>='A1'!$E$5*$E$124/100,"EXCELLENT",IF(C76>='A1'!$E$5*$E$123/100,"GOOD",IF(C76>='A1'!$E$5*$E$122/100,"AVERAGE","POOR")))) -> EXCELLENT
A77: =Data_Sheet!A77 -> JEC18CS054 | B77: =Data_Sheet!B77 -> JOSE REJI KARIMADATHI | C77: ='A1'!F77 -> 8 | D77: =IF(C77="A","ABSENT",IF(C77>='A1'!$E$5*$E$124/100,"EXCELLENT",IF(C77>='A1'!$E$5*$E$123/100,"GOOD",IF(C77>='A1'!$E$5*$E$122/100,"AVERAGE","POOR")))) -> EXCELLENT
A78: =Data_Sheet!A78 -> JEC18CS055 | B78: =Data_Sheet!B78 -> JUMANA HASIN | C78: ='A1'!F78 -> 10 | D78: =IF(C78="A","ABSENT",IF(C78>='A1'!$E$5*$E$124/100,"EXCELLENT",IF(C78>='A1'!$E$5*$E$123/100,"GOOD",IF(C78>='A1'!$E$5*$E$122/100,"AVERAGE","POOR")))) -> EXCELLENT
A79: =Data_Sheet!A79 -> JEC18CS056 | B79: =Data_Sheet!B79 -> KAILASHNATH | C79: ='A1'!F79 -> 9 | D79: =IF(C79="A","ABSENT",IF(C79>='A1'!$E$5*$E$124/100,"EXCELLENT",IF(C79>='A1'!$E$5*$E$123/100,"GOOD",IF(C79>='A1'!$E$5*$E$122/100,"AVERAGE","POOR")))) -> EXCELLENT
A80: =Data_Sheet!A80 -> JEC18CS057 | B80: =Data_Sheet!B80 -> K AJISHKUMAR | C80: ='A1'!F80 -> 9 | D80: =IF(C80="A","ABSENT",IF(C80>='A1'!$E$5*$E$124/100,"EXCELLENT",IF(C80>='A1'!$E$5*$E$123/100,"GOOD",IF(C80>='A1'!$E$5*$E$122/100,"AVERAGE","POOR")))) -> EXCELLENT
A81: =Data_Sheet!A81 -> JEC18CS058 | B81: =Data_Sheet!B81 -> KEERTHANA K S | C81: ='A1'!F81 -> 9 | D81: =IF(C81="A","ABSENT",IF(C81>='A1'!$E$5*$E$124/100,"EXCELLENT",IF(C81>='A1'!$E$5*$E$123/100,"GOOD",IF(C81>='A1'!$E$5*$E$122/100,"AVERAGE","POOR")))) -> EXCELLENT
A82: =Data_Sheet!A82 -> JEC18CS059 | B82: =Data_Sheet!B82 -> KEVIN VARGHESE | C82: ='A1'!F82 -> 10 | D82: =IF(C82="A","ABSENT",IF(C82>='A1'!$E$5*$E$124/100,"EXCELLENT",IF(C82>='A1'!$E$5*$E$123/100,"GOOD",IF(C82>='A1'!$E$5*$E$122/100,"AVERAGE","POOR")))) -> EXCELLENT
A83: =Data_Sheet!A83 -> JEC18CS060 | B83: =Data_Sheet!B83 -> LAKSHMI SADANANDAN | C83: ='A1'!F83 -> 10 | D83: =IF(C83="A","ABSENT",IF(C83>='A1'!$E$5*$E$124/100,"EXCELLENT",IF(C83>='A1'!$E$5*$E$123/100,"GOOD",IF(C83>='A1'!$E$5*$E$122/100,"AVERAGE","POOR")))) -> EXCELLENT
A84: =Data_Sheet!A84 -> JEC18CS061 | B84: =Data_Sheet!B84 -> LEYA PALLAN | C84: ='A1'!F84 -> 10 | D84: =IF(C84="A","ABSENT",IF(C84>='A1'!$E$5*$E$124/100,"EXCELLENT",IF(C84>='A1'!$E$5*$E$123/100,"GOOD",IF(C84>='A1'!$E$5*$E$122/100,"AVERAGE","POOR")))) -> EXCELLENT
A85: =Data_Sheet!A85 -> JEC18CS062 | B85: =Data_Sheet!B85 -> MARVEL BABU | C85: ='A1'!F85 -> 9 | D85: =IF(C85="A","ABSENT",IF(C85>='A1'!$E$5*$E$124/100,"EXCELLENT",IF(C85>='A1'!$E$5*$E$123/100,"GOOD",IF(C85>='A1'!$E$5*$E$122/100,"AVERAGE","POOR")))) -> EXCELLENT
A86: =Data_Sheet!A86 -> JEC18CS063 | B86: =Data_Sheet!B86 -> MEDWIN PAUL | C86: ='A1'!F86 -> 5 | D86: =IF(C86="A","ABSENT",IF(C86>='A1'!$E$5*$E$124/100,"EXCELLENT",IF(C86>='A1'!$E$5*$E$123/100,"GOOD",IF(C86>='A1'!$E$5*$E$122/100,"AVERAGE","POOR")))) -> AVERAGE
A87: =Data_Sheet!A87 -> 0 | B87: =Data_Sheet!B87 -> 0 | C87: ='A1'!F87 -> 0 | D87: =IF(C87="A","ABSENT",IF(C87>='A1'!$E$5*$E$124/100,"EXCELLENT",IF(C87>='A1'!$E$5*$E$123/100,"GOOD",IF(C87>='A1'!$E$5*$E$122/100,"AVERAGE","POOR")))) -> POOR
A88: =Data_Sheet!A88 -> 0 | B88: =Data_Sheet!B88 -> 0 | C88: ='A1'!F88 -> 0 | D88: =IF(C88="A","ABSENT",IF(C88>='A1'!$E$5*$E$124/100,"EXCELLENT",IF(C88>='A1'!$E$5*$E$123/100,"GOOD",IF(C88>='A1'!$E$5*$E$122/100,"AVERAGE","POOR")))) -> POOR
A89: =Data_Sheet!A89 -> JEC18CS066 | B89: =Data_Sheet!B89 -> MUHAMMED INSHADH | C89: ='A1'!F89 -> 9 | D89: =IF(C89="A","ABSENT",IF(C89>='A1'!$E$5*$E$124/100,"EXCELLENT",IF(C89>='A1'!$E$5*$E$123/100,"GOOD",IF(C89>='A1'!$E$5*$E$122/100,"AVERAGE","POOR")))) -> EXCELLENT
A90: =Data_Sheet!A90 -> JEC18CS067 | B90: =Data_Sheet!B90 -> NAIR MIDHUN RAMACHANDRAN | C90: ='A1'!F90 -> 8 | D90: =IF(C90="A","ABSENT",IF(C90>='A1'!$E$5*$E$124/100,"EXCELLENT",IF(C90>='A1'!$E$5*$E$123/100,"GOOD",IF(C90>='A1'!$E$5*$E$122/100,"AVERAGE","POOR")))) -> EXCELLENT
A91: =Data_Sheet!A91 -> JEC18CS068 | B91: =Data_Sheet!B91 -> NAVEENA ANTONY | C91: ='A1'!F91 -> 10 | D91: =IF(C91="A","ABSENT",IF(C91>='A1'!$E$5*$E$124/100,"EXCELLENT",IF(C91>='A1'!$E$5*$E$123/100,"GOOD",IF(C91>='A1'!$E$5*$E$122/100,"AVERAGE","POOR")))) -> EXCELLENT
A92: =Data_Sheet!A92 -> JEC18CS069 | B92: =Data_Sheet!B92 -> NITIN MADHU | C92: ='A1'!F92 -> 8 | D92: =IF(C92="A","ABSENT",IF(C92>='A1'!$E$5*$E$124/100,"EXCELLENT",IF(C92>='A1'!$E$5*$E$123/100,"GOOD",IF(C92>='A1'!$E$5*$E$122/100,"AVERAGE","POOR")))) -> EXCELLENT
A93: =Data_Sheet!A93 -> JEC18CS070 | B93: =Data_Sheet!B93 -> PRATHIUSH ARUN | C93: ='A1'!F93 -> 10 | D93: =IF(C93="A","ABSENT",IF(C93>='A1'!$E$5*$E$124/100,"EXCELLENT",IF(C93>='A1'!$E$5*$E$123/100,"GOOD",IF(C93>='A1'!$E$5*$E$122/100,"AVERAGE","POOR")))) -> EXCELLENT
A94: =Data_Sheet!A94 -> JEC18CS071 | B94: =Data_Sheet!B94 -> RACHEL CECER | C94: ='A1'!F94 -> 10 | D94: =IF(C94="A","ABSENT",IF(C94>='A1'!$E$5*$E$124/100,"EXCELLENT",IF(C94>='A1'!$E$5*$E$123/100,"GOOD",IF(C94>='A1'!$E$5*$E$122/100,"AVERAGE","POOR")))) -> EXCELLENT
A95: =Data_Sheet!A95 -> JEC18CS072 | B95: =Data_Sheet!B95 -> RAHUL RAJU | C95: ='A1'!F95 -> 10 | D95: =IF(C95="A","ABSENT",IF(C95>='A1'!$E$5*$E$124/100,"EXCELLENT",IF(C95>='A1'!$E$5*$E$123/100,"GOOD",IF(C95>='A1'!$E$5*$E$122/100,"AVERAGE","POOR")))) -> EXCELLENT
A96: =Data_Sheet!A96 -> JEC18CS073 | B96: =Data_Sheet!B96 -> RAHUL T RAVI | C96: ='A1'!F96 -> 10 | D96: =IF(C96="A","ABSENT",IF(C96>='A1'!$E$5*$E$124/100,"EXCELLENT",IF(C96>='A1'!$E$5*$E$123/100,"GOOD",IF(C96>='A1'!$E$5*$E$122/100,"AVERAGE","POOR")))) -> EXCELLENT
A97: =Data_Sheet!A97 -> JEC18CS074 | B97: =Data_Sheet!B97 -> RAPHEAL K MOYALAN | C97: ='A1'!F97 -> 7 | D97: =IF(C97="A","ABSENT",IF(C97>='A1'!$E$5*$E$124/100,"EXCELLENT",IF(C97>='A1'!$E$5*$E$123/100,"GOOD",IF(C97>='A1'!$E$5*$E$122/100,"AVERAGE","POOR")))) -> GOOD
A98: =Data_Sheet!A98 -> JEC18CS075 | B98: =Data_Sheet!B98 -> RISHIKESH. V | C98: ='A1'!F98 -> 9 | D98: =IF(C98="A","ABSENT",IF(C98>='A1'!$E$5*$E$124/100,"EXCELLENT",IF(C98>='A1'!$E$5*$E$123/100,"GOOD",IF(C98>='A1'!$E$5*$E$122/100,"AVERAGE","POOR")))) -> EXCELLENT
A99: =Data_Sheet!A99 -> JEC18CS076 | B99: =Data_Sheet!B99 -> ROCKSON T. AUGUSTINE | C99: ='A1'!F99 -> 8 | D99: =IF(C99="A","ABSENT",IF(C99>='A1'!$E$5*$E$124/100,"EXCELLENT",IF(C99>='A1'!$E$5*$E$123/100,"GOOD",IF(C99>='A1'!$E$5*$E$122/100,"AVERAGE","POOR")))) -> EXCELLENT
A100: =Data_Sheet!A100 -> JEC18CS077 | B100: =Data_Sheet!B100 -> SARATH C P | C100: ='A1'!F100 -> 10 | D100: =IF(C100="A","ABSENT",IF(C100>='A1'!$E$5*$E$124/100,"EXCELLENT",IF(C100>='A1'!$E$5*$E$123/100,"GOOD",IF(C100>='A1'!$E$5*$E$122/100,"AVERAGE","POOR")))) -> EXCELLENT
A101: =Data_Sheet!A101 -> JEC18CS078 | B101: =Data_Sheet!B101 -> SARATH SASI | C101: ='A1'!F101 -> 8 | D101: =IF(C101="A","ABSENT",IF(C101>='A1'!$E$5*$E$124/100,"EXCELLENT",IF(C101>='A1'!$E$5*$E$123/100,"GOOD",IF(C101>='A1'!$E$5*$E$122/100,"AVERAGE","POOR")))) -> EXCELLENT
A102: =Data_Sheet!A102 -> JEC18CS079 | B102: =Data_Sheet!B102 -> SHAFNA | C102: ='A1'!F102 -> 10 | D102: =IF(C102="A","ABSENT",IF(C102>='A1'!$E$5*$E$124/100,"EXCELLENT",IF(C102>='A1'!$E$5*$E$123/100,"GOOD",IF(C102>='A1'!$E$5*$E$122/100,"AVERAGE","POOR")))) -> EXCELLENT
A103: =Data_Sheet!A103 -> JEC18CS080 | B103: =Data_Sheet!B103 -> SHELMY SHABU | C103: ='A1'!F103 -> 10 | D103: =IF(C103="A","ABSENT",IF(C103>='A1'!$E$5*$E$124/100,"EXCELLENT",IF(C103>='A1'!$E$5*$E$123/100,"GOOD",IF(C103>='A1'!$E$5*$E$122/100,"AVERAGE","POOR")))) -> EXCELLENT
A104: =Data_Sheet!A104 -> JEC18CS081 | B104: =Data_Sheet!B104 -> SHIZA SHIHAB PUVAMPARAMBIL | C104: ='A1'!F104 -> 10 | D104: =IF(C104="A","ABSENT",IF(C104>='A1'!$E$5*$E$124/100,"EXCELLENT",IF(C104>='A1'!$E$5*$E$123/100,"GOOD",IF(C104>='A1'!$E$5*$E$122/100,"AVERAGE","POOR")))) -> EXCELLENT
A105: =Data_Sheet!A105 -> JEC18CS082 | B105: =Data_Sheet!B105 -> SIJO GEORGE | C105: ='A1'!F105 -> 8 | D105: =IF(C105="A","ABSENT",IF(C105>='A1'!$E$5*$E$124/100,"EXCELLENT",IF(C105>='A1'!$E$5*$E$123/100,"GOOD",IF(C105>='A1'!$E$5*$E$122/100,"AVERAGE","POOR")))) -> EXCELLENT
A106: =Data_Sheet!A106 -> JEC18CS083 | B106: =Data_Sheet!B106 -> SOURAV K | C106: ='A1'!F106 -> 8 | D106: =IF(C106="A","ABSENT",IF(C106>='A1'!$E$5*$E$124/100,"EXCELLENT",IF(C106>='A1'!$E$5*$E$123/100,"GOOD",IF(C106>='A1'!$E$5*$E$122/100,"AVERAGE","POOR")))) -> EXCELLENT
A107: =Data_Sheet!A107 -> 0 | B107: =Data_Sheet!B107 -> 0 | C107: ='A1'!F107 -> 0 | D107: =IF(C107="A","ABSENT",IF(C107>='A1'!$E$5*$E$124/100,"EXCELLENT",IF(C107>='A1'!$E$5*$E$123/100,"GOOD",IF(C107>='A1'!$E$5*$E$122/100,"AVERAGE","POOR")))) -> POOR
A108: =Data_Sheet!A108 -> JEC18CS085 | B108: =Data_Sheet!B108 -> SREEHARI | C108: ='A1'!F108 -> 7 | D108: =IF(C108="A","ABSENT",IF(C108>='A1'!$E$5*$E$124/100,"EXCELLENT",IF(C108>='A1'!$E$5*$E$123/100,"GOOD",IF(C108>='A1'!$E$5*$E$122/100,"AVERAGE","POOR")))) -> GOOD
A109: =Data_Sheet!A109 -> JEC18CS086 | B109: =Data_Sheet!B109 -> SREEKANTH P | C109: ='A1'!F109 -> 7 | D109: =IF(C109="A","ABSENT",IF(C109>='A1'!$E$5*$E$124/100,"EXCELLENT",IF(C109>='A1'!$E$5*$E$123/100,"GOOD",IF(C109>='A1'!$E$5*$E$122/100,"AVERAGE","POOR")))) -> GOOD
A110: =Data_Sheet!A110 -> JEC18CS087 | B110: =Data_Sheet!B110 -> SREELEKSHMI H KUMAR | C110: ='A1'!F110 -> 10 | D110: =IF(C110="A","ABSENT",IF(C110>='A1'!$E$5*$E$124/100,"EXCELLENT",IF(C110>='A1'!$E$5*$E$123/100,"GOOD",IF(C110>='A1'!$E$5*$E$122/100,"AVERAGE","POOR")))) -> EXCELLENT
A111: =Data_Sheet!A111 -> JEC18CS088 | B111: =Data_Sheet!B111 -> SUFAIL BADUSHA.T | C111: ='A1'!F111 -> 9 | D111: =IF(C111="A","ABSENT",IF(C111>='A1'!$E$5*$E$124/100,"EXCELLENT",IF(C111>='A1'!$E$5*$E$123/100,"GOOD",IF(C111>='A1'!$E$5*$E$122/100,"AVERAGE","POOR")))) -> EXCELLENT
A112: =Data_Sheet!A112 -> JEC18CS089 | B112: =Data_Sheet!B112 -> TIYA THOMAS | C112: ='A1'!F112 -> 10 | D112: =IF(C112="A","ABSENT",IF(C112>='A1'!$E$5*$E$124/100,"EXCELLENT",IF(C112>='A1'!$E$5*$E$123/100,"GOOD",IF(C112>='A1'!$E$5*$E$122/100,"AVERAGE","POOR")))) -> EXCELLENT
A113: =Data_Sheet!A113 -> JEC18CS090 | B113: =Data_Sheet!B113 -> TOMSUN PAVOO P | C113: ='A1'!F113 -> 10 | D113: =IF(C113="A","ABSENT",IF(C113>='A1'!$E$5*$E$124/100,"EXCELLENT",IF(C113>='A1'!$E$5*$E$123/100,"GOOD",IF(C113>='A1'!$E$5*$E$122/100,"AVERAGE","POOR")))) -> EXCELLENT
A114: =Data_Sheet!A114 -> JEC18CS091 | B114: =Data_Sheet!B114 -> ULLAS. S | C114: ='A1'!F114 -> 5 | D114: =IF(C114="A","ABSENT",IF(C114>='A1'!$E$5*$E$124/100,"EXCELLENT",IF(C114>='A1'!$E$5*$E$123/100,"GOOD",IF(C114>='A1'!$E$5*$E$122/100,"AVERAGE","POOR")))) -> AVERAGE
A115: =Data_Sheet!A115 -> JEC18CS092 | B115: =Data_Sheet!B115 -> VAISHNAV M | C115: ='A1'!F115 -> 5 | D115: =IF(C115="A","ABSENT",IF(C115>='A1'!$E$5*$E$124/100,"EXCELLENT",IF(C115>='A1'!$E$5*$E$123/100,"GOOD",IF(C115>='A1'!$E$5*$E$122/100,"AVERAGE","POOR")))) -> AVERAGE
A116: =Data_Sheet!A116 -> JEC18CS093 | B116: =Data_Sheet!B116 -> VANI PRAKASHAN CHOYYAN | C116: ='A1'!F116 -> 10 | D116: =IF(C116="A","ABSENT",IF(C116>='A1'!$E$5*$E$124/100,"EXCELLENT",IF(C116>='A1'!$E$5*$E$123/100,"GOOD",IF(C116>='A1'!$E$5*$E$122/100,"AVERAGE","POOR")))) -> EXCELLENT
A118: Total Number of Students | C118: =Data_Sheet!$C$6 -> 92
A119: Number of Students Absent | C119: =IF(COUNTIF(C25:INDIRECT(C131),"=A"),COUNTIF(C25:INDIRECT(C131),"=A"),0) -> 0
A120: Total Number of Students attended | C120: =C118-C119 -> 92
A121: ="Number of Students with Marks less than "&E122&"%" -> Number of Students with Marks less than 45% | C121: =IF(COUNTIF(D25:INDIRECT(D131),"=POOR"),COUNTIF(D25:INDIRECT(D131),"=POOR"),0) -> 3 | D121: POOR | E121: Range
A122: ="Number of Students with Marks betweeen "&E122&"% to "&E123&"%" -> Number of Students with Marks betweeen 45% to 60% | C122: =IF(COUNTIF(D25:INDIRECT(D131),"=AVERAGE"),COUNTIF(D25:INDIRECT(D131),"=AVERAGE"),0) -> 6 | D122: AVERAGE | E122: 45
A123: ="Number of Students with Marks betweeen "&E123&"% to "&E124&"%" -> Number of Students with Marks betweeen 60% to 80% | C123: =IF(COUNTIF(D25:INDIRECT(D131),"=GOOD"),COUNTIF(D25:INDIRECT(D131),"=GOOD"),0) -> 3 | D123: GOOD | E123: 60
A124: ="Number of Students with Marks greater than "&E124&"%" -> Number of Students with Marks greater than 80% | C124: =IF(COUNTIF(D25:INDIRECT(D131),"=EXCELLENT"),COUNTIF(D25:INDIRECT(D131),"=EXCELLENT"),0) -> 80 | D124: EXCELLENT | E124: 80
A125: Class Average | C125: =ROUND(AVERAGE(C25:INDIRECT(C131)),2) -> 8.85
A126: Pass Percentage | C126: =ROUND(((C120-C121)/C120)*100,2) -> 96.74
B128: =Data_Sheet!B10 -> Name of Faculty : | C128: =Data_Sheet!B11 -> Namitha T N
B129: =Data_Sheet!B136 -> Dated Signature :
A131: =ROW(A118)-2 -> 116 | B131: Last Row Count | C131: ="$C$"&$A$131 -> $C$116 | D131: ="$D$"&$A$131 -> $D$116

Sheet A2
C1: Date :
C2: 2018-03-21
A3: Add questions one by one as needed.. | C3: Assessment Category | G3: CO1 | H3: First Internal Exam
C4: Assignment - 2 | G4: CO2 | H4: Second Internal Exam
C5: Total Marks : | E5: 10 | G5: CO3 | H5: Assessment Exam - 1
G6: CO4 | H6: Assessment Exam - 2
A7: =Data_Sheet!A2 -> Jyothi Engineering College, Cheruthuruthy | G7: CO5 | H7: Assignment - 1
G8: CO6 | H8: Assignment - 2
A9: =Data_Sheet!A4 -> Department of Computer Science Engineering | H9: Retest
G10: 1
A11: ="CO Analysis - Internal Marks : "&C4 &" " &TEXT(C2,"dd-mm-yy") -> CO Analysis - Internal Marks : Assignment - 2 21-03-18 | G11: 2
G12: 3
A13: =Data_Sheet!A17 -> S3 CS CS203 Switching Theory and Logic Design 2019-20 | G13: 4
G14: 5
G15: 6
A18: Register No. | B18: Name of Student | C18: Qn. No. | D18: 1 | E18: 2 | F18: ="Total Marks (" &E5 & ")" -> Total Marks (10) | I18: Calculated Total Marks (10)
C19: CO's | D19: CO1, CO6 | E19: CO2, CO1
C20: Blooms Taxonomy Lavel | D20: 4, 5 | E20: 5, 6
C21: Max. Marks | D21: 5 | E21: 5
C22: Difficulty Level in % | D22: 60 | E22: 60
A24: Column1 | B24: Column2 | C24: Column3 | D24: Column4 | E24: Column5 | F24: Column32
A25: =Data_Sheet!A25 -> JEC18CS001 | B25: =Data_Sheet!B25 -> ABHISHEK KRISHNAN MENON E | D25: 5 | E25: 5 | F25: 10
A26: =Data_Sheet!A26 -> JEC18CS002 | B26: =Data_Sheet!B26 -> ABHISHEK SAJEEVAN | D26: 2.5 | E26: 2.5 | F26: 5
A27: =Data_Sheet!A27 -> JEC18CS003 | B27: =Data_Sheet!B27 -> ABHITH SHAJI | D27: 4.5 | E27: 4.5 | F27: 9
A28: =Data_Sheet!A28 -> JEC18CS004 | B28: =Data_Sheet!B28 -> ABIN SANTHOSH ALAPATT | D28: 5 | E28: 5 | F28: 10
A29: =Data_Sheet!A29 -> JEC18CS005 | B29: =Data_Sheet!B29 -> ADARSH KUMAR M A | D29: 5 | E29: 5 | F29: 10
A30: =Data_Sheet!A30 -> JEC18CS006 | B30: =Data_Sheet!B30 -> ADHITHYA KRISHNA S | D30: 4.5 | E30: 4.5 | F30: 9
A31: =Data_Sheet!A31 -> JEC18CS007 | B31: =Data_Sheet!B31 -> ADITHYA HARIDAS | D31: 5 | E31: 5 | F31: 10
A32: =Data_Sheet!A32 -> JEC18CS008 | B32: =Data_Sheet!B32 -> AJMAL BASHEER | D32: 2.5 | E32: 2.5 | F32: 5
A33: =Data_Sheet!A33 -> JEC18CS009 | B33: =Data_Sheet!B33 -> AKASH.V | D33: 4 | E33: 5 | F33: 9
A34: =Data_Sheet!A34 -> JEC18CS010 | B34: =Data_Sheet!B34 -> AKHIL AZEEZ UPPILAMKUNNATH | D34: 5 | E34: 5 | F34: 10
A35: =Data_Sheet!A35 -> JEC18CS011 | B35: =Data_Sheet!B35 -> AKHIL KRISHNA UK | D35: 4 | E35: 5 | F35: 9
A36: =Data_Sheet!A36 -> JEC18CS012 | B36: =Data_Sheet!B36 -> ALAN GEORGE | D36: 5 | E36: 5 | F36: 10
A37: =Data_Sheet!A37 -> JEC18CS013 | B37: =Data_Sheet!B37 -> ALEN VARGHESE | D37: 5 | E37: 5 | F37: 10
A38: =Data_Sheet!A38 -> JEC18CS014 | B38: =Data_Sheet!B38 -> AMAL SEBASTIAN | D38: 5 | E38: 5 | F38: 10
A39: =Data_Sheet!A39 -> JEC18CS015 | B39: =Data_Sheet!B39 -> AMAL SONY | D39: 3 | E39: 5 | F39: 8
A40: =Data_Sheet!A40 -> JEC18CS016 | B40: =Data_Sheet!B40 -> ANAGHA WILSON | D40: 5 | E40: 5 | F40: 10
A41: =Data_Sheet!A41 -> JEC18CS017 | B41: =Data_Sheet!B41 -> ANETTE ANTO | D41: 5 | E41: 5 | F41: 10
A42: =Data_Sheet!A42 -> JEC18CS018 | B42: =Data_Sheet!B42 -> ANIT MARY THOMAS | D42: 5 | E42: 5 | F42: 10
A43: =Data_Sheet!A43 -> JEC18CS020 | B43: =Data_Sheet!B43 -> ANN THERESA SHAJI | D43: 5 | E43: 5 | F43: 10
A44: =Data_Sheet!A44 -> JEC18CS021 | B44: =Data_Sheet!B44 -> ANTONY ROY | D44: 4 | E44: 5 | F44: 9
A45: =Data_Sheet!A45 -> JEC18CS022 | B45: =Data_Sheet!B45 -> ANUGRAHA C | D45: 5 | E45: 5 | F45: 10
A46: =Data_Sheet!A46 -> JEC18CS023 | B46: =Data_Sheet!B46 -> APARNA.V | D46: 5 | E46: 5 | F46: 10
A47: =Data_Sheet!A47 -> JEC18CS024 | B47: =Data_Sheet!B47 -> ARAVIND S KUMAR | D47: 5 | E47: 5 | F47: 10
A48: =Data_Sheet!A48 -> JEC18CS025 | B48: =Data_Sheet!B48 -> ARJUN VINOD | D48: 3 | E48: 2 | F48: 5
A49: =Data_Sheet!A49 -> JEC18CS026 | B49: =Data_Sheet!B49 -> ARUN VG | D49: 5 | E49: 5 | F49: 10
A50: =Data_Sheet!A50 -> JEC18CS027 | B50: =Data_Sheet!B50 -> ASHRUL K | D50: 5 | E50: 5 | F50: 10
A51: =Data_Sheet!A51 -> JEC18CS028 | B51: =Data_Sheet!B51 -> ATHIL PAULY | D51: 4 | E51: 5 | F51: 9
A52: =Data_Sheet!A52 -> JEC18CS029 | B52: =Data_Sheet!B52 -> ATHIRA K P | D52: 5 | E52: 5 | F52: 10
A53: =Data_Sheet!A53 -> JEC18CS030 | B53: =Data_Sheet!B53 -> AWIN ANTO | D53: 5 | E53: 5 | F53: 10
A54: =Data_Sheet!A54 -> JEC18CS031 | B54: =Data_Sheet!B54 -> CHARLES JOHNSON | D54: 5 | E54: 4 | F54: 9
A55: =Data_Sheet!A55 -> JEC18CS032 | B55: =Data_Sheet!B55 -> CHITTILAPPILLY JOVIA JOHNSON | D55: 5 | E55: 5 | F55: 10
A56: =Data_Sheet!A56 -> JEC18CS033 | B56: =Data_Sheet!B56 -> CIYA BABU | D56: 5 | E56: 5 | F56: 10
A57: =Data_Sheet!A57 -> JEC18CS034 | B57: =Data_Sheet!B57 -> DAVID SALUS | D57: 5 | E57: 5 | F57: 10
A58: =Data_Sheet!A58 -> JEC18CS035 | B58: =Data_Sheet!B58 -> DELICIA REJI | D58: 5 | E58: 5 | F58: 10
A59: =Data_Sheet!A59 -> JEC18CS036 | B59: =Data_Sheet!B59 -> DELMA SHAJAN | D59: 5 | E59: 5 | F59: 10
A60: =Data_Sheet!A60 -> JEC18CS037 | B60: =Data_Sheet!B60 -> DILBER SHA AP | D60: 4 | E60: 5 | F60: 9
A61: =Data_Sheet!A61 -> JEC18CS038 | B61: =Data_Sheet!B61 -> EDWIN T JOY | D61: 4 | E61: 5 | F61: 9
A62: =Data_Sheet!A62 -> JEC18CS039 | B62: =Data_Sheet!B62 -> EDWIN WILSON | D62: 4 | E62: 5 | F62: 9
A63: =Data_Sheet!A63 -> JEC18CS040 | B63: =Data_Sheet!B63 -> EMMANUEL SHIBU | D63: 5 | E63: 5 | F63: 10
A64: =Data_Sheet!A64 -> JEC18CS041 | B64: =Data_Sheet!B64 -> GAYATHRI DINESH | D64: 5 | E64: 5 | F64: 10
A65: =Data_Sheet!A65 -> JEC18CS042 | B65: =Data_Sheet!B65 -> GOKUL DAS M | D65: 5 | E65: 5 | F65: 10
A66: =Data_Sheet!A66 -> JEC18CS043 | B66: =Data_Sheet!B66 -> G RAMGOPAL | D66: 5 | E66: 5 | F66: 10
A67: =Data_Sheet!A67 -> JEC18CS044 | B67: =Data_Sheet!B67 -> HARIES DAVIS | D67: 5 | E67: 5 | F67: 10
A68: =Data_Sheet!A68 -> JEC18CS045 | B68: =Data_Sheet!B68 -> HARISANKER P | D68: 5 | E68: 5 | F68: 10
A69: =Data_Sheet!A69 -> JEC18CS046 | B69: =Data_Sheet!B69 -> HARSHA.K.S. | D69: 5 | E69: 5 | F69: 10
A70: =Data_Sheet!A70 -> JEC18CS047 | B70: =Data_Sheet!B70 -> HELNA THOMAS | D70: 5 | E70: 5 | F70: 10
A71: =Data_Sheet!A71 -> JEC18CS048 | B71: =Data_Sheet!B71 -> HRIDI KRISHNA.H | D71: 5 | E71: 5 | F71: 10
A72: =Data_Sheet!A72 -> JEC18CS049 | B72: =Data_Sheet!B72 -> INDRAJIT R | D72: 5 | E72: 3 | F72: 8
A73: =Data_Sheet!A73 -> JEC18CS050 | B73: =Data_Sheet!B73 -> JESWIN JOJY | D73: 5 | E73: 3 | F73: 8
A74: =Data_Sheet!A74 -> JEC18CS051 | B74: =Data_Sheet!B74 -> JIBIN A BABU | D74: 5 | E74: 5 | F74: 10
A75: =Data_Sheet!A75 -> JEC18CS052 | B75: =Data_Sheet!B75 -> JISSY JOY | D75: 5 | E75: 5 | F75: 10
A76: =Data_Sheet!A76 -> JEC18CS053 | B76: =Data_Sheet!B76 -> JOEL JAMES KARIKKANDATHIL | D76: 5 | E76: 5 | F76: 10
A77: =Data_Sheet!A77 -> JEC18CS054 | B77: =Data_Sheet!B77 -> JOSE REJI KARIMADATHI | D77: 5 | E77: 3 | F77: 8
A78: =Data_Sheet!A78 -> JEC18CS055 | B78: =Data_Sheet!B78 -> JUMANA HASIN | D78: 5 | E78: 5 | F78: 10
A79: =Data_Sheet!A79 -> JEC18CS056 | B79: =Data_Sheet!B79 -> KAILASHNATH | D79: 5 | E79: 5 | F79: 9
A80: =Data_Sheet!A80 -> JEC18CS057 | B80: =Data_Sheet!B80 -> K AJISHKUMAR | D80: 5 | E80: 5 | F80: 9
A81: =Data_Sheet!A81 -> JEC18CS058 | B81: =Data_Sheet!B81 -> KEERTHANA K S | D81: 5 | E81: 5 | F81: 9
A82: =Data_Sheet!A82 -> JEC18CS059 | B82: =Data_Sheet!B82 -> KEVIN VARGHESE | D82: 5 | E82: 5 | F82: 10
A83: =Data_Sheet!A83 -> JEC18CS060 | B83: =Data_Sheet!B83 -> LAKSHMI SADANANDAN | D83: 5 | E83: 5 | F83: 10
A84: =Data_Sheet!A84 -> JEC18CS061 | B84: =Data_Sheet!B84 -> LEYA PALLAN | D84: 5 | E84: 5 | F84: 10
A85: =Data_Sheet!A85 -> JEC18CS062 | B85: =Data_Sheet!B85 -> MARVEL BABU | D85: 5 | E85: 4 | F85: 9
A86: =Data_Sheet!A86 -> JEC18CS063 | B86: =Data_Sheet!B86 -> MEDWIN PAUL | D86: 2.5 | E86: 2.5 | F86: 5
A87: =Data_Sheet!A87 -> 0 | B87: =Data_Sheet!B87 -> 0
A88: =Data_Sheet!A88 -> 0 | B88: =Data_Sheet!B88 -> 0
A89: =Data_Sheet!A89 -> JEC18CS066 | B89: =Data_Sheet!B89 -> MUHAMMED INSHADH | D89: 5 | E89: 4 | F89: 9
A90: =Data_Sheet!A90 -> JEC18CS067 | B90: =Data_Sheet!B90 -> NAIR MIDHUN RAMACHANDRAN | D90: 5 | E90: 3 | F90: 8
A91: =Data_Sheet!A91 -> JEC18CS068 | B91: =Data_Sheet!B91 -> NAVEENA ANTONY | D91: 5 | E91: 5 | F91: 10
A92: =Data_Sheet!A92 -> JEC18CS069 | B92: =Data_Sheet!B92 -> NITIN MADHU | D92: 5 | E92: 3 | F92: 8
A93: =Data_Sheet!A93 -> JEC18CS070 | B93: =Data_Sheet!B93 -> PRATHIUSH ARUN | D93: 5 | E93: 5 | F93: 10
A94: =Data_Sheet!A94 -> JEC18CS071 | B94: =Data_Sheet!B94 -> RACHEL CECER | D94: 5 | E94: 5 | F94: 10
A95: =Data_Sheet!A95 -> JEC18CS072 | B95: =Data_Sheet!B95 -> RAHUL RAJU | D95: 5 | E95: 5 | F95: 10
A96: =Data_Sheet!A96 -> JEC18CS073 | B96: =Data_Sheet!B96 -> RAHUL T RAVI | D96: 5 | E96: 5 | F96: 10
A97: =Data_Sheet!A97 -> JEC18CS074 | B97: =Data_Sheet!B97 -> RAPHEAL K MOYALAN | D97: 5 | E97: 2 | F97: 7
A98: =Data_Sheet!A98 -> JEC18CS075 | B98: =Data_Sheet!B98 -> RISHIKESH. V | D98: 5 | E98: 4 | F98: 9
A99: =Data_Sheet!A99 -> JEC18CS076 | B99: =Data_Sheet!B99 -> ROCKSON T. AUGUSTINE | D99: 3 | E99: 5 | F99: 8
A100: =Data_Sheet!A100 -> JEC18CS077 | B100: =Data_Sheet!B100 -> SARATH C P | D100: 5 | E100: 5 | F100: 10
A101: =Data_Sheet!A101 -> JEC18CS078 | B101: =Data_Sheet!B101 -> SARATH SASI | D101: 5 | E101: 3 | F101: 8
A102: =Data_Sheet!A102 -> JEC18CS079 | B102: =Data_Sheet!B102 -> SHAFNA | D102: 5 | E102: 5 | F102: 10
A103: =Data_Sheet!A103 -> JEC18CS080 | B103: =Data_Sheet!B103 -> SHELMY SHABU | D103: 5 | E103: 5 | F103: 10
A104: =Data_Sheet!A104 -> JEC18CS081 | B104: =Data_Sheet!B104 -> SHIZA SHIHAB PUVAMPARAMBIL | D104: 5 | E104: 5 | F104: 10
A105: =Data_Sheet!A105 -> JEC18CS082 | B105: =Data_Sheet!B105 -> SIJO GEORGE | D105: 5 | E105: 3 | F105: 8
A106: =Data_Sheet!A106 -> JEC18CS083 | B106: =Data_Sheet!B106 -> SOURAV K | D106: 5 | E106: 5 | F106: 8
A107: =Data_Sheet!A107 -> 0 | B107: =Data_Sheet!B107 -> 0
A108: =Data_Sheet!A108 -> JEC18CS085 | B108: =Data_Sheet!B108 -> SREEHARI | D108: 5 | E108: 2 | F108: 7
A109: =Data_Sheet!A109 -> JEC18CS086 | B109: =Data_Sheet!B109 -> SREEKANTH P | D109: 2 | E109: 5 | F109: 7
A110: =Data_Sheet!A110 -> JEC18CS087 | B110: =Data_Sheet!B110 -> SREELEKSHMI H KUMAR | D110: 5 | E110: 5 | F110: 10
A111: =Data_Sheet!A111 -> JEC18CS088 | B111: =Data_Sheet!B111 -> SUFAIL BADUSHA.T | D111: 5 | E111: 4 | F111: 9
A112: =Data_Sheet!A112 -> JEC18CS089 | B112: =Data_Sheet!B112 -> TIYA THOMAS | D112: 5 | E112: 5 | F112: 10
A113: =Data_Sheet!A113 -> JEC18CS090 | B113: =Data_Sheet!B113 -> TOMSUN PAVOO P | D113: 5 | E113: 5 | F113: 10
A114: =Data_Sheet!A114 -> JEC18CS091 | B114: =Data_Sheet!B114 -> ULLAS. S | D114: 2.5 | E114: 2.5 | F114: 5
A115: =Data_Sheet!A115 -> JEC18CS092 | B115: =Data_Sheet!B115 -> VAISHNAV M | D115: 2.5 | E115: 2.5 | F115: 5
A116: =Data_Sheet!A116 -> JEC18CS093 | B116: =Data_Sheet!B116 -> VANI PRAKASHAN CHOYYAN | D116: 5 | E116: 5 | F116: 10
A118: Total Marks scored for the Question | D118: =IF(D$22<>"",IF(SUM(D25:INDIRECT(D138))>=0,SUM(D25:INDIRECT(D138)),""),"") -> 415.5 | E118: =IF(E$22<>"",IF(SUM(E25:INDIRECT(E138))>=0,SUM(E25:INDIRECT(E138)),""),"") -> 403.5
A119: No. of Students who attended the Question | D119: =IF(D$22<>"",IF(COUNT(D25:INDIRECT(D138))>=0,COUNT(D25:INDIRECT(D138)),""),"") -> 89 | E119: =IF(E$22<>"",IF(COUNT(E25:INDIRECT(E138))>=0,COUNT(E25:INDIRECT(E138)),""),"") -> 89
A120: Difficulty Level marks of the Question | D120: =IF(D21*D22/100=0,"",D21*D22/100) -> 3 | E120: 3
A121: No. of Students who scored above the Difficulty Level | D121: =IF(COUNTIF(D25:INDIRECT(D138),">="&D120)=0,"",COUNTIF(D25:INDIRECT(D138),">="&D120)) -> 83 | E121: =IF(COUNTIF(E25:INDIRECT(E138),">="&E120)=0,"",COUNTIF(E25:INDIRECT(E138),">="&E120)) -> 81
